Workbook

Sheet Summary
B6: Summary
B9: SOP | G9: Project manager | M9: Produced by
B10: =IF(Calculator!$G$10="","-",Calculator!$G$10) -> - | G10: =IF(Calculator!$I$10="","-",Calculator!$I$10) -> - | M10: =IF(Calculator!$E$10="","-",Calculator!$E$10) -> -
B12: Project name | G12: Date produced | M12: Reviewed by
B13: =IF(Calculator!$H$10="","-",Calculator!$H$10) -> - | G13: =IF(Calculator!$C$10="","-",Calculator!$C$10) -> - | M13: =IF(Calculator!$F$10="","-",Calculator!$F$10) -> -

Sheet GraphData (hidden)
A1: Culmative Whole Life Carbon | D1: Whole Life Carbon by Asset | G1: Whole Life Carbon per New Build Stage | J1: Whole Life Operational Carbon per Asset | M1: Whole Life Use Carbon Operational stage | P1: Carbon by Stage | S1: Material Carbon | V1: Whole Life New Build per Asset
A2: Row Labels | B2: Whole Life carbon | D2: Row Labels | E2: Whole Life Carbon | G2: Values | J2: Row Labels | K2: Whole Life Operational Carbon | M2: Values | P2: Values | S2: Row Labels | T2: CO2e (t) | V2: Row Labels | W2: Sum of WLCDF
A3: 0 | B3: 2225.680579 | D3: (blank) | G3: Materials | H3: 968.2248 | J3: (blank) | M3: Use | N3: 0 | P3: Capital Carbon | Q3: 2225.680579 | S3: (blank) | T3: 0 | V3: (blank)
A4: 1 | B4: 2225.680579 | D4: Dredging Works | E4: 3723.237834 | G4: Materials Transport | H4: 33.77397315 | J4: Dredging Works | K4: 1497.557255 | M4: Maintenance | N4: 1497.557255 | P4: Operational Carbon | Q4: 1497.557255 | S4: Soil/Clay | T4: 968.2248 | V4: Dredging Works | W4: 3723.237834
A5: 2 | B5: 2316.073963 | D5: Grand Total | E5: 3723.237834 | G5: People Transport | H5: 337.07328 | J5: Grand Total | K5: 1497.557255 | M5: Repair | N5: 0 | P5: Replacement Carbon | Q5: 0 | S5: Grand Total | T5: 968.2248 | V5: Grand Total | W5: 3723.237834
A6: 3 | B6: 2316.073963 | G6: Plant Transport | H6: 0.9941643774 | M6: Energy | N6: 0 | P6: Refurbishment Carbon | Q6: 0
A7: 4 | B7: 2400.457153 | G7: Site Establishment | H7: 190.759147 | P7: Demolition Carbon | Q7: 0
A8: 5 | B8: 2400.457153 | G8: Plant Use | H8: 0 | P8: Residual Carbon | Q8: 0
A9: 6 | B9: 2479.229765 | G9: Waste | H9: 694.8552145
A10: 7 | B10: 2479.229765
A11: 8 | B11: 2552.764841
A12: 9 | B12: 2552.764841
A13: 10 | B13: 2621.410621
A14: 11 | B14: 2621.410621
A15: 12 | B15: 2685.492191
A16: 13 | B16: 2685.492191
A17: 14 | B17: 2745.313023
A18: 15 | B18: 2745.313023
A19: 16 | B19: 2801.156409
A20: 17 | B20: 2801.156409
A21: 18 | B21: 2853.286808
A22: 19 | B22: 2853.286808
A23: 20 | B23: 2901.951092
A24: 21 | B24: 2901.951092
A25: 22 | B25: 2947.379723
A26: 23 | B26: 2947.379723
A27: 24 | B27: 2989.787836
A28: 25 | B28: 2989.787836
A29: 26 | B29: 3029.376263
A30: 27 | B30: 3029.376263
A31: 28 | B31: 3066.332484
A32: 29 | B32: 3066.332484
A33: 30 | B33: 3100.831511
A34: 31 | B34: 3100.831511
A35: 32 | B35: 3138.434828
A36: 33 | B36: 3138.434828
A37: 34 | B37: 3173.87956
A38: 35 | B38: 3173.87956
A39: 36 | B39: 3207.28962
A40: 37 | B40: 3207.28962
A41: 38 | B41: 3238.781806
A42: 39 | B42: 3238.781806
A43: 40 | B43: 3268.466211
A44: 41 | B44: 3268.466211
A45: 42 | B45: 3296.44661
A46: 43 | B46: 3296.44661
A47: 44 | B47: 3322.82082
A48: 45 | B48: 3322.82082
A49: 46 | B49: 3347.681042
A50: 47 | B50: 3347.681042
A51: 48 | B51: 3371.114186
A52: 49 | B52: 3371.114186
A53: 50 | B53: 3393.202171
A54: 51 | B54: 3393.202171
A55: 52 | B55: 3414.022216
A56: 53 | B56: 3414.022216
A57: 54 | B57: 3433.647105
A58: 55 | B58: 3433.647105
A59: 56 | B59: 3452.145445
A60: 57 | B60: 3452.145445
A61: 58 | B61: 3469.581905
A62: 59 | B62: 3469.581905
A63: 60 | B63: 3486.01744
A64: 61 | B64: 3486.01744
A65: 62 | B65: 3501.509509
A66: 63 | B66: 3501.509509
A67: 64 | B67: 3516.112269
A68: 65 | B68: 3516.112269
A69: 66 | B69: 3529.876771
A70: 67 | B70: 3529.876771
A71: 68 | B71: 3542.851135
A72: 69 | B72: 3542.851135
A73: 70 | B73: 3555.080717
A74: 71 | B74: 3555.080717
A75: 72 | B75: 3566.608271
A76: 73 | B76: 3566.608271
A77: 74 | B77: 3577.474096
A78: 75 | B78: 3577.474096
A79: 76 | B79: 3592.299399
A80: 77 | B80: 3592.299399
A81: 78 | B81: 3606.410336
A82: 79 | B82: 3606.410336
A83: 80 | B83: 3619.841328
A84: 81 | B84: 3619.841328
A85: 82 | B85: 3632.62514
A86: 83 | B86: 3632.62514
A87: 84 | B87: 3644.792957
A88: 85 | B88: 3644.792957
A89: 86 | B89: 3656.37446
A90: 87 | B90: 3656.37446
A91: 88 | B91: 3667.397901
A92: 89 | B92: 3667.397901
A93: 90 | B93: 3677.890171
A94: 91 | B94: 3677.890171
A95: 92 | B95: 3687.876864
A96: 93 | B96: 3687.876864
A97: 94 | B97: 3697.382343
A98: 95 | B98: 3697.382343
A99: 96 | B99: 3706.429795
A100: 97 | B100: 3706.429795
A101: 98 | B101: 3715.041289
A102: 99 | B102: 3715.041289
A103: 100 | B103: 3723.237834
A104: (blank) | B104: 3723.237834
A105: Grand Total

Sheet FlatData (hidden)
A1: Asset ID | B1: Asset description | C1: Asset class | D1: Sub-Asset ref. | E1: Sub-Asset description | F1: Sub-Asset category | G1: Standard life | H1: Expected new build life | I1: Refurbishment type | J1: Expected refurbished Life | K1: First intervention | L1: Last Refurb | M1: Last Replace | N1: Remaining Life | O1: Last intervention | P1: Weighted Split | Q1: Materials | R1: Materials Transport | S1: People Transport | T1: Plant Transport | U1: Site Establishment | V1: Plant use | W1: Waste | X1: New Build Co2e | Y1: Use | Z1: Energy | AA1: Refurbishment | AB1: Den - Material Waste | AC1: Dem - Plant use | AD1: Dem - People | AE1: Year | AF1: Profile | AG1: Discount Factor | AH1: MaterialsDF | AI1: Materials TransportDF | AJ1: People TransportDF | AK1: Plant TransportDF | AL1: Site EstablishmentDF | AM1: Plant UseDF | AN1: WasteDF | AO1: CapitalDF | AP1: UseDF | AQ1: MaintenanceDF | AR1: RepairDF | AS1: EnergyDF | AT1: OP Co2eDF | AU1: RefurbDF | AV1: Dem - MaterialsDF | AW1: Dem - Plant | AX1: Dem - PeopleDf | AY1: ReplacementDF | AZ1: WLCDF | BA1: Residual | BB1: Replace Materials TransportDF | BC1: Replace People TransportDF | BD1: Replace Plant TransportDF | BE1: Replace MaterialsDF | BF1: Replace Site EstablishmentDF | BG1: Replace Plant UseDF | BH1: Replace WasteDF
A2: DredEA11 | B2: New channel | C2: Dredging Works | D2: DredEA1133 | E2: New channel-Excavation | F2: Dredging | G2: 120 | H2: 120 | I2: Not Possible | J2: 60 | K2: New Build | L2: 0 | M2: 0 | N2: 0 | O2: 2 | P2: 968.2248 | Q2: 968.2248 | R2: 33.77397315 | S2: 337.07328 | T2: 0.9941643774 | U2: 190.759147 | V2: 0 | W2: 694.8552145 | X2: 2225.680579 | Y2: 0 | Z2: 0 | AA2: 0 | AB2: 0 | AC2: 0.4970821887 | AD2: 168.53664 | AE2: 0 | AF2: 1 | AG2: =VLOOKUP(AE2,ValidationLists!$M$1:$N$102,2,FALSE) -> 1 | AH2: =IF(AE2=0,Q2*AG2,0) -> 968.2248 | AI2: =IF(AE2=0,R2*AG2,0) -> 33.77397315 | AJ2: =IF(AE2=0,S2*AG2,0) -> 337.07328 | AK2: =IF(AE2=0,T2*AG2,0) -> 0.9941643774 | AL2: =IF(AE2=0,U2*AG2,0) -> 190.759147 | AM2: =IF(AE2=0,V2*AG2,0) -> 0 | AN2: =IF(AE2=0,W2*AG2,0) -> 694.8552145 | AO2: =IF(AE2=0,AH2+AI2+AJ2+AK2+AL2+AM2+AN2,0) -> 2225.680579 | AP2: =IF(OR(AF2=3,AF2=2,AF2=0),Y2*AG2,0) -> 0 | AQ2: =IF(OR(AF2=3,AF2=2,AF2=0),SUMIFS(FlatMaint!$Z$2:$Z$10000,FlatMaint!$A$2:$A$10000,D2,FlatMaint!$Y$2:$Y$10000,AE2)*AG2,0) -> 0 | AR2: =IF(OR(AF2=3,AF2=2,AF2=0),SUMIFS(FlatRepair!$Z$2:$Z$10000,FlatRepair!$A$2:$A$10000,D2,FlatRepair!$Y$2:$Y$10000,AE2)*AG2,0) -> 0 | AS2: =IF(OR(AF2=3,AF2=2,AF2=0),Z2*AG2,0) -> 0 | AT2: =AP2+AQ2+AR2+AS2 -> 0 | AU2: =IF(AF2=2,AA2*AG2,0) -> 0 | AV2: =IF(AF2=3,AB2*AG2,0) -> 0 | AW2: =IF(AF2=3,AC2*AG2,0) -> 0 | AX2: =IF(AF2=3,AD2*AG2,0) -> 0 | AY2: =IF($AF$2=3,BB2+BC2+BD2+BE2+BF2+BG2+BH2,BB2+BC2+BD2+BE2+BF2+BG2+BH2) -> 0 | AZ2: =AO2+AT2+AU2+AV2+AW2+AX2+AY2+BA2 -> 2225.680579 | BA2: =IFERROR(IF(AE2=100,IF(O2=3,(N2/H2)*(X2*AG2)*-1,(N2/M2)*(X2*AG2)*-1),0),0) -> 0 | BB2: =IF($AF2=3,IF($AF$2=2,(R2/SUMIF(Refurb_Poss_Tbl[Refurbishment Possible],I2,Refurb_Poss_Tbl[%]))*AG2,IF($AF$2=3,(R2*AG2)-AV2,R2*AG2)),0) -> 0 | BC2: =IF(AF2=3,IF($AF$2=2,(S2/SUMIF(Refurb_Poss_Tbl[Refurbishment Possible],I2,Refurb_Poss_Tbl[%]))*AG2,IF($AF$2=3,(S2*AG2)-AX2,S2*AG2)),0) -> 0 | BD2: =IF($AF2=3,IF($AF$2=2,(T2/SUMIF(Refurb_Poss_Tbl[Refurbishment Possible],I2,Refurb_Poss_Tbl[%]))*AG2,T2*$AG2),0) -> 0 | BE2: =IF($AF2=3,IF($AF$2=2,(Q2/SUMIF(Refurb_Poss_Tbl[Refurbishment Possible],I2,Refurb_Poss_Tbl[%]))*AG2,Q2*$AG2),0) -> 0 | BF2: =IF($AF2=3,IF($AF$2=2,(U2/SUMIF(Refurb_Poss_Tbl[Refurbishment Possible],I2,Refurb_Poss_Tbl[%]))*AG2,U2*$AG2),0) -> 0 | BG2: =IF($AF2=3,IF($AF$2=2,(V2/SUMIF(Refurb_Poss_Tbl[Refurbishment Possible],I2,Refurb_Poss_Tbl[%]))*AG2,IF($AF$2=3,(V2*AG2)-AW2,V2*AG2)),0) -> 0 | BH2: =IF($AF2=3,IF($AF$2=2,(W2/SUMIF(Refurb_Poss_Tbl[Refurbishment Possible],I2,Refurb_Poss_Tbl[%]))*AG2,W2*$AG2),0) -> 0
A3: DredEA11 | B3: New channel | C3: Dredging Works | D3: DredEA1133 | E3: New channel-Excavation | F3: Dredging | G3: 120 | H3: 120 | I3: Not Possible | J3: 60 | K3: New Build | L3: 0 | M3: 0 | N3: 0 | O3: 2 | P3: 968.2248 | Q3: 968.2248 | R3: 33.77397315 | S3: 337.07328 | T3: 0.9941643774 | U3: 190.759147 | V3: 0 | W3: 694.8552145 | X3: 2225.680579 | Y3: 0 | Z3: 0 | AA3: 0 | AB3: 0 | AC3: 0.4970821887 | AD3: 168.53664 | AE3: 1 | AF3: 0 | AG3: =VLOOKUP(AE3,ValidationLists!$M$1:$N$102,2,FALSE) -> 0.9661835749 | AH3: =IF(AE3=0,Q3*AG3,0) -> 0 | AI3: =IF(AE3=0,R3*AG3,0) -> 0 | AJ3: =IF(AE3=0,S3*AG3,0) -> 0 | AK3: =IF(AE3=0,T3*AG3,0) -> 0 | AL3: =IF(AE3=0,U3*AG3,0) -> 0 | AM3: =IF(AE3=0,V3*AG3,0) -> 0 | AN3: =IF(AE3=0,W3*AG3,0) -> 0 | AO3: =IF(AE3=0,AH3+AI3+AJ3+AK3+AL3+AM3+AN3,0) -> 0 | AP3: =IF(OR(AF3=3,AF3=2,AF3=0),Y3*AG3,0) -> 0 | AQ3: =IF(OR(AF3=3,AF3=2,AF3=0),SUMIFS(FlatMaint!$Z$2:$Z$10000,FlatMaint!$A$2:$A$10000,D3,FlatMaint!$Y$2:$Y$10000,AE3)*AG3,0) -> 0 | AR3: =IF(OR(AF3=3,AF3=2,AF3=0),SUMIFS(FlatRepair!$Z$2:$Z$10000,FlatRepair!$A$2:$A$10000,D3,FlatRepair!$Y$2:$Y$10000,AE3)*AG3,0) -> 0 | AS3: =IF(OR(AF3=3,AF3=2,AF3=0),Z3*AG3,0) -> 0 | AT3: =AP3+AQ3+AR3+AS3 -> 0 | AU3: =IF(AF3=2,AA3*AG3,0) -> 0 | AV3: =IF(AF3=3,AB3*AG3,0) -> 0 | AW3: =IF(AF3=3,AC3*AG3,0) -> 0 | AX3: =IF(AF3=3,AD3*AG3,0) -> 0 | AY3: =IF($AF$2=3,BB3+BC3+BD3+BE3+BF3+BG3+BH3,BB3+BC3+BD3+BE3+BF3+BG3+BH3) -> 0 | AZ3: =AO3+AT3+AU3+AV3+AW3+AX3+AY3+BA3 -> 0 | BA3: =IFERROR(IF(AE3=100,IF(O3=3,(N3/H3)*(X3*AG3)*-1,(N3/M3)*(X3*AG3)*-1),0),0) -> 0 | BB3: =IF($AF3=3,IF($AF$2=2,(R3/SUMIF(Refurb_Poss_Tbl[Refurbishment Possible],I3,Refurb_Poss_Tbl[%]))*AG3,IF($AF$2=3,(R3*AG3)-AV3,R3*AG3)),0) -> 0 | BC3: =IF(AF3=3,IF($AF$2=2,(S3/SUMIF(Refurb_Poss_Tbl[Refurbishment Possible],I3,Refurb_Poss_Tbl[%]))*AG3,IF($AF$2=3,(S3*AG3)-AX3,S3*AG3)),0) -> 0 | BD3: =IF($AF3=3,IF($AF$2=2,(T3/SUMIF(Refurb_Poss_Tbl[Refurbishment Possible],I3,Refurb_Poss_Tbl[%]))*AG3,T3*$AG3),0) -> 0 | BE3: =IF($AF3=3,IF($AF$2=2,(Q3/SUMIF(Refurb_Poss_Tbl[Refurbishment Possible],I3,Refurb_Poss_Tbl[%]))*AG3,Q3*$AG3),0) -> 0 | BF3: =IF($AF3=3,IF($AF$2=2,(U3/SUMIF(Refurb_Poss_Tbl[Refurbishment Possible],I3,Refurb_Poss_Tbl[%]))*AG3,U3*$AG3),0) -> 0 | BG3: =IF($AF3=3,IF($AF$2=2,(V3/SUMIF(Refurb_Poss_Tbl[Refurbishment Possible],I3,Refurb_Poss_Tbl[%]))*AG3,IF($AF$2=3,(V3*AG3)-AW3,V3*AG3)),0) -> 0 | BH3: =IF($AF3=3,IF($AF$2=2,(W3/SUMIF(Refurb_Poss_Tbl[Refurbishment Possible],I3,Refurb_Poss_Tbl[%]))*AG3,W3*$AG3),0) -> 0
A4: DredEA11 | B4: New channel | C4: Dredging Works | D4: DredEA1133 | E4: New channel-Excavation | F4: Dredging | G4: 120 | H4: 120 | I4: Not Possible | J4: 60 | K4: New Build | L4: 0 | M4: 0 | N4: 0 | O4: 2 | P4: 968.2248 | Q4: 968.2248 | R4: 33.77397315 | S4: 337.07328 | T4: 0.9941643774 | U4: 190.759147 | V4: 0 | W4: 694.8552145 | X4: 2225.680579 | Y4: 0 | Z4: 0 | AA4: 0 | AB4: 0 | AC4: 0.4970821887 | AD4: 168.53664 | AE4: 2 | AF4: 0 | AG4: =VLOOKUP(AE4,ValidationLists!$M$1:$N$102,2,FALSE) -> 0.9335107004 | AH4: 0 | AI4: 0 | AJ4: 0 | AK4: 0 | AL4: 0 | AM4: 0 | AN4: 0 | AO4: 0 | AP4: 0 | AQ4: =IF(OR(AF4=3,AF4=2,AF4=0),SUMIFS(FlatMaint!$Z$2:$Z$10000,FlatMaint!$A$2:$A$10000,D4,FlatMaint!$Y$2:$Y$10000,AE4)*AG4,0) -> 90.39338355 | AR4: =IF(OR(AF4=3,AF4=2,AF4=0),SUMIFS(FlatRepair!$Z$2:$Z$10000,FlatRepair!$A$2:$A$10000,D4,FlatRepair!$Y$2:$Y$10000,AE4)*AG4,0) -> 0 | AS4: 0 | AT4: 90.39338355 | AU4: 0 | AV4: 0 | AW4: 0 | AX4: 0 | AY4: 0 | AZ4: 90.39338355 | BA4: 0 | BB4: =IF($AF4=3,IF($AF$2=2,(R4/SUMIF(Refurb_Poss_Tbl[Refurbishment Possible],I4,Refurb_Poss_Tbl[%]))*AG4,IF($AF$2=3,(R4*AG4)-AV4,R4*AG4)),0) -> 0 | BC4: =IF(AF4=3,IF($AF$2=2,(S4/SUMIF(Refurb_Poss_Tbl[Refurbishment Possible],I4,Refurb_Poss_Tbl[%]))*AG4,IF($AF$2=3,(S4*AG4)-AX4,S4*AG4)),0) -> 0 | BD4: =IF($AF4=3,IF($AF$2=2,(T4/SUMIF(Refurb_Poss_Tbl[Refurbishment Possible],I4,Refurb_Poss_Tbl[%]))*AG4,T4*$AG4),0) -> 0 | BE4: =IF($AF4=3,IF($AF$2=2,(Q4/SUMIF(Refurb_Poss_Tbl[Refurbishment Possible],I4,Refurb_Poss_Tbl[%]))*AG4,Q4*$AG4),0) -> 0 | BF4: =IF($AF4=3,IF($AF$2=2,(U4/SUMIF(Refurb_Poss_Tbl[Refurbishment Possible],I4,Refurb_Poss_Tbl[%]))*AG4,U4*$AG4),0) -> 0 | BG4: =IF($AF4=3,IF($AF$2=2,(V4/SUMIF(Refurb_Poss_Tbl[Refurbishment Possible],I4,Refurb_Poss_Tbl[%]))*AG4,IF($AF$2=3,(V4*AG4)-AW4,V4*AG4)),0) -> 0 | BH4: =IF($AF4=3,IF($AF$2=2,(W4/SUMIF(Refurb_Poss_Tbl[Refurbishment Possible],I4,Refurb_Poss_Tbl[%]))*AG4,W4*$AG4),0) -> 0
A5: DredEA11 | B5: New channel | C5: Dredging Works | D5: DredEA1133 | E5: New channel-Excavation | F5: Dredging | G5: 120 | H5: 120 | I5: Not Possible | J5: 60 | K5: New Build | L5: 0 | M5: 0 | N5: 0 | O5: 2 | P5: 968.2248 | Q5: 968.2248 | R5: 33.77397315 | S5: 337.07328 | T5: 0.9941643774 | U5: 190.759147 | V5: 0 | W5: 694.8552145 | X5: 2225.680579 | Y5: 0 | Z5: 0 | AA5: 0 | AB5: 0 | AC5: 0.4970821887 | AD5: 168.53664 | AE5: 3 | AF5: 0 | AG5: =VLOOKUP(AE5,ValidationLists!$M$1:$N$102,2,FALSE) -> 0.9019427057 | AH5: 0 | AI5: 0 | AJ5: 0 | AK5: 0 | AL5: 0 | AM5: 0 | AN5: 0 | AO5: 0 | AP5: 0 | AQ5: =IF(OR(AF5=3,AF5=2,AF5=0),SUMIFS(FlatMaint!$Z$2:$Z$10000,FlatMaint!$A$2:$A$10000,D5,FlatMaint!$Y$2:$Y$10000,AE5)*AG5,0) -> 0 | AR5: =IF(OR(AF5=3,AF5=2,AF5=0),SUMIFS(FlatRepair!$Z$2:$Z$10000,FlatRepair!$A$2:$A$10000,D5,FlatRepair!$Y$2:$Y$10000,AE5)*AG5,0) -> 0 | AS5: 0 | AT5: 0 | AU5: 0 | AV5: 0 | AW5: 0 | AX5: 0 | AY5: 0 | AZ5: 0 | BA5: 0 | BB5: =IF($AF5=3,IF($AF$2=2,(R5/SUMIF(Refurb_Poss_Tbl[Refurbishment Possible],I5,Refurb_Poss_Tbl[%]))*AG5,IF($AF$2=3,(R5*AG5)-AV5,R5*AG5)),0) -> 0 | BC5: =IF(AF5=3,IF($AF$2=2,(S5/SUMIF(Refurb_Poss_Tbl[Refurbishment Possible],I5,Refurb_Poss_Tbl[%]))*AG5,IF($AF$2=3,(S5*AG5)-AX5,S5*AG5)),0) -> 0 | BD5: =IF($AF5=3,IF($AF$2=2,(T5/SUMIF(Refurb_Poss_Tbl[Refurbishment Possible],I5,Refurb_Poss_Tbl[%]))*AG5,T5*$AG5),0) -> 0 | BE5: =IF($AF5=3,IF($AF$2=2,(Q5/SUMIF(Refurb_Poss_Tbl[Refurbishment Possible],I5,Refurb_Poss_Tbl[%]))*AG5,Q5*$AG5),0) -> 0 | BF5: =IF($AF5=3,IF($AF$2=2,(U5/SUMIF(Refurb_Poss_Tbl[Refurbishment Possible],I5,Refurb_Poss_Tbl[%]))*AG5,U5*$AG5),0) -> 0 | BG5: =IF($AF5=3,IF($AF$2=2,(V5/SUMIF(Refurb_Poss_Tbl[Refurbishment Possible],I5,Refurb_Poss_Tbl[%]))*AG5,IF($AF$2=3,(V5*AG5)-AW5,V5*AG5)),0) -> 0 | BH5: =IF($AF5=3,IF($AF$2=2,(W5/SUMIF(Refurb_Poss_Tbl[Refurbishment Possible],I5,Refurb_Poss_Tbl[%]))*AG5,W5*$AG5),0) -> 0
A6: DredEA11 | B6: New channel | C6: Dredging Works | D6: DredEA1133 | E6: New channel-Excavation | F6: Dredging | G6: 120 | H6: 120 | I6: Not Possible | J6: 60 | K6: New Build | L6: 0 | M6: 0 | N6: 0 | O6: 2 | P6: 968.2248 | Q6: 968.2248 | R6: 33.77397315 | S6: 337.07328 | T6: 0.9941643774 | U6: 190.759147 | V6: 0 | W6: 694.8552145 | X6: 2225.680579 | Y6: 0 | Z6: 0 | AA6: 0 | AB6: 0 | AC6: 0.4970821887 | AD6: 168.53664 | AE6: 4 | AF6: 0 | AG6: =VLOOKUP(AE6,ValidationLists!$M$1:$N$102,2,FALSE) -> 0.8714422277 | AH6: 0 | AI6: 0 | AJ6: 0 | AK6: 0 | AL6: 0 | AM6: 0 | AN6: 0 | AO6: 0 | AP6: 0 | AQ6: =IF(OR(AF6=3,AF6=2,AF6=0),SUMIFS(FlatMaint!$Z$2:$Z$10000,FlatMaint!$A$2:$A$10000,D6,FlatMaint!$Y$2:$Y$10000,AE6)*AG6,0) -> 84.38319079 | AR6: =IF(OR(AF6=3,AF6=2,AF6=0),SUMIFS(FlatRepair!$Z$2:$Z$10000,FlatRepair!$A$2:$A$10000,D6,FlatRepair!$Y$2:$Y$10000,AE6)*AG6,0) -> 0 | AS6: 0 | AT6: 84.38319079 | AU6: 0 | AV6: 0 | AW6: 0 | AX6: 0 | AY6: 0 | AZ6: 84.38319079 | BA6: 0 | BB6: =IF($AF6=3,IF($AF$2=2,(R6/SUMIF(Refurb_Poss_Tbl[Refurbishment Possible],I6,Refurb_Poss_Tbl[%]))*AG6,IF($AF$2=3,(R6*AG6)-AV6,R6*AG6)),0) -> 0 | BC6: =IF(AF6=3,IF($AF$2=2,(S6/SUMIF(Refurb_Poss_Tbl[Refurbishment Possible],I6,Refurb_Poss_Tbl[%]))*AG6,IF($AF$2=3,(S6*AG6)-AX6,S6*AG6)),0) -> 0 | BD6: =IF($AF6=3,IF($AF$2=2,(T6/SUMIF(Refurb_Poss_Tbl[Refurbishment Possible],I6,Refurb_Poss_Tbl[%]))*AG6,T6*$AG6),0) -> 0 | BE6: =IF($AF6=3,IF($AF$2=2,(Q6/SUMIF(Refurb_Poss_Tbl[Refurbishment Possible],I6,Refurb_Poss_Tbl[%]))*AG6,Q6*$AG6),0) -> 0 | BF6: =IF($AF6=3,IF($AF$2=2,(U6/SUMIF(Refurb_Poss_Tbl[Refurbishment Possible],I6,Refurb_Poss_Tbl[%]))*AG6,U6*$AG6),0) -> 0 | BG6: =IF($AF6=3,IF($AF$2=2,(V6/SUMIF(Refurb_Poss_Tbl[Refurbishment Possible],I6,Refurb_Poss_Tbl[%]))*AG6,IF($AF$2=3,(V6*AG6)-AW6,V6*AG6)),0) -> 0 | BH6: =IF($AF6=3,IF($AF$2=2,(W6/SUMIF(Refurb_Poss_Tbl[Refurbishment Possible],I6,Refurb_Poss_Tbl[%]))*AG6,W6*$AG6),0) -> 0
A7: DredEA11 | B7: New channel | C7: Dredging Works | D7: DredEA1133 | E7: New channel-Excavation | F7: Dredging | G7: 120 | H7: 120 | I7: Not Possible | J7: 60 | K7: New Build | L7: 0 | M7: 0 | N7: 0 | O7: 2 | P7: 968.2248 | Q7: 968.2248 | R7: 33.77397315 | S7: 337.07328 | T7: 0.9941643774 | U7: 190.759147 | V7: 0 | W7: 694.8552145 | X7: 2225.680579 | Y7: 0 | Z7: 0 | AA7: 0 | AB7: 0 | AC7: 0.4970821887 | AD7: 168.53664 | AE7: 5 | AF7: 0 | AG7: =VLOOKUP(AE7,ValidationLists!$M$1:$N$102,2,FALSE) -> 0.8419731669 | AH7: 0 | AI7: 0 | AJ7: 0 | AK7: 0 | AL7: 0 | AM7: 0 | AN7: 0 | AO7: 0 | AP7: 0 | AQ7: =IF(OR(AF7=3,AF7=2,AF7=0),SUMIFS(FlatMaint!$Z$2:$Z$10000,FlatMaint!$A$2:$A$10000,D7,FlatMaint!$Y$2:$Y$10000,AE7)*AG7,0) -> 0 | AR7: =IF(OR(AF7=3,AF7=2,AF7=0),SUMIFS(FlatRepair!$Z$2:$Z$10000,FlatRepair!$A$2:$A$10000,D7,FlatRepair!$Y$2:$Y$10000,AE7)*AG7,0) -> 0 | AS7: 0 | AT7: 0 | AU7: 0 | AV7: 0 | AW7: 0 | AX7: 0 | AY7: 0 | AZ7: 0 | BA7: 0 | BB7: =IF($AF7=3,IF($AF$2=2,(R7/SUMIF(Refurb_Poss_Tbl[Refurbishment Possible],I7,Refurb_Poss_Tbl[%]))*AG7,IF($AF$2=3,(R7*AG7)-AV7,R7*AG7)),0) -> 0 | BC7: =IF(AF7=3,IF($AF$2=2,(S7/SUMIF(Refurb_Poss_Tbl[Refurbishment Possible],I7,Refurb_Poss_Tbl[%]))*AG7,IF($AF$2=3,(S7*AG7)-AX7,S7*AG7)),0) -> 0 | BD7: =IF($AF7=3,IF($AF$2=2,(T7/SUMIF(Refurb_Poss_Tbl[Refurbishment Possible],I7,Refurb_Poss_Tbl[%]))*AG7,T7*$AG7),0) -> 0 | BE7: =IF($AF7=3,IF($AF$2=2,(Q7/SUMIF(Refurb_Poss_Tbl[Refurbishment Possible],I7,Refurb_Poss_Tbl[%]))*AG7,Q7*$AG7),0) -> 0 | BF7: =IF($AF7=3,IF($AF$2=2,(U7/SUMIF(Refurb_Poss_Tbl[Refurbishment Possible],I7,Refurb_Poss_Tbl[%]))*AG7,U7*$AG7),0) -> 0 | BG7: =IF($AF7=3,IF($AF$2=2,(V7/SUMIF(Refurb_Poss_Tbl[Refurbishment Possible],I7,Refurb_Poss_Tbl[%]))*AG7,IF($AF$2=3,(V7*AG7)-AW7,V7*AG7)),0) -> 0 | BH7: =IF($AF7=3,IF($AF$2=2,(W7/SUMIF(Refurb_Poss_Tbl[Refurbishment Possible],I7,Refurb_Poss_Tbl[%]))*AG7,W7*$AG7),0) -> 0
A8: DredEA11 | B8: New channel | C8: Dredging Works | D8: DredEA1133 | E8: New channel-Excavation | F8: Dredging | G8: 120 | H8: 120 | I8: Not Possible | J8: 60 | K8: New Build | L8: 0 | M8: 0 | N8: 0 | O8: 2 | P8: 968.2248 | Q8: 968.2248 | R8: 33.77397315 | S8: 337.07328 | T8: 0.9941643774 | U8: 190.759147 | V8: 0 | W8: 694.8552145 | X8: 2225.680579 | Y8: 0 | Z8: 0 | AA8: 0 | AB8: 0 | AC8: 0.4970821887 | AD8: 168.53664 | AE8: 6 | AF8: 0 | AG8: =VLOOKUP(AE8,ValidationLists!$M$1:$N$102,2,FALSE) -> 0.8135006443 | AH8: 0 | AI8: 0 | AJ8: 0 | AK8: 0 | AL8: 0 | AM8: 0 | AN8: 0 | AO8: 0 | AP8: 0 | AQ8: =IF(OR(AF8=3,AF8=2,AF8=0),SUMIFS(FlatMaint!$Z$2:$Z$10000,FlatMaint!$A$2:$A$10000,D8,FlatMaint!$Y$2:$Y$10000,AE8)*AG8,0) -> 78.77261153 | AR8: =IF(OR(AF8=3,AF8=2,AF8=0),SUMIFS(FlatRepair!$Z$2:$Z$10000,FlatRepair!$A$2:$A$10000,D8,FlatRepair!$Y$2:$Y$10000,AE8)*AG8,0) -> 0 | AS8: 0 | AT8: 78.77261153 | AU8: 0 | AV8: 0 | AW8: 0 | AX8: 0 | AY8: 0 | AZ8: 78.77261153 | BA8: 0 | BB8: =IF($AF8=3,IF($AF$2=2,(R8/SUMIF(Refurb_Poss_Tbl[Refurbishment Possible],I8,Refurb_Poss_Tbl[%]))*AG8,IF($AF$2=3,(R8*AG8)-AV8,R8*AG8)),0) -> 0 | BC8: =IF(AF8=3,IF($AF$2=2,(S8/SUMIF(Refurb_Poss_Tbl[Refurbishment Possible],I8,Refurb_Poss_Tbl[%]))*AG8,IF($AF$2=3,(S8*AG8)-AX8,S8*AG8)),0) -> 0 | BD8: =IF($AF8=3,IF($AF$2=2,(T8/SUMIF(Refurb_Poss_Tbl[Refurbishment Possible],I8,Refurb_Poss_Tbl[%]))*AG8,T8*$AG8),0) -> 0 | BE8: =IF($AF8=3,IF($AF$2=2,(Q8/SUMIF(Refurb_Poss_Tbl[Refurbishment Possible],I8,Refurb_Poss_Tbl[%]))*AG8,Q8*$AG8),0) -> 0 | BF8: =IF($AF8=3,IF($AF$2=2,(U8/SUMIF(Refurb_Poss_Tbl[Refurbishment Possible],I8,Refurb_Poss_Tbl[%]))*AG8,U8*$AG8),0) -> 0 | BG8: =IF($AF8=3,IF($AF$2=2,(V8/SUMIF(Refurb_Poss_Tbl[Refurbishment Possible],I8,Refurb_Poss_Tbl[%]))*AG8,IF($AF$2=3,(V8*AG8)-AW8,V8*AG8)),0) -> 0 | BH8: =IF($AF8=3,IF($AF$2=2,(W8/SUMIF(Refurb_Poss_Tbl[Refurbishment Possible],I8,Refurb_Poss_Tbl[%]))*AG8,W8*$AG8),0) -> 0
A9: DredEA11 | B9: New channel | C9: Dredging Works | D9: DredEA1133 | E9: New channel-Excavation | F9: Dredging | G9: 120 | H9: 120 | I9: Not Possible | J9: 60 | K9: New Build | L9: 0 | M9: 0 | N9: 0 | O9: 2 | P9: 968.2248 | Q9: 968.2248 | R9: 33.77397315 | S9: 337.07328 | T9: 0.9941643774 | U9: 190.759147 | V9: 0 | W9: 694.8552145 | X9: 2225.680579 | Y9: 0 | Z9: 0 | AA9: 0 | AB9: 0 | AC9: 0.4970821887 | AD9: 168.53664 | AE9: 7 | AF9: 0 | AG9: =VLOOKUP(AE9,ValidationLists!$M$1:$N$102,2,FALSE) -> 0.7859909607 | AH9: 0 | AI9: 0 | AJ9: 0 | AK9: 0 | AL9: 0 | AM9: 0 | AN9: 0 | AO9: 0 | AP9: 0 | AQ9: =IF(OR(AF9=3,AF9=2,AF9=0),SUMIFS(FlatMaint!$Z$2:$Z$10000,FlatMaint!$A$2:$A$10000,D9,FlatMaint!$Y$2:$Y$10000,AE9)*AG9,0) -> 0 | AR9: =IF(OR(AF9=3,AF9=2,AF9=0),SUMIFS(FlatRepair!$Z$2:$Z$10000,FlatRepair!$A$2:$A$10000,D9,FlatRepair!$Y$2:$Y$10000,AE9)*AG9,0) -> 0 | AS9: 0 | AT9: 0 | AU9: 0 | AV9: 0 | AW9: 0 | AX9: 0 | AY9: 0 | AZ9: 0 | BA9: 0 | BB9: =IF($AF9=3,IF($AF$2=2,(R9/SUMIF(Refurb_Poss_Tbl[Refurbishment Possible],I9,Refurb_Poss_Tbl[%]))*AG9,IF($AF$2=3,(R9*AG9)-AV9,R9*AG9)),0) -> 0 | BC9: =IF(AF9=3,IF($AF$2=2,(S9/SUMIF(Refurb_Poss_Tbl[Refurbishment Possible],I9,Refurb_Poss_Tbl[%]))*AG9,IF($AF$2=3,(S9*AG9)-AX9,S9*AG9)),0) -> 0 | BD9: =IF($AF9=3,IF($AF$2=2,(T9/SUMIF(Refurb_Poss_Tbl[Refurbishment Possible],I9,Refurb_Poss_Tbl[%]))*AG9,T9*$AG9),0) -> 0 | BE9: =IF($AF9=3,IF($AF$2=2,(Q9/SUMIF(Refurb_Poss_Tbl[Refurbishment Possible],I9,Refurb_Poss_Tbl[%]))*AG9,Q9*$AG9),0) -> 0 | BF9: =IF($AF9=3,IF($AF$2=2,(U9/SUMIF(Refurb_Poss_Tbl[Refurbishment Possible],I9,Refurb_Poss_Tbl[%]))*AG9,U9*$AG9),0) -> 0 | BG9: =IF($AF9=3,IF($AF$2=2,(V9/SUMIF(Refurb_Poss_Tbl[Refurbishment Possible],I9,Refurb_Poss_Tbl[%]))*AG9,IF($AF$2=3,(V9*AG9)-AW9,V9*AG9)),0) -> 0 | BH9: =IF($AF9=3,IF($AF$2=2,(W9/SUMIF(Refurb_Poss_Tbl[Refurbishment Possible],I9,Refurb_Poss_Tbl[%]))*AG9,W9*$AG9),0) -> 0
A10: DredEA11 | B10: New channel | C10: Dredging Works | D10: DredEA1133 | E10: New channel-Excavation | F10: Dredging | G10: 120 | H10: 120 | I10: Not Possible | J10: 60 | K10: New Build | L10: 0 | M10: 0 | N10: 0 | O10: 2 | P10: 968.2248 | Q10: 968.2248 | R10: 33.77397315 | S10: 337.07328 | T10: 0.9941643774 | U10: 190.759147 | V10: 0 | W10: 694.8552145 | X10: 2225.680579 | Y10: 0 | Z10: 0 | AA10: 0 | AB10: 0 | AC10: 0.4970821887 | AD10: 168.53664 | AE10: 8 | AF10: 0 | AG10: =VLOOKUP(AE10,ValidationLists!$M$1:$N$102,2,FALSE) -> 0.7594115562 | AH10: 0 | AI10: 0 | AJ10: 0 | AK10: 0 | AL10: 0 | AM10: 0 | AN10: 0 | AO10: 0 | AP10: 0 | AQ10: =IF(OR(AF10=3,AF10=2,AF10=0),SUMIFS(FlatMaint!$Z$2:$Z$10000,FlatMaint!$A$2:$A$10000,D10,FlatMaint!$Y$2:$Y$10000,AE10)*AG10,0) -> 73.53507576 | AR10: =IF(OR(AF10=3,AF10=2,AF10=0),SUMIFS(FlatRepair!$Z$2:$Z$10000,FlatRepair!$A$2:$A$10000,D10,FlatRepair!$Y$2:$Y$10000,AE10)*AG10,0) -> 0 | AS10: 0 | AT10: 73.53507576 | AU10: 0 | AV10: 0 | AW10: 0 | AX10: 0 | AY10: 0 | AZ10: 73.53507576 | BA10: 0 | BB10: =IF($AF10=3,IF($AF$2=2,(R10/SUMIF(Refurb_Poss_Tbl[Refurbishment Possible],I10,Refurb_Poss_Tbl[%]))*AG10,IF($AF$2=3,(R10*AG10)-AV10,R10*AG10)),0) -> 0 | BC10: =IF(AF10=3,IF($AF$2=2,(S10/SUMIF(Refurb_Poss_Tbl[Refurbishment Possible],I10,Refurb_Poss_Tbl[%]))*AG10,IF($AF$2=3,(S10*AG10)-AX10,S10*AG10)),0) -> 0 | BD10: =IF($AF10=3,IF($AF$2=2,(T10/SUMIF(Refurb_Poss_Tbl[Refurbishment Possible],I10,Refurb_Poss_Tbl[%]))*AG10,T10*$AG10),0) -> 0 | BE10: =IF($AF10=3,IF($AF$2=2,(Q10/SUMIF(Refurb_Poss_Tbl[Refurbishment Possible],I10,Refurb_Poss_Tbl[%]))*AG10,Q10*$AG10),0) -> 0 | BF10: =IF($AF10=3,IF($AF$2=2,(U10/SUMIF(Refurb_Poss_Tbl[Refurbishment Possible],I10,Refurb_Poss_Tbl[%]))*AG10,U10*$AG10),0) -> 0 | BG10: =IF($AF10=3,IF($AF$2=2,(V10/SUMIF(Refurb_Poss_Tbl[Refurbishment Possible],I10,Refurb_Poss_Tbl[%]))*AG10,IF($AF$2=3,(V10*AG10)-AW10,V10*AG10)),0) -> 0 | BH10: =IF($AF10=3,IF($AF$2=2,(W10/SUMIF(Refurb_Poss_Tbl[Refurbishment Possible],I10,Refurb_Poss_Tbl[%]))*AG10,W10*$AG10),0) -> 0
A11: DredEA11 | B11: New channel | C11: Dredging Works | D11: DredEA1133 | E11: New channel-Excavation | F11: Dredging | G11: 120 | H11: 120 | I11: Not Possible | J11: 60 | K11: New Build | L11: 0 | M11: 0 | N11: 0 | O11: 2 | P11: 968.2248 | Q11: 968.2248 | R11: 33.77397315 | S11: 337.07328 | T11: 0.9941643774 | U11: 190.759147 | V11: 0 | W11: 694.8552145 | X11: 2225.680579 | Y11: 0 | Z11: 0 | AA11: 0 | AB11: 0 | AC11: 0.4970821887 | AD11: 168.53664 | AE11: 9 | AF11: 0 | AG11: =VLOOKUP(AE11,ValidationLists!$M$1:$N$102,2,FALSE) -> 0.7337309722 | AH11: 0 | AI11: 0 | AJ11: 0 | AK11: 0 | AL11: 0 | AM11: 0 | AN11: 0 | AO11: 0 | AP11: 0 | AQ11: =IF(OR(AF11=3,AF11=2,AF11=0),SUMIFS(FlatMaint!$Z$2:$Z$10000,FlatMaint!$A$2:$A$10000,D11,FlatMaint!$Y$2:$Y$10000,AE11)*AG11,0) -> 0 | AR11: =IF(OR(AF11=3,AF11=2,AF11=0),SUMIFS(FlatRepair!$Z$2:$Z$10000,FlatRepair!$A$2:$A$10000,D11,FlatRepair!$Y$2:$Y$10000,AE11)*AG11,0) -> 0 | AS11: 0 | AT11: 0 | AU11: 0 | AV11: 0 | AW11: 0 | AX11: 0 | AY11: 0 | AZ11: 0 | BA11: 0 | BB11: =IF($AF11=3,IF($AF$2=2,(R11/SUMIF(Refurb_Poss_Tbl[Refurbishment Possible],I11,Refurb_Poss_Tbl[%]))*AG11,IF($AF$2=3,(R11*AG11)-AV11,R11*AG11)),0) -> 0 | BC11: =IF(AF11=3,IF($AF$2=2,(S11/SUMIF(Refurb_Poss_Tbl[Refurbishment Possible],I11,Refurb_Poss_Tbl[%]))*AG11,IF($AF$2=3,(S11*AG11)-AX11,S11*AG11)),0) -> 0 | BD11: =IF($AF11=3,IF($AF$2=2,(T11/SUMIF(Refurb_Poss_Tbl[Refurbishment Possible],I11,Refurb_Poss_Tbl[%]))*AG11,T11*$AG11),0) -> 0 | BE11: =IF($AF11=3,IF($AF$2=2,(Q11/SUMIF(Refurb_Poss_Tbl[Refurbishment Possible],I11,Refurb_Poss_Tbl[%]))*AG11,Q11*$AG11),0) -> 0 | BF11: =IF($AF11=3,IF($AF$2=2,(U11/SUMIF(Refurb_Poss_Tbl[Refurbishment Possible],I11,Refurb_Poss_Tbl[%]))*AG11,U11*$AG11),0) -> 0 | BG11: =IF($AF11=3,IF($AF$2=2,(V11/SUMIF(Refurb_Poss_Tbl[Refurbishment Possible],I11,Refurb_Poss_Tbl[%]))*AG11,IF($AF$2=3,(V11*AG11)-AW11,V11*AG11)),0) -> 0 | BH11: =IF($AF11=3,IF($AF$2=2,(W11/SUMIF(Refurb_Poss_Tbl[Refurbishment Possible],I11,Refurb_Poss_Tbl[%]))*AG11,W11*$AG11),0) -> 0
A12: DredEA11 | B12: New channel | C12: Dredging Works | D12: DredEA1133 | E12: New channel-Excavation | F12: Dredging | G12: 120 | H12: 120 | I12: Not Possible | J12: 60 | K12: New Build | L12: 0 | M12: 0 | N12: 0 | O12: 2 | P12: 968.2248 | Q12: 968.2248 | R12: 33.77397315 | S12: 337.07328 | T12: 0.9941643774 | U12: 190.759147 | V12: 0 | W12: 694.8552145 | X12: 2225.680579 | Y12: 0 | Z12: 0 | AA12: 0 | AB12: 0 | AC12: 0.4970821887 | AD12: 168.53664 | AE12: 10 | AF12: 0 | AG12: =VLOOKUP(AE12,ValidationLists!$M$1:$N$102,2,FALSE) -> 0.7089188137 | AH12: 0 | AI12: 0 | AJ12: 0 | AK12: 0 | AL12: 0 | AM12: 0 | AN12: 0 | AO12: 0 | AP12: 0 | AQ12: =IF(OR(AF12=3,AF12=2,AF12=0),SUMIFS(FlatMaint!$Z$2:$Z$10000,FlatMaint!$A$2:$A$10000,D12,FlatMaint!$Y$2:$Y$10000,AE12)*AG12,0) -> 68.64578007 | AR12: =IF(OR(AF12=3,AF12=2,AF12=0),SUMIFS(FlatRepair!$Z$2:$Z$10000,FlatRepair!$A$2:$A$10000,D12,FlatRepair!$Y$2:$Y$10000,AE12)*AG12,0) -> 0 | AS12: 0 | AT12: 68.64578007 | AU12: 0 | AV12: 0 | AW12: 0 | AX12: 0 | AY12: 0 | AZ12: 68.64578007 | BA12: 0 | BB12: =IF($AF12=3,IF($AF$2=2,(R12/SUMIF(Refurb_Poss_Tbl[Refurbishment Possible],I12,Refurb_Poss_Tbl[%]))*AG12,IF($AF$2=3,(R12*AG12)-AV12,R12*AG12)),0) -> 0 | BC12: =IF(AF12=3,IF($AF$2=2,(S12/SUMIF(Refurb_Poss_Tbl[Refurbishment Possible],I12,Refurb_Poss_Tbl[%]))*AG12,IF($AF$2=3,(S12*AG12)-AX12,S12*AG12)),0) -> 0 | BD12: =IF($AF12=3,IF($AF$2=2,(T12/SUMIF(Refurb_Poss_Tbl[Refurbishment Possible],I12,Refurb_Poss_Tbl[%]))*AG12,T12*$AG12),0) -> 0 | BE12: =IF($AF12=3,IF($AF$2=2,(Q12/SUMIF(Refurb_Poss_Tbl[Refurbishment Possible],I12,Refurb_Poss_Tbl[%]))*AG12,Q12*$AG12),0) -> 0 | BF12: =IF($AF12=3,IF($AF$2=2,(U12/SUMIF(Refurb_Poss_Tbl[Refurbishment Possible],I12,Refurb_Poss_Tbl[%]))*AG12,U12*$AG12),0) -> 0 | BG12: =IF($AF12=3,IF($AF$2=2,(V12/SUMIF(Refurb_Poss_Tbl[Refurbishment Possible],I12,Refurb_Poss_Tbl[%]))*AG12,IF($AF$2=3,(V12*AG12)-AW12,V12*AG12)),0) -> 0 | BH12: =IF($AF12=3,IF($AF$2=2,(W12/SUMIF(Refurb_Poss_Tbl[Refurbishment Possible],I12,Refurb_Poss_Tbl[%]))*AG12,W12*$AG12),0) -> 0
A13: DredEA11 | B13: New channel | C13: Dredging Works | D13: DredEA1133 | E13: New channel-Excavation | F13: Dredging | G13: 120 | H13: 120 | I13: Not Possible | J13: 60 | K13: New Build | L13: 0 | M13: 0 | N13: 0 | O13: 2 | P13: 968.2248 | Q13: 968.2248 | R13: 33.77397315 | S13: 337.07328 | T13: 0.9941643774 | U13: 190.759147 | V13: 0 | W13: 694.8552145 | X13: 2225.680579 | Y13: 0 | Z13: 0 | AA13: 0 | AB13: 0 | AC13: 0.4970821887 | AD13: 168.53664 | AE13: 11 | AF13: 0 | AG13: =VLOOKUP(AE13,ValidationLists!$M$1:$N$102,2,FALSE) -> 0.6849457137 | AH13: 0 | AI13: 0 | AJ13: 0 | AK13: 0 | AL13: 0 | AM13: 0 | AN13: 0 | AO13: 0 | AP13: 0 | AQ13: =IF(OR(AF13=3,AF13=2,AF13=0),SUMIFS(FlatMaint!$Z$2:$Z$10000,FlatMaint!$A$2:$A$10000,D13,FlatMaint!$Y$2:$Y$10000,AE13)*AG13,0) -> 0 | AR13: =IF(OR(AF13=3,AF13=2,AF13=0),SUMIFS(FlatRepair!$Z$2:$Z$10000,FlatRepair!$A$2:$A$10000,D13,FlatRepair!$Y$2:$Y$10000,AE13)*AG13,0) -> 0 | AS13: 0 | AT13: 0 | AU13: 0 | AV13: 0 | AW13: 0 | AX13: 0 | AY13: 0 | AZ13: 0 | BA13: 0 | BB13: =IF($AF13=3,IF($AF$2=2,(R13/SUMIF(Refurb_Poss_Tbl[Refurbishment Possible],I13,Refurb_Poss_Tbl[%]))*AG13,IF($AF$2=3,(R13*AG13)-AV13,R13*AG13)),0) -> 0 | BC13: =IF(AF13=3,IF($AF$2=2,(S13/SUMIF(Refurb_Poss_Tbl[Refurbishment Possible],I13,Refurb_Poss_Tbl[%]))*AG13,IF($AF$2=3,(S13*AG13)-AX13,S13*AG13)),0) -> 0 | BD13: =IF($AF13=3,IF($AF$2=2,(T13/SUMIF(Refurb_Poss_Tbl[Refurbishment Possible],I13,Refurb_Poss_Tbl[%]))*AG13,T13*$AG13),0) -> 0 | BE13: =IF($AF13=3,IF($AF$2=2,(Q13/SUMIF(Refurb_Poss_Tbl[Refurbishment Possible],I13,Refurb_Poss_Tbl[%]))*AG13,Q13*$AG13),0) -> 0 | BF13: =IF($AF13=3,IF($AF$2=2,(U13/SUMIF(Refurb_Poss_Tbl[Refurbishment Possible],I13,Refurb_Poss_Tbl[%]))*AG13,U13*$AG13),0) -> 0 | BG13: =IF($AF13=3,IF($AF$2=2,(V13/SUMIF(Refurb_Poss_Tbl[Refurbishment Possible],I13,Refurb_Poss_Tbl[%]))*AG13,IF($AF$2=3,(V13*AG13)-AW13,V13*AG13)),0) -> 0 | BH13: =IF($AF13=3,IF($AF$2=2,(W13/SUMIF(Refurb_Poss_Tbl[Refurbishment Possible],I13,Refurb_Poss_Tbl[%]))*AG13,W13*$AG13),0) -> 0
A14: DredEA11 | B14: New channel | C14: Dredging Works | D14: DredEA1133 | E14: New channel-Excavation | F14: Dredging | G14: 120 | H14: 120 | I14: Not Possible | J14: 60 | K14: New Build | L14: 0 | M14: 0 | N14: 0 | O14: 2 | P14: 968.2248 | Q14: 968.2248 | R14: 33.77397315 | S14: 337.07328 | T14: 0.9941643774 | U14: 190.759147 | V14: 0 | W14: 694.8552145 | X14: 2225.680579 | Y14: 0 | Z14: 0 | AA14: 0 | AB14: 0 | AC14: 0.4970821887 | AD14: 168.53664 | AE14: 12 | AF14: 0 | AG14: =VLOOKUP(AE14,ValidationLists!$M$1:$N$102,2,FALSE) -> 0.6617832983 | AH14: 0 | AI14: 0 | AJ14: 0 | AK14: 0 | AL14: 0 | AM14: 0 | AN14: 0 | AO14: 0 | AP14: 0 | AQ14: =IF(OR(AF14=3,AF14=2,AF14=0),SUMIFS(FlatMaint!$Z$2:$Z$10000,FlatMaint!$A$2:$A$10000,D14,FlatMaint!$Y$2:$Y$10000,AE14)*AG14,0) -> 64.08157023 | AR14: =IF(OR(AF14=3,AF14=2,AF14=0),SUMIFS(FlatRepair!$Z$2:$Z$10000,FlatRepair!$A$2:$A$10000,D14,FlatRepair!$Y$2:$Y$10000,AE14)*AG14,0) -> 0 | AS14: 0 | AT14: 64.08157023 | AU14: 0 | AV14: 0 | AW14: 0 | AX14: 0 | AY14: 0 | AZ14: 64.08157023 | BA14: 0 | BB14: =IF($AF14=3,IF($AF$2=2,(R14/SUMIF(Refurb_Poss_Tbl[Refurbishment Possible],I14,Refurb_Poss_Tbl[%]))*AG14,IF($AF$2=3,(R14*AG14)-AV14,R14*AG14)),0) -> 0 | BC14: =IF(AF14=3,IF($AF$2=2,(S14/SUMIF(Refurb_Poss_Tbl[Refurbishment Possible],I14,Refurb_Poss_Tbl[%]))*AG14,IF($AF$2=3,(S14*AG14)-AX14,S14*AG14)),0) -> 0 | BD14: =IF($AF14=3,IF($AF$2=2,(T14/SUMIF(Refurb_Poss_Tbl[Refurbishment Possible],I14,Refurb_Poss_Tbl[%]))*AG14,T14*$AG14),0) -> 0 | BE14: =IF($AF14=3,IF($AF$2=2,(Q14/SUMIF(Refurb_Poss_Tbl[Refurbishment Possible],I14,Refurb_Poss_Tbl[%]))*AG14,Q14*$AG14),0) -> 0 | BF14: =IF($AF14=3,IF($AF$2=2,(U14/SUMIF(Refurb_Poss_Tbl[Refurbishment Possible],I14,Refurb_Poss_Tbl[%]))*AG14,U14*$AG14),0) -> 0 | BG14: =IF($AF14=3,IF($AF$2=2,(V14/SUMIF(Refurb_Poss_Tbl[Refurbishment Possible],I14,Refurb_Poss_Tbl[%]))*AG14,IF($AF$2=3,(V14*AG14)-AW14,V14*AG14)),0) -> 0 | BH14: =IF($AF14=3,IF($AF$2=2,(W14/SUMIF(Refurb_Poss_Tbl[Refurbishment Possible],I14,Refurb_Poss_Tbl[%]))*AG14,W14*$AG14),0) -> 0
A15: DredEA11 | B15: New channel | C15: Dredging Works | D15: DredEA1133 | E15: New channel-Excavation | F15: Dredging | G15: 120 | H15: 120 | I15: Not Possible | J15: 60 | K15: New Build | L15: 0 | M15: 0 | N15: 0 | O15: 2 | P15: 968.2248 | Q15: 968.2248 | R15: 33.77397315 | S15: 337.07328 | T15: 0.9941643774 | U15: 190.759147 | V15: 0 | W15: 694.8552145 | X15: 2225.680579 | Y15: 0 | Z15: 0 | AA15: 0 | AB15: 0 | AC15: 0.4970821887 | AD15: 168.53664 | AE15: 13 | AF15: 0 | AG15: =VLOOKUP(AE15,ValidationLists!$M$1:$N$102,2,FALSE) -> 0.6394041529 | AH15: 0 | AI15: 0 | AJ15: 0 | AK15: 0 | AL15: 0 | AM15: 0 | AN15: 0 | AO15: 0 | AP15: 0 | AQ15: =IF(OR(AF15=3,AF15=2,AF15=0),SUMIFS(FlatMaint!$Z$2:$Z$10000,FlatMaint!$A$2:$A$10000,D15,FlatMaint!$Y$2:$Y$10000,AE15)*AG15,0) -> 0 | AR15: =IF(OR(AF15=3,AF15=2,AF15=0),SUMIFS(FlatRepair!$Z$2:$Z$10000,FlatRepair!$A$2:$A$10000,D15,FlatRepair!$Y$2:$Y$10000,AE15)*AG15,0) -> 0 | AS15: 0 | AT15: 0 | AU15: 0 | AV15: 0 | AW15: 0 | AX15: 0 | AY15: 0 | AZ15: 0 | BA15: 0 | BB15: =IF($AF15=3,IF($AF$2=2,(R15/SUMIF(Refurb_Poss_Tbl[Refurbishment Possible],I15,Refurb_Poss_Tbl[%]))*AG15,IF($AF$2=3,(R15*AG15)-AV15,R15*AG15)),0) -> 0 | BC15: =IF(AF15=3,IF($AF$2=2,(S15/SUMIF(Refurb_Poss_Tbl[Refurbishment Possible],I15,Refurb_Poss_Tbl[%]))*AG15,IF($AF$2=3,(S15*AG15)-AX15,S15*AG15)),0) -> 0 | BD15: =IF($AF15=3,IF($AF$2=2,(T15/SUMIF(Refurb_Poss_Tbl[Refurbishment Possible],I15,Refurb_Poss_Tbl[%]))*AG15,T15*$AG15),0) -> 0 | BE15: =IF($AF15=3,IF($AF$2=2,(Q15/SUMIF(Refurb_Poss_Tbl[Refurbishment Possible],I15,Refurb_Poss_Tbl[%]))*AG15,Q15*$AG15),0) -> 0 | BF15: =IF($AF15=3,IF($AF$2=2,(U15/SUMIF(Refurb_Poss_Tbl[Refurbishment Possible],I15,Refurb_Poss_Tbl[%]))*AG15,U15*$AG15),0) -> 0 | BG15: =IF($AF15=3,IF($AF$2=2,(V15/SUMIF(Refurb_Poss_Tbl[Refurbishment Possible],I15,Refurb_Poss_Tbl[%]))*AG15,IF($AF$2=3,(V15*AG15)-AW15,V15*AG15)),0) -> 0 | BH15: =IF($AF15=3,IF($AF$2=2,(W15/SUMIF(Refurb_Poss_Tbl[Refurbishment Possible],I15,Refurb_Poss_Tbl[%]))*AG15,W15*$AG15),0) -> 0
A16: DredEA11 | B16: New channel | C16: Dredging Works | D16: DredEA1133 | E16: New channel-Excavation | F16: Dredging | G16: 120 | H16: 120 | I16: Not Possible | J16: 60 | K16: New Build | L16: 0 | M16: 0 | N16: 0 | O16: 2 | P16: 968.2248 | Q16: 968.2248 | R16: 33.77397315 | S16: 337.07328 | T16: 0.9941643774 | U16: 190.759147 | V16: 0 | W16: 694.8552145 | X16: 2225.680579 | Y16: 0 | Z16: 0 | AA16: 0 | AB16: 0 | AC16: 0.4970821887 | AD16: 168.53664 | AE16: 14 | AF16: 0 | AG16: =VLOOKUP(AE16,ValidationLists!$M$1:$N$102,2,FALSE) -> 0.6177817903 | AH16: 0 | AI16: 0 | AJ16: 0 | AK16: 0 | AL16: 0 | AM16: 0 | AN16: 0 | AO16: 0 | AP16: 0 | AQ16: =IF(OR(AF16=3,AF16=2,AF16=0),SUMIFS(FlatMaint!$Z$2:$Z$10000,FlatMaint!$A$2:$A$10000,D16,FlatMaint!$Y$2:$Y$10000,AE16)*AG16,0) -> 59.82083151 | AR16: =IF(OR(AF16=3,AF16=2,AF16=0),SUMIFS(FlatRepair!$Z$2:$Z$10000,FlatRepair!$A$2:$A$10000,D16,FlatRepair!$Y$2:$Y$10000,AE16)*AG16,0) -> 0 | AS16: 0 | AT16: 59.82083151 | AU16: 0 | AV16: 0 | AW16: 0 | AX16: 0 | AY16: 0 | AZ16: 59.82083151 | BA16: 0 | BB16: =IF($AF16=3,IF($AF$2=2,(R16/SUMIF(Refurb_Poss_Tbl[Refurbishment Possible],I16,Refurb_Poss_Tbl[%]))*AG16,IF($AF$2=3,(R16*AG16)-AV16,R16*AG16)),0) -> 0 | BC16: =IF(AF16=3,IF($AF$2=2,(S16/SUMIF(Refurb_Poss_Tbl[Refurbishment Possible],I16,Refurb_Poss_Tbl[%]))*AG16,IF($AF$2=3,(S16*AG16)-AX16,S16*AG16)),0) -> 0 | BD16: =IF($AF16=3,IF($AF$2=2,(T16/SUMIF(Refurb_Poss_Tbl[Refurbishment Possible],I16,Refurb_Poss_Tbl[%]))*AG16,T16*$AG16),0) -> 0 | BE16: =IF($AF16=3,IF($AF$2=2,(Q16/SUMIF(Refurb_Poss_Tbl[Refurbishment Possible],I16,Refurb_Poss_Tbl[%]))*AG16,Q16*$AG16),0) -> 0 | BF16: =IF($AF16=3,IF($AF$2=2,(U16/SUMIF(Refurb_Poss_Tbl[Refurbishment Possible],I16,Refurb_Poss_Tbl[%]))*AG16,U16*$AG16),0) -> 0 | BG16: =IF($AF16=3,IF($AF$2=2,(V16/SUMIF(Refurb_Poss_Tbl[Refurbishment Possible],I16,Refurb_Poss_Tbl[%]))*AG16,IF($AF$2=3,(V16*AG16)-AW16,V16*AG16)),0) -> 0 | BH16: =IF($AF16=3,IF($AF$2=2,(W16/SUMIF(Refurb_Poss_Tbl[Refurbishment Possible],I16,Refurb_Poss_Tbl[%]))*AG16,W16*$AG16),0) -> 0
A17: DredEA11 | B17: New channel | C17: Dredging Works | D17: DredEA1133 | E17: New channel-Excavation | F17: Dredging | G17: 120 | H17: 120 | I17: Not Possible | J17: 60 | K17: New Build | L17: 0 | M17: 0 | N17: 0 | O17: 2 | P17: 968.2248 | Q17: 968.2248 | R17: 33.77397315 | S17: 337.07328 | T17: 0.9941643774 | U17: 190.759147 | V17: 0 | W17: 694.8552145 | X17: 2225.680579 | Y17: 0 | Z17: 0 | AA17: 0 | AB17: 0 | AC17: 0.4970821887 | AD17: 168.53664 | AE17: 15 | AF17: 0 | AG17: =VLOOKUP(AE17,ValidationLists!$M$1:$N$102,2,FALSE) -> 0.5968906186 | AH17: 0 | AI17: 0 | AJ17: 0 | AK17: 0 | AL17: 0 | AM17: 0 | AN17: 0 | AO17: 0 | AP17: 0 | AQ17: =IF(OR(AF17=3,AF17=2,AF17=0),SUMIFS(FlatMaint!$Z$2:$Z$10000,FlatMaint!$A$2:$A$10000,D17,FlatMaint!$Y$2:$Y$10000,AE17)*AG17,0) -> 0 | AR17: =IF(OR(AF17=3,AF17=2,AF17=0),SUMIFS(FlatRepair!$Z$2:$Z$10000,FlatRepair!$A$2:$A$10000,D17,FlatRepair!$Y$2:$Y$10000,AE17)*AG17,0) -> 0 | AS17: 0 | AT17: 0 | AU17: 0 | AV17: 0 | AW17: 0 | AX17: 0 | AY17: 0 | AZ17: 0 | BA17: 0 | BB17: =IF($AF17=3,IF($AF$2=2,(R17/SUMIF(Refurb_Poss_Tbl[Refurbishment Possible],I17,Refurb_Poss_Tbl[%]))*AG17,IF($AF$2=3,(R17*AG17)-AV17,R17*AG17)),0) -> 0 | BC17: =IF(AF17=3,IF($AF$2=2,(S17/SUMIF(Refurb_Poss_Tbl[Refurbishment Possible],I17,Refurb_Poss_Tbl[%]))*AG17,IF($AF$2=3,(S17*AG17)-AX17,S17*AG17)),0) -> 0 | BD17: =IF($AF17=3,IF($AF$2=2,(T17/SUMIF(Refurb_Poss_Tbl[Refurbishment Possible],I17,Refurb_Poss_Tbl[%]))*AG17,T17*$AG17),0) -> 0 | BE17: =IF($AF17=3,IF($AF$2=2,(Q17/SUMIF(Refurb_Poss_Tbl[Refurbishment Possible],I17,Refurb_Poss_Tbl[%]))*AG17,Q17*$AG17),0) -> 0 | BF17: =IF($AF17=3,IF($AF$2=2,(U17/SUMIF(Refurb_Poss_Tbl[Refurbishment Possible],I17,Refurb_Poss_Tbl[%]))*AG17,U17*$AG17),0) -> 0 | BG17: =IF($AF17=3,IF($AF$2=2,(V17/SUMIF(Refurb_Poss_Tbl[Refurbishment Possible],I17,Refurb_Poss_Tbl[%]))*AG17,IF($AF$2=3,(V17*AG17)-AW17,V17*AG17)),0) -> 0 | BH17: =IF($AF17=3,IF($AF$2=2,(W17/SUMIF(Refurb_Poss_Tbl[Refurbishment Possible],I17,Refurb_Poss_Tbl[%]))*AG17,W17*$AG17),0) -> 0
A18: DredEA11 | B18: New channel | C18: Dredging Works | D18: DredEA1133 | E18: New channel-Excavation | F18: Dredging | G18: 120 | H18: 120 | I18: Not Possible | J18: 60 | K18: New Build | L18: 0 | M18: 0 | N18: 0 | O18: 2 | P18: 968.2248 | Q18: 968.2248 | R18: 33.77397315 | S18: 337.07328 | T18: 0.9941643774 | U18: 190.759147 | V18: 0 | W18: 694.8552145 | X18: 2225.680579 | Y18: 0 | Z18: 0 | AA18: 0 | AB18: 0 | AC18: 0.4970821887 | AD18: 168.53664 | AE18: 16 | AF18: 0 | AG18: =VLOOKUP(AE18,ValidationLists!$M$1:$N$102,2,FALSE) -> 0.5767059117 | AH18: 0 | AI18: 0 | AJ18: 0 | AK18: 0 | AL18: 0 | AM18: 0 | AN18: 0 | AO18: 0 | AP18: 0 | AQ18: =IF(OR(AF18=3,AF18=2,AF18=0),SUMIFS(FlatMaint!$Z$2:$Z$10000,FlatMaint!$A$2:$A$10000,D18,FlatMaint!$Y$2:$Y$10000,AE18)*AG18,0) -> 55.84338632 | AR18: =IF(OR(AF18=3,AF18=2,AF18=0),SUMIFS(FlatRepair!$Z$2:$Z$10000,FlatRepair!$A$2:$A$10000,D18,FlatRepair!$Y$2:$Y$10000,AE18)*AG18,0) -> 0 | AS18: 0 | AT18: 55.84338632 | AU18: 0 | AV18: 0 | AW18: 0 | AX18: 0 | AY18: 0 | AZ18: 55.84338632 | BA18: 0 | BB18: =IF($AF18=3,IF($AF$2=2,(R18/SUMIF(Refurb_Poss_Tbl[Refurbishment Possible],I18,Refurb_Poss_Tbl[%]))*AG18,IF($AF$2=3,(R18*AG18)-AV18,R18*AG18)),0) -> 0 | BC18: =IF(AF18=3,IF($AF$2=2,(S18/SUMIF(Refurb_Poss_Tbl[Refurbishment Possible],I18,Refurb_Poss_Tbl[%]))*AG18,IF($AF$2=3,(S18*AG18)-AX18,S18*AG18)),0) -> 0 | BD18: =IF($AF18=3,IF($AF$2=2,(T18/SUMIF(Refurb_Poss_Tbl[Refurbishment Possible],I18,Refurb_Poss_Tbl[%]))*AG18,T18*$AG18),0) -> 0 | BE18: =IF($AF18=3,IF($AF$2=2,(Q18/SUMIF(Refurb_Poss_Tbl[Refurbishment Possible],I18,Refurb_Poss_Tbl[%]))*AG18,Q18*$AG18),0) -> 0 | BF18: =IF($AF18=3,IF($AF$2=2,(U18/SUMIF(Refurb_Poss_Tbl[Refurbishment Possible],I18,Refurb_Poss_Tbl[%]))*AG18,U18*$AG18),0) -> 0 | BG18: =IF($AF18=3,IF($AF$2=2,(V18/SUMIF(Refurb_Poss_Tbl[Refurbishment Possible],I18,Refurb_Poss_Tbl[%]))*AG18,IF($AF$2=3,(V18*AG18)-AW18,V18*AG18)),0) -> 0 | BH18: =IF($AF18=3,IF($AF$2=2,(W18/SUMIF(Refurb_Poss_Tbl[Refurbishment Possible],I18,Refurb_Poss_Tbl[%]))*AG18,W18*$AG18),0) -> 0
A19: DredEA11 | B19: New channel | C19: Dredging Works | D19: DredEA1133 | E19: New channel-Excavation | F19: Dredging | G19: 120 | H19: 120 | I19: Not Possible | J19: 60 | K19: New Build | L19: 0 | M19: 0 | N19: 0 | O19: 2 | P19: 968.2248 | Q19: 968.2248 | R19: 33.77397315 | S19: 337.07328 | T19: 0.9941643774 | U19: 190.759147 | V19: 0 | W19: 694.8552145 | X19: 2225.680579 | Y19: 0 | Z19: 0 | AA19: 0 | AB19: 0 | AC19: 0.4970821887 | AD19: 168.53664 | AE19: 17 | AF19: 0 | AG19: =VLOOKUP(AE19,ValidationLists!$M$1:$N$102,2,FALSE) -> 0.5572037794 | AH19: 0 | AI19: 0 | AJ19: 0 | AK19: 0 | AL19: 0 | AM19: 0 | AN19: 0 | AO19: 0 | AP19: 0 | AQ19: =IF(OR(AF19=3,AF19=2,AF19=0),SUMIFS(FlatMaint!$Z$2:$Z$10000,FlatMaint!$A$2:$A$10000,D19,FlatMaint!$Y$2:$Y$10000,AE19)*AG19,0) -> 0 | AR19: =IF(OR(AF19=3,AF19=2,AF19=0),SUMIFS(FlatRepair!$Z$2:$Z$10000,FlatRepair!$A$2:$A$10000,D19,FlatRepair!$Y$2:$Y$10000,AE19)*AG19,0) -> 0 | AS19: 0 | AT19: 0 | AU19: 0 | AV19: 0 | AW19: 0 | AX19: 0 | AY19: 0 | AZ19: 0 | BA19: 0 | BB19: =IF($AF19=3,IF($AF$2=2,(R19/SUMIF(Refurb_Poss_Tbl[Refurbishment Possible],I19,Refurb_Poss_Tbl[%]))*AG19,IF($AF$2=3,(R19*AG19)-AV19,R19*AG19)),0) -> 0 | BC19: =IF(AF19=3,IF($AF$2=2,(S19/SUMIF(Refurb_Poss_Tbl[Refurbishment Possible],I19,Refurb_Poss_Tbl[%]))*AG19,IF($AF$2=3,(S19*AG19)-AX19,S19*AG19)),0) -> 0 | BD19: =IF($AF19=3,IF($AF$2=2,(T19/SUMIF(Refurb_Poss_Tbl[Refurbishment Possible],I19,Refurb_Poss_Tbl[%]))*AG19,T19*$AG19),0) -> 0 | BE19: =IF($AF19=3,IF($AF$2=2,(Q19/SUMIF(Refurb_Poss_Tbl[Refurbishment Possible],I19,Refurb_Poss_Tbl[%]))*AG19,Q19*$AG19),0) -> 0 | BF19: =IF($AF19=3,IF($AF$2=2,(U19/SUMIF(Refurb_Poss_Tbl[Refurbishment Possible],I19,Refurb_Poss_Tbl[%]))*AG19,U19*$AG19),0) -> 0 | BG19: =IF($AF19=3,IF($AF$2=2,(V19/SUMIF(Refurb_Poss_Tbl[Refurbishment Possible],I19,Refurb_Poss_Tbl[%]))*AG19,IF($AF$2=3,(V19*AG19)-AW19,V19*AG19)),0) -> 0 | BH19: =IF($AF19=3,IF($AF$2=2,(W19/SUMIF(Refurb_Poss_Tbl[Refurbishment Possible],I19,Refurb_Poss_Tbl[%]))*AG19,W19*$AG19),0) -> 0
A20: DredEA11 | B20: New channel | C20: Dredging Works | D20: DredEA1133 | E20: New channel-Excavation | F20: Dredging | G20: 120 | H20: 120 | I20: Not Possible | J20: 60 | K20: New Build | L20: 0 | M20: 0 | N20: 0 | O20: 2 | P20: 968.2248 | Q20: 968.2248 | R20: 33.77397315 | S20: 337.07328 | T20: 0.9941643774 | U20: 190.759147 | V20: 0 | W20: 694.8552145 | X20: 2225.680579 | Y20: 0 | Z20: 0 | AA20: 0 | AB20: 0 | AC20: 0.4970821887 | AD20: 168.53664 | AE20: 18 | AF20: 0 | AG20: =VLOOKUP(AE20,ValidationLists!$M$1:$N$102,2,FALSE) -> 0.5383611396 | AH20: 0 | AI20: 0 | AJ20: 0 | AK20: 0 | AL20: 0 | AM20: 0 | AN20: 0 | AO20: 0 | AP20: 0 | AQ20: =IF(OR(AF20=3,AF20=2,AF20=0),SUMIFS(FlatMaint!$Z$2:$Z$10000,FlatMaint!$A$2:$A$10000,D20,FlatMaint!$Y$2:$Y$10000,AE20)*AG20,0) -> 52.13039867 | AR20: =IF(OR(AF20=3,AF20=2,AF20=0),SUMIFS(FlatRepair!$Z$2:$Z$10000,FlatRepair!$A$2:$A$10000,D20,FlatRepair!$Y$2:$Y$10000,AE20)*AG20,0) -> 0 | AS20: 0 | AT20: 52.13039867 | AU20: 0 | AV20: 0 | AW20: 0 | AX20: 0 | AY20: 0 | AZ20: 52.13039867 | BA20: 0 | BB20: =IF($AF20=3,IF($AF$2=2,(R20/SUMIF(Refurb_Poss_Tbl[Refurbishment Possible],I20,Refurb_Poss_Tbl[%]))*AG20,IF($AF$2=3,(R20*AG20)-AV20,R20*AG20)),0) -> 0 | BC20: =IF(AF20=3,IF($AF$2=2,(S20/SUMIF(Refurb_Poss_Tbl[Refurbishment Possible],I20,Refurb_Poss_Tbl[%]))*AG20,IF($AF$2=3,(S20*AG20)-AX20,S20*AG20)),0) -> 0 | BD20: =IF($AF20=3,IF($AF$2=2,(T20/SUMIF(Refurb_Poss_Tbl[Refurbishment Possible],I20,Refurb_Poss_Tbl[%]))*AG20,T20*$AG20),0) -> 0 | BE20: =IF($AF20=3,IF($AF$2=2,(Q20/SUMIF(Refurb_Poss_Tbl[Refurbishment Possible],I20,Refurb_Poss_Tbl[%]))*AG20,Q20*$AG20),0) -> 0 | BF20: =IF($AF20=3,IF($AF$2=2,(U20/SUMIF(Refurb_Poss_Tbl[Refurbishment Possible],I20,Refurb_Poss_Tbl[%]))*AG20,U20*$AG20),0) -> 0 | BG20: =IF($AF20=3,IF($AF$2=2,(V20/SUMIF(Refurb_Poss_Tbl[Refurbishment Possible],I20,Refurb_Poss_Tbl[%]))*AG20,IF($AF$2=3,(V20*AG20)-AW20,V20*AG20)),0) -> 0 | BH20: =IF($AF20=3,IF($AF$2=2,(W20/SUMIF(Refurb_Poss_Tbl[Refurbishment Possible],I20,Refurb_Poss_Tbl[%]))*AG20,W20*$AG20),0) -> 0
A21: DredEA11 | B21: New channel | C21: Dredging Works | D21: DredEA1133 | E21: New channel-Excavation | F21: Dredging | G21: 120 | H21: 120 | I21: Not Possible | J21: 60 | K21: New Build | L21: 0 | M21: 0 | N21: 0 | O21: 2 | P21: 968.2248 | Q21: 968.2248 | R21: 33.77397315 | S21: 337.07328 | T21: 0.9941643774 | U21: 190.759147 | V21: 0 | W21: 694.8552145 | X21: 2225.680579 | Y21: 0 | Z21: 0 | AA21: 0 | AB21: 0 | AC21: 0.4970821887 | AD21: 168.53664 | AE21: 19 | AF21: 0 | AG21: =VLOOKUP(AE21,ValidationLists!$M$1:$N$102,2,FALSE) -> 0.5201556904 | AH21: 0 | AI21: 0 | AJ21: 0 | AK21: 0 | AL21: 0 | AM21: 0 | AN21: 0 | AO21: 0 | AP21: 0 | AQ21: =IF(OR(AF21=3,AF21=2,AF21=0),SUMIFS(FlatMaint!$Z$2:$Z$10000,FlatMaint!$A$2:$A$10000,D21,FlatMaint!$Y$2:$Y$10000,AE21)*AG21,0) -> 0 | AR21: =IF(OR(AF21=3,AF21=2,AF21=0),SUMIFS(FlatRepair!$Z$2:$Z$10000,FlatRepair!$A$2:$A$10000,D21,FlatRepair!$Y$2:$Y$10000,AE21)*AG21,0) -> 0 | AS21: 0 | AT21: 0 | AU21: 0 | AV21: 0 | AW21: 0 | AX21: 0 | AY21: 0 | AZ21: 0 | BA21: 0 | BB21: =IF($AF21=3,IF($AF$2=2,(R21/SUMIF(Refurb_Poss_Tbl[Refurbishment Possible],I21,Refurb_Poss_Tbl[%]))*AG21,IF($AF$2=3,(R21*AG21)-AV21,R21*AG21)),0) -> 0 | BC21: =IF(AF21=3,IF($AF$2=2,(S21/SUMIF(Refurb_Poss_Tbl[Refurbishment Possible],I21,Refurb_Poss_Tbl[%]))*AG21,IF($AF$2=3,(S21*AG21)-AX21,S21*AG21)),0) -> 0 | BD21: =IF($AF21=3,IF($AF$2=2,(T21/SUMIF(Refurb_Poss_Tbl[Refurbishment Possible],I21,Refurb_Poss_Tbl[%]))*AG21,T21*$AG21),0) -> 0 | BE21: =IF($AF21=3,IF($AF$2=2,(Q21/SUMIF(Refurb_Poss_Tbl[Refurbishment Possible],I21,Refurb_Poss_Tbl[%]))*AG21,Q21*$AG21),0) -> 0 | BF21: =IF($AF21=3,IF($AF$2=2,(U21/SUMIF(Refurb_Poss_Tbl[Refurbishment Possible],I21,Refurb_Poss_Tbl[%]))*AG21,U21*$AG21),0) -> 0 | BG21: =IF($AF21=3,IF($AF$2=2,(V21/SUMIF(Refurb_Poss_Tbl[Refurbishment Possible],I21,Refurb_Poss_Tbl[%]))*AG21,IF($AF$2=3,(V21*AG21)-AW21,V21*AG21)),0) -> 0 | BH21: =IF($AF21=3,IF($AF$2=2,(W21/SUMIF(Refurb_Poss_Tbl[Refurbishment Possible],I21,Refurb_Poss_Tbl[%]))*AG21,W21*$AG21),0) -> 0
A22: DredEA11 | B22: New channel | C22: Dredging Works | D22: DredEA1133 | E22: New channel-Excavation | F22: Dredging | G22: 120 | H22: 120 | I22: Not Possible | J22: 60 | K22: New Build | L22: 0 | M22: 0 | N22: 0 | O22: 2 | P22: 968.2248 | Q22: 968.2248 | R22: 33.77397315 | S22: 337.07328 | T22: 0.9941643774 | U22: 190.759147 | V22: 0 | W22: 694.8552145 | X22: 2225.680579 | Y22: 0 | Z22: 0 | AA22: 0 | AB22: 0 | AC22: 0.4970821887 | AD22: 168.53664 | AE22: 20 | AF22: 0 | AG22: =VLOOKUP(AE22,ValidationLists!$M$1:$N$102,2,FALSE) -> 0.5025658844 | AH22: 0 | AI22: 0 | AJ22: 0 | AK22: 0 | AL22: 0 | AM22: 0 | AN22: 0 | AO22: 0 | AP22: 0 | AQ22: =IF(OR(AF22=3,AF22=2,AF22=0),SUMIFS(FlatMaint!$Z$2:$Z$10000,FlatMaint!$A$2:$A$10000,D22,FlatMaint!$Y$2:$Y$10000,AE22)*AG22,0) -> 48.66428498 | AR22: =IF(OR(AF22=3,AF22=2,AF22=0),SUMIFS(FlatRepair!$Z$2:$Z$10000,FlatRepair!$A$2:$A$10000,D22,FlatRepair!$Y$2:$Y$10000,AE22)*AG22,0) -> 0 | AS22: 0 | AT22: 48.66428498 | AU22: 0 | AV22: 0 | AW22: 0 | AX22: 0 | AY22: 0 | AZ22: 48.66428498 | BA22: 0 | BB22: =IF($AF22=3,IF($AF$2=2,(R22/SUMIF(Refurb_Poss_Tbl[Refurbishment Possible],I22,Refurb_Poss_Tbl[%]))*AG22,IF($AF$2=3,(R22*AG22)-AV22,R22*AG22)),0) -> 0 | BC22: =IF(AF22=3,IF($AF$2=2,(S22/SUMIF(Refurb_Poss_Tbl[Refurbishment Possible],I22,Refurb_Poss_Tbl[%]))*AG22,IF($AF$2=3,(S22*AG22)-AX22,S22*AG22)),0) -> 0 | BD22: =IF($AF22=3,IF($AF$2=2,(T22/SUMIF(Refurb_Poss_Tbl[Refurbishment Possible],I22,Refurb_Poss_Tbl[%]))*AG22,T22*$AG22),0) -> 0 | BE22: =IF($AF22=3,IF($AF$2=2,(Q22/SUMIF(Refurb_Poss_Tbl[Refurbishment Possible],I22,Refurb_Poss_Tbl[%]))*AG22,Q22*$AG22),0) -> 0 | BF22: =IF($AF22=3,IF($AF$2=2,(U22/SUMIF(Refurb_Poss_Tbl[Refurbishment Possible],I22,Refurb_Poss_Tbl[%]))*AG22,U22*$AG22),0) -> 0 | BG22: =IF($AF22=3,IF($AF$2=2,(V22/SUMIF(Refurb_Poss_Tbl[Refurbishment Possible],I22,Refurb_Poss_Tbl[%]))*AG22,IF($AF$2=3,(V22*AG22)-AW22,V22*AG22)),0) -> 0 | BH22: =IF($AF22=3,IF($AF$2=2,(W22/SUMIF(Refurb_Poss_Tbl[Refurbishment Possible],I22,Refurb_Poss_Tbl[%]))*AG22,W22*$AG22),0) -> 0
A23: DredEA11 | B23: New channel | C23: Dredging Works | D23: DredEA1133 | E23: New channel-Excavation | F23: Dredging | G23: 120 | H23: 120 | I23: Not Possible | J23: 60 | K23: New Build | L23: 0 | M23: 0 | N23: 0 | O23: 2 | P23: 968.2248 | Q23: 968.2248 | R23: 33.77397315 | S23: 337.07328 | T23: 0.9941643774 | U23: 190.759147 | V23: 0 | W23: 694.8552145 | X23: 2225.680579 | Y23: 0 | Z23: 0 | AA23: 0 | AB23: 0 | AC23: 0.4970821887 | AD23: 168.53664 | AE23: 21 | AF23: 0 | AG23: =VLOOKUP(AE23,ValidationLists!$M$1:$N$102,2,FALSE) -> 0.4855709028 | AH23: 0 | AI23: 0 | AJ23: 0 | AK23: 0 | AL23: 0 | AM23: 0 | AN23: 0 | AO23: 0 | AP23: 0 | AQ23: =IF(OR(AF23=3,AF23=2,AF23=0),SUMIFS(FlatMaint!$Z$2:$Z$10000,FlatMaint!$A$2:$A$10000,D23,FlatMaint!$Y$2:$Y$10000,AE23)*AG23,0) -> 0 | AR23: =IF(OR(AF23=3,AF23=2,AF23=0),SUMIFS(FlatRepair!$Z$2:$Z$10000,FlatRepair!$A$2:$A$10000,D23,FlatRepair!$Y$2:$Y$10000,AE23)*AG23,0) -> 0 | AS23: 0 | AT23: 0 | AU23: 0 | AV23: 0 | AW23: 0 | AX23: 0 | AY23: 0 | AZ23: 0 | BA23: 0 | BB23: =IF($AF23=3,IF($AF$2=2,(R23/SUMIF(Refurb_Poss_Tbl[Refurbishment Possible],I23,Refurb_Poss_Tbl[%]))*AG23,IF($AF$2=3,(R23*AG23)-AV23,R23*AG23)),0) -> 0 | BC23: =IF(AF23=3,IF($AF$2=2,(S23/SUMIF(Refurb_Poss_Tbl[Refurbishment Possible],I23,Refurb_Poss_Tbl[%]))*AG23,IF($AF$2=3,(S23*AG23)-AX23,S23*AG23)),0) -> 0 | BD23: =IF($AF23=3,IF($AF$2=2,(T23/SUMIF(Refurb_Poss_Tbl[Refurbishment Possible],I23,Refurb_Poss_Tbl[%]))*AG23,T23*$AG23),0) -> 0 | BE23: =IF($AF23=3,IF($AF$2=2,(Q23/SUMIF(Refurb_Poss_Tbl[Refurbishment Possible],I23,Refurb_Poss_Tbl[%]))*AG23,Q23*$AG23),0) -> 0 | BF23: =IF($AF23=3,IF($AF$2=2,(U23/SUMIF(Refurb_Poss_Tbl[Refurbishment Possible],I23,Refurb_Poss_Tbl[%]))*AG23,U23*$AG23),0) -> 0 | BG23: =IF($AF23=3,IF($AF$2=2,(V23/SUMIF(Refurb_Poss_Tbl[Refurbishment Possible],I23,Refurb_Poss_Tbl[%]))*AG23,IF($AF$2=3,(V23*AG23)-AW23,V23*AG23)),0) -> 0 | BH23: =IF($AF23=3,IF($AF$2=2,(W23/SUMIF(Refurb_Poss_Tbl[Refurbishment Possible],I23,Refurb_Poss_Tbl[%]))*AG23,W23*$AG23),0) -> 0
A24: DredEA11 | B24: New channel | C24: Dredging Works | D24: DredEA1133 | E24: New channel-Excavation | F24: Dredging | G24: 120 | H24: 120 | I24: Not Possible | J24: 60 | K24: New Build | L24: 0 | M24: 0 | N24: 0 | O24: 2 | P24: 968.2248 | Q24: 968.2248 | R24: 33.77397315 | S24: 337.07328 | T24: 0.9941643774 | U24: 190.759147 | V24: 0 | W24: 694.8552145 | X24: 2225.680579 | Y24: 0 | Z24: 0 | AA24: 0 | AB24: 0 | AC24: 0.4970821887 | AD24: 168.53664 | AE24: 22 | AF24: 0 | AG24: =VLOOKUP(AE24,ValidationLists!$M$1:$N$102,2,FALSE) -> 0.4691506308 | AH24: 0 | AI24: 0 | AJ24: 0 | AK24: 0 | AL24: 0 | AM24: 0 | AN24: 0 | AO24: 0 | AP24: 0 | AQ24: =IF(OR(AF24=3,AF24=2,AF24=0),SUMIFS(FlatMaint!$Z$2:$Z$10000,FlatMaint!$A$2:$A$10000,D24,FlatMaint!$Y$2:$Y$10000,AE24)*AG24,0) -> 45.42863075 | AR24: =IF(OR(AF24=3,AF24=2,AF24=0),SUMIFS(FlatRepair!$Z$2:$Z$10000,FlatRepair!$A$2:$A$10000,D24,FlatRepair!$Y$2:$Y$10000,AE24)*AG24,0) -> 0 | AS24: 0 | AT24: 45.42863075 | AU24: 0 | AV24: 0 | AW24: 0 | AX24: 0 | AY24: 0 | AZ24: 45.42863075 | BA24: 0 | BB24: =IF($AF24=3,IF($AF$2=2,(R24/SUMIF(Refurb_Poss_Tbl[Refurbishment Possible],I24,Refurb_Poss_Tbl[%]))*AG24,IF($AF$2=3,(R24*AG24)-AV24,R24*AG24)),0) -> 0 | BC24: =IF(AF24=3,IF($AF$2=2,(S24/SUMIF(Refurb_Poss_Tbl[Refurbishment Possible],I24,Refurb_Poss_Tbl[%]))*AG24,IF($AF$2=3,(S24*AG24)-AX24,S24*AG24)),0) -> 0 | BD24: =IF($AF24=3,IF($AF$2=2,(T24/SUMIF(Refurb_Poss_Tbl[Refurbishment Possible],I24,Refurb_Poss_Tbl[%]))*AG24,T24*$AG24),0) -> 0 | BE24: =IF($AF24=3,IF($AF$2=2,(Q24/SUMIF(Refurb_Poss_Tbl[Refurbishment Possible],I24,Refurb_Poss_Tbl[%]))*AG24,Q24*$AG24),0) -> 0 | BF24: =IF($AF24=3,IF($AF$2=2,(U24/SUMIF(Refurb_Poss_Tbl[Refurbishment Possible],I24,Refurb_Poss_Tbl[%]))*AG24,U24*$AG24),0) -> 0 | BG24: =IF($AF24=3,IF($AF$2=2,(V24/SUMIF(Refurb_Poss_Tbl[Refurbishment Possible],I24,Refurb_Poss_Tbl[%]))*AG24,IF($AF$2=3,(V24*AG24)-AW24,V24*AG24)),0) -> 0 | BH24: =IF($AF24=3,IF($AF$2=2,(W24/SUMIF(Refurb_Poss_Tbl[Refurbishment Possible],I24,Refurb_Poss_Tbl[%]))*AG24,W24*$AG24),0) -> 0
A25: DredEA11 | B25: New channel | C25: Dredging Works | D25: DredEA1133 | E25: New channel-Excavation | F25: Dredging | G25: 120 | H25: 120 | I25: Not Possible | J25: 60 | K25: New Build | L25: 0 | M25: 0 | N25: 0 | O25: 2 | P25: 968.2248 | Q25: 968.2248 | R25: 33.77397315 | S25: 337.07328 | T25: 0.9941643774 | U25: 190.759147 | V25: 0 | W25: 694.8552145 | X25: 2225.680579 | Y25: 0 | Z25: 0 | AA25: 0 | AB25: 0 | AC25: 0.4970821887 | AD25: 168.53664 | AE25: 23 | AF25: 0 | AG25: =VLOOKUP(AE25,ValidationLists!$M$1:$N$102,2,FALSE) -> 0.4532856336 | AH25: 0 | AI25: 0 | AJ25: 0 | AK25: 0 | AL25: 0 | AM25: 0 | AN25: 0 | AO25: 0 | AP25: 0 | AQ25: =IF(OR(AF25=3,AF25=2,AF25=0),SUMIFS(FlatMaint!$Z$2:$Z$10000,FlatMaint!$A$2:$A$10000,D25,FlatMaint!$Y$2:$Y$10000,AE25)*AG25,0) -> 0 | AR25: =IF(OR(AF25=3,AF25=2,AF25=0),SUMIFS(FlatRepair!$Z$2:$Z$10000,FlatRepair!$A$2:$A$10000,D25,FlatRepair!$Y$2:$Y$10000,AE25)*AG25,0) -> 0 | AS25: 0 | AT25: 0 | AU25: 0 | AV25: 0 | AW25: 0 | AX25: 0 | AY25: 0 | AZ25: 0 | BA25: 0 | BB25: =IF($AF25=3,IF($AF$2=2,(R25/SUMIF(Refurb_Poss_Tbl[Refurbishment Possible],I25,Refurb_Poss_Tbl[%]))*AG25,IF($AF$2=3,(R25*AG25)-AV25,R25*AG25)),0) -> 0 | BC25: =IF(AF25=3,IF($AF$2=2,(S25/SUMIF(Refurb_Poss_Tbl[Refurbishment Possible],I25,Refurb_Poss_Tbl[%]))*AG25,IF($AF$2=3,(S25*AG25)-AX25,S25*AG25)),0) -> 0 | BD25: =IF($AF25=3,IF($AF$2=2,(T25/SUMIF(Refurb_Poss_Tbl[Refurbishment Possible],I25,Refurb_Poss_Tbl[%]))*AG25,T25*$AG25),0) -> 0 | BE25: =IF($AF25=3,IF($AF$2=2,(Q25/SUMIF(Refurb_Poss_Tbl[Refurbishment Possible],I25,Refurb_Poss_Tbl[%]))*AG25,Q25*$AG25),0) -> 0 | BF25: =IF($AF25=3,IF($AF$2=2,(U25/SUMIF(Refurb_Poss_Tbl[Refurbishment Possible],I25,Refurb_Poss_Tbl[%]))*AG25,U25*$AG25),0) -> 0 | BG25: =IF($AF25=3,IF($AF$2=2,(V25/SUMIF(Refurb_Poss_Tbl[Refurbishment Possible],I25,Refurb_Poss_Tbl[%]))*AG25,IF($AF$2=3,(V25*AG25)-AW25,V25*AG25)),0) -> 0 | BH25: =IF($AF25=3,IF($AF$2=2,(W25/SUMIF(Refurb_Poss_Tbl[Refurbishment Possible],I25,Refurb_Poss_Tbl[%]))*AG25,W25*$AG25),0) -> 0
A26: DredEA11 | B26: New channel | C26: Dredging Works | D26: DredEA1133 | E26: New channel-Excavation | F26: Dredging | G26: 120 | H26: 120 | I26: Not Possible | J26: 60 | K26: New Build | L26: 0 | M26: 0 | N26: 0 | O26: 2 | P26: 968.2248 | Q26: 968.2248 | R26: 33.77397315 | S26: 337.07328 | T26: 0.9941643774 | U26: 190.759147 | V26: 0 | W26: 694.8552145 | X26: 2225.680579 | Y26: 0 | Z26: 0 | AA26: 0 | AB26: 0 | AC26: 0.4970821887 | AD26: 168.53664 | AE26: 24 | AF26: 0 | AG26: =VLOOKUP(AE26,ValidationLists!$M$1:$N$102,2,FALSE) -> 0.4379571339 | AH26: 0 | AI26: 0 | AJ26: 0 | AK26: 0 | AL26: 0 | AM26: 0 | AN26: 0 | AO26: 0 | AP26: 0 | AQ26: =IF(OR(AF26=3,AF26=2,AF26=0),SUMIFS(FlatMaint!$Z$2:$Z$10000,FlatMaint!$A$2:$A$10000,D26,FlatMaint!$Y$2:$Y$10000,AE26)*AG26,0) -> 42.40811291 | AR26: =IF(OR(AF26=3,AF26=2,AF26=0),SUMIFS(FlatRepair!$Z$2:$Z$10000,FlatRepair!$A$2:$A$10000,D26,FlatRepair!$Y$2:$Y$10000,AE26)*AG26,0) -> 0 | AS26: 0 | AT26: 42.40811291 | AU26: 0 | AV26: 0 | AW26: 0 | AX26: 0 | AY26: 0 | AZ26: 42.40811291 | BA26: 0 | BB26: =IF($AF26=3,IF($AF$2=2,(R26/SUMIF(Refurb_Poss_Tbl[Refurbishment Possible],I26,Refurb_Poss_Tbl[%]))*AG26,IF($AF$2=3,(R26*AG26)-AV26,R26*AG26)),0) -> 0 | BC26: =IF(AF26=3,IF($AF$2=2,(S26/SUMIF(Refurb_Poss_Tbl[Refurbishment Possible],I26,Refurb_Poss_Tbl[%]))*AG26,IF($AF$2=3,(S26*AG26)-AX26,S26*AG26)),0) -> 0 | BD26: =IF($AF26=3,IF($AF$2=2,(T26/SUMIF(Refurb_Poss_Tbl[Refurbishment Possible],I26,Refurb_Poss_Tbl[%]))*AG26,T26*$AG26),0) -> 0 | BE26: =IF($AF26=3,IF($AF$2=2,(Q26/SUMIF(Refurb_Poss_Tbl[Refurbishment Possible],I26,Refurb_Poss_Tbl[%]))*AG26,Q26*$AG26),0) -> 0 | BF26: =IF($AF26=3,IF($AF$2=2,(U26/SUMIF(Refurb_Poss_Tbl[Refurbishment Possible],I26,Refurb_Poss_Tbl[%]))*AG26,U26*$AG26),0) -> 0 | BG26: =IF($AF26=3,IF($AF$2=2,(V26/SUMIF(Refurb_Poss_Tbl[Refurbishment Possible],I26,Refurb_Poss_Tbl[%]))*AG26,IF($AF$2=3,(V26*AG26)-AW26,V26*AG26)),0) -> 0 | BH26: =IF($AF26=3,IF($AF$2=2,(W26/SUMIF(Refurb_Poss_Tbl[Refurbishment Possible],I26,Refurb_Poss_Tbl[%]))*AG26,W26*$AG26),0) -> 0
A27: DredEA11 | B27: New channel | C27: Dredging Works | D27: DredEA1133 | E27: New channel-Excavation | F27: Dredging | G27: 120 | H27: 120 | I27: Not Possible | J27: 60 | K27: New Build | L27: 0 | M27: 0 | N27: 0 | O27: 2 | P27: 968.2248 | Q27: 968.2248 | R27: 33.77397315 | S27: 337.07328 | T27: 0.9941643774 | U27: 190.759147 | V27: 0 | W27: 694.8552145 | X27: 2225.680579 | Y27: 0 | Z27: 0 | AA27: 0 | AB27: 0 | AC27: 0.4970821887 | AD27: 168.53664 | AE27: 25 | AF27: 0 | AG27: =VLOOKUP(AE27,ValidationLists!$M$1:$N$102,2,FALSE) -> 0.4231469893 | AH27: 0 | AI27: 0 | AJ27: 0 | AK27: 0 | AL27: 0 | AM27: 0 | AN27: 0 | AO27: 0 | AP27: 0 | AQ27: =IF(OR(AF27=3,AF27=2,AF27=0),SUMIFS(FlatMaint!$Z$2:$Z$10000,FlatMaint!$A$2:$A$10000,D27,FlatMaint!$Y$2:$Y$10000,AE27)*AG27,0) -> 0 | AR27: =IF(OR(AF27=3,AF27=2,AF27=0),SUMIFS(FlatRepair!$Z$2:$Z$10000,FlatRepair!$A$2:$A$10000,D27,FlatRepair!$Y$2:$Y$10000,AE27)*AG27,0) -> 0 | AS27: 0 | AT27: 0 | AU27: 0 | AV27: 0 | AW27: 0 | AX27: 0 | AY27: 0 | AZ27: 0 | BA27: 0 | BB27: =IF($AF27=3,IF($AF$2=2,(R27/SUMIF(Refurb_Poss_Tbl[Refurbishment Possible],I27,Refurb_Poss_Tbl[%]))*AG27,IF($AF$2=3,(R27*AG27)-AV27,R27*AG27)),0) -> 0 | BC27: =IF(AF27=3,IF($AF$2=2,(S27/SUMIF(Refurb_Poss_Tbl[Refurbishment Possible],I27,Refurb_Poss_Tbl[%]))*AG27,IF($AF$2=3,(S27*AG27)-AX27,S27*AG27)),0) -> 0 | BD27: =IF($AF27=3,IF($AF$2=2,(T27/SUMIF(Refurb_Poss_Tbl[Refurbishment Possible],I27,Refurb_Poss_Tbl[%]))*AG27,T27*$AG27),0) -> 0 | BE27: =IF($AF27=3,IF($AF$2=2,(Q27/SUMIF(Refurb_Poss_Tbl[Refurbishment Possible],I27,Refurb_Poss_Tbl[%]))*AG27,Q27*$AG27),0) -> 0 | BF27: =IF($AF27=3,IF($AF$2=2,(U27/SUMIF(Refurb_Poss_Tbl[Refurbishment Possible],I27,Refurb_Poss_Tbl[%]))*AG27,U27*$AG27),0) -> 0 | BG27: =IF($AF27=3,IF($AF$2=2,(V27/SUMIF(Refurb_Poss_Tbl[Refurbishment Possible],I27,Refurb_Poss_Tbl[%]))*AG27,IF($AF$2=3,(V27*AG27)-AW27,V27*AG27)),0) -> 0 | BH27: =IF($AF27=3,IF($AF$2=2,(W27/SUMIF(Refurb_Poss_Tbl[Refurbishment Possible],I27,Refurb_Poss_Tbl[%]))*AG27,W27*$AG27),0) -> 0
A28: DredEA11 | B28: New channel | C28: Dredging Works | D28: DredEA1133 | E28: New channel-Excavation | F28: Dredging | G28: 120 | H28: 120 | I28: Not Possible | J28: 60 | K28: New Build | L28: 0 | M28: 0 | N28: 0 | O28: 2 | P28: 968.2248 | Q28: 968.2248 | R28: 33.77397315 | S28: 337.07328 | T28: 0.9941643774 | U28: 190.759147 | V28: 0 | W28: 694.8552145 | X28: 2225.680579 | Y28: 0 | Z28: 0 | AA28: 0 | AB28: 0 | AC28: 0.4970821887 | AD28: 168.53664 | AE28: 26 | AF28: 0 | AG28: =VLOOKUP(AE28,ValidationLists!$M$1:$N$102,2,FALSE) -> 0.4088376708 | AH28: 0 | AI28: 0 | AJ28: 0 | AK28: 0 | AL28: 0 | AM28: 0 | AN28: 0 | AO28: 0 | AP28: 0 | AQ28: =IF(OR(AF28=3,AF28=2,AF28=0),SUMIFS(FlatMaint!$Z$2:$Z$10000,FlatMaint!$A$2:$A$10000,D28,FlatMaint!$Y$2:$Y$10000,AE28)*AG28,0) -> 39.58842718 | AR28: =IF(OR(AF28=3,AF28=2,AF28=0),SUMIFS(FlatRepair!$Z$2:$Z$10000,FlatRepair!$A$2:$A$10000,D28,FlatRepair!$Y$2:$Y$10000,AE28)*AG28,0) -> 0 | AS28: 0 | AT28: 39.58842718 | AU28: 0 | AV28: 0 | AW28: 0 | AX28: 0 | AY28: 0 | AZ28: 39.58842718 | BA28: 0 | BB28: =IF($AF28=3,IF($AF$2=2,(R28/SUMIF(Refurb_Poss_Tbl[Refurbishment Possible],I28,Refurb_Poss_Tbl[%]))*AG28,IF($AF$2=3,(R28*AG28)-AV28,R28*AG28)),0) -> 0 | BC28: =IF(AF28=3,IF($AF$2=2,(S28/SUMIF(Refurb_Poss_Tbl[Refurbishment Possible],I28,Refurb_Poss_Tbl[%]))*AG28,IF($AF$2=3,(S28*AG28)-AX28,S28*AG28)),0) -> 0 | BD28: =IF($AF28=3,IF($AF$2=2,(T28/SUMIF(Refurb_Poss_Tbl[Refurbishment Possible],I28,Refurb_Poss_Tbl[%]))*AG28,T28*$AG28),0) -> 0 | BE28: =IF($AF28=3,IF($AF$2=2,(Q28/SUMIF(Refurb_Poss_Tbl[Refurbishment Possible],I28,Refurb_Poss_Tbl[%]))*AG28,Q28*$AG28),0) -> 0 | BF28: =IF($AF28=3,IF($AF$2=2,(U28/SUMIF(Refurb_Poss_Tbl[Refurbishment Possible],I28,Refurb_Poss_Tbl[%]))*AG28,U28*$AG28),0) -> 0 | BG28: =IF($AF28=3,IF($AF$2=2,(V28/SUMIF(Refurb_Poss_Tbl[Refurbishment Possible],I28,Refurb_Poss_Tbl[%]))*AG28,IF($AF$2=3,(V28*AG28)-AW28,V28*AG28)),0) -> 0 | BH28: =IF($AF28=3,IF($AF$2=2,(W28/SUMIF(Refurb_Poss_Tbl[Refurbishment Possible],I28,Refurb_Poss_Tbl[%]))*AG28,W28*$AG28),0) -> 0
A29: DredEA11 | B29: New channel | C29: Dredging Works | D29: DredEA1133 | E29: New channel-Excavation | F29: Dredging | G29: 120 | H29: 120 | I29: Not Possible | J29: 60 | K29: New Build | L29: 0 | M29: 0 | N29: 0 | O29: 2 | P29: 968.2248 | Q29: 968.2248 | R29: 33.77397315 | S29: 337.07328 | T29: 0.9941643774 | U29: 190.759147 | V29: 0 | W29: 694.8552145 | X29: 2225.680579 | Y29: 0 | Z29: 0 | AA29: 0 | AB29: 0 | AC29: 0.4970821887 | AD29: 168.53664 | AE29: 27 | AF29: 0 | AG29: =VLOOKUP(AE29,ValidationLists!$M$1:$N$102,2,FALSE) -> 0.3950122423 | AH29: 0 | AI29: 0 | AJ29: 0 | AK29: 0 | AL29: 0 | AM29: 0 | AN29: 0 | AO29: 0 | AP29: 0 | AQ29: =IF(OR(AF29=3,AF29=2,AF29=0),SUMIFS(FlatMaint!$Z$2:$Z$10000,FlatMaint!$A$2:$A$10000,D29,FlatMaint!$Y$2:$Y$10000,AE29)*AG29,0) -> 0 | AR29: =IF(OR(AF29=3,AF29=2,AF29=0),SUMIFS(FlatRepair!$Z$2:$Z$10000,FlatRepair!$A$2:$A$10000,D29,FlatRepair!$Y$2:$Y$10000,AE29)*AG29,0) -> 0 | AS29: 0 | AT29: 0 | AU29: 0 | AV29: 0 | AW29: 0 | AX29: 0 | AY29: 0 | AZ29: 0 | BA29: 0 | BB29: =IF($AF29=3,IF($AF$2=2,(R29/SUMIF(Refurb_Poss_Tbl[Refurbishment Possible],I29,Refurb_Poss_Tbl[%]))*AG29,IF($AF$2=3,(R29*AG29)-AV29,R29*AG29)),0) -> 0 | BC29: =IF(AF29=3,IF($AF$2=2,(S29/SUMIF(Refurb_Poss_Tbl[Refurbishment Possible],I29,Refurb_Poss_Tbl[%]))*AG29,IF($AF$2=3,(S29*AG29)-AX29,S29*AG29)),0) -> 0 | BD29: =IF($AF29=3,IF($AF$2=2,(T29/SUMIF(Refurb_Poss_Tbl[Refurbishment Possible],I29,Refurb_Poss_Tbl[%]))*AG29,T29*$AG29),0) -> 0 | BE29: =IF($AF29=3,IF($AF$2=2,(Q29/SUMIF(Refurb_Poss_Tbl[Refurbishment Possible],I29,Refurb_Poss_Tbl[%]))*AG29,Q29*$AG29),0) -> 0 | BF29: =IF($AF29=3,IF($AF$2=2,(U29/SUMIF(Refurb_Poss_Tbl[Refurbishment Possible],I29,Refurb_Poss_Tbl[%]))*AG29,U29*$AG29),0) -> 0 | BG29: =IF($AF29=3,IF($AF$2=2,(V29/SUMIF(Refurb_Poss_Tbl[Refurbishment Possible],I29,Refurb_Poss_Tbl[%]))*AG29,IF($AF$2=3,(V29*AG29)-AW29,V29*AG29)),0) -> 0 | BH29: =IF($AF29=3,IF($AF$2=2,(W29/SUMIF(Refurb_Poss_Tbl[Refurbishment Possible],I29,Refurb_Poss_Tbl[%]))*AG29,W29*$AG29),0) -> 0
A30: DredEA11 | B30: New channel | C30: Dredging Works | D30: DredEA1133 | E30: New channel-Excavation | F30: Dredging | G30: 120 | H30: 120 | I30: Not Possible | J30: 60 | K30: New Build | L30: 0 | M30: 0 | N30: 0 | O30: 2 | P30: 968.2248 | Q30: 968.2248 | R30: 33.77397315 | S30: 337.07328 | T30: 0.9941643774 | U30: 190.759147 | V30: 0 | W30: 694.8552145 | X30: 2225.680579 | Y30: 0 | Z30: 0 | AA30: 0 | AB30: 0 | AC30: 0.4970821887 | AD30: 168.53664 | AE30: 28 | AF30: 0 | AG30: =VLOOKUP(AE30,ValidationLists!$M$1:$N$102,2,FALSE) -> 0.3816543404 | AH30: 0 | AI30: 0 | AJ30: 0 | AK30: 0 | AL30: 0 | AM30: 0 | AN30: 0 | AO30: 0 | AP30: 0 | AQ30: =IF(OR(AF30=3,AF30=2,AF30=0),SUMIFS(FlatMaint!$Z$2:$Z$10000,FlatMaint!$A$2:$A$10000,D30,FlatMaint!$Y$2:$Y$10000,AE30)*AG30,0) -> 36.95622039 | AR30: =IF(OR(AF30=3,AF30=2,AF30=0),SUMIFS(FlatRepair!$Z$2:$Z$10000,FlatRepair!$A$2:$A$10000,D30,FlatRepair!$Y$2:$Y$10000,AE30)*AG30,0) -> 0 | AS30: 0 | AT30: 36.95622039 | AU30: 0 | AV30: 0 | AW30: 0 | AX30: 0 | AY30: 0 | AZ30: 36.95622039 | BA30: 0 | BB30: =IF($AF30=3,IF($AF$2=2,(R30/SUMIF(Refurb_Poss_Tbl[Refurbishment Possible],I30,Refurb_Poss_Tbl[%]))*AG30,IF($AF$2=3,(R30*AG30)-AV30,R30*AG30)),0) -> 0 | BC30: =IF(AF30=3,IF($AF$2=2,(S30/SUMIF(Refurb_Poss_Tbl[Refurbishment Possible],I30,Refurb_Poss_Tbl[%]))*AG30,IF($AF$2=3,(S30*AG30)-AX30,S30*AG30)),0) -> 0 | BD30: =IF($AF30=3,IF($AF$2=2,(T30/SUMIF(Refurb_Poss_Tbl[Refurbishment Possible],I30,Refurb_Poss_Tbl[%]))*AG30,T30*$AG30),0) -> 0 | BE30: =IF($AF30=3,IF($AF$2=2,(Q30/SUMIF(Refurb_Poss_Tbl[Refurbishment Possible],I30,Refurb_Poss_Tbl[%]))*AG30,Q30*$AG30),0) -> 0 | BF30: =IF($AF30=3,IF($AF$2=2,(U30/SUMIF(Refurb_Poss_Tbl[Refurbishment Possible],I30,Refurb_Poss_Tbl[%]))*AG30,U30*$AG30),0) -> 0 | BG30: =IF($AF30=3,IF($AF$2=2,(V30/SUMIF(Refurb_Poss_Tbl[Refurbishment Possible],I30,Refurb_Poss_Tbl[%]))*AG30,IF($AF$2=3,(V30*AG30)-AW30,V30*AG30)),0) -> 0 | BH30: =IF($AF30=3,IF($AF$2=2,(W30/SUMIF(Refurb_Poss_Tbl[Refurbishment Possible],I30,Refurb_Poss_Tbl[%]))*AG30,W30*$AG30),0) -> 0
A31: DredEA11 | B31: New channel | C31: Dredging Works | D31: DredEA1133 | E31: New channel-Excavation | F31: Dredging | G31: 120 | H31: 120 | I31: Not Possible | J31: 60 | K31: New Build | L31: 0 | M31: 0 | N31: 0 | O31: 2 | P31: 968.2248 | Q31: 968.2248 | R31: 33.77397315 | S31: 337.07328 | T31: 0.9941643774 | U31: 190.759147 | V31: 0 | W31: 694.8552145 | X31: 2225.680579 | Y31: 0 | Z31: 0 | AA31: 0 | AB31: 0 | AC31: 0.4970821887 | AD31: 168.53664 | AE31: 29 | AF31: 0 | AG31: =VLOOKUP(AE31,ValidationLists!$M$1:$N$102,2,FALSE) -> 0.368748155 | AH31: 0 | AI31: 0 | AJ31: 0 | AK31: 0 | AL31: 0 | AM31: 0 | AN31: 0 | AO31: 0 | AP31: 0 | AQ31: =IF(OR(AF31=3,AF31=2,AF31=0),SUMIFS(FlatMaint!$Z$2:$Z$10000,FlatMaint!$A$2:$A$10000,D31,FlatMaint!$Y$2:$Y$10000,AE31)*AG31,0) -> 0 | AR31: =IF(OR(AF31=3,AF31=2,AF31=0),SUMIFS(FlatRepair!$Z$2:$Z$10000,FlatRepair!$A$2:$A$10000,D31,FlatRepair!$Y$2:$Y$10000,AE31)*AG31,0) -> 0 | AS31: 0 | AT31: 0 | AU31: 0 | AV31: 0 | AW31: 0 | AX31: 0 | AY31: 0 | AZ31: 0 | BA31: 0 | BB31: =IF($AF31=3,IF($AF$2=2,(R31/SUMIF(Refurb_Poss_Tbl[Refurbishment Possible],I31,Refurb_Poss_Tbl[%]))*AG31,IF($AF$2=3,(R31*AG31)-AV31,R31*AG31)),0) -> 0 | BC31: =IF(AF31=3,IF($AF$2=2,(S31/SUMIF(Refurb_Poss_Tbl[Refurbishment Possible],I31,Refurb_Poss_Tbl[%]))*AG31,IF($AF$2=3,(S31*AG31)-AX31,S31*AG31)),0) -> 0 | BD31: =IF($AF31=3,IF($AF$2=2,(T31/SUMIF(Refurb_Poss_Tbl[Refurbishment Possible],I31,Refurb_Poss_Tbl[%]))*AG31,T31*$AG31),0) -> 0 | BE31: =IF($AF31=3,IF($AF$2=2,(Q31/SUMIF(Refurb_Poss_Tbl[Refurbishment Possible],I31,Refurb_Poss_Tbl[%]))*AG31,Q31*$AG31),0) -> 0 | BF31: =IF($AF31=3,IF($AF$2=2,(U31/SUMIF(Refurb_Poss_Tbl[Refurbishment Possible],I31,Refurb_Poss_Tbl[%]))*AG31,U31*$AG31),0) -> 0 | BG31: =IF($AF31=3,IF($AF$2=2,(V31/SUMIF(Refurb_Poss_Tbl[Refurbishment Possible],I31,Refurb_Poss_Tbl[%]))*AG31,IF($AF$2=3,(V31*AG31)-AW31,V31*AG31)),0) -> 0 | BH31: =IF($AF31=3,IF($AF$2=2,(W31/SUMIF(Refurb_Poss_Tbl[Refurbishment Possible],I31,Refurb_Poss_Tbl[%]))*AG31,W31*$AG31),0) -> 0
A32: DredEA11 | B32: New channel | C32: Dredging Works | D32: DredEA1133 | E32: New channel-Excavation | F32: Dredging | G32: 120 | H32: 120 | I32: Not Possible | J32: 60 | K32: New Build | L32: 0 | M32: 0 | N32: 0 | O32: 2 | P32: 968.2248 | Q32: 968.2248 | R32: 33.77397315 | S32: 337.07328 | T32: 0.9941643774 | U32: 190.759147 | V32: 0 | W32: 694.8552145 | X32: 2225.680579 | Y32: 0 | Z32: 0 | AA32: 0 | AB32: 0 | AC32: 0.4970821887 | AD32: 168.53664 | AE32: 30 | AF32: 0 | AG32: =VLOOKUP(AE32,ValidationLists!$M$1:$N$102,2,FALSE) -> 0.3562784106 | AH32: 0 | AI32: 0 | AJ32: 0 | AK32: 0 | AL32: 0 | AM32: 0 | AN32: 0 | AO32: 0 | AP32: 0 | AQ32: =IF(OR(AF32=3,AF32=2,AF32=0),SUMIFS(FlatMaint!$Z$2:$Z$10000,FlatMaint!$A$2:$A$10000,D32,FlatMaint!$Y$2:$Y$10000,AE32)*AG32,0) -> 34.49902718 | AR32: =IF(OR(AF32=3,AF32=2,AF32=0),SUMIFS(FlatRepair!$Z$2:$Z$10000,FlatRepair!$A$2:$A$10000,D32,FlatRepair!$Y$2:$Y$10000,AE32)*AG32,0) -> 0 | AS32: 0 | AT32: 34.49902718 | AU32: 0 | AV32: 0 | AW32: 0 | AX32: 0 | AY32: 0 | AZ32: 34.49902718 | BA32: 0 | BB32: =IF($AF32=3,IF($AF$2=2,(R32/SUMIF(Refurb_Poss_Tbl[Refurbishment Possible],I32,Refurb_Poss_Tbl[%]))*AG32,IF($AF$2=3,(R32*AG32)-AV32,R32*AG32)),0) -> 0 | BC32: =IF(AF32=3,IF($AF$2=2,(S32/SUMIF(Refurb_Poss_Tbl[Refurbishment Possible],I32,Refurb_Poss_Tbl[%]))*AG32,IF($AF$2=3,(S32*AG32)-AX32,S32*AG32)),0) -> 0 | BD32: =IF($AF32=3,IF($AF$2=2,(T32/SUMIF(Refurb_Poss_Tbl[Refurbishment Possible],I32,Refurb_Poss_Tbl[%]))*AG32,T32*$AG32),0) -> 0 | BE32: =IF($AF32=3,IF($AF$2=2,(Q32/SUMIF(Refurb_Poss_Tbl[Refurbishment Possible],I32,Refurb_Poss_Tbl[%]))*AG32,Q32*$AG32),0) -> 0 | BF32: =IF($AF32=3,IF($AF$2=2,(U32/SUMIF(Refurb_Poss_Tbl[Refurbishment Possible],I32,Refurb_Poss_Tbl[%]))*AG32,U32*$AG32),0) -> 0 | BG32: =IF($AF32=3,IF($AF$2=2,(V32/SUMIF(Refurb_Poss_Tbl[Refurbishment Possible],I32,Refurb_Poss_Tbl[%]))*AG32,IF($AF$2=3,(V32*AG32)-AW32,V32*AG32)),0) -> 0 | BH32: =IF($AF32=3,IF($AF$2=2,(W32/SUMIF(Refurb_Poss_Tbl[Refurbishment Possible],I32,Refurb_Poss_Tbl[%]))*AG32,W32*$AG32),0) -> 0
A33: DredEA11 | B33: New channel | C33: Dredging Works | D33: DredEA1133 | E33: New channel-Excavation | F33: Dredging | G33: 120 | H33: 120 | I33: Not Possible | J33: 60 | K33: New Build | L33: 0 | M33: 0 | N33: 0 | O33: 2 | P33: 968.2248 | Q33: 968.2248 | R33: 33.77397315 | S33: 337.07328 | T33: 0.9941643774 | U33: 190.759147 | V33: 0 | W33: 694.8552145 | X33: 2225.680579 | Y33: 0 | Z33: 0 | AA33: 0 | AB33: 0 | AC33: 0.4970821887 | AD33: 168.53664 | AE33: 31 | AF33: 0 | AG33: =VLOOKUP(AE33,ValidationLists!$M$1:$N$102,2,FALSE) -> 0.3999871452 | AH33: 0 | AI33: 0 | AJ33: 0 | AK33: 0 | AL33: 0 | AM33: 0 | AN33: 0 | AO33: 0 | AP33: 0 | AQ33: =IF(OR(AF33=3,AF33=2,AF33=0),SUMIFS(FlatMaint!$Z$2:$Z$10000,FlatMaint!$A$2:$A$10000,D33,FlatMaint!$Y$2:$Y$10000,AE33)*AG33,0) -> 0 | AR33: =IF(OR(AF33=3,AF33=2,AF33=0),SUMIFS(FlatRepair!$Z$2:$Z$10000,FlatRepair!$A$2:$A$10000,D33,FlatRepair!$Y$2:$Y$10000,AE33)*AG33,0) -> 0 | AS33: 0 | AT33: 0 | AU33: 0 | AV33: 0 | AW33: 0 | AX33: 0 | AY33: 0 | AZ33: 0 | BA33: 0 | BB33: =IF($AF33=3,IF($AF$2=2,(R33/SUMIF(Refurb_Poss_Tbl[Refurbishment Possible],I33,Refurb_Poss_Tbl[%]))*AG33,IF($AF$2=3,(R33*AG33)-AV33,R33*AG33)),0) -> 0 | BC33: =IF(AF33=3,IF($AF$2=2,(S33/SUMIF(Refurb_Poss_Tbl[Refurbishment Possible],I33,Refurb_Poss_Tbl[%]))*AG33,IF($AF$2=3,(S33*AG33)-AX33,S33*AG33)),0) -> 0 | BD33: =IF($AF33=3,IF($AF$2=2,(T33/SUMIF(Refurb_Poss_Tbl[Refurbishment Possible],I33,Refurb_Poss_Tbl[%]))*AG33,T33*$AG33),0) -> 0 | BE33: =IF($AF33=3,IF($AF$2=2,(Q33/SUMIF(Refurb_Poss_Tbl[Refurbishment Possible],I33,Refurb_Poss_Tbl[%]))*AG33,Q33*$AG33),0) -> 0 | BF33: =IF($AF33=3,IF($AF$2=2,(U33/SUMIF(Refurb_Poss_Tbl[Refurbishment Possible],I33,Refurb_Poss_Tbl[%]))*AG33,U33*$AG33),0) -> 0 | BG33: =IF($AF33=3,IF($AF$2=2,(V33/SUMIF(Refurb_Poss_Tbl[Refurbishment Possible],I33,Refurb_Poss_Tbl[%]))*AG33,IF($AF$2=3,(V33*AG33)-AW33,V33*AG33)),0) -> 0 | BH33: =IF($AF33=3,IF($AF$2=2,(W33/SUMIF(Refurb_Poss_Tbl[Refurbishment Possible],I33,Refurb_Poss_Tbl[%]))*AG33,W33*$AG33),0) -> 0
A34: DredEA11 | B34: New channel | C34: Dredging Works | D34: DredEA1133 | E34: New channel-Excavation | F34: Dredging | G34: 120 | H34: 120 | I34: Not Possible | J34: 60 | K34: New Build | L34: 0 | M34: 0 | N34: 0 | O34: 2 | P34: 968.2248 | Q34: 968.2248 | R34: 33.77397315 | S34: 337.07328 | T34: 0.9941643774 | U34: 190.759147 | V34: 0 | W34: 694.8552145 | X34: 2225.680579 | Y34: 0 | Z34: 0 | AA34: 0 | AB34: 0 | AC34: 0.4970821887 | AD34: 168.53664 | AE34: 32 | AF34: 0 | AG34: =VLOOKUP(AE34,ValidationLists!$M$1:$N$102,2,FALSE) -> 0.3883370341 | AH34: 0 | AI34: 0 | AJ34: 0 | AK34: 0 | AL34: 0 | AM34: 0 | AN34: 0 | AO34: 0 | AP34: 0 | AQ34: =IF(OR(AF34=3,AF34=2,AF34=0),SUMIFS(FlatMaint!$Z$2:$Z$10000,FlatMaint!$A$2:$A$10000,D34,FlatMaint!$Y$2:$Y$10000,AE34)*AG34,0) -> 37.60331666 | AR34: =IF(OR(AF34=3,AF34=2,AF34=0),SUMIFS(FlatRepair!$Z$2:$Z$10000,FlatRepair!$A$2:$A$10000,D34,FlatRepair!$Y$2:$Y$10000,AE34)*AG34,0) -> 0 | AS34: 0 | AT34: 37.60331666 | AU34: 0 | AV34: 0 | AW34: 0 | AX34: 0 | AY34: 0 | AZ34: 37.60331666 | BA34: 0 | BB34: =IF($AF34=3,IF($AF$2=2,(R34/SUMIF(Refurb_Poss_Tbl[Refurbishment Possible],I34,Refurb_Poss_Tbl[%]))*AG34,IF($AF$2=3,(R34*AG34)-AV34,R34*AG34)),0) -> 0 | BC34: =IF(AF34=3,IF($AF$2=2,(S34/SUMIF(Refurb_Poss_Tbl[Refurbishment Possible],I34,Refurb_Poss_Tbl[%]))*AG34,IF($AF$2=3,(S34*AG34)-AX34,S34*AG34)),0) -> 0 | BD34: =IF($AF34=3,IF($AF$2=2,(T34/SUMIF(Refurb_Poss_Tbl[Refurbishment Possible],I34,Refurb_Poss_Tbl[%]))*AG34,T34*$AG34),0) -> 0 | BE34: =IF($AF34=3,IF($AF$2=2,(Q34/SUMIF(Refurb_Poss_Tbl[Refurbishment Possible],I34,Refurb_Poss_Tbl[%]))*AG34,Q34*$AG34),0) -> 0 | BF34: =IF($AF34=3,IF($AF$2=2,(U34/SUMIF(Refurb_Poss_Tbl[Refurbishment Possible],I34,Refurb_Poss_Tbl[%]))*AG34,U34*$AG34),0) -> 0 | BG34: =IF($AF34=3,IF($AF$2=2,(V34/SUMIF(Refurb_Poss_Tbl[Refurbishment Possible],I34,Refurb_Poss_Tbl[%]))*AG34,IF($AF$2=3,(V34*AG34)-AW34,V34*AG34)),0) -> 0 | BH34: =IF($AF34=3,IF($AF$2=2,(W34/SUMIF(Refurb_Poss_Tbl[Refurbishment Possible],I34,Refurb_Poss_Tbl[%]))*AG34,W34*$AG34),0) -> 0
A35: DredEA11 | B35: New channel | C35: Dredging Works | D35: DredEA1133 | E35: New channel-Excavation | F35: Dredging | G35: 120 | H35: 120 | I35: Not Possible | J35: 60 | K35: New Build | L35: 0 | M35: 0 | N35: 0 | O35: 2 | P35: 968.2248 | Q35: 968.2248 | R35: 33.77397315 | S35: 337.07328 | T35: 0.9941643774 | U35: 190.759147 | V35: 0 | W35: 694.8552145 | X35: 2225.680579 | Y35: 0 | Z35: 0 | AA35: 0 | AB35: 0 | AC35: 0.4970821887 | AD35: 168.53664 | AE35: 33 | AF35: 0 | AG35: =VLOOKUP(AE35,ValidationLists!$M$1:$N$102,2,FALSE) -> 0.3770262467 | AH35: 0 | AI35: 0 | AJ35: 0 | AK35: 0 | AL35: 0 | AM35: 0 | AN35: 0 | AO35: 0 | AP35: 0 | AQ35: =IF(OR(AF35=3,AF35=2,AF35=0),SUMIFS(FlatMaint!$Z$2:$Z$10000,FlatMaint!$A$2:$A$10000,D35,FlatMaint!$Y$2:$Y$10000,AE35)*AG35,0) -> 0 | AR35: =IF(OR(AF35=3,AF35=2,AF35=0),SUMIFS(FlatRepair!$Z$2:$Z$10000,FlatRepair!$A$2:$A$10000,D35,FlatRepair!$Y$2:$Y$10000,AE35)*AG35,0) -> 0 | AS35: 0 | AT35: 0 | AU35: 0 | AV35: 0 | AW35: 0 | AX35: 0 | AY35: 0 | AZ35: 0 | BA35: 0 | BB35: =IF($AF35=3,IF($AF$2=2,(R35/SUMIF(Refurb_Poss_Tbl[Refurbishment Possible],I35,Refurb_Poss_Tbl[%]))*AG35,IF($AF$2=3,(R35*AG35)-AV35,R35*AG35)),0) -> 0 | BC35: =IF(AF35=3,IF($AF$2=2,(S35/SUMIF(Refurb_Poss_Tbl[Refurbishment Possible],I35,Refurb_Poss_Tbl[%]))*AG35,IF($AF$2=3,(S35*AG35)-AX35,S35*AG35)),0) -> 0 | BD35: =IF($AF35=3,IF($AF$2=2,(T35/SUMIF(Refurb_Poss_Tbl[Refurbishment Possible],I35,Refurb_Poss_Tbl[%]))*AG35,T35*$AG35),0) -> 0 | BE35: =IF($AF35=3,IF($AF$2=2,(Q35/SUMIF(Refurb_Poss_Tbl[Refurbishment Possible],I35,Refurb_Poss_Tbl[%]))*AG35,Q35*$AG35),0) -> 0 | BF35: =IF($AF35=3,IF($AF$2=2,(U35/SUMIF(Refurb_Poss_Tbl[Refurbishment Possible],I35,Refurb_Poss_Tbl[%]))*AG35,U35*$AG35),0) -> 0 | BG35: =IF($AF35=3,IF($AF$2=2,(V35/SUMIF(Refurb_Poss_Tbl[Refurbishment Possible],I35,Refurb_Poss_Tbl[%]))*AG35,IF($AF$2=3,(V35*AG35)-AW35,V35*AG35)),0) -> 0 | BH35: =IF($AF35=3,IF($AF$2=2,(W35/SUMIF(Refurb_Poss_Tbl[Refurbishment Possible],I35,Refurb_Poss_Tbl[%]))*AG35,W35*$AG35),0) -> 0
A36: DredEA11 | B36: New channel | C36: Dredging Works | D36: DredEA1133 | E36: New channel-Excavation | F36: Dredging | G36: 120 | H36: 120 | I36: Not Possible | J36: 60 | K36: New Build | L36: 0 | M36: 0 | N36: 0 | O36: 2 | P36: 968.2248 | Q36: 968.2248 | R36: 33.77397315 | S36: 337.07328 | T36: 0.9941643774 | U36: 190.759147 | V36: 0 | W36: 694.8552145 | X36: 2225.680579 | Y36: 0 | Z36: 0 | AA36: 0 | AB36: 0 | AC36: 0.4970821887 | AD36: 168.53664 | AE36: 34 | AF36: 0 | AG36: =VLOOKUP(AE36,ValidationLists!$M$1:$N$102,2,FALSE) -> 0.3660448997 | AH36: 0 | AI36: 0 | AJ36: 0 | AK36: 0 | AL36: 0 | AM36: 0 | AN36: 0 | AO36: 0 | AP36: 0 | AQ36: =IF(OR(AF36=3,AF36=2,AF36=0),SUMIFS(FlatMaint!$Z$2:$Z$10000,FlatMaint!$A$2:$A$10000,D36,FlatMaint!$Y$2:$Y$10000,AE36)*AG36,0) -> 35.44473246 | AR36: =IF(OR(AF36=3,AF36=2,AF36=0),SUMIFS(FlatRepair!$Z$2:$Z$10000,FlatRepair!$A$2:$A$10000,D36,FlatRepair!$Y$2:$Y$10000,AE36)*AG36,0) -> 0 | AS36: 0 | AT36: 35.44473246 | AU36: 0 | AV36: 0 | AW36: 0 | AX36: 0 | AY36: 0 | AZ36: 35.44473246 | BA36: 0 | BB36: =IF($AF36=3,IF($AF$2=2,(R36/SUMIF(Refurb_Poss_Tbl[Refurbishment Possible],I36,Refurb_Poss_Tbl[%]))*AG36,IF($AF$2=3,(R36*AG36)-AV36,R36*AG36)),0) -> 0 | BC36: =IF(AF36=3,IF($AF$2=2,(S36/SUMIF(Refurb_Poss_Tbl[Refurbishment Possible],I36,Refurb_Poss_Tbl[%]))*AG36,IF($AF$2=3,(S36*AG36)-AX36,S36*AG36)),0) -> 0 | BD36: =IF($AF36=3,IF($AF$2=2,(T36/SUMIF(Refurb_Poss_Tbl[Refurbishment Possible],I36,Refurb_Poss_Tbl[%]))*AG36,T36*$AG36),0) -> 0 | BE36: =IF($AF36=3,IF($AF$2=2,(Q36/SUMIF(Refurb_Poss_Tbl[Refurbishment Possible],I36,Refurb_Poss_Tbl[%]))*AG36,Q36*$AG36),0) -> 0 | BF36: =IF($AF36=3,IF($AF$2=2,(U36/SUMIF(Refurb_Poss_Tbl[Refurbishment Possible],I36,Refurb_Poss_Tbl[%]))*AG36,U36*$AG36),0) -> 0 | BG36: =IF($AF36=3,IF($AF$2=2,(V36/SUMIF(Refurb_Poss_Tbl[Refurbishment Possible],I36,Refurb_Poss_Tbl[%]))*AG36,IF($AF$2=3,(V36*AG36)-AW36,V36*AG36)),0) -> 0 | BH36: =IF($AF36=3,IF($AF$2=2,(W36/SUMIF(Refurb_Poss_Tbl[Refurbishment Possible],I36,Refurb_Poss_Tbl[%]))*AG36,W36*$AG36),0) -> 0
A37: DredEA11 | B37: New channel | C37: Dredging Works | D37: DredEA1133 | E37: New channel-Excavation | F37: Dredging | G37: 120 | H37: 120 | I37: Not Possible | J37: 60 | K37: New Build | L37: 0 | M37: 0 | N37: 0 | O37: 2 | P37: 968.2248 | Q37: 968.2248 | R37: 33.77397315 | S37: 337.07328 | T37: 0.9941643774 | U37: 190.759147 | V37: 0 | W37: 694.8552145 | X37: 2225.680579 | Y37: 0 | Z37: 0 | AA37: 0 | AB37: 0 | AC37: 0.4970821887 | AD37: 168.53664 | AE37: 35 | AF37: 0 | AG37: =VLOOKUP(AE37,ValidationLists!$M$1:$N$102,2,FALSE) -> 0.3553833978 | AH37: 0 | AI37: 0 | AJ37: 0 | AK37: 0 | AL37: 0 | AM37: 0 | AN37: 0 | AO37: 0 | AP37: 0 | AQ37: =IF(OR(AF37=3,AF37=2,AF37=0),SUMIFS(FlatMaint!$Z$2:$Z$10000,FlatMaint!$A$2:$A$10000,D37,FlatMaint!$Y$2:$Y$10000,AE37)*AG37,0) -> 0 | AR37: =IF(OR(AF37=3,AF37=2,AF37=0),SUMIFS(FlatRepair!$Z$2:$Z$10000,FlatRepair!$A$2:$A$10000,D37,FlatRepair!$Y$2:$Y$10000,AE37)*AG37,0) -> 0 | AS37: 0 | AT37: 0 | AU37: 0 | AV37: 0 | AW37: 0 | AX37: 0 | AY37: 0 | AZ37: 0 | BA37: 0 | BB37: =IF($AF37=3,IF($AF$2=2,(R37/SUMIF(Refurb_Poss_Tbl[Refurbishment Possible],I37,Refurb_Poss_Tbl[%]))*AG37,IF($AF$2=3,(R37*AG37)-AV37,R37*AG37)),0) -> 0 | BC37: =IF(AF37=3,IF($AF$2=2,(S37/SUMIF(Refurb_Poss_Tbl[Refurbishment Possible],I37,Refurb_Poss_Tbl[%]))*AG37,IF($AF$2=3,(S37*AG37)-AX37,S37*AG37)),0) -> 0 | BD37: =IF($AF37=3,IF($AF$2=2,(T37/SUMIF(Refurb_Poss_Tbl[Refurbishment Possible],I37,Refurb_Poss_Tbl[%]))*AG37,T37*$AG37),0) -> 0 | BE37: =IF($AF37=3,IF($AF$2=2,(Q37/SUMIF(Refurb_Poss_Tbl[Refurbishment Possible],I37,Refurb_Poss_Tbl[%]))*AG37,Q37*$AG37),0) -> 0 | BF37: =IF($AF37=3,IF($AF$2=2,(U37/SUMIF(Refurb_Poss_Tbl[Refurbishment Possible],I37,Refurb_Poss_Tbl[%]))*AG37,U37*$AG37),0) -> 0 | BG37: =IF($AF37=3,IF($AF$2=2,(V37/SUMIF(Refurb_Poss_Tbl[Refurbishment Possible],I37,Refurb_Poss_Tbl[%]))*AG37,IF($AF$2=3,(V37*AG37)-AW37,V37*AG37)),0) -> 0 | BH37: =IF($AF37=3,IF($AF$2=2,(W37/SUMIF(Refurb_Poss_Tbl[Refurbishment Possible],I37,Refurb_Poss_Tbl[%]))*AG37,W37*$AG37),0) -> 0
A38: DredEA11 | B38: New channel | C38: Dredging Works | D38: DredEA1133 | E38: New channel-Excavation | F38: Dredging | G38: 120 | H38: 120 | I38: Not Possible | J38: 60 | K38: New Build | L38: 0 | M38: 0 | N38: 0 | O38: 2 | P38: 968.2248 | Q38: 968.2248 | R38: 33.77397315 | S38: 337.07328 | T38: 0.9941643774 | U38: 190.759147 | V38: 0 | W38: 694.8552145 | X38: 2225.680579 | Y38: 0 | Z38: 0 | AA38: 0 | AB38: 0 | AC38: 0.4970821887 | AD38: 168.53664 | AE38: 36 | AF38: 0 | AG38: =VLOOKUP(AE38,ValidationLists!$M$1:$N$102,2,FALSE) -> 0.3450324251 | AH38: 0 | AI38: 0 | AJ38: 0 | AK38: 0 | AL38: 0 | AM38: 0 | AN38: 0 | AO38: 0 | AP38: 0 | AQ38: =IF(OR(AF38=3,AF38=2,AF38=0),SUMIFS(FlatMaint!$Z$2:$Z$10000,FlatMaint!$A$2:$A$10000,D38,FlatMaint!$Y$2:$Y$10000,AE38)*AG38,0) -> 33.41005981 | AR38: =IF(OR(AF38=3,AF38=2,AF38=0),SUMIFS(FlatRepair!$Z$2:$Z$10000,FlatRepair!$A$2:$A$10000,D38,FlatRepair!$Y$2:$Y$10000,AE38)*AG38,0) -> 0 | AS38: 0 | AT38: 33.41005981 | AU38: 0 | AV38: 0 | AW38: 0 | AX38: 0 | AY38: 0 | AZ38: 33.41005981 | BA38: 0 | BB38: =IF($AF38=3,IF($AF$2=2,(R38/SUMIF(Refurb_Poss_Tbl[Refurbishment Possible],I38,Refurb_Poss_Tbl[%]))*AG38,IF($AF$2=3,(R38*AG38)-AV38,R38*AG38)),0) -> 0 | BC38: =IF(AF38=3,IF($AF$2=2,(S38/SUMIF(Refurb_Poss_Tbl[Refurbishment Possible],I38,Refurb_Poss_Tbl[%]))*AG38,IF($AF$2=3,(S38*AG38)-AX38,S38*AG38)),0) -> 0 | BD38: =IF($AF38=3,IF($AF$2=2,(T38/SUMIF(Refurb_Poss_Tbl[Refurbishment Possible],I38,Refurb_Poss_Tbl[%]))*AG38,T38*$AG38),0) -> 0 | BE38: =IF($AF38=3,IF($AF$2=2,(Q38/SUMIF(Refurb_Poss_Tbl[Refurbishment Possible],I38,Refurb_Poss_Tbl[%]))*AG38,Q38*$AG38),0) -> 0 | BF38: =IF($AF38=3,IF($AF$2=2,(U38/SUMIF(Refurb_Poss_Tbl[Refurbishment Possible],I38,Refurb_Poss_Tbl[%]))*AG38,U38*$AG38),0) -> 0 | BG38: =IF($AF38=3,IF($AF$2=2,(V38/SUMIF(Refurb_Poss_Tbl[Refurbishment Possible],I38,Refurb_Poss_Tbl[%]))*AG38,IF($AF$2=3,(V38*AG38)-AW38,V38*AG38)),0) -> 0 | BH38: =IF($AF38=3,IF($AF$2=2,(W38/SUMIF(Refurb_Poss_Tbl[Refurbishment Possible],I38,Refurb_Poss_Tbl[%]))*AG38,W38*$AG38),0) -> 0
A39: DredEA11 | B39: New channel | C39: Dredging Works | D39: DredEA1133 | E39: New channel-Excavation | F39: Dredging | G39: 120 | H39: 120 | I39: Not Possible | J39: 60 | K39: New Build | L39: 0 | M39: 0 | N39: 0 | O39: 2 | P39: 968.2248 | Q39: 968.2248 | R39: 33.77397315 | S39: 337.07328 | T39: 0.9941643774 | U39: 190.759147 | V39: 0 | W39: 694.8552145 | X39: 2225.680579 | Y39: 0 | Z39: 0 | AA39: 0 | AB39: 0 | AC39: 0.4970821887 | AD39: 168.53664 | AE39: 37 | AF39: 0 | AG39: =VLOOKUP(AE39,ValidationLists!$M$1:$N$102,2,FALSE) -> 0.3349829369 | AH39: 0 | AI39: 0 | AJ39: 0 | AK39: 0 | AL39: 0 | AM39: 0 | AN39: 0 | AO39: 0 | AP39: 0 | AQ39: =IF(OR(AF39=3,AF39=2,AF39=0),SUMIFS(FlatMaint!$Z$2:$Z$10000,FlatMaint!$A$2:$A$10000,D39,FlatMaint!$Y$2:$Y$10000,AE39)*AG39,0) -> 0 | AR39: =IF(OR(AF39=3,AF39=2,AF39=0),SUMIFS(FlatRepair!$Z$2:$Z$10000,FlatRepair!$A$2:$A$10000,D39,FlatRepair!$Y$2:$Y$10000,AE39)*AG39,0) -> 0 | AS39: 0 | AT39: 0 | AU39: 0 | AV39: 0 | AW39: 0 | AX39: 0 | AY39: 0 | AZ39: 0 | BA39: 0 | BB39: =IF($AF39=3,IF($AF$2=2,(R39/SUMIF(Refurb_Poss_Tbl[Refurbishment Possible],I39,Refurb_Poss_Tbl[%]))*AG39,IF($AF$2=3,(R39*AG39)-AV39,R39*AG39)),0) -> 0 | BC39: =IF(AF39=3,IF($AF$2=2,(S39/SUMIF(Refurb_Poss_Tbl[Refurbishment Possible],I39,Refurb_Poss_Tbl[%]))*AG39,IF($AF$2=3,(S39*AG39)-AX39,S39*AG39)),0) -> 0 | BD39: =IF($AF39=3,IF($AF$2=2,(T39/SUMIF(Refurb_Poss_Tbl[Refurbishment Possible],I39,Refurb_Poss_Tbl[%]))*AG39,T39*$AG39),0) -> 0 | BE39: =IF($AF39=3,IF($AF$2=2,(Q39/SUMIF(Refurb_Poss_Tbl[Refurbishment Possible],I39,Refurb_Poss_Tbl[%]))*AG39,Q39*$AG39),0) -> 0 | BF39: =IF($AF39=3,IF($AF$2=2,(U39/SUMIF(Refurb_Poss_Tbl[Refurbishment Possible],I39,Refurb_Poss_Tbl[%]))*AG39,U39*$AG39),0) -> 0 | BG39: =IF($AF39=3,IF($AF$2=2,(V39/SUMIF(Refurb_Poss_Tbl[Refurbishment Possible],I39,Refurb_Poss_Tbl[%]))*AG39,IF($AF$2=3,(V39*AG39)-AW39,V39*AG39)),0) -> 0 | BH39: =IF($AF39=3,IF($AF$2=2,(W39/SUMIF(Refurb_Poss_Tbl[Refurbishment Possible],I39,Refurb_Poss_Tbl[%]))*AG39,W39*$AG39),0) -> 0
A40: DredEA11 | B40: New channel | C40: Dredging Works | D40: DredEA1133 | E40: New channel-Excavation | F40: Dredging | G40: 120 | H40: 120 | I40: Not Possible | J40: 60 | K40: New Build | L40: 0 | M40: 0 | N40: 0 | O40: 2 | P40: 968.2248 | Q40: 968.2248 | R40: 33.77397315 | S40: 337.07328 | T40: 0.9941643774 | U40: 190.759147 | V40: 0 | W40: 694.8552145 | X40: 2225.680579 | Y40: 0 | Z40: 0 | AA40: 0 | AB40: 0 | AC40: 0.4970821887 | AD40: 168.53664 | AE40: 38 | AF40: 0 | AG40: =VLOOKUP(AE40,ValidationLists!$M$1:$N$102,2,FALSE) -> 0.3252261524 | AH40: 0 | AI40: 0 | AJ40: 0 | AK40: 0 | AL40: 0 | AM40: 0 | AN40: 0 | AO40: 0 | AP40: 0 | AQ40: =IF(OR(AF40=3,AF40=2,AF40=0),SUMIFS(FlatMaint!$Z$2:$Z$10000,FlatMaint!$A$2:$A$10000,D40,FlatMaint!$Y$2:$Y$10000,AE40)*AG40,0) -> 31.4921857 | AR40: =IF(OR(AF40=3,AF40=2,AF40=0),SUMIFS(FlatRepair!$Z$2:$Z$10000,FlatRepair!$A$2:$A$10000,D40,FlatRepair!$Y$2:$Y$10000,AE40)*AG40,0) -> 0 | AS40: 0 | AT40: 31.4921857 | AU40: 0 | AV40: 0 | AW40: 0 | AX40: 0 | AY40: 0 | AZ40: 31.4921857 | BA40: 0 | BB40: =IF($AF40=3,IF($AF$2=2,(R40/SUMIF(Refurb_Poss_Tbl[Refurbishment Possible],I40,Refurb_Poss_Tbl[%]))*AG40,IF($AF$2=3,(R40*AG40)-AV40,R40*AG40)),0) -> 0 | BC40: =IF(AF40=3,IF($AF$2=2,(S40/SUMIF(Refurb_Poss_Tbl[Refurbishment Possible],I40,Refurb_Poss_Tbl[%]))*AG40,IF($AF$2=3,(S40*AG40)-AX40,S40*AG40)),0) -> 0 | BD40: =IF($AF40=3,IF($AF$2=2,(T40/SUMIF(Refurb_Poss_Tbl[Refurbishment Possible],I40,Refurb_Poss_Tbl[%]))*AG40,T40*$AG40),0) -> 0 | BE40: =IF($AF40=3,IF($AF$2=2,(Q40/SUMIF(Refurb_Poss_Tbl[Refurbishment Possible],I40,Refurb_Poss_Tbl[%]))*AG40,Q40*$AG40),0) -> 0 | BF40: =IF($AF40=3,IF($AF$2=2,(U40/SUMIF(Refurb_Poss_Tbl[Refurbishment Possible],I40,Refurb_Poss_Tbl[%]))*AG40,U40*$AG40),0) -> 0 | BG40: =IF($AF40=3,IF($AF$2=2,(V40/SUMIF(Refurb_Poss_Tbl[Refurbishment Possible],I40,Refurb_Poss_Tbl[%]))*AG40,IF($AF$2=3,(V40*AG40)-AW40,V40*AG40)),0) -> 0 | BH40: =IF($AF40=3,IF($AF$2=2,(W40/SUMIF(Refurb_Poss_Tbl[Refurbishment Possible],I40,Refurb_Poss_Tbl[%]))*AG40,W40*$AG40),0) -> 0
A41: DredEA11 | B41: New channel | C41: Dredging Works | D41: DredEA1133 | E41: New channel-Excavation | F41: Dredging | G41: 120 | H41: 120 | I41: Not Possible | J41: 60 | K41: New Build | L41: 0 | M41: 0 | N41: 0 | O41: 2 | P41: 968.2248 | Q41: 968.2248 | R41: 33.77397315 | S41: 337.07328 | T41: 0.9941643774 | U41: 190.759147 | V41: 0 | W41: 694.8552145 | X41: 2225.680579 | Y41: 0 | Z41: 0 | AA41: 0 | AB41: 0 | AC41: 0.4970821887 | AD41: 168.53664 | AE41: 39 | AF41: 0 | AG41: =VLOOKUP(AE41,ValidationLists!$M$1:$N$102,2,FALSE) -> 0.315753546 | AH41: 0 | AI41: 0 | AJ41: 0 | AK41: 0 | AL41: 0 | AM41: 0 | AN41: 0 | AO41: 0 | AP41: 0 | AQ41: =IF(OR(AF41=3,AF41=2,AF41=0),SUMIFS(FlatMaint!$Z$2:$Z$10000,FlatMaint!$A$2:$A$10000,D41,FlatMaint!$Y$2:$Y$10000,AE41)*AG41,0) -> 0 | AR41: =IF(OR(AF41=3,AF41=2,AF41=0),SUMIFS(FlatRepair!$Z$2:$Z$10000,FlatRepair!$A$2:$A$10000,D41,FlatRepair!$Y$2:$Y$10000,AE41)*AG41,0) -> 0 | AS41: 0 | AT41: 0 | AU41: 0 | AV41: 0 | AW41: 0 | AX41: 0 | AY41: 0 | AZ41: 0 | BA41: 0 | BB41: =IF($AF41=3,IF($AF$2=2,(R41/SUMIF(Refurb_Poss_Tbl[Refurbishment Possible],I41,Refurb_Poss_Tbl[%]))*AG41,IF($AF$2=3,(R41*AG41)-AV41,R41*AG41)),0) -> 0 | BC41: =IF(AF41=3,IF($AF$2=2,(S41/SUMIF(Refurb_Poss_Tbl[Refurbishment Possible],I41,Refurb_Poss_Tbl[%]))*AG41,IF($AF$2=3,(S41*AG41)-AX41,S41*AG41)),0) -> 0 | BD41: =IF($AF41=3,IF($AF$2=2,(T41/SUMIF(Refurb_Poss_Tbl[Refurbishment Possible],I41,Refurb_Poss_Tbl[%]))*AG41,T41*$AG41),0) -> 0 | BE41: =IF($AF41=3,IF($AF$2=2,(Q41/SUMIF(Refurb_Poss_Tbl[Refurbishment Possible],I41,Refurb_Poss_Tbl[%]))*AG41,Q41*$AG41),0) -> 0 | BF41: =IF($AF41=3,IF($AF$2=2,(U41/SUMIF(Refurb_Poss_Tbl[Refurbishment Possible],I41,Refurb_Poss_Tbl[%]))*AG41,U41*$AG41),0) -> 0 | BG41: =IF($AF41=3,IF($AF$2=2,(V41/SUMIF(Refurb_Poss_Tbl[Refurbishment Possible],I41,Refurb_Poss_Tbl[%]))*AG41,IF($AF$2=3,(V41*AG41)-AW41,V41*AG41)),0) -> 0 | BH41: =IF($AF41=3,IF($AF$2=2,(W41/SUMIF(Refurb_Poss_Tbl[Refurbishment Possible],I41,Refurb_Poss_Tbl[%]))*AG41,W41*$AG41),0) -> 0
A42: DredEA11 | B42: New channel | C42: Dredging Works | D42: DredEA1133 | E42: New channel-Excavation | F42: Dredging | G42: 120 | H42: 120 | I42: Not Possible | J42: 60 | K42: New Build | L42: 0 | M42: 0 | N42: 0 | O42: 2 | P42: 968.2248 | Q42: 968.2248 | R42: 33.77397315 | S42: 337.07328 | T42: 0.9941643774 | U42: 190.759147 | V42: 0 | W42: 694.8552145 | X42: 2225.680579 | Y42: 0 | Z42: 0 | AA42: 0 | AB42: 0 | AC42: 0.4970821887 | AD42: 168.53664 | AE42: 40 | AF42: 0 | AG42: =VLOOKUP(AE42,ValidationLists!$M$1:$N$102,2,FALSE) -> 0.3065568408 | AH42: 0 | AI42: 0 | AJ42: 0 | AK42: 0 | AL42: 0 | AM42: 0 | AN42: 0 | AO42: 0 | AP42: 0 | AQ42: =IF(OR(AF42=3,AF42=2,AF42=0),SUMIFS(FlatMaint!$Z$2:$Z$10000,FlatMaint!$A$2:$A$10000,D42,FlatMaint!$Y$2:$Y$10000,AE42)*AG42,0) -> 29.68440541 | AR42: =IF(OR(AF42=3,AF42=2,AF42=0),SUMIFS(FlatRepair!$Z$2:$Z$10000,FlatRepair!$A$2:$A$10000,D42,FlatRepair!$Y$2:$Y$10000,AE42)*AG42,0) -> 0 | AS42: 0 | AT42: 29.68440541 | AU42: 0 | AV42: 0 | AW42: 0 | AX42: 0 | AY42: 0 | AZ42: 29.68440541 | BA42: 0 | BB42: =IF($AF42=3,IF($AF$2=2,(R42/SUMIF(Refurb_Poss_Tbl[Refurbishment Possible],I42,Refurb_Poss_Tbl[%]))*AG42,IF($AF$2=3,(R42*AG42)-AV42,R42*AG42)),0) -> 0 | BC42: =IF(AF42=3,IF($AF$2=2,(S42/SUMIF(Refurb_Poss_Tbl[Refurbishment Possible],I42,Refurb_Poss_Tbl[%]))*AG42,IF($AF$2=3,(S42*AG42)-AX42,S42*AG42)),0) -> 0 | BD42: =IF($AF42=3,IF($AF$2=2,(T42/SUMIF(Refurb_Poss_Tbl[Refurbishment Possible],I42,Refurb_Poss_Tbl[%]))*AG42,T42*$AG42),0) -> 0 | BE42: =IF($AF42=3,IF($AF$2=2,(Q42/SUMIF(Refurb_Poss_Tbl[Refurbishment Possible],I42,Refurb_Poss_Tbl[%]))*AG42,Q42*$AG42),0) -> 0 | BF42: =IF($AF42=3,IF($AF$2=2,(U42/SUMIF(Refurb_Poss_Tbl[Refurbishment Possible],I42,Refurb_Poss_Tbl[%]))*AG42,U42*$AG42),0) -> 0 | BG42: =IF($AF42=3,IF($AF$2=2,(V42/SUMIF(Refurb_Poss_Tbl[Refurbishment Possible],I42,Refurb_Poss_Tbl[%]))*AG42,IF($AF$2=3,(V42*AG42)-AW42,V42*AG42)),0) -> 0 | BH42: =IF($AF42=3,IF($AF$2=2,(W42/SUMIF(Refurb_Poss_Tbl[Refurbishment Possible],I42,Refurb_Poss_Tbl[%]))*AG42,W42*$AG42),0) -> 0
A43: DredEA11 | B43: New channel | C43: Dredging Works | D43: DredEA1133 | E43: New channel-Excavation | F43: Dredging | G43: 120 | H43: 120 | I43: Not Possible | J43: 60 | K43: New Build | L43: 0 | M43: 0 | N43: 0 | O43: 2 | P43: 968.2248 | Q43: 968.2248 | R43: 33.77397315 | S43: 337.07328 | T43: 0.9941643774 | U43: 190.759147 | V43: 0 | W43: 694.8552145 | X43: 2225.680579 | Y43: 0 | Z43: 0 | AA43: 0 | AB43: 0 | AC43: 0.4970821887 | AD43: 168.53664 | AE43: 41 | AF43: 0 | AG43: =VLOOKUP(AE43,ValidationLists!$M$1:$N$102,2,FALSE) -> 0.2976280008 | AH43: 0 | AI43: 0 | AJ43: 0 | AK43: 0 | AL43: 0 | AM43: 0 | AN43: 0 | AO43: 0 | AP43: 0 | AQ43: =IF(OR(AF43=3,AF43=2,AF43=0),SUMIFS(FlatMaint!$Z$2:$Z$10000,FlatMaint!$A$2:$A$10000,D43,FlatMaint!$Y$2:$Y$10000,AE43)*AG43,0) -> 0 | AR43: =IF(OR(AF43=3,AF43=2,AF43=0),SUMIFS(FlatRepair!$Z$2:$Z$10000,FlatRepair!$A$2:$A$10000,D43,FlatRepair!$Y$2:$Y$10000,AE43)*AG43,0) -> 0 | AS43: 0 | AT43: 0 | AU43: 0 | AV43: 0 | AW43: 0 | AX43: 0 | AY43: 0 | AZ43: 0 | BA43: 0 | BB43: =IF($AF43=3,IF($AF$2=2,(R43/SUMIF(Refurb_Poss_Tbl[Refurbishment Possible],I43,Refurb_Poss_Tbl[%]))*AG43,IF($AF$2=3,(R43*AG43)-AV43,R43*AG43)),0) -> 0 | BC43: =IF(AF43=3,IF($AF$2=2,(S43/SUMIF(Refurb_Poss_Tbl[Refurbishment Possible],I43,Refurb_Poss_Tbl[%]))*AG43,IF($AF$2=3,(S43*AG43)-AX43,S43*AG43)),0) -> 0 | BD43: =IF($AF43=3,IF($AF$2=2,(T43/SUMIF(Refurb_Poss_Tbl[Refurbishment Possible],I43,Refurb_Poss_Tbl[%]))*AG43,T43*$AG43),0) -> 0 | BE43: =IF($AF43=3,IF($AF$2=2,(Q43/SUMIF(Refurb_Poss_Tbl[Refurbishment Possible],I43,Refurb_Poss_Tbl[%]))*AG43,Q43*$AG43),0) -> 0 | BF43: =IF($AF43=3,IF($AF$2=2,(U43/SUMIF(Refurb_Poss_Tbl[Refurbishment Possible],I43,Refurb_Poss_Tbl[%]))*AG43,U43*$AG43),0) -> 0 | BG43: =IF($AF43=3,IF($AF$2=2,(V43/SUMIF(Refurb_Poss_Tbl[Refurbishment Possible],I43,Refurb_Poss_Tbl[%]))*AG43,IF($AF$2=3,(V43*AG43)-AW43,V43*AG43)),0) -> 0 | BH43: =IF($AF43=3,IF($AF$2=2,(W43/SUMIF(Refurb_Poss_Tbl[Refurbishment Possible],I43,Refurb_Poss_Tbl[%]))*AG43,W43*$AG43),0) -> 0
A44: DredEA11 | B44: New channel | C44: Dredging Works | D44: DredEA1133 | E44: New channel-Excavation | F44: Dredging | G44: 120 | H44: 120 | I44: Not Possible | J44: 60 | K44: New Build | L44: 0 | M44: 0 | N44: 0 | O44: 2 | P44: 968.2248 | Q44: 968.2248 | R44: 33.77397315 | S44: 337.07328 | T44: 0.9941643774 | U44: 190.759147 | V44: 0 | W44: 694.8552145 | X44: 2225.680579 | Y44: 0 | Z44: 0 | AA44: 0 | AB44: 0 | AC44: 0.4970821887 | AD44: 168.53664 | AE44: 42 | AF44: 0 | AG44: =VLOOKUP(AE44,ValidationLists!$M$1:$N$102,2,FALSE) -> 0.288959224 | AH44: 0 | AI44: 0 | AJ44: 0 | AK44: 0 | AL44: 0 | AM44: 0 | AN44: 0 | AO44: 0 | AP44: 0 | AQ44: =IF(OR(AF44=3,AF44=2,AF44=0),SUMIFS(FlatMaint!$Z$2:$Z$10000,FlatMaint!$A$2:$A$10000,D44,FlatMaint!$Y$2:$Y$10000,AE44)*AG44,0) -> 27.98039911 | AR44: =IF(OR(AF44=3,AF44=2,AF44=0),SUMIFS(FlatRepair!$Z$2:$Z$10000,FlatRepair!$A$2:$A$10000,D44,FlatRepair!$Y$2:$Y$10000,AE44)*AG44,0) -> 0 | AS44: 0 | AT44: 27.98039911 | AU44: 0 | AV44: 0 | AW44: 0 | AX44: 0 | AY44: 0 | AZ44: 27.98039911 | BA44: 0 | BB44: =IF($AF44=3,IF($AF$2=2,(R44/SUMIF(Refurb_Poss_Tbl[Refurbishment Possible],I44,Refurb_Poss_Tbl[%]))*AG44,IF($AF$2=3,(R44*AG44)-AV44,R44*AG44)),0) -> 0 | BC44: =IF(AF44=3,IF($AF$2=2,(S44/SUMIF(Refurb_Poss_Tbl[Refurbishment Possible],I44,Refurb_Poss_Tbl[%]))*AG44,IF($AF$2=3,(S44*AG44)-AX44,S44*AG44)),0) -> 0 | BD44: =IF($AF44=3,IF($AF$2=2,(T44/SUMIF(Refurb_Poss_Tbl[Refurbishment Possible],I44,Refurb_Poss_Tbl[%]))*AG44,T44*$AG44),0) -> 0 | BE44: =IF($AF44=3,IF($AF$2=2,(Q44/SUMIF(Refurb_Poss_Tbl[Refurbishment Possible],I44,Refurb_Poss_Tbl[%]))*AG44,Q44*$AG44),0) -> 0 | BF44: =IF($AF44=3,IF($AF$2=2,(U44/SUMIF(Refurb_Poss_Tbl[Refurbishment Possible],I44,Refurb_Poss_Tbl[%]))*AG44,U44*$AG44),0) -> 0 | BG44: =IF($AF44=3,IF($AF$2=2,(V44/SUMIF(Refurb_Poss_Tbl[Refurbishment Possible],I44,Refurb_Poss_Tbl[%]))*AG44,IF($AF$2=3,(V44*AG44)-AW44,V44*AG44)),0) -> 0 | BH44: =IF($AF44=3,IF($AF$2=2,(W44/SUMIF(Refurb_Poss_Tbl[Refurbishment Possible],I44,Refurb_Poss_Tbl[%]))*AG44,W44*$AG44),0) -> 0
A45: DredEA11 | B45: New channel | C45: Dredging Works | D45: DredEA1133 | E45: New channel-Excavation | F45: Dredging | G45: 120 | H45: 120 | I45: Not Possible | J45: 60 | K45: New Build | L45: 0 | M45: 0 | N45: 0 | O45: 2 | P45: 968.2248 | Q45: 968.2248 | R45: 33.77397315 | S45: 337.07328 | T45: 0.9941643774 | U45: 190.759147 | V45: 0 | W45: 694.8552145 | X45: 2225.680579 | Y45: 0 | Z45: 0 | AA45: 0 | AB45: 0 | AC45: 0.4970821887 | AD45: 168.53664 | AE45: 43 | AF45: 0 | AG45: =VLOOKUP(AE45,ValidationLists!$M$1:$N$102,2,FALSE) -> 0.280542936 | AH45: 0 | AI45: 0 | AJ45: 0 | AK45: 0 | AL45: 0 | AM45: 0 | AN45: 0 | AO45: 0 | AP45: 0 | AQ45: =IF(OR(AF45=3,AF45=2,AF45=0),SUMIFS(FlatMaint!$Z$2:$Z$10000,FlatMaint!$A$2:$A$10000,D45,FlatMaint!$Y$2:$Y$10000,AE45)*AG45,0) -> 0 | AR45: =IF(OR(AF45=3,AF45=2,AF45=0),SUMIFS(FlatRepair!$Z$2:$Z$10000,FlatRepair!$A$2:$A$10000,D45,FlatRepair!$Y$2:$Y$10000,AE45)*AG45,0) -> 0 | AS45: 0 | AT45: 0 | AU45: 0 | AV45: 0 | AW45: 0 | AX45: 0 | AY45: 0 | AZ45: 0 | BA45: 0 | BB45: =IF($AF45=3,IF($AF$2=2,(R45/SUMIF(Refurb_Poss_Tbl[Refurbishment Possible],I45,Refurb_Poss_Tbl[%]))*AG45,IF($AF$2=3,(R45*AG45)-AV45,R45*AG45)),0) -> 0 | BC45: =IF(AF45=3,IF($AF$2=2,(S45/SUMIF(Refurb_Poss_Tbl[Refurbishment Possible],I45,Refurb_Poss_Tbl[%]))*AG45,IF($AF$2=3,(S45*AG45)-AX45,S45*AG45)),0) -> 0 | BD45: =IF($AF45=3,IF($AF$2=2,(T45/SUMIF(Refurb_Poss_Tbl[Refurbishment Possible],I45,Refurb_Poss_Tbl[%]))*AG45,T45*$AG45),0) -> 0 | BE45: =IF($AF45=3,IF($AF$2=2,(Q45/SUMIF(Refurb_Poss_Tbl[Refurbishment Possible],I45,Refurb_Poss_Tbl[%]))*AG45,Q45*$AG45),0) -> 0 | BF45: =IF($AF45=3,IF($AF$2=2,(U45/SUMIF(Refurb_Poss_Tbl[Refurbishment Possible],I45,Refurb_Poss_Tbl[%]))*AG45,U45*$AG45),0) -> 0 | BG45: =IF($AF45=3,IF($AF$2=2,(V45/SUMIF(Refurb_Poss_Tbl[Refurbishment Possible],I45,Refurb_Poss_Tbl[%]))*AG45,IF($AF$2=3,(V45*AG45)-AW45,V45*AG45)),0) -> 0 | BH45: =IF($AF45=3,IF($AF$2=2,(W45/SUMIF(Refurb_Poss_Tbl[Refurbishment Possible],I45,Refurb_Poss_Tbl[%]))*AG45,W45*$AG45),0) -> 0
A46: DredEA11 | B46: New channel | C46: Dredging Works | D46: DredEA1133 | E46: New channel-Excavation | F46: Dredging | G46: 120 | H46: 120 | I46: Not Possible | J46: 60 | K46: New Build | L46: 0 | M46: 0 | N46: 0 | O46: 2 | P46: 968.2248 | Q46: 968.2248 | R46: 33.77397315 | S46: 337.07328 | T46: 0.9941643774 | U46: 190.759147 | V46: 0 | W46: 694.8552145 | X46: 2225.680579 | Y46: 0 | Z46: 0 | AA46: 0 | AB46: 0 | AC46: 0.4970821887 | AD46: 168.53664 | AE46: 44 | AF46: 0 | AG46: =VLOOKUP(AE46,ValidationLists!$M$1:$N$102,2,FALSE) -> 0.2723717825 | AH46: 0 | AI46: 0 | AJ46: 0 | AK46: 0 | AL46: 0 | AM46: 0 | AN46: 0 | AO46: 0 | AP46: 0 | AQ46: =IF(OR(AF46=3,AF46=2,AF46=0),SUMIFS(FlatMaint!$Z$2:$Z$10000,FlatMaint!$A$2:$A$10000,D46,FlatMaint!$Y$2:$Y$10000,AE46)*AG46,0) -> 26.37420974 | AR46: =IF(OR(AF46=3,AF46=2,AF46=0),SUMIFS(FlatRepair!$Z$2:$Z$10000,FlatRepair!$A$2:$A$10000,D46,FlatRepair!$Y$2:$Y$10000,AE46)*AG46,0) -> 0 | AS46: 0 | AT46: 26.37420974 | AU46: 0 | AV46: 0 | AW46: 0 | AX46: 0 | AY46: 0 | AZ46: 26.37420974 | BA46: 0 | BB46: =IF($AF46=3,IF($AF$2=2,(R46/SUMIF(Refurb_Poss_Tbl[Refurbishment Possible],I46,Refurb_Poss_Tbl[%]))*AG46,IF($AF$2=3,(R46*AG46)-AV46,R46*AG46)),0) -> 0 | BC46: =IF(AF46=3,IF($AF$2=2,(S46/SUMIF(Refurb_Poss_Tbl[Refurbishment Possible],I46,Refurb_Poss_Tbl[%]))*AG46,IF($AF$2=3,(S46*AG46)-AX46,S46*AG46)),0) -> 0 | BD46: =IF($AF46=3,IF($AF$2=2,(T46/SUMIF(Refurb_Poss_Tbl[Refurbishment Possible],I46,Refurb_Poss_Tbl[%]))*AG46,T46*$AG46),0) -> 0 | BE46: =IF($AF46=3,IF($AF$2=2,(Q46/SUMIF(Refurb_Poss_Tbl[Refurbishment Possible],I46,Refurb_Poss_Tbl[%]))*AG46,Q46*$AG46),0) -> 0 | BF46: =IF($AF46=3,IF($AF$2=2,(U46/SUMIF(Refurb_Poss_Tbl[Refurbishment Possible],I46,Refurb_Poss_Tbl[%]))*AG46,U46*$AG46),0) -> 0 | BG46: =IF($AF46=3,IF($AF$2=2,(V46/SUMIF(Refurb_Poss_Tbl[Refurbishment Possible],I46,Refurb_Poss_Tbl[%]))*AG46,IF($AF$2=3,(V46*AG46)-AW46,V46*AG46)),0) -> 0 | BH46: =IF($AF46=3,IF($AF$2=2,(W46/SUMIF(Refurb_Poss_Tbl[Refurbishment Possible],I46,Refurb_Poss_Tbl[%]))*AG46,W46*$AG46),0) -> 0
A47: DredEA11 | B47: New channel | C47: Dredging Works | D47: DredEA1133 | E47: New channel-Excavation | F47: Dredging | G47: 120 | H47: 120 | I47: Not Possible | J47: 60 | K47: New Build | L47: 0 | M47: 0 | N47: 0 | O47: 2 | P47: 968.2248 | Q47: 968.2248 | R47: 33.77397315 | S47: 337.07328 | T47: 0.9941643774 | U47: 190.759147 | V47: 0 | W47: 694.8552145 | X47: 2225.680579 | Y47: 0 | Z47: 0 | AA47: 0 | AB47: 0 | AC47: 0.4970821887 | AD47: 168.53664 | AE47: 45 | AF47: 0 | AG47: =VLOOKUP(AE47,ValidationLists!$M$1:$N$102,2,FALSE) -> 0.2644386238 | AH47: 0 | AI47: 0 | AJ47: 0 | AK47: 0 | AL47: 0 | AM47: 0 | AN47: 0 | AO47: 0 | AP47: 0 | AQ47: =IF(OR(AF47=3,AF47=2,AF47=0),SUMIFS(FlatMaint!$Z$2:$Z$10000,FlatMaint!$A$2:$A$10000,D47,FlatMaint!$Y$2:$Y$10000,AE47)*AG47,0) -> 0 | AR47: =IF(OR(AF47=3,AF47=2,AF47=0),SUMIFS(FlatRepair!$Z$2:$Z$10000,FlatRepair!$A$2:$A$10000,D47,FlatRepair!$Y$2:$Y$10000,AE47)*AG47,0) -> 0 | AS47: 0 | AT47: 0 | AU47: 0 | AV47: 0 | AW47: 0 | AX47: 0 | AY47: 0 | AZ47: 0 | BA47: 0 | BB47: =IF($AF47=3,IF($AF$2=2,(R47/SUMIF(Refurb_Poss_Tbl[Refurbishment Possible],I47,Refurb_Poss_Tbl[%]))*AG47,IF($AF$2=3,(R47*AG47)-AV47,R47*AG47)),0) -> 0 | BC47: =IF(AF47=3,IF($AF$2=2,(S47/SUMIF(Refurb_Poss_Tbl[Refurbishment Possible],I47,Refurb_Poss_Tbl[%]))*AG47,IF($AF$2=3,(S47*AG47)-AX47,S47*AG47)),0) -> 0 | BD47: =IF($AF47=3,IF($AF$2=2,(T47/SUMIF(Refurb_Poss_Tbl[Refurbishment Possible],I47,Refurb_Poss_Tbl[%]))*AG47,T47*$AG47),0) -> 0 | BE47: =IF($AF47=3,IF($AF$2=2,(Q47/SUMIF(Refurb_Poss_Tbl[Refurbishment Possible],I47,Refurb_Poss_Tbl[%]))*AG47,Q47*$AG47),0) -> 0 | BF47: =IF($AF47=3,IF($AF$2=2,(U47/SUMIF(Refurb_Poss_Tbl[Refurbishment Possible],I47,Refurb_Poss_Tbl[%]))*AG47,U47*$AG47),0) -> 0 | BG47: =IF($AF47=3,IF($AF$2=2,(V47/SUMIF(Refurb_Poss_Tbl[Refurbishment Possible],I47,Refurb_Poss_Tbl[%]))*AG47,IF($AF$2=3,(V47*AG47)-AW47,V47*AG47)),0) -> 0 | BH47: =IF($AF47=3,IF($AF$2=2,(W47/SUMIF(Refurb_Poss_Tbl[Refurbishment Possible],I47,Refurb_Poss_Tbl[%]))*AG47,W47*$AG47),0) -> 0
A48: DredEA11 | B48: New channel | C48: Dredging Works | D48: DredEA1133 | E48: New channel-Excavation | F48: Dredging | G48: 120 | H48: 120 | I48: Not Possible | J48: 60 | K48: New Build | L48: 0 | M48: 0 | N48: 0 | O48: 2 | P48: 968.2248 | Q48: 968.2248 | R48: 33.77397315 | S48: 337.07328 | T48: 0.9941643774 | U48: 190.759147 | V48: 0 | W48: 694.8552145 | X48: 2225.680579 | Y48: 0 | Z48: 0 | AA48: 0 | AB48: 0 | AC48: 0.4970821887 | AD48: 168.53664 | AE48: 46 | AF48: 0 | AG48: =VLOOKUP(AE48,ValidationLists!$M$1:$N$102,2,FALSE) -> 0.2567365279 | AH48: 0 | AI48: 0 | AJ48: 0 | AK48: 0 | AL48: 0 | AM48: 0 | AN48: 0 | AO48: 0 | AP48: 0 | AQ48: =IF(OR(AF48=3,AF48=2,AF48=0),SUMIFS(FlatMaint!$Z$2:$Z$10000,FlatMaint!$A$2:$A$10000,D48,FlatMaint!$Y$2:$Y$10000,AE48)*AG48,0) -> 24.8602222 | AR48: =IF(OR(AF48=3,AF48=2,AF48=0),SUMIFS(FlatRepair!$Z$2:$Z$10000,FlatRepair!$A$2:$A$10000,D48,FlatRepair!$Y$2:$Y$10000,AE48)*AG48,0) -> 0 | AS48: 0 | AT48: 24.8602222 | AU48: 0 | AV48: 0 | AW48: 0 | AX48: 0 | AY48: 0 | AZ48: 24.8602222 | BA48: 0 | BB48: =IF($AF48=3,IF($AF$2=2,(R48/SUMIF(Refurb_Poss_Tbl[Refurbishment Possible],I48,Refurb_Poss_Tbl[%]))*AG48,IF($AF$2=3,(R48*AG48)-AV48,R48*AG48)),0) -> 0 | BC48: =IF(AF48=3,IF($AF$2=2,(S48/SUMIF(Refurb_Poss_Tbl[Refurbishment Possible],I48,Refurb_Poss_Tbl[%]))*AG48,IF($AF$2=3,(S48*AG48)-AX48,S48*AG48)),0) -> 0 | BD48: =IF($AF48=3,IF($AF$2=2,(T48/SUMIF(Refurb_Poss_Tbl[Refurbishment Possible],I48,Refurb_Poss_Tbl[%]))*AG48,T48*$AG48),0) -> 0 | BE48: =IF($AF48=3,IF($AF$2=2,(Q48/SUMIF(Refurb_Poss_Tbl[Refurbishment Possible],I48,Refurb_Poss_Tbl[%]))*AG48,Q48*$AG48),0) -> 0 | BF48: =IF($AF48=3,IF($AF$2=2,(U48/SUMIF(Refurb_Poss_Tbl[Refurbishment Possible],I48,Refurb_Poss_Tbl[%]))*AG48,U48*$AG48),0) -> 0 | BG48: =IF($AF48=3,IF($AF$2=2,(V48/SUMIF(Refurb_Poss_Tbl[Refurbishment Possible],I48,Refurb_Poss_Tbl[%]))*AG48,IF($AF$2=3,(V48*AG48)-AW48,V48*AG48)),0) -> 0 | BH48: =IF($AF48=3,IF($AF$2=2,(W48/SUMIF(Refurb_Poss_Tbl[Refurbishment Possible],I48,Refurb_Poss_Tbl[%]))*AG48,W48*$AG48),0) -> 0
A49: DredEA11 | B49: New channel | C49: Dredging Works | D49: DredEA1133 | E49: New channel-Excavation | F49: Dredging | G49: 120 | H49: 120 | I49: Not Possible | J49: 60 | K49: New Build | L49: 0 | M49: 0 | N49: 0 | O49: 2 | P49: 968.2248 | Q49: 968.2248 | R49: 33.77397315 | S49: 337.07328 | T49: 0.9941643774 | U49: 190.759147 | V49: 0 | W49: 694.8552145 | X49: 2225.680579 | Y49: 0 | Z49: 0 | AA49: 0 | AB49: 0 | AC49: 0.4970821887 | AD49: 168.53664 | AE49: 47 | AF49: 0 | AG49: =VLOOKUP(AE49,ValidationLists!$M$1:$N$102,2,FALSE) -> 0.249258765 | AH49: 0 | AI49: 0 | AJ49: 0 | AK49: 0 | AL49: 0 | AM49: 0 | AN49: 0 | AO49: 0 | AP49: 0 | AQ49: =IF(OR(AF49=3,AF49=2,AF49=0),SUMIFS(FlatMaint!$Z$2:$Z$10000,FlatMaint!$A$2:$A$10000,D49,FlatMaint!$Y$2:$Y$10000,AE49)*AG49,0) -> 0 | AR49: =IF(OR(AF49=3,AF49=2,AF49=0),SUMIFS(FlatRepair!$Z$2:$Z$10000,FlatRepair!$A$2:$A$10000,D49,FlatRepair!$Y$2:$Y$10000,AE49)*AG49,0) -> 0 | AS49: 0 | AT49: 0 | AU49: 0 | AV49: 0 | AW49: 0 | AX49: 0 | AY49: 0 | AZ49: 0 | BA49: 0 | BB49: =IF($AF49=3,IF($AF$2=2,(R49/SUMIF(Refurb_Poss_Tbl[Refurbishment Possible],I49,Refurb_Poss_Tbl[%]))*AG49,IF($AF$2=3,(R49*AG49)-AV49,R49*AG49)),0) -> 0 | BC49: =IF(AF49=3,IF($AF$2=2,(S49/SUMIF(Refurb_Poss_Tbl[Refurbishment Possible],I49,Refurb_Poss_Tbl[%]))*AG49,IF($AF$2=3,(S49*AG49)-AX49,S49*AG49)),0) -> 0 | BD49: =IF($AF49=3,IF($AF$2=2,(T49/SUMIF(Refurb_Poss_Tbl[Refurbishment Possible],I49,Refurb_Poss_Tbl[%]))*AG49,T49*$AG49),0) -> 0 | BE49: =IF($AF49=3,IF($AF$2=2,(Q49/SUMIF(Refurb_Poss_Tbl[Refurbishment Possible],I49,Refurb_Poss_Tbl[%]))*AG49,Q49*$AG49),0) -> 0 | BF49: =IF($AF49=3,IF($AF$2=2,(U49/SUMIF(Refurb_Poss_Tbl[Refurbishment Possible],I49,Refurb_Poss_Tbl[%]))*AG49,U49*$AG49),0) -> 0 | BG49: =IF($AF49=3,IF($AF$2=2,(V49/SUMIF(Refurb_Poss_Tbl[Refurbishment Possible],I49,Refurb_Poss_Tbl[%]))*AG49,IF($AF$2=3,(V49*AG49)-AW49,V49*AG49)),0) -> 0 | BH49: =IF($AF49=3,IF($AF$2=2,(W49/SUMIF(Refurb_Poss_Tbl[Refurbishment Possible],I49,Refurb_Poss_Tbl[%]))*AG49,W49*$AG49),0) -> 0
A50: DredEA11 | B50: New channel | C50: Dredging Works | D50: DredEA1133 | E50: New channel-Excavation | F50: Dredging | G50: 120 | H50: 120 | I50: Not Possible | J50: 60 | K50: New Build | L50: 0 | M50: 0 | N50: 0 | O50: 2 | P50: 968.2248 | Q50: 968.2248 | R50: 33.77397315 | S50: 337.07328 | T50: 0.9941643774 | U50: 190.759147 | V50: 0 | W50: 694.8552145 | X50: 2225.680579 | Y50: 0 | Z50: 0 | AA50: 0 | AB50: 0 | AC50: 0.4970821887 | AD50: 168.53664 | AE50: 48 | AF50: 0 | AG50: =VLOOKUP(AE50,ValidationLists!$M$1:$N$102,2,FALSE) -> 0.2419988009 | AH50: 0 | AI50: 0 | AJ50: 0 | AK50: 0 | AL50: 0 | AM50: 0 | AN50: 0 | AO50: 0 | AP50: 0 | AQ50: =IF(OR(AF50=3,AF50=2,AF50=0),SUMIFS(FlatMaint!$Z$2:$Z$10000,FlatMaint!$A$2:$A$10000,D50,FlatMaint!$Y$2:$Y$10000,AE50)*AG50,0) -> 23.43314375 | AR50: =IF(OR(AF50=3,AF50=2,AF50=0),SUMIFS(FlatRepair!$Z$2:$Z$10000,FlatRepair!$A$2:$A$10000,D50,FlatRepair!$Y$2:$Y$10000,AE50)*AG50,0) -> 0 | AS50: 0 | AT50: 23.43314375 | AU50: 0 | AV50: 0 | AW50: 0 | AX50: 0 | AY50: 0 | AZ50: 23.43314375 | BA50: 0 | BB50: =IF($AF50=3,IF($AF$2=2,(R50/SUMIF(Refurb_Poss_Tbl[Refurbishment Possible],I50,Refurb_Poss_Tbl[%]))*AG50,IF($AF$2=3,(R50*AG50)-AV50,R50*AG50)),0) -> 0 | BC50: =IF(AF50=3,IF($AF$2=2,(S50/SUMIF(Refurb_Poss_Tbl[Refurbishment Possible],I50,Refurb_Poss_Tbl[%]))*AG50,IF($AF$2=3,(S50*AG50)-AX50,S50*AG50)),0) -> 0 | BD50: =IF($AF50=3,IF($AF$2=2,(T50/SUMIF(Refurb_Poss_Tbl[Refurbishment Possible],I50,Refurb_Poss_Tbl[%]))*AG50,T50*$AG50),0) -> 0 | BE50: =IF($AF50=3,IF($AF$2=2,(Q50/SUMIF(Refurb_Poss_Tbl[Refurbishment Possible],I50,Refurb_Poss_Tbl[%]))*AG50,Q50*$AG50),0) -> 0 | BF50: =IF($AF50=3,IF($AF$2=2,(U50/SUMIF(Refurb_Poss_Tbl[Refurbishment Possible],I50,Refurb_Poss_Tbl[%]))*AG50,U50*$AG50),0) -> 0 | BG50: =IF($AF50=3,IF($AF$2=2,(V50/SUMIF(Refurb_Poss_Tbl[Refurbishment Possible],I50,Refurb_Poss_Tbl[%]))*AG50,IF($AF$2=3,(V50*AG50)-AW50,V50*AG50)),0) -> 0 | BH50: =IF($AF50=3,IF($AF$2=2,(W50/SUMIF(Refurb_Poss_Tbl[Refurbishment Possible],I50,Refurb_Poss_Tbl[%]))*AG50,W50*$AG50),0) -> 0
A51: DredEA11 | B51: New channel | C51: Dredging Works | D51: DredEA1133 | E51: New channel-Excavation | F51: Dredging | G51: 120 | H51: 120 | I51: Not Possible | J51: 60 | K51: New Build | L51: 0 | M51: 0 | N51: 0 | O51: 2 | P51: 968.2248 | Q51: 968.2248 | R51: 33.77397315 | S51: 337.07328 | T51: 0.9941643774 | U51: 190.759147 | V51: 0 | W51: 694.8552145 | X51: 2225.680579 | Y51: 0 | Z51: 0 | AA51: 0 | AB51: 0 | AC51: 0.4970821887 | AD51: 168.53664 | AE51: 49 | AF51: 0 | AG51: =VLOOKUP(AE51,ValidationLists!$M$1:$N$102,2,FALSE) -> 0.2349502922 | AH51: 0 | AI51: 0 | AJ51: 0 | AK51: 0 | AL51: 0 | AM51: 0 | AN51: 0 | AO51: 0 | AP51: 0 | AQ51: =IF(OR(AF51=3,AF51=2,AF51=0),SUMIFS(FlatMaint!$Z$2:$Z$10000,FlatMaint!$A$2:$A$10000,D51,FlatMaint!$Y$2:$Y$10000,AE51)*AG51,0) -> 0 | AR51: =IF(OR(AF51=3,AF51=2,AF51=0),SUMIFS(FlatRepair!$Z$2:$Z$10000,FlatRepair!$A$2:$A$10000,D51,FlatRepair!$Y$2:$Y$10000,AE51)*AG51,0) -> 0 | AS51: 0 | AT51: 0 | AU51: 0 | AV51: 0 | AW51: 0 | AX51: 0 | AY51: 0 | AZ51: 0 | BA51: 0 | BB51: =IF($AF51=3,IF($AF$2=2,(R51/SUMIF(Refurb_Poss_Tbl[Refurbishment Possible],I51,Refurb_Poss_Tbl[%]))*AG51,IF($AF$2=3,(R51*AG51)-AV51,R51*AG51)),0) -> 0 | BC51: =IF(AF51=3,IF($AF$2=2,(S51/SUMIF(Refurb_Poss_Tbl[Refurbishment Possible],I51,Refurb_Poss_Tbl[%]))*AG51,IF($AF$2=3,(S51*AG51)-AX51,S51*AG51)),0) -> 0 | BD51: =IF($AF51=3,IF($AF$2=2,(T51/SUMIF(Refurb_Poss_Tbl[Refurbishment Possible],I51,Refurb_Poss_Tbl[%]))*AG51,T51*$AG51),0) -> 0 | BE51: =IF($AF51=3,IF($AF$2=2,(Q51/SUMIF(Refurb_Poss_Tbl[Refurbishment Possible],I51,Refurb_Poss_Tbl[%]))*AG51,Q51*$AG51),0) -> 0 | BF51: =IF($AF51=3,IF($AF$2=2,(U51/SUMIF(Refurb_Poss_Tbl[Refurbishment Possible],I51,Refurb_Poss_Tbl[%]))*AG51,U51*$AG51),0) -> 0 | BG51: =IF($AF51=3,IF($AF$2=2,(V51/SUMIF(Refurb_Poss_Tbl[Refurbishment Possible],I51,Refurb_Poss_Tbl[%]))*AG51,IF($AF$2=3,(V51*AG51)-AW51,V51*AG51)),0) -> 0 | BH51: =IF($AF51=3,IF($AF$2=2,(W51/SUMIF(Refurb_Poss_Tbl[Refurbishment Possible],I51,Refurb_Poss_Tbl[%]))*AG51,W51*$AG51),0) -> 0
A52: DredEA11 | B52: New channel | C52: Dredging Works | D52: DredEA1133 | E52: New channel-Excavation | F52: Dredging | G52: 120 | H52: 120 | I52: Not Possible | J52: 60 | K52: New Build | L52: 0 | M52: 0 | N52: 0 | O52: 2 | P52: 968.2248 | Q52: 968.2248 | R52: 33.77397315 | S52: 337.07328 | T52: 0.9941643774 | U52: 190.759147 | V52: 0 | W52: 694.8552145 | X52: 2225.680579 | Y52: 0 | Z52: 0 | AA52: 0 | AB52: 0 | AC52: 0.4970821887 | AD52: 168.53664 | AE52: 50 | AF52: 0 | AG52: =VLOOKUP(AE52,ValidationLists!$M$1:$N$102,2,FALSE) -> 0.2281070798 | AH52: 0 | AI52: 0 | AJ52: 0 | AK52: 0 | AL52: 0 | AM52: 0 | AN52: 0 | AO52: 0 | AP52: 0 | AQ52: =IF(OR(AF52=3,AF52=2,AF52=0),SUMIFS(FlatMaint!$Z$2:$Z$10000,FlatMaint!$A$2:$A$10000,D52,FlatMaint!$Y$2:$Y$10000,AE52)*AG52,0) -> 22.08798544 | AR52: =IF(OR(AF52=3,AF52=2,AF52=0),SUMIFS(FlatRepair!$Z$2:$Z$10000,FlatRepair!$A$2:$A$10000,D52,FlatRepair!$Y$2:$Y$10000,AE52)*AG52,0) -> 0 | AS52: 0 | AT52: 22.08798544 | AU52: 0 | AV52: 0 | AW52: 0 | AX52: 0 | AY52: 0 | AZ52: 22.08798544 | BA52: 0 | BB52: =IF($AF52=3,IF($AF$2=2,(R52/SUMIF(Refurb_Poss_Tbl[Refurbishment Possible],I52,Refurb_Poss_Tbl[%]))*AG52,IF($AF$2=3,(R52*AG52)-AV52,R52*AG52)),0) -> 0 | BC52: =IF(AF52=3,IF($AF$2=2,(S52/SUMIF(Refurb_Poss_Tbl[Refurbishment Possible],I52,Refurb_Poss_Tbl[%]))*AG52,IF($AF$2=3,(S52*AG52)-AX52,S52*AG52)),0) -> 0 | BD52: =IF($AF52=3,IF($AF$2=2,(T52/SUMIF(Refurb_Poss_Tbl[Refurbishment Possible],I52,Refurb_Poss_Tbl[%]))*AG52,T52*$AG52),0) -> 0 | BE52: =IF($AF52=3,IF($AF$2=2,(Q52/SUMIF(Refurb_Poss_Tbl[Refurbishment Possible],I52,Refurb_Poss_Tbl[%]))*AG52,Q52*$AG52),0) -> 0 | BF52: =IF($AF52=3,IF($AF$2=2,(U52/SUMIF(Refurb_Poss_Tbl[Refurbishment Possible],I52,Refurb_Poss_Tbl[%]))*AG52,U52*$AG52),0) -> 0 | BG52: =IF($AF52=3,IF($AF$2=2,(V52/SUMIF(Refurb_Poss_Tbl[Refurbishment Possible],I52,Refurb_Poss_Tbl[%]))*AG52,IF($AF$2=3,(V52*AG52)-AW52,V52*AG52)),0) -> 0 | BH52: =IF($AF52=3,IF($AF$2=2,(W52/SUMIF(Refurb_Poss_Tbl[Refurbishment Possible],I52,Refurb_Poss_Tbl[%]))*AG52,W52*$AG52),0) -> 0
A53: DredEA11 | B53: New channel | C53: Dredging Works | D53: DredEA1133 | E53: New channel-Excavation | F53: Dredging | G53: 120 | H53: 120 | I53: Not Possible | J53: 60 | K53: New Build | L53: 0 | M53: 0 | N53: 0 | O53: 2 | P53: 968.2248 | Q53: 968.2248 | R53: 33.77397315 | S53: 337.07328 | T53: 0.9941643774 | U53: 190.759147 | V53: 0 | W53: 694.8552145 | X53: 2225.680579 | Y53: 0 | Z53: 0 | AA53: 0 | AB53: 0 | AC53: 0.4970821887 | AD53: 168.53664 | AE53: 51 | AF53: 0 | AG53: =VLOOKUP(AE53,ValidationLists!$M$1:$N$102,2,FALSE) -> 0.2214631843 | AH53: 0 | AI53: 0 | AJ53: 0 | AK53: 0 | AL53: 0 | AM53: 0 | AN53: 0 | AO53: 0 | AP53: 0 | AQ53: =IF(OR(AF53=3,AF53=2,AF53=0),SUMIFS(FlatMaint!$Z$2:$Z$10000,FlatMaint!$A$2:$A$10000,D53,FlatMaint!$Y$2:$Y$10000,AE53)*AG53,0) -> 0 | AR53: =IF(OR(AF53=3,AF53=2,AF53=0),SUMIFS(FlatRepair!$Z$2:$Z$10000,FlatRepair!$A$2:$A$10000,D53,FlatRepair!$Y$2:$Y$10000,AE53)*AG53,0) -> 0 | AS53: 0 | AT53: 0 | AU53: 0 | AV53: 0 | AW53: 0 | AX53: 0 | AY53: 0 | AZ53: 0 | BA53: 0 | BB53: =IF($AF53=3,IF($AF$2=2,(R53/SUMIF(Refurb_Poss_Tbl[Refurbishment Possible],I53,Refurb_Poss_Tbl[%]))*AG53,IF($AF$2=3,(R53*AG53)-AV53,R53*AG53)),0) -> 0 | BC53: =IF(AF53=3,IF($AF$2=2,(S53/SUMIF(Refurb_Poss_Tbl[Refurbishment Possible],I53,Refurb_Poss_Tbl[%]))*AG53,IF($AF$2=3,(S53*AG53)-AX53,S53*AG53)),0) -> 0 | BD53: =IF($AF53=3,IF($AF$2=2,(T53/SUMIF(Refurb_Poss_Tbl[Refurbishment Possible],I53,Refurb_Poss_Tbl[%]))*AG53,T53*$AG53),0) -> 0 | BE53: =IF($AF53=3,IF($AF$2=2,(Q53/SUMIF(Refurb_Poss_Tbl[Refurbishment Possible],I53,Refurb_Poss_Tbl[%]))*AG53,Q53*$AG53),0) -> 0 | BF53: =IF($AF53=3,IF($AF$2=2,(U53/SUMIF(Refurb_Poss_Tbl[Refurbishment Possible],I53,Refurb_Poss_Tbl[%]))*AG53,U53*$AG53),0) -> 0 | BG53: =IF($AF53=3,IF($AF$2=2,(V53/SUMIF(Refurb_Poss_Tbl[Refurbishment Possible],I53,Refurb_Poss_Tbl[%]))*AG53,IF($AF$2=3,(V53*AG53)-AW53,V53*AG53)),0) -> 0 | BH53: =IF($AF53=3,IF($AF$2=2,(W53/SUMIF(Refurb_Poss_Tbl[Refurbishment Possible],I53,Refurb_Poss_Tbl[%]))*AG53,W53*$AG53),0) -> 0
A54: DredEA11 | B54: New channel | C54: Dredging Works | D54: DredEA1133 | E54: New channel-Excavation | F54: Dredging | G54: 120 | H54: 120 | I54: Not Possible | J54: 60 | K54: New Build | L54: 0 | M54: 0 | N54: 0 | O54: 2 | P54: 968.2248 | Q54: 968.2248 | R54: 33.77397315 | S54: 337.07328 | T54: 0.9941643774 | U54: 190.759147 | V54: 0 | W54: 694.8552145 | X54: 2225.680579 | Y54: 0 | Z54: 0 | AA54: 0 | AB54: 0 | AC54: 0.4970821887 | AD54: 168.53664 | AE54: 52 | AF54: 0 | AG54: =VLOOKUP(AE54,ValidationLists!$M$1:$N$102,2,FALSE) -> 0.2150128003 | AH54: 0 | AI54: 0 | AJ54: 0 | AK54: 0 | AL54: 0 | AM54: 0 | AN54: 0 | AO54: 0 | AP54: 0 | AQ54: =IF(OR(AF54=3,AF54=2,AF54=0),SUMIFS(FlatMaint!$Z$2:$Z$10000,FlatMaint!$A$2:$A$10000,D54,FlatMaint!$Y$2:$Y$10000,AE54)*AG54,0) -> 20.82004471 | AR54: =IF(OR(AF54=3,AF54=2,AF54=0),SUMIFS(FlatRepair!$Z$2:$Z$10000,FlatRepair!$A$2:$A$10000,D54,FlatRepair!$Y$2:$Y$10000,AE54)*AG54,0) -> 0 | AS54: 0 | AT54: 20.82004471 | AU54: 0 | AV54: 0 | AW54: 0 | AX54: 0 | AY54: 0 | AZ54: 20.82004471 | BA54: 0 | BB54: =IF($AF54=3,IF($AF$2=2,(R54/SUMIF(Refurb_Poss_Tbl[Refurbishment Possible],I54,Refurb_Poss_Tbl[%]))*AG54,IF($AF$2=3,(R54*AG54)-AV54,R54*AG54)),0) -> 0 | BC54: =IF(AF54=3,IF($AF$2=2,(S54/SUMIF(Refurb_Poss_Tbl[Refurbishment Possible],I54,Refurb_Poss_Tbl[%]))*AG54,IF($AF$2=3,(S54*AG54)-AX54,S54*AG54)),0) -> 0 | BD54: =IF($AF54=3,IF($AF$2=2,(T54/SUMIF(Refurb_Poss_Tbl[Refurbishment Possible],I54,Refurb_Poss_Tbl[%]))*AG54,T54*$AG54),0) -> 0 | BE54: =IF($AF54=3,IF($AF$2=2,(Q54/SUMIF(Refurb_Poss_Tbl[Refurbishment Possible],I54,Refurb_Poss_Tbl[%]))*AG54,Q54*$AG54),0) -> 0 | BF54: =IF($AF54=3,IF($AF$2=2,(U54/SUMIF(Refurb_Poss_Tbl[Refurbishment Possible],I54,Refurb_Poss_Tbl[%]))*AG54,U54*$AG54),0) -> 0 | BG54: =IF($AF54=3,IF($AF$2=2,(V54/SUMIF(Refurb_Poss_Tbl[Refurbishment Possible],I54,Refurb_Poss_Tbl[%]))*AG54,IF($AF$2=3,(V54*AG54)-AW54,V54*AG54)),0) -> 0 | BH54: =IF($AF54=3,IF($AF$2=2,(W54/SUMIF(Refurb_Poss_Tbl[Refurbishment Possible],I54,Refurb_Poss_Tbl[%]))*AG54,W54*$AG54),0) -> 0
A55: DredEA11 | B55: New channel | C55: Dredging Works | D55: DredEA1133 | E55: New channel-Excavation | F55: Dredging | G55: 120 | H55: 120 | I55: Not Possible | J55: 60 | K55: New Build | L55: 0 | M55: 0 | N55: 0 | O55: 2 | P55: 968.2248 | Q55: 968.2248 | R55: 33.77397315 | S55: 337.07328 | T55: 0.9941643774 | U55: 190.759147 | V55: 0 | W55: 694.8552145 | X55: 2225.680579 | Y55: 0 | Z55: 0 | AA55: 0 | AB55: 0 | AC55: 0.4970821887 | AD55: 168.53664 | AE55: 53 | AF55: 0 | AG55: =VLOOKUP(AE55,ValidationLists!$M$1:$N$102,2,FALSE) -> 0.2087502915 | AH55: 0 | AI55: 0 | AJ55: 0 | AK55: 0 | AL55: 0 | AM55: 0 | AN55: 0 | AO55: 0 | AP55: 0 | AQ55: =IF(OR(AF55=3,AF55=2,AF55=0),SUMIFS(FlatMaint!$Z$2:$Z$10000,FlatMaint!$A$2:$A$10000,D55,FlatMaint!$Y$2:$Y$10000,AE55)*AG55,0) -> 0 | AR55: =IF(OR(AF55=3,AF55=2,AF55=0),SUMIFS(FlatRepair!$Z$2:$Z$10000,FlatRepair!$A$2:$A$10000,D55,FlatRepair!$Y$2:$Y$10000,AE55)*AG55,0) -> 0 | AS55: 0 | AT55: 0 | AU55: 0 | AV55: 0 | AW55: 0 | AX55: 0 | AY55: 0 | AZ55: 0 | BA55: 0 | BB55: =IF($AF55=3,IF($AF$2=2,(R55/SUMIF(Refurb_Poss_Tbl[Refurbishment Possible],I55,Refurb_Poss_Tbl[%]))*AG55,IF($AF$2=3,(R55*AG55)-AV55,R55*AG55)),0) -> 0 | BC55: =IF(AF55=3,IF($AF$2=2,(S55/SUMIF(Refurb_Poss_Tbl[Refurbishment Possible],I55,Refurb_Poss_Tbl[%]))*AG55,IF($AF$2=3,(S55*AG55)-AX55,S55*AG55)),0) -> 0 | BD55: =IF($AF55=3,IF($AF$2=2,(T55/SUMIF(Refurb_Poss_Tbl[Refurbishment Possible],I55,Refurb_Poss_Tbl[%]))*AG55,T55*$AG55),0) -> 0 | BE55: =IF($AF55=3,IF($AF$2=2,(Q55/SUMIF(Refurb_Poss_Tbl[Refurbishment Possible],I55,Refurb_Poss_Tbl[%]))*AG55,Q55*$AG55),0) -> 0 | BF55: =IF($AF55=3,IF($AF$2=2,(U55/SUMIF(Refurb_Poss_Tbl[Refurbishment Possible],I55,Refurb_Poss_Tbl[%]))*AG55,U55*$AG55),0) -> 0 | BG55: =IF($AF55=3,IF($AF$2=2,(V55/SUMIF(Refurb_Poss_Tbl[Refurbishment Possible],I55,Refurb_Poss_Tbl[%]))*AG55,IF($AF$2=3,(V55*AG55)-AW55,V55*AG55)),0) -> 0 | BH55: =IF($AF55=3,IF($AF$2=2,(W55/SUMIF(Refurb_Poss_Tbl[Refurbishment Possible],I55,Refurb_Poss_Tbl[%]))*AG55,W55*$AG55),0) -> 0
A56: DredEA11 | B56: New channel | C56: Dredging Works | D56: DredEA1133 | E56: New channel-Excavation | F56: Dredging | G56: 120 | H56: 120 | I56: Not Possible | J56: 60 | K56: New Build | L56: 0 | M56: 0 | N56: 0 | O56: 2 | P56: 968.2248 | Q56: 968.2248 | R56: 33.77397315 | S56: 337.07328 | T56: 0.9941643774 | U56: 190.759147 | V56: 0 | W56: 694.8552145 | X56: 2225.680579 | Y56: 0 | Z56: 0 | AA56: 0 | AB56: 0 | AC56: 0.4970821887 | AD56: 168.53664 | AE56: 54 | AF56: 0 | AG56: =VLOOKUP(AE56,ValidationLists!$M$1:$N$102,2,FALSE) -> 0.2026701859 | AH56: 0 | AI56: 0 | AJ56: 0 | AK56: 0 | AL56: 0 | AM56: 0 | AN56: 0 | AO56: 0 | AP56: 0 | AQ56: =IF(OR(AF56=3,AF56=2,AF56=0),SUMIFS(FlatMaint!$Z$2:$Z$10000,FlatMaint!$A$2:$A$10000,D56,FlatMaint!$Y$2:$Y$10000,AE56)*AG56,0) -> 19.62488897 | AR56: =IF(OR(AF56=3,AF56=2,AF56=0),SUMIFS(FlatRepair!$Z$2:$Z$10000,FlatRepair!$A$2:$A$10000,D56,FlatRepair!$Y$2:$Y$10000,AE56)*AG56,0) -> 0 | AS56: 0 | AT56: 19.62488897 | AU56: 0 | AV56: 0 | AW56: 0 | AX56: 0 | AY56: 0 | AZ56: 19.62488897 | BA56: 0 | BB56: =IF($AF56=3,IF($AF$2=2,(R56/SUMIF(Refurb_Poss_Tbl[Refurbishment Possible],I56,Refurb_Poss_Tbl[%]))*AG56,IF($AF$2=3,(R56*AG56)-AV56,R56*AG56)),0) -> 0 | BC56: =IF(AF56=3,IF($AF$2=2,(S56/SUMIF(Refurb_Poss_Tbl[Refurbishment Possible],I56,Refurb_Poss_Tbl[%]))*AG56,IF($AF$2=3,(S56*AG56)-AX56,S56*AG56)),0) -> 0 | BD56: =IF($AF56=3,IF($AF$2=2,(T56/SUMIF(Refurb_Poss_Tbl[Refurbishment Possible],I56,Refurb_Poss_Tbl[%]))*AG56,T56*$AG56),0) -> 0 | BE56: =IF($AF56=3,IF($AF$2=2,(Q56/SUMIF(Refurb_Poss_Tbl[Refurbishment Possible],I56,Refurb_Poss_Tbl[%]))*AG56,Q56*$AG56),0) -> 0 | BF56: =IF($AF56=3,IF($AF$2=2,(U56/SUMIF(Refurb_Poss_Tbl[Refurbishment Possible],I56,Refurb_Poss_Tbl[%]))*AG56,U56*$AG56),0) -> 0 | BG56: =IF($AF56=3,IF($AF$2=2,(V56/SUMIF(Refurb_Poss_Tbl[Refurbishment Possible],I56,Refurb_Poss_Tbl[%]))*AG56,IF($AF$2=3,(V56*AG56)-AW56,V56*AG56)),0) -> 0 | BH56: =IF($AF56=3,IF($AF$2=2,(W56/SUMIF(Refurb_Poss_Tbl[Refurbishment Possible],I56,Refurb_Poss_Tbl[%]))*AG56,W56*$AG56),0) -> 0
A57: DredEA11 | B57: New channel | C57: Dredging Works | D57: DredEA1133 | E57: New channel-Excavation | F57: Dredging | G57: 120 | H57: 120 | I57: Not Possible | J57: 60 | K57: New Build | L57: 0 | M57: 0 | N57: 0 | O57: 2 | P57: 968.2248 | Q57: 968.2248 | R57: 33.77397315 | S57: 337.07328 | T57: 0.9941643774 | U57: 190.759147 | V57: 0 | W57: 694.8552145 | X57: 2225.680579 | Y57: 0 | Z57: 0 | AA57: 0 | AB57: 0 | AC57: 0.4970821887 | AD57: 168.53664 | AE57: 55 | AF57: 0 | AG57: =VLOOKUP(AE57,ValidationLists!$M$1:$N$102,2,FALSE) -> 0.1967671708 | AH57: 0 | AI57: 0 | AJ57: 0 | AK57: 0 | AL57: 0 | AM57: 0 | AN57: 0 | AO57: 0 | AP57: 0 | AQ57: =IF(OR(AF57=3,AF57=2,AF57=0),SUMIFS(FlatMaint!$Z$2:$Z$10000,FlatMaint!$A$2:$A$10000,D57,FlatMaint!$Y$2:$Y$10000,AE57)*AG57,0) -> 0 | AR57: =IF(OR(AF57=3,AF57=2,AF57=0),SUMIFS(FlatRepair!$Z$2:$Z$10000,FlatRepair!$A$2:$A$10000,D57,FlatRepair!$Y$2:$Y$10000,AE57)*AG57,0) -> 0 | AS57: 0 | AT57: 0 | AU57: 0 | AV57: 0 | AW57: 0 | AX57: 0 | AY57: 0 | AZ57: 0 | BA57: 0 | BB57: =IF($AF57=3,IF($AF$2=2,(R57/SUMIF(Refurb_Poss_Tbl[Refurbishment Possible],I57,Refurb_Poss_Tbl[%]))*AG57,IF($AF$2=3,(R57*AG57)-AV57,R57*AG57)),0) -> 0 | BC57: =IF(AF57=3,IF($AF$2=2,(S57/SUMIF(Refurb_Poss_Tbl[Refurbishment Possible],I57,Refurb_Poss_Tbl[%]))*AG57,IF($AF$2=3,(S57*AG57)-AX57,S57*AG57)),0) -> 0 | BD57: =IF($AF57=3,IF($AF$2=2,(T57/SUMIF(Refurb_Poss_Tbl[Refurbishment Possible],I57,Refurb_Poss_Tbl[%]))*AG57,T57*$AG57),0) -> 0 | BE57: =IF($AF57=3,IF($AF$2=2,(Q57/SUMIF(Refurb_Poss_Tbl[Refurbishment Possible],I57,Refurb_Poss_Tbl[%]))*AG57,Q57*$AG57),0) -> 0 | BF57: =IF($AF57=3,IF($AF$2=2,(U57/SUMIF(Refurb_Poss_Tbl[Refurbishment Possible],I57,Refurb_Poss_Tbl[%]))*AG57,U57*$AG57),0) -> 0 | BG57: =IF($AF57=3,IF($AF$2=2,(V57/SUMIF(Refurb_Poss_Tbl[Refurbishment Possible],I57,Refurb_Poss_Tbl[%]))*AG57,IF($AF$2=3,(V57*AG57)-AW57,V57*AG57)),0) -> 0 | BH57: =IF($AF57=3,IF($AF$2=2,(W57/SUMIF(Refurb_Poss_Tbl[Refurbishment Possible],I57,Refurb_Poss_Tbl[%]))*AG57,W57*$AG57),0) -> 0
A58: DredEA11 | B58: New channel | C58: Dredging Works | D58: DredEA1133 | E58: New channel-Excavation | F58: Dredging | G58: 120 | H58: 120 | I58: Not Possible | J58: 60 | K58: New Build | L58: 0 | M58: 0 | N58: 0 | O58: 2 | P58: 968.2248 | Q58: 968.2248 | R58: 33.77397315 | S58: 337.07328 | T58: 0.9941643774 | U58: 190.759147 | V58: 0 | W58: 694.8552145 | X58: 2225.680579 | Y58: 0 | Z58: 0 | AA58: 0 | AB58: 0 | AC58: 0.4970821887 | AD58: 168.53664 | AE58: 56 | AF58: 0 | AG58: =VLOOKUP(AE58,ValidationLists!$M$1:$N$102,2,FALSE) -> 0.1910360882 | AH58: 0 | AI58: 0 | AJ58: 0 | AK58: 0 | AL58: 0 | AM58: 0 | AN58: 0 | AO58: 0 | AP58: 0 | AQ58: =IF(OR(AF58=3,AF58=2,AF58=0),SUMIFS(FlatMaint!$Z$2:$Z$10000,FlatMaint!$A$2:$A$10000,D58,FlatMaint!$Y$2:$Y$10000,AE58)*AG58,0) -> 18.49834006 | AR58: =IF(OR(AF58=3,AF58=2,AF58=0),SUMIFS(FlatRepair!$Z$2:$Z$10000,FlatRepair!$A$2:$A$10000,D58,FlatRepair!$Y$2:$Y$10000,AE58)*AG58,0) -> 0 | AS58: 0 | AT58: 18.49834006 | AU58: 0 | AV58: 0 | AW58: 0 | AX58: 0 | AY58: 0 | AZ58: 18.49834006 | BA58: 0 | BB58: =IF($AF58=3,IF($AF$2=2,(R58/SUMIF(Refurb_Poss_Tbl[Refurbishment Possible],I58,Refurb_Poss_Tbl[%]))*AG58,IF($AF$2=3,(R58*AG58)-AV58,R58*AG58)),0) -> 0 | BC58: =IF(AF58=3,IF($AF$2=2,(S58/SUMIF(Refurb_Poss_Tbl[Refurbishment Possible],I58,Refurb_Poss_Tbl[%]))*AG58,IF($AF$2=3,(S58*AG58)-AX58,S58*AG58)),0) -> 0 | BD58: =IF($AF58=3,IF($AF$2=2,(T58/SUMIF(Refurb_Poss_Tbl[Refurbishment Possible],I58,Refurb_Poss_Tbl[%]))*AG58,T58*$AG58),0) -> 0 | BE58: =IF($AF58=3,IF($AF$2=2,(Q58/SUMIF(Refurb_Poss_Tbl[Refurbishment Possible],I58,Refurb_Poss_Tbl[%]))*AG58,Q58*$AG58),0) -> 0 | BF58: =IF($AF58=3,IF($AF$2=2,(U58/SUMIF(Refurb_Poss_Tbl[Refurbishment Possible],I58,Refurb_Poss_Tbl[%]))*AG58,U58*$AG58),0) -> 0 | BG58: =IF($AF58=3,IF($AF$2=2,(V58/SUMIF(Refurb_Poss_Tbl[Refurbishment Possible],I58,Refurb_Poss_Tbl[%]))*AG58,IF($AF$2=3,(V58*AG58)-AW58,V58*AG58)),0) -> 0 | BH58: =IF($AF58=3,IF($AF$2=2,(W58/SUMIF(Refurb_Poss_Tbl[Refurbishment Possible],I58,Refurb_Poss_Tbl[%]))*AG58,W58*$AG58),0) -> 0
A59: DredEA11 | B59: New channel | C59: Dredging Works | D59: DredEA1133 | E59: New channel-Excavation | F59: Dredging | G59: 120 | H59: 120 | I59: Not Possible | J59: 60 | K59: New Build | L59: 0 | M59: 0 | N59: 0 | O59: 2 | P59: 968.2248 | Q59: 968.2248 | R59: 33.77397315 | S59: 337.07328 | T59: 0.9941643774 | U59: 190.759147 | V59: 0 | W59: 694.8552145 | X59: 2225.680579 | Y59: 0 | Z59: 0 | AA59: 0 | AB59: 0 | AC59: 0.4970821887 | AD59: 168.53664 | AE59: 57 | AF59: 0 | AG59: =VLOOKUP(AE59,ValidationLists!$M$1:$N$102,2,FALSE) -> 0.1854719303 | AH59: 0 | AI59: 0 | AJ59: 0 | AK59: 0 | AL59: 0 | AM59: 0 | AN59: 0 | AO59: 0 | AP59: 0 | AQ59: =IF(OR(AF59=3,AF59=2,AF59=0),SUMIFS(FlatMaint!$Z$2:$Z$10000,FlatMaint!$A$2:$A$10000,D59,FlatMaint!$Y$2:$Y$10000,AE59)*AG59,0) -> 0 | AR59: =IF(OR(AF59=3,AF59=2,AF59=0),SUMIFS(FlatRepair!$Z$2:$Z$10000,FlatRepair!$A$2:$A$10000,D59,FlatRepair!$Y$2:$Y$10000,AE59)*AG59,0) -> 0 | AS59: 0 | AT59: 0 | AU59: 0 | AV59: 0 | AW59: 0 | AX59: 0 | AY59: 0 | AZ59: 0 | BA59: 0 | BB59: =IF($AF59=3,IF($AF$2=2,(R59/SUMIF(Refurb_Poss_Tbl[Refurbishment Possible],I59,Refurb_Poss_Tbl[%]))*AG59,IF($AF$2=3,(R59*AG59)-AV59,R59*AG59)),0) -> 0 | BC59: =IF(AF59=3,IF($AF$2=2,(S59/SUMIF(Refurb_Poss_Tbl[Refurbishment Possible],I59,Refurb_Poss_Tbl[%]))*AG59,IF($AF$2=3,(S59*AG59)-AX59,S59*AG59)),0) -> 0 | BD59: =IF($AF59=3,IF($AF$2=2,(T59/SUMIF(Refurb_Poss_Tbl[Refurbishment Possible],I59,Refurb_Poss_Tbl[%]))*AG59,T59*$AG59),0) -> 0 | BE59: =IF($AF59=3,IF($AF$2=2,(Q59/SUMIF(Refurb_Poss_Tbl[Refurbishment Possible],I59,Refurb_Poss_Tbl[%]))*AG59,Q59*$AG59),0) -> 0 | BF59: =IF($AF59=3,IF($AF$2=2,(U59/SUMIF(Refurb_Poss_Tbl[Refurbishment Possible],I59,Refurb_Poss_Tbl[%]))*AG59,U59*$AG59),0) -> 0 | BG59: =IF($AF59=3,IF($AF$2=2,(V59/SUMIF(Refurb_Poss_Tbl[Refurbishment Possible],I59,Refurb_Poss_Tbl[%]))*AG59,IF($AF$2=3,(V59*AG59)-AW59,V59*AG59)),0) -> 0 | BH59: =IF($AF59=3,IF($AF$2=2,(W59/SUMIF(Refurb_Poss_Tbl[Refurbishment Possible],I59,Refurb_Poss_Tbl[%]))*AG59,W59*$AG59),0) -> 0
A60: DredEA11 | B60: New channel | C60: Dredging Works | D60: DredEA1133 | E60: New channel-Excavation | F60: Dredging | G60: 120 | H60: 120 | I60: Not Possible | J60: 60 | K60: New Build | L60: 0 | M60: 0 | N60: 0 | O60: 2 | P60: 968.2248 | Q60: 968.2248 | R60: 33.77397315 | S60: 337.07328 | T60: 0.9941643774 | U60: 190.759147 | V60: 0 | W60: 694.8552145 | X60: 2225.680579 | Y60: 0 | Z60: 0 | AA60: 0 | AB60: 0 | AC60: 0.4970821887 | AD60: 168.53664 | AE60: 58 | AF60: 0 | AG60: =VLOOKUP(AE60,ValidationLists!$M$1:$N$102,2,FALSE) -> 0.1800698352 | AH60: 0 | AI60: 0 | AJ60: 0 | AK60: 0 | AL60: 0 | AM60: 0 | AN60: 0 | AO60: 0 | AP60: 0 | AQ60: =IF(OR(AF60=3,AF60=2,AF60=0),SUMIFS(FlatMaint!$Z$2:$Z$10000,FlatMaint!$A$2:$A$10000,D60,FlatMaint!$Y$2:$Y$10000,AE60)*AG60,0) -> 17.43645967 | AR60: =IF(OR(AF60=3,AF60=2,AF60=0),SUMIFS(FlatRepair!$Z$2:$Z$10000,FlatRepair!$A$2:$A$10000,D60,FlatRepair!$Y$2:$Y$10000,AE60)*AG60,0) -> 0 | AS60: 0 | AT60: 17.43645967 | AU60: 0 | AV60: 0 | AW60: 0 | AX60: 0 | AY60: 0 | AZ60: 17.43645967 | BA60: 0 | BB60: =IF($AF60=3,IF($AF$2=2,(R60/SUMIF(Refurb_Poss_Tbl[Refurbishment Possible],I60,Refurb_Poss_Tbl[%]))*AG60,IF($AF$2=3,(R60*AG60)-AV60,R60*AG60)),0) -> 0 | BC60: =IF(AF60=3,IF($AF$2=2,(S60/SUMIF(Refurb_Poss_Tbl[Refurbishment Possible],I60,Refurb_Poss_Tbl[%]))*AG60,IF($AF$2=3,(S60*AG60)-AX60,S60*AG60)),0) -> 0 | BD60: =IF($AF60=3,IF($AF$2=2,(T60/SUMIF(Refurb_Poss_Tbl[Refurbishment Possible],I60,Refurb_Poss_Tbl[%]))*AG60,T60*$AG60),0) -> 0 | BE60: =IF($AF60=3,IF($AF$2=2,(Q60/SUMIF(Refurb_Poss_Tbl[Refurbishment Possible],I60,Refurb_Poss_Tbl[%]))*AG60,Q60*$AG60),0) -> 0 | BF60: =IF($AF60=3,IF($AF$2=2,(U60/SUMIF(Refurb_Poss_Tbl[Refurbishment Possible],I60,Refurb_Poss_Tbl[%]))*AG60,U60*$AG60),0) -> 0 | BG60: =IF($AF60=3,IF($AF$2=2,(V60/SUMIF(Refurb_Poss_Tbl[Refurbishment Possible],I60,Refurb_Poss_Tbl[%]))*AG60,IF($AF$2=3,(V60*AG60)-AW60,V60*AG60)),0) -> 0 | BH60: =IF($AF60=3,IF($AF$2=2,(W60/SUMIF(Refurb_Poss_Tbl[Refurbishment Possible],I60,Refurb_Poss_Tbl[%]))*AG60,W60*$AG60),0) -> 0
A61: DredEA11 | B61: New channel | C61: Dredging Works | D61: DredEA1133 | E61: New channel-Excavation | F61: Dredging | G61: 120 | H61: 120 | I61: Not Possible | J61: 60 | K61: New Build | L61: 0 | M61: 0 | N61: 0 | O61: 2 | P61: 968.2248 | Q61: 968.2248 | R61: 33.77397315 | S61: 337.07328 | T61: 0.9941643774 | U61: 190.759147 | V61: 0 | W61: 694.8552145 | X61: 2225.680579 | Y61: 0 | Z61: 0 | AA61: 0 | AB61: 0 | AC61: 0.4970821887 | AD61: 168.53664 | AE61: 59 | AF61: 0 | AG61: =VLOOKUP(AE61,ValidationLists!$M$1:$N$102,2,FALSE) -> 0.1748250827 | AH61: 0 | AI61: 0 | AJ61: 0 | AK61: 0 | AL61: 0 | AM61: 0 | AN61: 0 | AO61: 0 | AP61: 0 | AQ61: =IF(OR(AF61=3,AF61=2,AF61=0),SUMIFS(FlatMaint!$Z$2:$Z$10000,FlatMaint!$A$2:$A$10000,D61,FlatMaint!$Y$2:$Y$10000,AE61)*AG61,0) -> 0 | AR61: =IF(OR(AF61=3,AF61=2,AF61=0),SUMIFS(FlatRepair!$Z$2:$Z$10000,FlatRepair!$A$2:$A$10000,D61,FlatRepair!$Y$2:$Y$10000,AE61)*AG61,0) -> 0 | AS61: 0 | AT61: 0 | AU61: 0 | AV61: 0 | AW61: 0 | AX61: 0 | AY61: 0 | AZ61: 0 | BA61: 0 | BB61: =IF($AF61=3,IF($AF$2=2,(R61/SUMIF(Refurb_Poss_Tbl[Refurbishment Possible],I61,Refurb_Poss_Tbl[%]))*AG61,IF($AF$2=3,(R61*AG61)-AV61,R61*AG61)),0) -> 0 | BC61: =IF(AF61=3,IF($AF$2=2,(S61/SUMIF(Refurb_Poss_Tbl[Refurbishment Possible],I61,Refurb_Poss_Tbl[%]))*AG61,IF($AF$2=3,(S61*AG61)-AX61,S61*AG61)),0) -> 0 | BD61: =IF($AF61=3,IF($AF$2=2,(T61/SUMIF(Refurb_Poss_Tbl[Refurbishment Possible],I61,Refurb_Poss_Tbl[%]))*AG61,T61*$AG61),0) -> 0 | BE61: =IF($AF61=3,IF($AF$2=2,(Q61/SUMIF(Refurb_Poss_Tbl[Refurbishment Possible],I61,Refurb_Poss_Tbl[%]))*AG61,Q61*$AG61),0) -> 0 | BF61: =IF($AF61=3,IF($AF$2=2,(U61/SUMIF(Refurb_Poss_Tbl[Refurbishment Possible],I61,Refurb_Poss_Tbl[%]))*AG61,U61*$AG61),0) -> 0 | BG61: =IF($AF61=3,IF($AF$2=2,(V61/SUMIF(Refurb_Poss_Tbl[Refurbishment Possible],I61,Refurb_Poss_Tbl[%]))*AG61,IF($AF$2=3,(V61*AG61)-AW61,V61*AG61)),0) -> 0 | BH61: =IF($AF61=3,IF($AF$2=2,(W61/SUMIF(Refurb_Poss_Tbl[Refurbishment Possible],I61,Refurb_Poss_Tbl[%]))*AG61,W61*$AG61),0) -> 0
A62: DredEA11 | B62: New channel | C62: Dredging Works | D62: DredEA1133 | E62: New channel-Excavation | F62: Dredging | G62: 120 | H62: 120 | I62: Not Possible | J62: 60 | K62: New Build | L62: 0 | M62: 0 | N62: 0 | O62: 2 | P62: 968.2248 | Q62: 968.2248 | R62: 33.77397315 | S62: 337.07328 | T62: 0.9941643774 | U62: 190.759147 | V62: 0 | W62: 694.8552145 | X62: 2225.680579 | Y62: 0 | Z62: 0 | AA62: 0 | AB62: 0 | AC62: 0.4970821887 | AD62: 168.53664 | AE62: 60 | AF62: 0 | AG62: =VLOOKUP(AE62,ValidationLists!$M$1:$N$102,2,FALSE) -> 0.16973309 | AH62: 0 | AI62: 0 | AJ62: 0 | AK62: 0 | AL62: 0 | AM62: 0 | AN62: 0 | AO62: 0 | AP62: 0 | AQ62: =IF(OR(AF62=3,AF62=2,AF62=0),SUMIFS(FlatMaint!$Z$2:$Z$10000,FlatMaint!$A$2:$A$10000,D62,FlatMaint!$Y$2:$Y$10000,AE62)*AG62,0) -> 16.43553556 | AR62: =IF(OR(AF62=3,AF62=2,AF62=0),SUMIFS(FlatRepair!$Z$2:$Z$10000,FlatRepair!$A$2:$A$10000,D62,FlatRepair!$Y$2:$Y$10000,AE62)*AG62,0) -> 0 | AS62: 0 | AT62: 16.43553556 | AU62: 0 | AV62: 0 | AW62: 0 | AX62: 0 | AY62: 0 | AZ62: 16.43553556 | BA62: 0 | BB62: =IF($AF62=3,IF($AF$2=2,(R62/SUMIF(Refurb_Poss_Tbl[Refurbishment Possible],I62,Refurb_Poss_Tbl[%]))*AG62,IF($AF$2=3,(R62*AG62)-AV62,R62*AG62)),0) -> 0 | BC62: =IF(AF62=3,IF($AF$2=2,(S62/SUMIF(Refurb_Poss_Tbl[Refurbishment Possible],I62,Refurb_Poss_Tbl[%]))*AG62,IF($AF$2=3,(S62*AG62)-AX62,S62*AG62)),0) -> 0 | BD62: =IF($AF62=3,IF($AF$2=2,(T62/SUMIF(Refurb_Poss_Tbl[Refurbishment Possible],I62,Refurb_Poss_Tbl[%]))*AG62,T62*$AG62),0) -> 0 | BE62: =IF($AF62=3,IF($AF$2=2,(Q62/SUMIF(Refurb_Poss_Tbl[Refurbishment Possible],I62,Refurb_Poss_Tbl[%]))*AG62,Q62*$AG62),0) -> 0 | BF62: =IF($AF62=3,IF($AF$2=2,(U62/SUMIF(Refurb_Poss_Tbl[Refurbishment Possible],I62,Refurb_Poss_Tbl[%]))*AG62,U62*$AG62),0) -> 0 | BG62: =IF($AF62=3,IF($AF$2=2,(V62/SUMIF(Refurb_Poss_Tbl[Refurbishment Possible],I62,Refurb_Poss_Tbl[%]))*AG62,IF($AF$2=3,(V62*AG62)-AW62,V62*AG62)),0) -> 0 | BH62: =IF($AF62=3,IF($AF$2=2,(W62/SUMIF(Refurb_Poss_Tbl[Refurbishment Possible],I62,Refurb_Poss_Tbl[%]))*AG62,W62*$AG62),0) -> 0
A63: DredEA11 | B63: New channel | C63: Dredging Works | D63: DredEA1133 | E63: New channel-Excavation | F63: Dredging | G63: 120 | H63: 120 | I63: Not Possible | J63: 60 | K63: New Build | L63: 0 | M63: 0 | N63: 0 | O63: 2 | P63: 968.2248 | Q63: 968.2248 | R63: 33.77397315 | S63: 337.07328 | T63: 0.9941643774 | U63: 190.759147 | V63: 0 | W63: 694.8552145 | X63: 2225.680579 | Y63: 0 | Z63: 0 | AA63: 0 | AB63: 0 | AC63: 0.4970821887 | AD63: 168.53664 | AE63: 61 | AF63: 0 | AG63: =VLOOKUP(AE63,ValidationLists!$M$1:$N$102,2,FALSE) -> 0.1647894078 | AH63: 0 | AI63: 0 | AJ63: 0 | AK63: 0 | AL63: 0 | AM63: 0 | AN63: 0 | AO63: 0 | AP63: 0 | AQ63: =IF(OR(AF63=3,AF63=2,AF63=0),SUMIFS(FlatMaint!$Z$2:$Z$10000,FlatMaint!$A$2:$A$10000,D63,FlatMaint!$Y$2:$Y$10000,AE63)*AG63,0) -> 0 | AR63: =IF(OR(AF63=3,AF63=2,AF63=0),SUMIFS(FlatRepair!$Z$2:$Z$10000,FlatRepair!$A$2:$A$10000,D63,FlatRepair!$Y$2:$Y$10000,AE63)*AG63,0) -> 0 | AS63: 0 | AT63: 0 | AU63: 0 | AV63: 0 | AW63: 0 | AX63: 0 | AY63: 0 | AZ63: 0 | BA63: 0 | BB63: =IF($AF63=3,IF($AF$2=2,(R63/SUMIF(Refurb_Poss_Tbl[Refurbishment Possible],I63,Refurb_Poss_Tbl[%]))*AG63,IF($AF$2=3,(R63*AG63)-AV63,R63*AG63)),0) -> 0 | BC63: =IF(AF63=3,IF($AF$2=2,(S63/SUMIF(Refurb_Poss_Tbl[Refurbishment Possible],I63,Refurb_Poss_Tbl[%]))*AG63,IF($AF$2=3,(S63*AG63)-AX63,S63*AG63)),0) -> 0 | BD63: =IF($AF63=3,IF($AF$2=2,(T63/SUMIF(Refurb_Poss_Tbl[Refurbishment Possible],I63,Refurb_Poss_Tbl[%]))*AG63,T63*$AG63),0) -> 0 | BE63: =IF($AF63=3,IF($AF$2=2,(Q63/SUMIF(Refurb_Poss_Tbl[Refurbishment Possible],I63,Refurb_Poss_Tbl[%]))*AG63,Q63*$AG63),0) -> 0 | BF63: =IF($AF63=3,IF($AF$2=2,(U63/SUMIF(Refurb_Poss_Tbl[Refurbishment Possible],I63,Refurb_Poss_Tbl[%]))*AG63,U63*$AG63),0) -> 0 | BG63: =IF($AF63=3,IF($AF$2=2,(V63/SUMIF(Refurb_Poss_Tbl[Refurbishment Possible],I63,Refurb_Poss_Tbl[%]))*AG63,IF($AF$2=3,(V63*AG63)-AW63,V63*AG63)),0) -> 0 | BH63: =IF($AF63=3,IF($AF$2=2,(W63/SUMIF(Refurb_Poss_Tbl[Refurbishment Possible],I63,Refurb_Poss_Tbl[%]))*AG63,W63*$AG63),0) -> 0
A64: DredEA11 | B64: New channel | C64: Dredging Works | D64: DredEA1133 | E64: New channel-Excavation | F64: Dredging | G64: 120 | H64: 120 | I64: Not Possible | J64: 60 | K64: New Build | L64: 0 | M64: 0 | N64: 0 | O64: 2 | P64: 968.2248 | Q64: 968.2248 | R64: 33.77397315 | S64: 337.07328 | T64: 0.9941643774 | U64: 190.759147 | V64: 0 | W64: 694.8552145 | X64: 2225.680579 | Y64: 0 | Z64: 0 | AA64: 0 | AB64: 0 | AC64: 0.4970821887 | AD64: 168.53664 | AE64: 62 | AF64: 0 | AG64: =VLOOKUP(AE64,ValidationLists!$M$1:$N$102,2,FALSE) -> 0.1599897163 | AH64: 0 | AI64: 0 | AJ64: 0 | AK64: 0 | AL64: 0 | AM64: 0 | AN64: 0 | AO64: 0 | AP64: 0 | AQ64: =IF(OR(AF64=3,AF64=2,AF64=0),SUMIFS(FlatMaint!$Z$2:$Z$10000,FlatMaint!$A$2:$A$10000,D64,FlatMaint!$Y$2:$Y$10000,AE64)*AG64,0) -> 15.49206858 | AR64: =IF(OR(AF64=3,AF64=2,AF64=0),SUMIFS(FlatRepair!$Z$2:$Z$10000,FlatRepair!$A$2:$A$10000,D64,FlatRepair!$Y$2:$Y$10000,AE64)*AG64,0) -> 0 | AS64: 0 | AT64: 15.49206858 | AU64: 0 | AV64: 0 | AW64: 0 | AX64: 0 | AY64: 0 | AZ64: 15.49206858 | BA64: 0 | BB64: =IF($AF64=3,IF($AF$2=2,(R64/SUMIF(Refurb_Poss_Tbl[Refurbishment Possible],I64,Refurb_Poss_Tbl[%]))*AG64,IF($AF$2=3,(R64*AG64)-AV64,R64*AG64)),0) -> 0 | BC64: =IF(AF64=3,IF($AF$2=2,(S64/SUMIF(Refurb_Poss_Tbl[Refurbishment Possible],I64,Refurb_Poss_Tbl[%]))*AG64,IF($AF$2=3,(S64*AG64)-AX64,S64*AG64)),0) -> 0 | BD64: =IF($AF64=3,IF($AF$2=2,(T64/SUMIF(Refurb_Poss_Tbl[Refurbishment Possible],I64,Refurb_Poss_Tbl[%]))*AG64,T64*$AG64),0) -> 0 | BE64: =IF($AF64=3,IF($AF$2=2,(Q64/SUMIF(Refurb_Poss_Tbl[Refurbishment Possible],I64,Refurb_Poss_Tbl[%]))*AG64,Q64*$AG64),0) -> 0 | BF64: =IF($AF64=3,IF($AF$2=2,(U64/SUMIF(Refurb_Poss_Tbl[Refurbishment Possible],I64,Refurb_Poss_Tbl[%]))*AG64,U64*$AG64),0) -> 0 | BG64: =IF($AF64=3,IF($AF$2=2,(V64/SUMIF(Refurb_Poss_Tbl[Refurbishment Possible],I64,Refurb_Poss_Tbl[%]))*AG64,IF($AF$2=3,(V64*AG64)-AW64,V64*AG64)),0) -> 0 | BH64: =IF($AF64=3,IF($AF$2=2,(W64/SUMIF(Refurb_Poss_Tbl[Refurbishment Possible],I64,Refurb_Poss_Tbl[%]))*AG64,W64*$AG64),0) -> 0
A65: DredEA11 | B65: New channel | C65: Dredging Works | D65: DredEA1133 | E65: New channel-Excavation | F65: Dredging | G65: 120 | H65: 120 | I65: Not Possible | J65: 60 | K65: New Build | L65: 0 | M65: 0 | N65: 0 | O65: 2 | P65: 968.2248 | Q65: 968.2248 | R65: 33.77397315 | S65: 337.07328 | T65: 0.9941643774 | U65: 190.759147 | V65: 0 | W65: 694.8552145 | X65: 2225.680579 | Y65: 0 | Z65: 0 | AA65: 0 | AB65: 0 | AC65: 0.4970821887 | AD65: 168.53664 | AE65: 63 | AF65: 0 | AG65: =VLOOKUP(AE65,ValidationLists!$M$1:$N$102,2,FALSE) -> 0.1553298216 | AH65: 0 | AI65: 0 | AJ65: 0 | AK65: 0 | AL65: 0 | AM65: 0 | AN65: 0 | AO65: 0 | AP65: 0 | AQ65: =IF(OR(AF65=3,AF65=2,AF65=0),SUMIFS(FlatMaint!$Z$2:$Z$10000,FlatMaint!$A$2:$A$10000,D65,FlatMaint!$Y$2:$Y$10000,AE65)*AG65,0) -> 0 | AR65: =IF(OR(AF65=3,AF65=2,AF65=0),SUMIFS(FlatRepair!$Z$2:$Z$10000,FlatRepair!$A$2:$A$10000,D65,FlatRepair!$Y$2:$Y$10000,AE65)*AG65,0) -> 0 | AS65: 0 | AT65: 0 | AU65: 0 | AV65: 0 | AW65: 0 | AX65: 0 | AY65: 0 | AZ65: 0 | BA65: 0 | BB65: =IF($AF65=3,IF($AF$2=2,(R65/SUMIF(Refurb_Poss_Tbl[Refurbishment Possible],I65,Refurb_Poss_Tbl[%]))*AG65,IF($AF$2=3,(R65*AG65)-AV65,R65*AG65)),0) -> 0 | BC65: =IF(AF65=3,IF($AF$2=2,(S65/SUMIF(Refurb_Poss_Tbl[Refurbishment Possible],I65,Refurb_Poss_Tbl[%]))*AG65,IF($AF$2=3,(S65*AG65)-AX65,S65*AG65)),0) -> 0 | BD65: =IF($AF65=3,IF($AF$2=2,(T65/SUMIF(Refurb_Poss_Tbl[Refurbishment Possible],I65,Refurb_Poss_Tbl[%]))*AG65,T65*$AG65),0) -> 0 | BE65: =IF($AF65=3,IF($AF$2=2,(Q65/SUMIF(Refurb_Poss_Tbl[Refurbishment Possible],I65,Refurb_Poss_Tbl[%]))*AG65,Q65*$AG65),0) -> 0 | BF65: =IF($AF65=3,IF($AF$2=2,(U65/SUMIF(Refurb_Poss_Tbl[Refurbishment Possible],I65,Refurb_Poss_Tbl[%]))*AG65,U65*$AG65),0) -> 0 | BG65: =IF($AF65=3,IF($AF$2=2,(V65/SUMIF(Refurb_Poss_Tbl[Refurbishment Possible],I65,Refurb_Poss_Tbl[%]))*AG65,IF($AF$2=3,(V65*AG65)-AW65,V65*AG65)),0) -> 0 | BH65: =IF($AF65=3,IF($AF$2=2,(W65/SUMIF(Refurb_Poss_Tbl[Refurbishment Possible],I65,Refurb_Poss_Tbl[%]))*AG65,W65*$AG65),0) -> 0
A66: DredEA11 | B66: New channel | C66: Dredging Works | D66: DredEA1133 | E66: New channel-Excavation | F66: Dredging | G66: 120 | H66: 120 | I66: Not Possible | J66: 60 | K66: New Build | L66: 0 | M66: 0 | N66: 0 | O66: 2 | P66: 968.2248 | Q66: 968.2248 | R66: 33.77397315 | S66: 337.07328 | T66: 0.9941643774 | U66: 190.759147 | V66: 0 | W66: 694.8552145 | X66: 2225.680579 | Y66: 0 | Z66: 0 | AA66: 0 | AB66: 0 | AC66: 0.4970821887 | AD66: 168.53664 | AE66: 64 | AF66: 0 | AG66: =VLOOKUP(AE66,ValidationLists!$M$1:$N$102,2,FALSE) -> 0.1508056521 | AH66: 0 | AI66: 0 | AJ66: 0 | AK66: 0 | AL66: 0 | AM66: 0 | AN66: 0 | AO66: 0 | AP66: 0 | AQ66: =IF(OR(AF66=3,AF66=2,AF66=0),SUMIFS(FlatMaint!$Z$2:$Z$10000,FlatMaint!$A$2:$A$10000,D66,FlatMaint!$Y$2:$Y$10000,AE66)*AG66,0) -> 14.60276047 | AR66: =IF(OR(AF66=3,AF66=2,AF66=0),SUMIFS(FlatRepair!$Z$2:$Z$10000,FlatRepair!$A$2:$A$10000,D66,FlatRepair!$Y$2:$Y$10000,AE66)*AG66,0) -> 0 | AS66: 0 | AT66: 14.60276047 | AU66: 0 | AV66: 0 | AW66: 0 | AX66: 0 | AY66: 0 | AZ66: 14.60276047 | BA66: 0 | BB66: =IF($AF66=3,IF($AF$2=2,(R66/SUMIF(Refurb_Poss_Tbl[Refurbishment Possible],I66,Refurb_Poss_Tbl[%]))*AG66,IF($AF$2=3,(R66*AG66)-AV66,R66*AG66)),0) -> 0 | BC66: =IF(AF66=3,IF($AF$2=2,(S66/SUMIF(Refurb_Poss_Tbl[Refurbishment Possible],I66,Refurb_Poss_Tbl[%]))*AG66,IF($AF$2=3,(S66*AG66)-AX66,S66*AG66)),0) -> 0 | BD66: =IF($AF66=3,IF($AF$2=2,(T66/SUMIF(Refurb_Poss_Tbl[Refurbishment Possible],I66,Refurb_Poss_Tbl[%]))*AG66,T66*$AG66),0) -> 0 | BE66: =IF($AF66=3,IF($AF$2=2,(Q66/SUMIF(Refurb_Poss_Tbl[Refurbishment Possible],I66,Refurb_Poss_Tbl[%]))*AG66,Q66*$AG66),0) -> 0 | BF66: =IF($AF66=3,IF($AF$2=2,(U66/SUMIF(Refurb_Poss_Tbl[Refurbishment Possible],I66,Refurb_Poss_Tbl[%]))*AG66,U66*$AG66),0) -> 0 | BG66: =IF($AF66=3,IF($AF$2=2,(V66/SUMIF(Refurb_Poss_Tbl[Refurbishment Possible],I66,Refurb_Poss_Tbl[%]))*AG66,IF($AF$2=3,(V66*AG66)-AW66,V66*AG66)),0) -> 0 | BH66: =IF($AF66=3,IF($AF$2=2,(W66/SUMIF(Refurb_Poss_Tbl[Refurbishment Possible],I66,Refurb_Poss_Tbl[%]))*AG66,W66*$AG66),0) -> 0
A67: DredEA11 | B67: New channel | C67: Dredging Works | D67: DredEA1133 | E67: New channel-Excavation | F67: Dredging | G67: 120 | H67: 120 | I67: Not Possible | J67: 60 | K67: New Build | L67: 0 | M67: 0 | N67: 0 | O67: 2 | P67: 968.2248 | Q67: 968.2248 | R67: 33.77397315 | S67: 337.07328 | T67: 0.9941643774 | U67: 190.759147 | V67: 0 | W67: 694.8552145 | X67: 2225.680579 | Y67: 0 | Z67: 0 | AA67: 0 | AB67: 0 | AC67: 0.4970821887 | AD67: 168.53664 | AE67: 65 | AF67: 0 | AG67: =VLOOKUP(AE67,ValidationLists!$M$1:$N$102,2,FALSE) -> 0.1464132544 | AH67: =IF(AE67=0,Q67*AG67,0) -> 0 | AI67: =IF(AE67=0,R67*AG67,0) -> 0 | AJ67: =IF(AE67=0,S67*AG67,0) -> 0 | AK67: =IF(AE67=0,T67*AG67,0) -> 0 | AL67: =IF(AE67=0,U67*AG67,0) -> 0 | AM67: =IF(AE67=0,V67*AG67,0) -> 0 | AN67: =IF(AE67=0,W67*AG67,0) -> 0 | AO67: =IF(AE67=0,AH67+AI67+AJ67+AK67+AL67+AM67+AN67,0) -> 0 | AP67: =IF(OR(AF67=3,AF67=2,AF67=0),Y67*AG67,0) -> 0 | AQ67: =IF(OR(AF67=3,AF67=2,AF67=0),SUMIFS(FlatMaint!$Z$2:$Z$10000,FlatMaint!$A$2:$A$10000,D67,FlatMaint!$Y$2:$Y$10000,AE67)*AG67,0) -> 0 | AR67: =IF(OR(AF67=3,AF67=2,AF67=0),SUMIFS(FlatRepair!$Z$2:$Z$10000,FlatRepair!$A$2:$A$10000,D67,FlatRepair!$Y$2:$Y$10000,AE67)*AG67,0) -> 0 | AS67: =IF(OR(AF67=3,AF67=2,AF67=0),Z67*AG67,0) -> 0 | AT67: =AP67+AQ67+AR67+AS67 -> 0 | AU67: =IF(AF67=2,AA67*AG67,0) -> 0 | AV67: =IF(AF67=3,AB67*AG67,0) -> 0 | AW67: =IF(AF67=3,AC67*AG67,0) -> 0 | AX67: =IF(AF67=3,AD67*AG67,0) -> 0 | AY67: =IF($AF$2=3,BB67+BC67+BD67+BE67+BF67+BG67+BH67,BB67+BC67+BD67+BE67+BF67+BG67+BH67) -> 0 | AZ67: =AO67+AT67+AU67+AV67+AW67+AX67+AY67+BA67 -> 0 | BA67: =IFERROR(IF(AE67=100,IF(O67=3,(N67/H67)*(X67*AG67)*-1,(N67/M67)*(X67*AG67)*-1),0),0) -> 0 | BB67: =IF($AF67=3,IF($AF$2=2,(R67/SUMIF(Refurb_Poss_Tbl[Refurbishment Possible],I67,Refurb_Poss_Tbl[%]))*AG67,IF($AF$2=3,(R67*AG67)-AV67,R67*AG67)),0) -> 0 | BC67: =IF(AF67=3,IF($AF$2=2,(S67/SUMIF(Refurb_Poss_Tbl[Refurbishment Possible],I67,Refurb_Poss_Tbl[%]))*AG67,IF($AF$2=3,(S67*AG67)-AX67,S67*AG67)),0) -> 0 | BD67: =IF($AF67=3,IF($AF$2=2,(T67/SUMIF(Refurb_Poss_Tbl[Refurbishment Possible],I67,Refurb_Poss_Tbl[%]))*AG67,T67*$AG67),0) -> 0 | BE67: =IF($AF67=3,IF($AF$2=2,(Q67/SUMIF(Refurb_Poss_Tbl[Refurbishment Possible],I67,Refurb_Poss_Tbl[%]))*AG67,Q67*$AG67),0) -> 0 | BF67: =IF($AF67=3,IF($AF$2=2,(U67/SUMIF(Refurb_Poss_Tbl[Refurbishment Possible],I67,Refurb_Poss_Tbl[%]))*AG67,U67*$AG67),0) -> 0 | BG67: =IF($AF67=3,IF($AF$2=2,(V67/SUMIF(Refurb_Poss_Tbl[Refurbishment Possible],I67,Refurb_Poss_Tbl[%]))*AG67,IF($AF$2=3,(V67*AG67)-AW67,V67*AG67)),0) -> 0 | BH67: =IF($AF67=3,IF($AF$2=2,(W67/SUMIF(Refurb_Poss_Tbl[Refurbishment Possible],I67,Refurb_Poss_Tbl[%]))*AG67,W67*$AG67),0) -> 0
A68: DredEA11 | B68: New channel | C68: Dredging Works | D68: DredEA1133 | E68: New channel-Excavation | F68: Dredging | G68: 120 | H68: 120 | I68: Not Possible | J68: 60 | K68: New Build | L68: 0 | M68: 0 | N68: 0 | O68: 2 | P68: 968.2248 | Q68: 968.2248 | R68: 33.77397315 | S68: 337.07328 | T68: 0.9941643774 | U68: 190.759147 | V68: 0 | W68: 694.8552145 | X68: 2225.680579 | Y68: 0 | Z68: 0 | AA68: 0 | AB68: 0 | AC68: 0.4970821887 | AD68: 168.53664 | AE68: 66 | AF68: 0 | AG68: =VLOOKUP(AE68,ValidationLists!$M$1:$N$102,2,FALSE) -> 0.1421487907 | AH68: 0 | AI68: 0 | AJ68: 0 | AK68: 0 | AL68: 0 | AM68: 0 | AN68: 0 | AO68: 0 | AP68: 0 | AQ68: =IF(OR(AF68=3,AF68=2,AF68=0),SUMIFS(FlatMaint!$Z$2:$Z$10000,FlatMaint!$A$2:$A$10000,D68,FlatMaint!$Y$2:$Y$10000,AE68)*AG68,0) -> 13.76450228 | AR68: =IF(OR(AF68=3,AF68=2,AF68=0),SUMIFS(FlatRepair!$Z$2:$Z$10000,FlatRepair!$A$2:$A$10000,D68,FlatRepair!$Y$2:$Y$10000,AE68)*AG68,0) -> 0 | AS68: 0 | AT68: 13.76450228 | AU68: 0 | AV68: 0 | AW68: 0 | AX68: 0 | AY68: 0 | AZ68: 13.76450228 | BA68: 0 | BB68: =IF($AF68=3,IF($AF$2=2,(R68/SUMIF(Refurb_Poss_Tbl[Refurbishment Possible],I68,Refurb_Poss_Tbl[%]))*AG68,IF($AF$2=3,(R68*AG68)-AV68,R68*AG68)),0) -> 0 | BC68: =IF(AF68=3,IF($AF$2=2,(S68/SUMIF(Refurb_Poss_Tbl[Refurbishment Possible],I68,Refurb_Poss_Tbl[%]))*AG68,IF($AF$2=3,(S68*AG68)-AX68,S68*AG68)),0) -> 0 | BD68: =IF($AF68=3,IF($AF$2=2,(T68/SUMIF(Refurb_Poss_Tbl[Refurbishment Possible],I68,Refurb_Poss_Tbl[%]))*AG68,T68*$AG68),0) -> 0 | BE68: =IF($AF68=3,IF($AF$2=2,(Q68/SUMIF(Refurb_Poss_Tbl[Refurbishment Possible],I68,Refurb_Poss_Tbl[%]))*AG68,Q68*$AG68),0) -> 0 | BF68: =IF($AF68=3,IF($AF$2=2,(U68/SUMIF(Refurb_Poss_Tbl[Refurbishment Possible],I68,Refurb_Poss_Tbl[%]))*AG68,U68*$AG68),0) -> 0 | BG68: =IF($AF68=3,IF($AF$2=2,(V68/SUMIF(Refurb_Poss_Tbl[Refurbishment Possible],I68,Refurb_Poss_Tbl[%]))*AG68,IF($AF$2=3,(V68*AG68)-AW68,V68*AG68)),0) -> 0 | BH68: =IF($AF68=3,IF($AF$2=2,(W68/SUMIF(Refurb_Poss_Tbl[Refurbishment Possible],I68,Refurb_Poss_Tbl[%]))*AG68,W68*$AG68),0) -> 0
A69: DredEA11 | B69: New channel | C69: Dredging Works | D69: DredEA1133 | E69: New channel-Excavation | F69: Dredging | G69: 120 | H69: 120 | I69: Not Possible | J69: 60 | K69: New Build | L69: 0 | M69: 0 | N69: 0 | O69: 2 | P69: 968.2248 | Q69: 968.2248 | R69: 33.77397315 | S69: 337.07328 | T69: 0.9941643774 | U69: 190.759147 | V69: 0 | W69: 694.8552145 | X69: 2225.680579 | Y69: 0 | Z69: 0 | AA69: 0 | AB69: 0 | AC69: 0.4970821887 | AD69: 168.53664 | AE69: 67 | AF69: 0 | AG69: =VLOOKUP(AE69,ValidationLists!$M$1:$N$102,2,FALSE) -> 0.1380085347 | AH69: 0 | AI69: 0 | AJ69: 0 | AK69: 0 | AL69: 0 | AM69: 0 | AN69: 0 | AO69: 0 | AP69: 0 | AQ69: =IF(OR(AF69=3,AF69=2,AF69=0),SUMIFS(FlatMaint!$Z$2:$Z$10000,FlatMaint!$A$2:$A$10000,D69,FlatMaint!$Y$2:$Y$10000,AE69)*AG69,0) -> 0 | AR69: =IF(OR(AF69=3,AF69=2,AF69=0),SUMIFS(FlatRepair!$Z$2:$Z$10000,FlatRepair!$A$2:$A$10000,D69,FlatRepair!$Y$2:$Y$10000,AE69)*AG69,0) -> 0 | AS69: 0 | AT69: 0 | AU69: 0 | AV69: 0 | AW69: 0 | AX69: 0 | AY69: 0 | AZ69: 0 | BA69: 0 | BB69: =IF($AF69=3,IF($AF$2=2,(R69/SUMIF(Refurb_Poss_Tbl[Refurbishment Possible],I69,Refurb_Poss_Tbl[%]))*AG69,IF($AF$2=3,(R69*AG69)-AV69,R69*AG69)),0) -> 0 | BC69: =IF(AF69=3,IF($AF$2=2,(S69/SUMIF(Refurb_Poss_Tbl[Refurbishment Possible],I69,Refurb_Poss_Tbl[%]))*AG69,IF($AF$2=3,(S69*AG69)-AX69,S69*AG69)),0) -> 0 | BD69: =IF($AF69=3,IF($AF$2=2,(T69/SUMIF(Refurb_Poss_Tbl[Refurbishment Possible],I69,Refurb_Poss_Tbl[%]))*AG69,T69*$AG69),0) -> 0 | BE69: =IF($AF69=3,IF($AF$2=2,(Q69/SUMIF(Refurb_Poss_Tbl[Refurbishment Possible],I69,Refurb_Poss_Tbl[%]))*AG69,Q69*$AG69),0) -> 0 | BF69: =IF($AF69=3,IF($AF$2=2,(U69/SUMIF(Refurb_Poss_Tbl[Refurbishment Possible],I69,Refurb_Poss_Tbl[%]))*AG69,U69*$AG69),0) -> 0 | BG69: =IF($AF69=3,IF($AF$2=2,(V69/SUMIF(Refurb_Poss_Tbl[Refurbishment Possible],I69,Refurb_Poss_Tbl[%]))*AG69,IF($AF$2=3,(V69*AG69)-AW69,V69*AG69)),0) -> 0 | BH69: =IF($AF69=3,IF($AF$2=2,(W69/SUMIF(Refurb_Poss_Tbl[Refurbishment Possible],I69,Refurb_Poss_Tbl[%]))*AG69,W69*$AG69),0) -> 0
A70: DredEA11 | B70: New channel | C70: Dredging Works | D70: DredEA1133 | E70: New channel-Excavation | F70: Dredging | G70: 120 | H70: 120 | I70: Not Possible | J70: 60 | K70: New Build | L70: 0 | M70: 0 | N70: 0 | O70: 2 | P70: 968.2248 | Q70: 968.2248 | R70: 33.77397315 | S70: 337.07328 | T70: 0.9941643774 | U70: 190.759147 | V70: 0 | W70: 694.8552145 | X70: 2225.680579 | Y70: 0 | Z70: 0 | AA70: 0 | AB70: 0 | AC70: 0.4970821887 | AD70: 168.53664 | AE70: 68 | AF70: 0 | AG70: =VLOOKUP(AE70,ValidationLists!$M$1:$N$102,2,FALSE) -> 0.1339888686 | AH70: 0 | AI70: 0 | AJ70: 0 | AK70: 0 | AL70: 0 | AM70: 0 | AN70: 0 | AO70: 0 | AP70: 0 | AQ70: =IF(OR(AF70=3,AF70=2,AF70=0),SUMIFS(FlatMaint!$Z$2:$Z$10000,FlatMaint!$A$2:$A$10000,D70,FlatMaint!$Y$2:$Y$10000,AE70)*AG70,0) -> 12.97436354 | AR70: =IF(OR(AF70=3,AF70=2,AF70=0),SUMIFS(FlatRepair!$Z$2:$Z$10000,FlatRepair!$A$2:$A$10000,D70,FlatRepair!$Y$2:$Y$10000,AE70)*AG70,0) -> 0 | AS70: 0 | AT70: 12.97436354 | AU70: 0 | AV70: 0 | AW70: 0 | AX70: 0 | AY70: 0 | AZ70: 12.97436354 | BA70: 0 | BB70: =IF($AF70=3,IF($AF$2=2,(R70/SUMIF(Refurb_Poss_Tbl[Refurbishment Possible],I70,Refurb_Poss_Tbl[%]))*AG70,IF($AF$2=3,(R70*AG70)-AV70,R70*AG70)),0) -> 0 | BC70: =IF(AF70=3,IF($AF$2=2,(S70/SUMIF(Refurb_Poss_Tbl[Refurbishment Possible],I70,Refurb_Poss_Tbl[%]))*AG70,IF($AF$2=3,(S70*AG70)-AX70,S70*AG70)),0) -> 0 | BD70: =IF($AF70=3,IF($AF$2=2,(T70/SUMIF(Refurb_Poss_Tbl[Refurbishment Possible],I70,Refurb_Poss_Tbl[%]))*AG70,T70*$AG70),0) -> 0 | BE70: =IF($AF70=3,IF($AF$2=2,(Q70/SUMIF(Refurb_Poss_Tbl[Refurbishment Possible],I70,Refurb_Poss_Tbl[%]))*AG70,Q70*$AG70),0) -> 0 | BF70: =IF($AF70=3,IF($AF$2=2,(U70/SUMIF(Refurb_Poss_Tbl[Refurbishment Possible],I70,Refurb_Poss_Tbl[%]))*AG70,U70*$AG70),0) -> 0 | BG70: =IF($AF70=3,IF($AF$2=2,(V70/SUMIF(Refurb_Poss_Tbl[Refurbishment Possible],I70,Refurb_Poss_Tbl[%]))*AG70,IF($AF$2=3,(V70*AG70)-AW70,V70*AG70)),0) -> 0 | BH70: =IF($AF70=3,IF($AF$2=2,(W70/SUMIF(Refurb_Poss_Tbl[Refurbishment Possible],I70,Refurb_Poss_Tbl[%]))*AG70,W70*$AG70),0) -> 0
A71: DredEA11 | B71: New channel | C71: Dredging Works | D71: DredEA1133 | E71: New channel-Excavation | F71: Dredging | G71: 120 | H71: 120 | I71: Not Possible | J71: 60 | K71: New Build | L71: 0 | M71: 0 | N71: 0 | O71: 2 | P71: 968.2248 | Q71: 968.2248 | R71: 33.77397315 | S71: 337.07328 | T71: 0.9941643774 | U71: 190.759147 | V71: 0 | W71: 694.8552145 | X71: 2225.680579 | Y71: 0 | Z71: 0 | AA71: 0 | AB71: 0 | AC71: 0.4970821887 | AD71: 168.53664 | AE71: 69 | AF71: 0 | AG71: =VLOOKUP(AE71,ValidationLists!$M$1:$N$102,2,FALSE) -> 0.1300862802 | AH71: 0 | AI71: 0 | AJ71: 0 | AK71: 0 | AL71: 0 | AM71: 0 | AN71: 0 | AO71: 0 | AP71: 0 | AQ71: =IF(OR(AF71=3,AF71=2,AF71=0),SUMIFS(FlatMaint!$Z$2:$Z$10000,FlatMaint!$A$2:$A$10000,D71,FlatMaint!$Y$2:$Y$10000,AE71)*AG71,0) -> 0 | AR71: =IF(OR(AF71=3,AF71=2,AF71=0),SUMIFS(FlatRepair!$Z$2:$Z$10000,FlatRepair!$A$2:$A$10000,D71,FlatRepair!$Y$2:$Y$10000,AE71)*AG71,0) -> 0 | AS71: 0 | AT71: 0 | AU71: 0 | AV71: 0 | AW71: 0 | AX71: 0 | AY71: 0 | AZ71: 0 | BA71: 0 | BB71: =IF($AF71=3,IF($AF$2=2,(R71/SUMIF(Refurb_Poss_Tbl[Refurbishment Possible],I71,Refurb_Poss_Tbl[%]))*AG71,IF($AF$2=3,(R71*AG71)-AV71,R71*AG71)),0) -> 0 | BC71: =IF(AF71=3,IF($AF$2=2,(S71/SUMIF(Refurb_Poss_Tbl[Refurbishment Possible],I71,Refurb_Poss_Tbl[%]))*AG71,IF($AF$2=3,(S71*AG71)-AX71,S71*AG71)),0) -> 0 | BD71: =IF($AF71=3,IF($AF$2=2,(T71/SUMIF(Refurb_Poss_Tbl[Refurbishment Possible],I71,Refurb_Poss_Tbl[%]))*AG71,T71*$AG71),0) -> 0 | BE71: =IF($AF71=3,IF($AF$2=2,(Q71/SUMIF(Refurb_Poss_Tbl[Refurbishment Possible],I71,Refurb_Poss_Tbl[%]))*AG71,Q71*$AG71),0) -> 0 | BF71: =IF($AF71=3,IF($AF$2=2,(U71/SUMIF(Refurb_Poss_Tbl[Refurbishment Possible],I71,Refurb_Poss_Tbl[%]))*AG71,U71*$AG71),0) -> 0 | BG71: =IF($AF71=3,IF($AF$2=2,(V71/SUMIF(Refurb_Poss_Tbl[Refurbishment Possible],I71,Refurb_Poss_Tbl[%]))*AG71,IF($AF$2=3,(V71*AG71)-AW71,V71*AG71)),0) -> 0 | BH71: =IF($AF71=3,IF($AF$2=2,(W71/SUMIF(Refurb_Poss_Tbl[Refurbishment Possible],I71,Refurb_Poss_Tbl[%]))*AG71,W71*$AG71),0) -> 0
A72: DredEA11 | B72: New channel | C72: Dredging Works | D72: DredEA1133 | E72: New channel-Excavation | F72: Dredging | G72: 120 | H72: 120 | I72: Not Possible | J72: 60 | K72: New Build | L72: 0 | M72: 0 | N72: 0 | O72: 2 | P72: 968.2248 | Q72: 968.2248 | R72: 33.77397315 | S72: 337.07328 | T72: 0.9941643774 | U72: 190.759147 | V72: 0 | W72: 694.8552145 | X72: 2225.680579 | Y72: 0 | Z72: 0 | AA72: 0 | AB72: 0 | AC72: 0.4970821887 | AD72: 168.53664 | AE72: 70 | AF72: 0 | AG72: =VLOOKUP(AE72,ValidationLists!$M$1:$N$102,2,FALSE) -> 0.1262973594 | AH72: 0 | AI72: 0 | AJ72: 0 | AK72: 0 | AL72: 0 | AM72: 0 | AN72: 0 | AO72: 0 | AP72: 0 | AQ72: =IF(OR(AF72=3,AF72=2,AF72=0),SUMIFS(FlatMaint!$Z$2:$Z$10000,FlatMaint!$A$2:$A$10000,D72,FlatMaint!$Y$2:$Y$10000,AE72)*AG72,0) -> 12.22958199 | AR72: =IF(OR(AF72=3,AF72=2,AF72=0),SUMIFS(FlatRepair!$Z$2:$Z$10000,FlatRepair!$A$2:$A$10000,D72,FlatRepair!$Y$2:$Y$10000,AE72)*AG72,0) -> 0 | AS72: 0 | AT72: 12.22958199 | AU72: 0 | AV72: 0 | AW72: 0 | AX72: 0 | AY72: 0 | AZ72: 12.22958199 | BA72: 0 | BB72: =IF($AF72=3,IF($AF$2=2,(R72/SUMIF(Refurb_Poss_Tbl[Refurbishment Possible],I72,Refurb_Poss_Tbl[%]))*AG72,IF($AF$2=3,(R72*AG72)-AV72,R72*AG72)),0) -> 0 | BC72: =IF(AF72=3,IF($AF$2=2,(S72/SUMIF(Refurb_Poss_Tbl[Refurbishment Possible],I72,Refurb_Poss_Tbl[%]))*AG72,IF($AF$2=3,(S72*AG72)-AX72,S72*AG72)),0) -> 0 | BD72: =IF($AF72=3,IF($AF$2=2,(T72/SUMIF(Refurb_Poss_Tbl[Refurbishment Possible],I72,Refurb_Poss_Tbl[%]))*AG72,T72*$AG72),0) -> 0 | BE72: =IF($AF72=3,IF($AF$2=2,(Q72/SUMIF(Refurb_Poss_Tbl[Refurbishment Possible],I72,Refurb_Poss_Tbl[%]))*AG72,Q72*$AG72),0) -> 0 | BF72: =IF($AF72=3,IF($AF$2=2,(U72/SUMIF(Refurb_Poss_Tbl[Refurbishment Possible],I72,Refurb_Poss_Tbl[%]))*AG72,U72*$AG72),0) -> 0 | BG72: =IF($AF72=3,IF($AF$2=2,(V72/SUMIF(Refurb_Poss_Tbl[Refurbishment Possible],I72,Refurb_Poss_Tbl[%]))*AG72,IF($AF$2=3,(V72*AG72)-AW72,V72*AG72)),0) -> 0 | BH72: =IF($AF72=3,IF($AF$2=2,(W72/SUMIF(Refurb_Poss_Tbl[Refurbishment Possible],I72,Refurb_Poss_Tbl[%]))*AG72,W72*$AG72),0) -> 0
A73: DredEA11 | B73: New channel | C73: Dredging Works | D73: DredEA1133 | E73: New channel-Excavation | F73: Dredging | G73: 120 | H73: 120 | I73: Not Possible | J73: 60 | K73: New Build | L73: 0 | M73: 0 | N73: 0 | O73: 2 | P73: 968.2248 | Q73: 968.2248 | R73: 33.77397315 | S73: 337.07328 | T73: 0.9941643774 | U73: 190.759147 | V73: 0 | W73: 694.8552145 | X73: 2225.680579 | Y73: 0 | Z73: 0 | AA73: 0 | AB73: 0 | AC73: 0.4970821887 | AD73: 168.53664 | AE73: 71 | AF73: 0 | AG73: =VLOOKUP(AE73,ValidationLists!$M$1:$N$102,2,FALSE) -> 0.1226187956 | AH73: 0 | AI73: 0 | AJ73: 0 | AK73: 0 | AL73: 0 | AM73: 0 | AN73: 0 | AO73: 0 | AP73: 0 | AQ73: =IF(OR(AF73=3,AF73=2,AF73=0),SUMIFS(FlatMaint!$Z$2:$Z$10000,FlatMaint!$A$2:$A$10000,D73,FlatMaint!$Y$2:$Y$10000,AE73)*AG73,0) -> 0 | AR73: =IF(OR(AF73=3,AF73=2,AF73=0),SUMIFS(FlatRepair!$Z$2:$Z$10000,FlatRepair!$A$2:$A$10000,D73,FlatRepair!$Y$2:$Y$10000,AE73)*AG73,0) -> 0 | AS73: 0 | AT73: 0 | AU73: 0 | AV73: 0 | AW73: 0 | AX73: 0 | AY73: 0 | AZ73: 0 | BA73: 0 | BB73: =IF($AF73=3,IF($AF$2=2,(R73/SUMIF(Refurb_Poss_Tbl[Refurbishment Possible],I73,Refurb_Poss_Tbl[%]))*AG73,IF($AF$2=3,(R73*AG73)-AV73,R73*AG73)),0) -> 0 | BC73: =IF(AF73=3,IF($AF$2=2,(S73/SUMIF(Refurb_Poss_Tbl[Refurbishment Possible],I73,Refurb_Poss_Tbl[%]))*AG73,IF($AF$2=3,(S73*AG73)-AX73,S73*AG73)),0) -> 0 | BD73: =IF($AF73=3,IF($AF$2=2,(T73/SUMIF(Refurb_Poss_Tbl[Refurbishment Possible],I73,Refurb_Poss_Tbl[%]))*AG73,T73*$AG73),0) -> 0 | BE73: =IF($AF73=3,IF($AF$2=2,(Q73/SUMIF(Refurb_Poss_Tbl[Refurbishment Possible],I73,Refurb_Poss_Tbl[%]))*AG73,Q73*$AG73),0) -> 0 | BF73: =IF($AF73=3,IF($AF$2=2,(U73/SUMIF(Refurb_Poss_Tbl[Refurbishment Possible],I73,Refurb_Poss_Tbl[%]))*AG73,U73*$AG73),0) -> 0 | BG73: =IF($AF73=3,IF($AF$2=2,(V73/SUMIF(Refurb_Poss_Tbl[Refurbishment Possible],I73,Refurb_Poss_Tbl[%]))*AG73,IF($AF$2=3,(V73*AG73)-AW73,V73*AG73)),0) -> 0 | BH73: =IF($AF73=3,IF($AF$2=2,(W73/SUMIF(Refurb_Poss_Tbl[Refurbishment Possible],I73,Refurb_Poss_Tbl[%]))*AG73,W73*$AG73),0) -> 0
A74: DredEA11 | B74: New channel | C74: Dredging Works | D74: DredEA1133 | E74: New channel-Excavation | F74: Dredging | G74: 120 | H74: 120 | I74: Not Possible | J74: 60 | K74: New Build | L74: 0 | M74: 0 | N74: 0 | O74: 2 | P74: 968.2248 | Q74: 968.2248 | R74: 33.77397315 | S74: 337.07328 | T74: 0.9941643774 | U74: 190.759147 | V74: 0 | W74: 694.8552145 | X74: 2225.680579 | Y74: 0 | Z74: 0 | AA74: 0 | AB74: 0 | AC74: 0.4970821887 | AD74: 168.53664 | AE74: 72 | AF74: 0 | AG74: =VLOOKUP(AE74,ValidationLists!$M$1:$N$102,2,FALSE) -> 0.1190473743 | AH74: 0 | AI74: 0 | AJ74: 0 | AK74: 0 | AL74: 0 | AM74: 0 | AN74: 0 | AO74: 0 | AP74: 0 | AQ74: =IF(OR(AF74=3,AF74=2,AF74=0),SUMIFS(FlatMaint!$Z$2:$Z$10000,FlatMaint!$A$2:$A$10000,D74,FlatMaint!$Y$2:$Y$10000,AE74)*AG74,0) -> 11.52755396 | AR74: =IF(OR(AF74=3,AF74=2,AF74=0),SUMIFS(FlatRepair!$Z$2:$Z$10000,FlatRepair!$A$2:$A$10000,D74,FlatRepair!$Y$2:$Y$10000,AE74)*AG74,0) -> 0 | AS74: 0 | AT74: 11.52755396 | AU74: 0 | AV74: 0 | AW74: 0 | AX74: 0 | AY74: 0 | AZ74: 11.52755396 | BA74: 0 | BB74: =IF($AF74=3,IF($AF$2=2,(R74/SUMIF(Refurb_Poss_Tbl[Refurbishment Possible],I74,Refurb_Poss_Tbl[%]))*AG74,IF($AF$2=3,(R74*AG74)-AV74,R74*AG74)),0) -> 0 | BC74: =IF(AF74=3,IF($AF$2=2,(S74/SUMIF(Refurb_Poss_Tbl[Refurbishment Possible],I74,Refurb_Poss_Tbl[%]))*AG74,IF($AF$2=3,(S74*AG74)-AX74,S74*AG74)),0) -> 0 | BD74: =IF($AF74=3,IF($AF$2=2,(T74/SUMIF(Refurb_Poss_Tbl[Refurbishment Possible],I74,Refurb_Poss_Tbl[%]))*AG74,T74*$AG74),0) -> 0 | BE74: =IF($AF74=3,IF($AF$2=2,(Q74/SUMIF(Refurb_Poss_Tbl[Refurbishment Possible],I74,Refurb_Poss_Tbl[%]))*AG74,Q74*$AG74),0) -> 0 | BF74: =IF($AF74=3,IF($AF$2=2,(U74/SUMIF(Refurb_Poss_Tbl[Refurbishment Possible],I74,Refurb_Poss_Tbl[%]))*AG74,U74*$AG74),0) -> 0 | BG74: =IF($AF74=3,IF($AF$2=2,(V74/SUMIF(Refurb_Poss_Tbl[Refurbishment Possible],I74,Refurb_Poss_Tbl[%]))*AG74,IF($AF$2=3,(V74*AG74)-AW74,V74*AG74)),0) -> 0 | BH74: =IF($AF74=3,IF($AF$2=2,(W74/SUMIF(Refurb_Poss_Tbl[Refurbishment Possible],I74,Refurb_Poss_Tbl[%]))*AG74,W74*$AG74),0) -> 0
A75: DredEA11 | B75: New channel | C75: Dredging Works | D75: DredEA1133 | E75: New channel-Excavation | F75: Dredging | G75: 120 | H75: 120 | I75: Not Possible | J75: 60 | K75: New Build | L75: 0 | M75: 0 | N75: 0 | O75: 2 | P75: 968.2248 | Q75: 968.2248 | R75: 33.77397315 | S75: 337.07328 | T75: 0.9941643774 | U75: 190.759147 | V75: 0 | W75: 694.8552145 | X75: 2225.680579 | Y75: 0 | Z75: 0 | AA75: 0 | AB75: 0 | AC75: 0.4970821887 | AD75: 168.53664 | AE75: 73 | AF75: 0 | AG75: =VLOOKUP(AE75,ValidationLists!$M$1:$N$102,2,FALSE) -> 0.1155799751 | AH75: 0 | AI75: 0 | AJ75: 0 | AK75: 0 | AL75: 0 | AM75: 0 | AN75: 0 | AO75: 0 | AP75: 0 | AQ75: =IF(OR(AF75=3,AF75=2,AF75=0),SUMIFS(FlatMaint!$Z$2:$Z$10000,FlatMaint!$A$2:$A$10000,D75,FlatMaint!$Y$2:$Y$10000,AE75)*AG75,0) -> 0 | AR75: =IF(OR(AF75=3,AF75=2,AF75=0),SUMIFS(FlatRepair!$Z$2:$Z$10000,FlatRepair!$A$2:$A$10000,D75,FlatRepair!$Y$2:$Y$10000,AE75)*AG75,0) -> 0 | AS75: 0 | AT75: 0 | AU75: 0 | AV75: 0 | AW75: 0 | AX75: 0 | AY75: 0 | AZ75: 0 | BA75: 0 | BB75: =IF($AF75=3,IF($AF$2=2,(R75/SUMIF(Refurb_Poss_Tbl[Refurbishment Possible],I75,Refurb_Poss_Tbl[%]))*AG75,IF($AF$2=3,(R75*AG75)-AV75,R75*AG75)),0) -> 0 | BC75: =IF(AF75=3,IF($AF$2=2,(S75/SUMIF(Refurb_Poss_Tbl[Refurbishment Possible],I75,Refurb_Poss_Tbl[%]))*AG75,IF($AF$2=3,(S75*AG75)-AX75,S75*AG75)),0) -> 0 | BD75: =IF($AF75=3,IF($AF$2=2,(T75/SUMIF(Refurb_Poss_Tbl[Refurbishment Possible],I75,Refurb_Poss_Tbl[%]))*AG75,T75*$AG75),0) -> 0 | BE75: =IF($AF75=3,IF($AF$2=2,(Q75/SUMIF(Refurb_Poss_Tbl[Refurbishment Possible],I75,Refurb_Poss_Tbl[%]))*AG75,Q75*$AG75),0) -> 0 | BF75: =IF($AF75=3,IF($AF$2=2,(U75/SUMIF(Refurb_Poss_Tbl[Refurbishment Possible],I75,Refurb_Poss_Tbl[%]))*AG75,U75*$AG75),0) -> 0 | BG75: =IF($AF75=3,IF($AF$2=2,(V75/SUMIF(Refurb_Poss_Tbl[Refurbishment Possible],I75,Refurb_Poss_Tbl[%]))*AG75,IF($AF$2=3,(V75*AG75)-AW75,V75*AG75)),0) -> 0 | BH75: =IF($AF75=3,IF($AF$2=2,(W75/SUMIF(Refurb_Poss_Tbl[Refurbishment Possible],I75,Refurb_Poss_Tbl[%]))*AG75,W75*$AG75),0) -> 0
A76: DredEA11 | B76: New channel | C76: Dredging Works | D76: DredEA1133 | E76: New channel-Excavation | F76: Dredging | G76: 120 | H76: 120 | I76: Not Possible | J76: 60 | K76: New Build | L76: 0 | M76: 0 | N76: 0 | O76: 2 | P76: 968.2248 | Q76: 968.2248 | R76: 33.77397315 | S76: 337.07328 | T76: 0.9941643774 | U76: 190.759147 | V76: 0 | W76: 694.8552145 | X76: 2225.680579 | Y76: 0 | Z76: 0 | AA76: 0 | AB76: 0 | AC76: 0.4970821887 | AD76: 168.53664 | AE76: 74 | AF76: 0 | AG76: =VLOOKUP(AE76,ValidationLists!$M$1:$N$102,2,FALSE) -> 0.112213568 | AH76: 0 | AI76: 0 | AJ76: 0 | AK76: 0 | AL76: 0 | AM76: 0 | AN76: 0 | AO76: 0 | AP76: 0 | AQ76: =IF(OR(AF76=3,AF76=2,AF76=0),SUMIFS(FlatMaint!$Z$2:$Z$10000,FlatMaint!$A$2:$A$10000,D76,FlatMaint!$Y$2:$Y$10000,AE76)*AG76,0) -> 10.8658252 | AR76: =IF(OR(AF76=3,AF76=2,AF76=0),SUMIFS(FlatRepair!$Z$2:$Z$10000,FlatRepair!$A$2:$A$10000,D76,FlatRepair!$Y$2:$Y$10000,AE76)*AG76,0) -> 0 | AS76: 0 | AT76: 10.8658252 | AU76: 0 | AV76: 0 | AW76: 0 | AX76: 0 | AY76: 0 | AZ76: 10.8658252 | BA76: 0 | BB76: =IF($AF76=3,IF($AF$2=2,(R76/SUMIF(Refurb_Poss_Tbl[Refurbishment Possible],I76,Refurb_Poss_Tbl[%]))*AG76,IF($AF$2=3,(R76*AG76)-AV76,R76*AG76)),0) -> 0 | BC76: =IF(AF76=3,IF($AF$2=2,(S76/SUMIF(Refurb_Poss_Tbl[Refurbishment Possible],I76,Refurb_Poss_Tbl[%]))*AG76,IF($AF$2=3,(S76*AG76)-AX76,S76*AG76)),0) -> 0 | BD76: =IF($AF76=3,IF($AF$2=2,(T76/SUMIF(Refurb_Poss_Tbl[Refurbishment Possible],I76,Refurb_Poss_Tbl[%]))*AG76,T76*$AG76),0) -> 0 | BE76: =IF($AF76=3,IF($AF$2=2,(Q76/SUMIF(Refurb_Poss_Tbl[Refurbishment Possible],I76,Refurb_Poss_Tbl[%]))*AG76,Q76*$AG76),0) -> 0 | BF76: =IF($AF76=3,IF($AF$2=2,(U76/SUMIF(Refurb_Poss_Tbl[Refurbishment Possible],I76,Refurb_Poss_Tbl[%]))*AG76,U76*$AG76),0) -> 0 | BG76: =IF($AF76=3,IF($AF$2=2,(V76/SUMIF(Refurb_Poss_Tbl[Refurbishment Possible],I76,Refurb_Poss_Tbl[%]))*AG76,IF($AF$2=3,(V76*AG76)-AW76,V76*AG76)),0) -> 0 | BH76: =IF($AF76=3,IF($AF$2=2,(W76/SUMIF(Refurb_Poss_Tbl[Refurbishment Possible],I76,Refurb_Poss_Tbl[%]))*AG76,W76*$AG76),0) -> 0
A77: DredEA11 | B77: New channel | C77: Dredging Works | D77: DredEA1133 | E77: New channel-Excavation | F77: Dredging | G77: 120 | H77: 120 | I77: Not Possible | J77: 60 | K77: New Build | L77: 0 | M77: 0 | N77: 0 | O77: 2 | P77: 968.2248 | Q77: 968.2248 | R77: 33.77397315 | S77: 337.07328 | T77: 0.9941643774 | U77: 190.759147 | V77: 0 | W77: 694.8552145 | X77: 2225.680579 | Y77: 0 | Z77: 0 | AA77: 0 | AB77: 0 | AC77: 0.4970821887 | AD77: 168.53664 | AE77: 75 | AF77: 0 | AG77: =VLOOKUP(AE77,ValidationLists!$M$1:$N$102,2,FALSE) -> 0.1089452117 | AH77: 0 | AI77: 0 | AJ77: 0 | AK77: 0 | AL77: 0 | AM77: 0 | AN77: 0 | AO77: 0 | AP77: 0 | AQ77: =IF(OR(AF77=3,AF77=2,AF77=0),SUMIFS(FlatMaint!$Z$2:$Z$10000,FlatMaint!$A$2:$A$10000,D77,FlatMaint!$Y$2:$Y$10000,AE77)*AG77,0) -> 0 | AR77: =IF(OR(AF77=3,AF77=2,AF77=0),SUMIFS(FlatRepair!$Z$2:$Z$10000,FlatRepair!$A$2:$A$10000,D77,FlatRepair!$Y$2:$Y$10000,AE77)*AG77,0) -> 0 | AS77: 0 | AT77: 0 | AU77: 0 | AV77: 0 | AW77: 0 | AX77: 0 | AY77: 0 | AZ77: 0 | BA77: 0 | BB77: =IF($AF77=3,IF($AF$2=2,(R77/SUMIF(Refurb_Poss_Tbl[Refurbishment Possible],I77,Refurb_Poss_Tbl[%]))*AG77,IF($AF$2=3,(R77*AG77)-AV77,R77*AG77)),0) -> 0 | BC77: =IF(AF77=3,IF($AF$2=2,(S77/SUMIF(Refurb_Poss_Tbl[Refurbishment Possible],I77,Refurb_Poss_Tbl[%]))*AG77,IF($AF$2=3,(S77*AG77)-AX77,S77*AG77)),0) -> 0 | BD77: =IF($AF77=3,IF($AF$2=2,(T77/SUMIF(Refurb_Poss_Tbl[Refurbishment Possible],I77,Refurb_Poss_Tbl[%]))*AG77,T77*$AG77),0) -> 0 | BE77: =IF($AF77=3,IF($AF$2=2,(Q77/SUMIF(Refurb_Poss_Tbl[Refurbishment Possible],I77,Refurb_Poss_Tbl[%]))*AG77,Q77*$AG77),0) -> 0 | BF77: =IF($AF77=3,IF($AF$2=2,(U77/SUMIF(Refurb_Poss_Tbl[Refurbishment Possible],I77,Refurb_Poss_Tbl[%]))*AG77,U77*$AG77),0) -> 0 | BG77: =IF($AF77=3,IF($AF$2=2,(V77/SUMIF(Refurb_Poss_Tbl[Refurbishment Possible],I77,Refurb_Poss_Tbl[%]))*AG77,IF($AF$2=3,(V77*AG77)-AW77,V77*AG77)),0) -> 0 | BH77: =IF($AF77=3,IF($AF$2=2,(W77/SUMIF(Refurb_Poss_Tbl[Refurbishment Possible],I77,Refurb_Poss_Tbl[%]))*AG77,W77*$AG77),0) -> 0
A78: DredEA11 | B78: New channel | C78: Dredging Works | D78: DredEA1133 | E78: New channel-Excavation | F78: Dredging | G78: 120 | H78: 120 | I78: Not Possible | J78: 60 | K78: New Build | L78: 0 | M78: 0 | N78: 0 | O78: 2 | P78: 968.2248 | Q78: 968.2248 | R78: 33.77397315 | S78: 337.07328 | T78: 0.9941643774 | U78: 190.759147 | V78: 0 | W78: 694.8552145 | X78: 2225.680579 | Y78: 0 | Z78: 0 | AA78: 0 | AB78: 0 | AC78: 0.4970821887 | AD78: 168.53664 | AE78: 76 | AF78: 0 | AG78: =VLOOKUP(AE78,ValidationLists!$M$1:$N$102,2,FALSE) -> 0.1531038918 | AH78: 0 | AI78: 0 | AJ78: 0 | AK78: 0 | AL78: 0 | AM78: 0 | AN78: 0 | AO78: 0 | AP78: 0 | AQ78: =IF(OR(AF78=3,AF78=2,AF78=0),SUMIFS(FlatMaint!$Z$2:$Z$10000,FlatMaint!$A$2:$A$10000,D78,FlatMaint!$Y$2:$Y$10000,AE78)*AG78,0) -> 14.82530281 | AR78: =IF(OR(AF78=3,AF78=2,AF78=0),SUMIFS(FlatRepair!$Z$2:$Z$10000,FlatRepair!$A$2:$A$10000,D78,FlatRepair!$Y$2:$Y$10000,AE78)*AG78,0) -> 0 | AS78: 0 | AT78: 14.82530281 | AU78: 0 | AV78: 0 | AW78: 0 | AX78: 0 | AY78: 0 | AZ78: 14.82530281 | BA78: 0 | BB78: =IF($AF78=3,IF($AF$2=2,(R78/SUMIF(Refurb_Poss_Tbl[Refurbishment Possible],I78,Refurb_Poss_Tbl[%]))*AG78,IF($AF$2=3,(R78*AG78)-AV78,R78*AG78)),0) -> 0 | BC78: =IF(AF78=3,IF($AF$2=2,(S78/SUMIF(Refurb_Poss_Tbl[Refurbishment Possible],I78,Refurb_Poss_Tbl[%]))*AG78,IF($AF$2=3,(S78*AG78)-AX78,S78*AG78)),0) -> 0 | BD78: =IF($AF78=3,IF($AF$2=2,(T78/SUMIF(Refurb_Poss_Tbl[Refurbishment Possible],I78,Refurb_Poss_Tbl[%]))*AG78,T78*$AG78),0) -> 0 | BE78: =IF($AF78=3,IF($AF$2=2,(Q78/SUMIF(Refurb_Poss_Tbl[Refurbishment Possible],I78,Refurb_Poss_Tbl[%]))*AG78,Q78*$AG78),0) -> 0 | BF78: =IF($AF78=3,IF($AF$2=2,(U78/SUMIF(Refurb_Poss_Tbl[Refurbishment Possible],I78,Refurb_Poss_Tbl[%]))*AG78,U78*$AG78),0) -> 0 | BG78: =IF($AF78=3,IF($AF$2=2,(V78/SUMIF(Refurb_Poss_Tbl[Refurbishment Possible],I78,Refurb_Poss_Tbl[%]))*AG78,IF($AF$2=3,(V78*AG78)-AW78,V78*AG78)),0) -> 0 | BH78: =IF($AF78=3,IF($AF$2=2,(W78/SUMIF(Refurb_Poss_Tbl[Refurbishment Possible],I78,Refurb_Poss_Tbl[%]))*AG78,W78*$AG78),0) -> 0
A79: DredEA11 | B79: New channel | C79: Dredging Works | D79: DredEA1133 | E79: New channel-Excavation | F79: Dredging | G79: 120 | H79: 120 | I79: Not Possible | J79: 60 | K79: New Build | L79: 0 | M79: 0 | N79: 0 | O79: 2 | P79: 968.2248 | Q79: 968.2248 | R79: 33.77397315 | S79: 337.07328 | T79: 0.9941643774 | U79: 190.759147 | V79: 0 | W79: 694.8552145 | X79: 2225.680579 | Y79: 0 | Z79: 0 | AA79: 0 | AB79: 0 | AC79: 0.4970821887 | AD79: 168.53664 | AE79: 77 | AF79: 0 | AG79: =VLOOKUP(AE79,ValidationLists!$M$1:$N$102,2,FALSE) -> 0.1493696505 | AH79: 0 | AI79: 0 | AJ79: 0 | AK79: 0 | AL79: 0 | AM79: 0 | AN79: 0 | AO79: 0 | AP79: 0 | AQ79: =IF(OR(AF79=3,AF79=2,AF79=0),SUMIFS(FlatMaint!$Z$2:$Z$10000,FlatMaint!$A$2:$A$10000,D79,FlatMaint!$Y$2:$Y$10000,AE79)*AG79,0) -> 0 | AR79: =IF(OR(AF79=3,AF79=2,AF79=0),SUMIFS(FlatRepair!$Z$2:$Z$10000,FlatRepair!$A$2:$A$10000,D79,FlatRepair!$Y$2:$Y$10000,AE79)*AG79,0) -> 0 | AS79: 0 | AT79: 0 | AU79: 0 | AV79: 0 | AW79: 0 | AX79: 0 | AY79: 0 | AZ79: 0 | BA79: 0 | BB79: =IF($AF79=3,IF($AF$2=2,(R79/SUMIF(Refurb_Poss_Tbl[Refurbishment Possible],I79,Refurb_Poss_Tbl[%]))*AG79,IF($AF$2=3,(R79*AG79)-AV79,R79*AG79)),0) -> 0 | BC79: =IF(AF79=3,IF($AF$2=2,(S79/SUMIF(Refurb_Poss_Tbl[Refurbishment Possible],I79,Refurb_Poss_Tbl[%]))*AG79,IF($AF$2=3,(S79*AG79)-AX79,S79*AG79)),0) -> 0 | BD79: =IF($AF79=3,IF($AF$2=2,(T79/SUMIF(Refurb_Poss_Tbl[Refurbishment Possible],I79,Refurb_Poss_Tbl[%]))*AG79,T79*$AG79),0) -> 0 | BE79: =IF($AF79=3,IF($AF$2=2,(Q79/SUMIF(Refurb_Poss_Tbl[Refurbishment Possible],I79,Refurb_Poss_Tbl[%]))*AG79,Q79*$AG79),0) -> 0 | BF79: =IF($AF79=3,IF($AF$2=2,(U79/SUMIF(Refurb_Poss_Tbl[Refurbishment Possible],I79,Refurb_Poss_Tbl[%]))*AG79,U79*$AG79),0) -> 0 | BG79: =IF($AF79=3,IF($AF$2=2,(V79/SUMIF(Refurb_Poss_Tbl[Refurbishment Possible],I79,Refurb_Poss_Tbl[%]))*AG79,IF($AF$2=3,(V79*AG79)-AW79,V79*AG79)),0) -> 0 | BH79: =IF($AF79=3,IF($AF$2=2,(W79/SUMIF(Refurb_Poss_Tbl[Refurbishment Possible],I79,Refurb_Poss_Tbl[%]))*AG79,W79*$AG79),0) -> 0
A80: DredEA11 | B80: New channel | C80: Dredging Works | D80: DredEA1133 | E80: New channel-Excavation | F80: Dredging | G80: 120 | H80: 120 | I80: Not Possible | J80: 60 | K80: New Build | L80: 0 | M80: 0 | N80: 0 | O80: 2 | P80: 968.2248 | Q80: 968.2248 | R80: 33.77397315 | S80: 337.07328 | T80: 0.9941643774 | U80: 190.759147 | V80: 0 | W80: 694.8552145 | X80: 2225.680579 | Y80: 0 | Z80: 0 | AA80: 0 | AB80: 0 | AC80: 0.4970821887 | AD80: 168.53664 | AE80: 78 | AF80: 0 | AG80: =VLOOKUP(AE80,ValidationLists!$M$1:$N$102,2,FALSE) -> 0.1457264883 | AH80: 0 | AI80: 0 | AJ80: 0 | AK80: 0 | AL80: 0 | AM80: 0 | AN80: 0 | AO80: 0 | AP80: 0 | AQ80: =IF(OR(AF80=3,AF80=2,AF80=0),SUMIFS(FlatMaint!$Z$2:$Z$10000,FlatMaint!$A$2:$A$10000,D80,FlatMaint!$Y$2:$Y$10000,AE80)*AG80,0) -> 14.11093664 | AR80: =IF(OR(AF80=3,AF80=2,AF80=0),SUMIFS(FlatRepair!$Z$2:$Z$10000,FlatRepair!$A$2:$A$10000,D80,FlatRepair!$Y$2:$Y$10000,AE80)*AG80,0) -> 0 | AS80: 0 | AT80: 14.11093664 | AU80: 0 | AV80: 0 | AW80: 0 | AX80: 0 | AY80: 0 | AZ80: 14.11093664 | BA80: 0 | BB80: =IF($AF80=3,IF($AF$2=2,(R80/SUMIF(Refurb_Poss_Tbl[Refurbishment Possible],I80,Refurb_Poss_Tbl[%]))*AG80,IF($AF$2=3,(R80*AG80)-AV80,R80*AG80)),0) -> 0 | BC80: =IF(AF80=3,IF($AF$2=2,(S80/SUMIF(Refurb_Poss_Tbl[Refurbishment Possible],I80,Refurb_Poss_Tbl[%]))*AG80,IF($AF$2=3,(S80*AG80)-AX80,S80*AG80)),0) -> 0 | BD80: =IF($AF80=3,IF($AF$2=2,(T80/SUMIF(Refurb_Poss_Tbl[Refurbishment Possible],I80,Refurb_Poss_Tbl[%]))*AG80,T80*$AG80),0) -> 0 | BE80: =IF($AF80=3,IF($AF$2=2,(Q80/SUMIF(Refurb_Poss_Tbl[Refurbishment Possible],I80,Refurb_Poss_Tbl[%]))*AG80,Q80*$AG80),0) -> 0 | BF80: =IF($AF80=3,IF($AF$2=2,(U80/SUMIF(Refurb_Poss_Tbl[Refurbishment Possible],I80,Refurb_Poss_Tbl[%]))*AG80,U80*$AG80),0) -> 0 | BG80: =IF($AF80=3,IF($AF$2=2,(V80/SUMIF(Refurb_Poss_Tbl[Refurbishment Possible],I80,Refurb_Poss_Tbl[%]))*AG80,IF($AF$2=3,(V80*AG80)-AW80,V80*AG80)),0) -> 0 | BH80: =IF($AF80=3,IF($AF$2=2,(W80/SUMIF(Refurb_Poss_Tbl[Refurbishment Possible],I80,Refurb_Poss_Tbl[%]))*AG80,W80*$AG80),0) -> 0
A81: DredEA11 | B81: New channel | C81: Dredging Works | D81: DredEA1133 | E81: New channel-Excavation | F81: Dredging | G81: 120 | H81: 120 | I81: Not Possible | J81: 60 | K81: New Build | L81: 0 | M81: 0 | N81: 0 | O81: 2 | P81: 968.2248 | Q81: 968.2248 | R81: 33.77397315 | S81: 337.07328 | T81: 0.9941643774 | U81: 190.759147 | V81: 0 | W81: 694.8552145 | X81: 2225.680579 | Y81: 0 | Z81: 0 | AA81: 0 | AB81: 0 | AC81: 0.4970821887 | AD81: 168.53664 | AE81: 79 | AF81: 0 | AG81: =VLOOKUP(AE81,ValidationLists!$M$1:$N$102,2,FALSE) -> 0.1421721837 | AH81: 0 | AI81: 0 | AJ81: 0 | AK81: 0 | AL81: 0 | AM81: 0 | AN81: 0 | AO81: 0 | AP81: 0 | AQ81: =IF(OR(AF81=3,AF81=2,AF81=0),SUMIFS(FlatMaint!$Z$2:$Z$10000,FlatMaint!$A$2:$A$10000,D81,FlatMaint!$Y$2:$Y$10000,AE81)*AG81,0) -> 0 | AR81: =IF(OR(AF81=3,AF81=2,AF81=0),SUMIFS(FlatRepair!$Z$2:$Z$10000,FlatRepair!$A$2:$A$10000,D81,FlatRepair!$Y$2:$Y$10000,AE81)*AG81,0) -> 0 | AS81: 0 | AT81: 0 | AU81: 0 | AV81: 0 | AW81: 0 | AX81: 0 | AY81: 0 | AZ81: 0 | BA81: 0 | BB81: =IF($AF81=3,IF($AF$2=2,(R81/SUMIF(Refurb_Poss_Tbl[Refurbishment Possible],I81,Refurb_Poss_Tbl[%]))*AG81,IF($AF$2=3,(R81*AG81)-AV81,R81*AG81)),0) -> 0 | BC81: =IF(AF81=3,IF($AF$2=2,(S81/SUMIF(Refurb_Poss_Tbl[Refurbishment Possible],I81,Refurb_Poss_Tbl[%]))*AG81,IF($AF$2=3,(S81*AG81)-AX81,S81*AG81)),0) -> 0 | BD81: =IF($AF81=3,IF($AF$2=2,(T81/SUMIF(Refurb_Poss_Tbl[Refurbishment Possible],I81,Refurb_Poss_Tbl[%]))*AG81,T81*$AG81),0) -> 0 | BE81: =IF($AF81=3,IF($AF$2=2,(Q81/SUMIF(Refurb_Poss_Tbl[Refurbishment Possible],I81,Refurb_Poss_Tbl[%]))*AG81,Q81*$AG81),0) -> 0 | BF81: =IF($AF81=3,IF($AF$2=2,(U81/SUMIF(Refurb_Poss_Tbl[Refurbishment Possible],I81,Refurb_Poss_Tbl[%]))*AG81,U81*$AG81),0) -> 0 | BG81: =IF($AF81=3,IF($AF$2=2,(V81/SUMIF(Refurb_Poss_Tbl[Refurbishment Possible],I81,Refurb_Poss_Tbl[%]))*AG81,IF($AF$2=3,(V81*AG81)-AW81,V81*AG81)),0) -> 0 | BH81: =IF($AF81=3,IF($AF$2=2,(W81/SUMIF(Refurb_Poss_Tbl[Refurbishment Possible],I81,Refurb_Poss_Tbl[%]))*AG81,W81*$AG81),0) -> 0
A82: DredEA11 | B82: New channel | C82: Dredging Works | D82: DredEA1133 | E82: New channel-Excavation | F82: Dredging | G82: 120 | H82: 120 | I82: Not Possible | J82: 60 | K82: New Build | L82: 0 | M82: 0 | N82: 0 | O82: 2 | P82: 968.2248 | Q82: 968.2248 | R82: 33.77397315 | S82: 337.07328 | T82: 0.9941643774 | U82: 190.759147 | V82: 0 | W82: 694.8552145 | X82: 2225.680579 | Y82: 0 | Z82: 0 | AA82: 0 | AB82: 0 | AC82: 0.4970821887 | AD82: 168.53664 | AE82: 80 | AF82: 0 | AG82: =VLOOKUP(AE82,ValidationLists!$M$1:$N$102,2,FALSE) -> 0.1387045695 | AH82: 0 | AI82: 0 | AJ82: 0 | AK82: 0 | AL82: 0 | AM82: 0 | AN82: 0 | AO82: 0 | AP82: 0 | AQ82: =IF(OR(AF82=3,AF82=2,AF82=0),SUMIFS(FlatMaint!$Z$2:$Z$10000,FlatMaint!$A$2:$A$10000,D82,FlatMaint!$Y$2:$Y$10000,AE82)*AG82,0) -> 13.43099264 | AR82: =IF(OR(AF82=3,AF82=2,AF82=0),SUMIFS(FlatRepair!$Z$2:$Z$10000,FlatRepair!$A$2:$A$10000,D82,FlatRepair!$Y$2:$Y$10000,AE82)*AG82,0) -> 0 | AS82: 0 | AT82: 13.43099264 | AU82: 0 | AV82: 0 | AW82: 0 | AX82: 0 | AY82: 0 | AZ82: 13.43099264 | BA82: 0 | BB82: =IF($AF82=3,IF($AF$2=2,(R82/SUMIF(Refurb_Poss_Tbl[Refurbishment Possible],I82,Refurb_Poss_Tbl[%]))*AG82,IF($AF$2=3,(R82*AG82)-AV82,R82*AG82)),0) -> 0 | BC82: =IF(AF82=3,IF($AF$2=2,(S82/SUMIF(Refurb_Poss_Tbl[Refurbishment Possible],I82,Refurb_Poss_Tbl[%]))*AG82,IF($AF$2=3,(S82*AG82)-AX82,S82*AG82)),0) -> 0 | BD82: =IF($AF82=3,IF($AF$2=2,(T82/SUMIF(Refurb_Poss_Tbl[Refurbishment Possible],I82,Refurb_Poss_Tbl[%]))*AG82,T82*$AG82),0) -> 0 | BE82: =IF($AF82=3,IF($AF$2=2,(Q82/SUMIF(Refurb_Poss_Tbl[Refurbishment Possible],I82,Refurb_Poss_Tbl[%]))*AG82,Q82*$AG82),0) -> 0 | BF82: =IF($AF82=3,IF($AF$2=2,(U82/SUMIF(Refurb_Poss_Tbl[Refurbishment Possible],I82,Refurb_Poss_Tbl[%]))*AG82,U82*$AG82),0) -> 0 | BG82: =IF($AF82=3,IF($AF$2=2,(V82/SUMIF(Refurb_Poss_Tbl[Refurbishment Possible],I82,Refurb_Poss_Tbl[%]))*AG82,IF($AF$2=3,(V82*AG82)-AW82,V82*AG82)),0) -> 0 | BH82: =IF($AF82=3,IF($AF$2=2,(W82/SUMIF(Refurb_Poss_Tbl[Refurbishment Possible],I82,Refurb_Poss_Tbl[%]))*AG82,W82*$AG82),0) -> 0
A83: DredEA11 | B83: New channel | C83: Dredging Works | D83: DredEA1133 | E83: New channel-Excavation | F83: Dredging | G83: 120 | H83: 120 | I83: Not Possible | J83: 60 | K83: New Build | L83: 0 | M83: 0 | N83: 0 | O83: 2 | P83: 968.2248 | Q83: 968.2248 | R83: 33.77397315 | S83: 337.07328 | T83: 0.9941643774 | U83: 190.759147 | V83: 0 | W83: 694.8552145 | X83: 2225.680579 | Y83: 0 | Z83: 0 | AA83: 0 | AB83: 0 | AC83: 0.4970821887 | AD83: 168.53664 | AE83: 81 | AF83: 0 | AG83: =VLOOKUP(AE83,ValidationLists!$M$1:$N$102,2,FALSE) -> 0.1353215312 | AH83: 0 | AI83: 0 | AJ83: 0 | AK83: 0 | AL83: 0 | AM83: 0 | AN83: 0 | AO83: 0 | AP83: 0 | AQ83: =IF(OR(AF83=3,AF83=2,AF83=0),SUMIFS(FlatMaint!$Z$2:$Z$10000,FlatMaint!$A$2:$A$10000,D83,FlatMaint!$Y$2:$Y$10000,AE83)*AG83,0) -> 0 | AR83: =IF(OR(AF83=3,AF83=2,AF83=0),SUMIFS(FlatRepair!$Z$2:$Z$10000,FlatRepair!$A$2:$A$10000,D83,FlatRepair!$Y$2:$Y$10000,AE83)*AG83,0) -> 0 | AS83: 0 | AT83: 0 | AU83: 0 | AV83: 0 | AW83: 0 | AX83: 0 | AY83: 0 | AZ83: 0 | BA83: 0 | BB83: =IF($AF83=3,IF($AF$2=2,(R83/SUMIF(Refurb_Poss_Tbl[Refurbishment Possible],I83,Refurb_Poss_Tbl[%]))*AG83,IF($AF$2=3,(R83*AG83)-AV83,R83*AG83)),0) -> 0 | BC83: =IF(AF83=3,IF($AF$2=2,(S83/SUMIF(Refurb_Poss_Tbl[Refurbishment Possible],I83,Refurb_Poss_Tbl[%]))*AG83,IF($AF$2=3,(S83*AG83)-AX83,S83*AG83)),0) -> 0 | BD83: =IF($AF83=3,IF($AF$2=2,(T83/SUMIF(Refurb_Poss_Tbl[Refurbishment Possible],I83,Refurb_Poss_Tbl[%]))*AG83,T83*$AG83),0) -> 0 | BE83: =IF($AF83=3,IF($AF$2=2,(Q83/SUMIF(Refurb_Poss_Tbl[Refurbishment Possible],I83,Refurb_Poss_Tbl[%]))*AG83,Q83*$AG83),0) -> 0 | BF83: =IF($AF83=3,IF($AF$2=2,(U83/SUMIF(Refurb_Poss_Tbl[Refurbishment Possible],I83,Refurb_Poss_Tbl[%]))*AG83,U83*$AG83),0) -> 0 | BG83: =IF($AF83=3,IF($AF$2=2,(V83/SUMIF(Refurb_Poss_Tbl[Refurbishment Possible],I83,Refurb_Poss_Tbl[%]))*AG83,IF($AF$2=3,(V83*AG83)-AW83,V83*AG83)),0) -> 0 | BH83: =IF($AF83=3,IF($AF$2=2,(W83/SUMIF(Refurb_Poss_Tbl[Refurbishment Possible],I83,Refurb_Poss_Tbl[%]))*AG83,W83*$AG83),0) -> 0
A84: DredEA11 | B84: New channel | C84: Dredging Works | D84: DredEA1133 | E84: New channel-Excavation | F84: Dredging | G84: 120 | H84: 120 | I84: Not Possible | J84: 60 | K84: New Build | L84: 0 | M84: 0 | N84: 0 | O84: 2 | P84: 968.2248 | Q84: 968.2248 | R84: 33.77397315 | S84: 337.07328 | T84: 0.9941643774 | U84: 190.759147 | V84: 0 | W84: 694.8552145 | X84: 2225.680579 | Y84: 0 | Z84: 0 | AA84: 0 | AB84: 0 | AC84: 0.4970821887 | AD84: 168.53664 | AE84: 82 | AF84: 0 | AG84: =VLOOKUP(AE84,ValidationLists!$M$1:$N$102,2,FALSE) -> 0.132021006 | AH84: 0 | AI84: 0 | AJ84: 0 | AK84: 0 | AL84: 0 | AM84: 0 | AN84: 0 | AO84: 0 | AP84: 0 | AQ84: =IF(OR(AF84=3,AF84=2,AF84=0),SUMIFS(FlatMaint!$Z$2:$Z$10000,FlatMaint!$A$2:$A$10000,D84,FlatMaint!$Y$2:$Y$10000,AE84)*AG84,0) -> 12.78381215 | AR84: =IF(OR(AF84=3,AF84=2,AF84=0),SUMIFS(FlatRepair!$Z$2:$Z$10000,FlatRepair!$A$2:$A$10000,D84,FlatRepair!$Y$2:$Y$10000,AE84)*AG84,0) -> 0 | AS84: 0 | AT84: 12.78381215 | AU84: 0 | AV84: 0 | AW84: 0 | AX84: 0 | AY84: 0 | AZ84: 12.78381215 | BA84: 0 | BB84: =IF($AF84=3,IF($AF$2=2,(R84/SUMIF(Refurb_Poss_Tbl[Refurbishment Possible],I84,Refurb_Poss_Tbl[%]))*AG84,IF($AF$2=3,(R84*AG84)-AV84,R84*AG84)),0) -> 0 | BC84: =IF(AF84=3,IF($AF$2=2,(S84/SUMIF(Refurb_Poss_Tbl[Refurbishment Possible],I84,Refurb_Poss_Tbl[%]))*AG84,IF($AF$2=3,(S84*AG84)-AX84,S84*AG84)),0) -> 0 | BD84: =IF($AF84=3,IF($AF$2=2,(T84/SUMIF(Refurb_Poss_Tbl[Refurbishment Possible],I84,Refurb_Poss_Tbl[%]))*AG84,T84*$AG84),0) -> 0 | BE84: =IF($AF84=3,IF($AF$2=2,(Q84/SUMIF(Refurb_Poss_Tbl[Refurbishment Possible],I84,Refurb_Poss_Tbl[%]))*AG84,Q84*$AG84),0) -> 0 | BF84: =IF($AF84=3,IF($AF$2=2,(U84/SUMIF(Refurb_Poss_Tbl[Refurbishment Possible],I84,Refurb_Poss_Tbl[%]))*AG84,U84*$AG84),0) -> 0 | BG84: =IF($AF84=3,IF($AF$2=2,(V84/SUMIF(Refurb_Poss_Tbl[Refurbishment Possible],I84,Refurb_Poss_Tbl[%]))*AG84,IF($AF$2=3,(V84*AG84)-AW84,V84*AG84)),0) -> 0 | BH84: =IF($AF84=3,IF($AF$2=2,(W84/SUMIF(Refurb_Poss_Tbl[Refurbishment Possible],I84,Refurb_Poss_Tbl[%]))*AG84,W84*$AG84),0) -> 0
A85: DredEA11 | B85: New channel | C85: Dredging Works | D85: DredEA1133 | E85: New channel-Excavation | F85: Dredging | G85: 120 | H85: 120 | I85: Not Possible | J85: 60 | K85: New Build | L85: 0 | M85: 0 | N85: 0 | O85: 2 | P85: 968.2248 | Q85: 968.2248 | R85: 33.77397315 | S85: 337.07328 | T85: 0.9941643774 | U85: 190.759147 | V85: 0 | W85: 694.8552145 | X85: 2225.680579 | Y85: 0 | Z85: 0 | AA85: 0 | AB85: 0 | AC85: 0.4970821887 | AD85: 168.53664 | AE85: 83 | AF85: 0 | AG85: =VLOOKUP(AE85,ValidationLists!$M$1:$N$102,2,FALSE) -> 0.1288009815 | AH85: 0 | AI85: 0 | AJ85: 0 | AK85: 0 | AL85: 0 | AM85: 0 | AN85: 0 | AO85: 0 | AP85: 0 | AQ85: =IF(OR(AF85=3,AF85=2,AF85=0),SUMIFS(FlatMaint!$Z$2:$Z$10000,FlatMaint!$A$2:$A$10000,D85,FlatMaint!$Y$2:$Y$10000,AE85)*AG85,0) -> 0 | AR85: =IF(OR(AF85=3,AF85=2,AF85=0),SUMIFS(FlatRepair!$Z$2:$Z$10000,FlatRepair!$A$2:$A$10000,D85,FlatRepair!$Y$2:$Y$10000,AE85)*AG85,0) -> 0 | AS85: 0 | AT85: 0 | AU85: 0 | AV85: 0 | AW85: 0 | AX85: 0 | AY85: 0 | AZ85: 0 | BA85: 0 | BB85: =IF($AF85=3,IF($AF$2=2,(R85/SUMIF(Refurb_Poss_Tbl[Refurbishment Possible],I85,Refurb_Poss_Tbl[%]))*AG85,IF($AF$2=3,(R85*AG85)-AV85,R85*AG85)),0) -> 0 | BC85: =IF(AF85=3,IF($AF$2=2,(S85/SUMIF(Refurb_Poss_Tbl[Refurbishment Possible],I85,Refurb_Poss_Tbl[%]))*AG85,IF($AF$2=3,(S85*AG85)-AX85,S85*AG85)),0) -> 0 | BD85: =IF($AF85=3,IF($AF$2=2,(T85/SUMIF(Refurb_Poss_Tbl[Refurbishment Possible],I85,Refurb_Poss_Tbl[%]))*AG85,T85*$AG85),0) -> 0 | BE85: =IF($AF85=3,IF($AF$2=2,(Q85/SUMIF(Refurb_Poss_Tbl[Refurbishment Possible],I85,Refurb_Poss_Tbl[%]))*AG85,Q85*$AG85),0) -> 0 | BF85: =IF($AF85=3,IF($AF$2=2,(U85/SUMIF(Refurb_Poss_Tbl[Refurbishment Possible],I85,Refurb_Poss_Tbl[%]))*AG85,U85*$AG85),0) -> 0 | BG85: =IF($AF85=3,IF($AF$2=2,(V85/SUMIF(Refurb_Poss_Tbl[Refurbishment Possible],I85,Refurb_Poss_Tbl[%]))*AG85,IF($AF$2=3,(V85*AG85)-AW85,V85*AG85)),0) -> 0 | BH85: =IF($AF85=3,IF($AF$2=2,(W85/SUMIF(Refurb_Poss_Tbl[Refurbishment Possible],I85,Refurb_Poss_Tbl[%]))*AG85,W85*$AG85),0) -> 0
A86: DredEA11 | B86: New channel | C86: Dredging Works | D86: DredEA1133 | E86: New channel-Excavation | F86: Dredging | G86: 120 | H86: 120 | I86: Not Possible | J86: 60 | K86: New Build | L86: 0 | M86: 0 | N86: 0 | O86: 2 | P86: 968.2248 | Q86: 968.2248 | R86: 33.77397315 | S86: 337.07328 | T86: 0.9941643774 | U86: 190.759147 | V86: 0 | W86: 694.8552145 | X86: 2225.680579 | Y86: 0 | Z86: 0 | AA86: 0 | AB86: 0 | AC86: 0.4970821887 | AD86: 168.53664 | AE86: 84 | AF86: 0 | AG86: =VLOOKUP(AE86,ValidationLists!$M$1:$N$102,2,FALSE) -> 0.1256594941 | AH86: 0 | AI86: 0 | AJ86: 0 | AK86: 0 | AL86: 0 | AM86: 0 | AN86: 0 | AO86: 0 | AP86: 0 | AQ86: =IF(OR(AF86=3,AF86=2,AF86=0),SUMIFS(FlatMaint!$Z$2:$Z$10000,FlatMaint!$A$2:$A$10000,D86,FlatMaint!$Y$2:$Y$10000,AE86)*AG86,0) -> 12.16781644 | AR86: =IF(OR(AF86=3,AF86=2,AF86=0),SUMIFS(FlatRepair!$Z$2:$Z$10000,FlatRepair!$A$2:$A$10000,D86,FlatRepair!$Y$2:$Y$10000,AE86)*AG86,0) -> 0 | AS86: 0 | AT86: 12.16781644 | AU86: 0 | AV86: 0 | AW86: 0 | AX86: 0 | AY86: 0 | AZ86: 12.16781644 | BA86: 0 | BB86: =IF($AF86=3,IF($AF$2=2,(R86/SUMIF(Refurb_Poss_Tbl[Refurbishment Possible],I86,Refurb_Poss_Tbl[%]))*AG86,IF($AF$2=3,(R86*AG86)-AV86,R86*AG86)),0) -> 0 | BC86: =IF(AF86=3,IF($AF$2=2,(S86/SUMIF(Refurb_Poss_Tbl[Refurbishment Possible],I86,Refurb_Poss_Tbl[%]))*AG86,IF($AF$2=3,(S86*AG86)-AX86,S86*AG86)),0) -> 0 | BD86: =IF($AF86=3,IF($AF$2=2,(T86/SUMIF(Refurb_Poss_Tbl[Refurbishment Possible],I86,Refurb_Poss_Tbl[%]))*AG86,T86*$AG86),0) -> 0 | BE86: =IF($AF86=3,IF($AF$2=2,(Q86/SUMIF(Refurb_Poss_Tbl[Refurbishment Possible],I86,Refurb_Poss_Tbl[%]))*AG86,Q86*$AG86),0) -> 0 | BF86: =IF($AF86=3,IF($AF$2=2,(U86/SUMIF(Refurb_Poss_Tbl[Refurbishment Possible],I86,Refurb_Poss_Tbl[%]))*AG86,U86*$AG86),0) -> 0 | BG86: =IF($AF86=3,IF($AF$2=2,(V86/SUMIF(Refurb_Poss_Tbl[Refurbishment Possible],I86,Refurb_Poss_Tbl[%]))*AG86,IF($AF$2=3,(V86*AG86)-AW86,V86*AG86)),0) -> 0 | BH86: =IF($AF86=3,IF($AF$2=2,(W86/SUMIF(Refurb_Poss_Tbl[Refurbishment Possible],I86,Refurb_Poss_Tbl[%]))*AG86,W86*$AG86),0) -> 0
A87: DredEA11 | B87: New channel | C87: Dredging Works | D87: DredEA1133 | E87: New channel-Excavation | F87: Dredging | G87: 120 | H87: 120 | I87: Not Possible | J87: 60 | K87: New Build | L87: 0 | M87: 0 | N87: 0 | O87: 2 | P87: 968.2248 | Q87: 968.2248 | R87: 33.77397315 | S87: 337.07328 | T87: 0.9941643774 | U87: 190.759147 | V87: 0 | W87: 694.8552145 | X87: 2225.680579 | Y87: 0 | Z87: 0 | AA87: 0 | AB87: 0 | AC87: 0.4970821887 | AD87: 168.53664 | AE87: 85 | AF87: 0 | AG87: =VLOOKUP(AE87,ValidationLists!$M$1:$N$102,2,FALSE) -> 0.1225946284 | AH87: 0 | AI87: 0 | AJ87: 0 | AK87: 0 | AL87: 0 | AM87: 0 | AN87: 0 | AO87: 0 | AP87: 0 | AQ87: =IF(OR(AF87=3,AF87=2,AF87=0),SUMIFS(FlatMaint!$Z$2:$Z$10000,FlatMaint!$A$2:$A$10000,D87,FlatMaint!$Y$2:$Y$10000,AE87)*AG87,0) -> 0 | AR87: =IF(OR(AF87=3,AF87=2,AF87=0),SUMIFS(FlatRepair!$Z$2:$Z$10000,FlatRepair!$A$2:$A$10000,D87,FlatRepair!$Y$2:$Y$10000,AE87)*AG87,0) -> 0 | AS87: 0 | AT87: 0 | AU87: 0 | AV87: 0 | AW87: 0 | AX87: 0 | AY87: 0 | AZ87: 0 | BA87: 0 | BB87: =IF($AF87=3,IF($AF$2=2,(R87/SUMIF(Refurb_Poss_Tbl[Refurbishment Possible],I87,Refurb_Poss_Tbl[%]))*AG87,IF($AF$2=3,(R87*AG87)-AV87,R87*AG87)),0) -> 0 | BC87: =IF(AF87=3,IF($AF$2=2,(S87/SUMIF(Refurb_Poss_Tbl[Refurbishment Possible],I87,Refurb_Poss_Tbl[%]))*AG87,IF($AF$2=3,(S87*AG87)-AX87,S87*AG87)),0) -> 0 | BD87: =IF($AF87=3,IF($AF$2=2,(T87/SUMIF(Refurb_Poss_Tbl[Refurbishment Possible],I87,Refurb_Poss_Tbl[%]))*AG87,T87*$AG87),0) -> 0 | BE87: =IF($AF87=3,IF($AF$2=2,(Q87/SUMIF(Refurb_Poss_Tbl[Refurbishment Possible],I87,Refurb_Poss_Tbl[%]))*AG87,Q87*$AG87),0) -> 0 | BF87: =IF($AF87=3,IF($AF$2=2,(U87/SUMIF(Refurb_Poss_Tbl[Refurbishment Possible],I87,Refurb_Poss_Tbl[%]))*AG87,U87*$AG87),0) -> 0 | BG87: =IF($AF87=3,IF($AF$2=2,(V87/SUMIF(Refurb_Poss_Tbl[Refurbishment Possible],I87,Refurb_Poss_Tbl[%]))*AG87,IF($AF$2=3,(V87*AG87)-AW87,V87*AG87)),0) -> 0 | BH87: =IF($AF87=3,IF($AF$2=2,(W87/SUMIF(Refurb_Poss_Tbl[Refurbishment Possible],I87,Refurb_Poss_Tbl[%]))*AG87,W87*$AG87),0) -> 0
A88: DredEA11 | B88: New channel | C88: Dredging Works | D88: DredEA1133 | E88: New channel-Excavation | F88: Dredging | G88: 120 | H88: 120 | I88: Not Possible | J88: 60 | K88: New Build | L88: 0 | M88: 0 | N88: 0 | O88: 2 | P88: 968.2248 | Q88: 968.2248 | R88: 33.77397315 | S88: 337.07328 | T88: 0.9941643774 | U88: 190.759147 | V88: 0 | W88: 694.8552145 | X88: 2225.680579 | Y88: 0 | Z88: 0 | AA88: 0 | AB88: 0 | AC88: 0.4970821887 | AD88: 168.53664 | AE88: 86 | AF88: 0 | AG88: =VLOOKUP(AE88,ValidationLists!$M$1:$N$102,2,FALSE) -> 0.1196045155 | AH88: 0 | AI88: 0 | AJ88: 0 | AK88: 0 | AL88: 0 | AM88: 0 | AN88: 0 | AO88: 0 | AP88: 0 | AQ88: =IF(OR(AF88=3,AF88=2,AF88=0),SUMIFS(FlatMaint!$Z$2:$Z$10000,FlatMaint!$A$2:$A$10000,D88,FlatMaint!$Y$2:$Y$10000,AE88)*AG88,0) -> 11.58150286 | AR88: =IF(OR(AF88=3,AF88=2,AF88=0),SUMIFS(FlatRepair!$Z$2:$Z$10000,FlatRepair!$A$2:$A$10000,D88,FlatRepair!$Y$2:$Y$10000,AE88)*AG88,0) -> 0 | AS88: 0 | AT88: 11.58150286 | AU88: 0 | AV88: 0 | AW88: 0 | AX88: 0 | AY88: 0 | AZ88: 11.58150286 | BA88: 0 | BB88: =IF($AF88=3,IF($AF$2=2,(R88/SUMIF(Refurb_Poss_Tbl[Refurbishment Possible],I88,Refurb_Poss_Tbl[%]))*AG88,IF($AF$2=3,(R88*AG88)-AV88,R88*AG88)),0) -> 0 | BC88: =IF(AF88=3,IF($AF$2=2,(S88/SUMIF(Refurb_Poss_Tbl[Refurbishment Possible],I88,Refurb_Poss_Tbl[%]))*AG88,IF($AF$2=3,(S88*AG88)-AX88,S88*AG88)),0) -> 0 | BD88: =IF($AF88=3,IF($AF$2=2,(T88/SUMIF(Refurb_Poss_Tbl[Refurbishment Possible],I88,Refurb_Poss_Tbl[%]))*AG88,T88*$AG88),0) -> 0 | BE88: =IF($AF88=3,IF($AF$2=2,(Q88/SUMIF(Refurb_Poss_Tbl[Refurbishment Possible],I88,Refurb_Poss_Tbl[%]))*AG88,Q88*$AG88),0) -> 0 | BF88: =IF($AF88=3,IF($AF$2=2,(U88/SUMIF(Refurb_Poss_Tbl[Refurbishment Possible],I88,Refurb_Poss_Tbl[%]))*AG88,U88*$AG88),0) -> 0 | BG88: =IF($AF88=3,IF($AF$2=2,(V88/SUMIF(Refurb_Poss_Tbl[Refurbishment Possible],I88,Refurb_Poss_Tbl[%]))*AG88,IF($AF$2=3,(V88*AG88)-AW88,V88*AG88)),0) -> 0 | BH88: =IF($AF88=3,IF($AF$2=2,(W88/SUMIF(Refurb_Poss_Tbl[Refurbishment Possible],I88,Refurb_Poss_Tbl[%]))*AG88,W88*$AG88),0) -> 0
A89: DredEA11 | B89: New channel | C89: Dredging Works | D89: DredEA1133 | E89: New channel-Excavation | F89: Dredging | G89: 120 | H89: 120 | I89: Not Possible | J89: 60 | K89: New Build | L89: 0 | M89: 0 | N89: 0 | O89: 2 | P89: 968.2248 | Q89: 968.2248 | R89: 33.77397315 | S89: 337.07328 | T89: 0.9941643774 | U89: 190.759147 | V89: 0 | W89: 694.8552145 | X89: 2225.680579 | Y89: 0 | Z89: 0 | AA89: 0 | AB89: 0 | AC89: 0.4970821887 | AD89: 168.53664 | AE89: 87 | AF89: 0 | AG89: =VLOOKUP(AE89,ValidationLists!$M$1:$N$102,2,FALSE) -> 0.1166873322 | AH89: 0 | AI89: 0 | AJ89: 0 | AK89: 0 | AL89: 0 | AM89: 0 | AN89: 0 | AO89: 0 | AP89: 0 | AQ89: =IF(OR(AF89=3,AF89=2,AF89=0),SUMIFS(FlatMaint!$Z$2:$Z$10000,FlatMaint!$A$2:$A$10000,D89,FlatMaint!$Y$2:$Y$10000,AE89)*AG89,0) -> 0 | AR89: =IF(OR(AF89=3,AF89=2,AF89=0),SUMIFS(FlatRepair!$Z$2:$Z$10000,FlatRepair!$A$2:$A$10000,D89,FlatRepair!$Y$2:$Y$10000,AE89)*AG89,0) -> 0 | AS89: 0 | AT89: 0 | AU89: 0 | AV89: 0 | AW89: 0 | AX89: 0 | AY89: 0 | AZ89: 0 | BA89: 0 | BB89: =IF($AF89=3,IF($AF$2=2,(R89/SUMIF(Refurb_Poss_Tbl[Refurbishment Possible],I89,Refurb_Poss_Tbl[%]))*AG89,IF($AF$2=3,(R89*AG89)-AV89,R89*AG89)),0) -> 0 | BC89: =IF(AF89=3,IF($AF$2=2,(S89/SUMIF(Refurb_Poss_Tbl[Refurbishment Possible],I89,Refurb_Poss_Tbl[%]))*AG89,IF($AF$2=3,(S89*AG89)-AX89,S89*AG89)),0) -> 0 | BD89: =IF($AF89=3,IF($AF$2=2,(T89/SUMIF(Refurb_Poss_Tbl[Refurbishment Possible],I89,Refurb_Poss_Tbl[%]))*AG89,T89*$AG89),0) -> 0 | BE89: =IF($AF89=3,IF($AF$2=2,(Q89/SUMIF(Refurb_Poss_Tbl[Refurbishment Possible],I89,Refurb_Poss_Tbl[%]))*AG89,Q89*$AG89),0) -> 0 | BF89: =IF($AF89=3,IF($AF$2=2,(U89/SUMIF(Refurb_Poss_Tbl[Refurbishment Possible],I89,Refurb_Poss_Tbl[%]))*AG89,U89*$AG89),0) -> 0 | BG89: =IF($AF89=3,IF($AF$2=2,(V89/SUMIF(Refurb_Poss_Tbl[Refurbishment Possible],I89,Refurb_Poss_Tbl[%]))*AG89,IF($AF$2=3,(V89*AG89)-AW89,V89*AG89)),0) -> 0 | BH89: =IF($AF89=3,IF($AF$2=2,(W89/SUMIF(Refurb_Poss_Tbl[Refurbishment Possible],I89,Refurb_Poss_Tbl[%]))*AG89,W89*$AG89),0) -> 0
A90: DredEA11 | B90: New channel | C90: Dredging Works | D90: DredEA1133 | E90: New channel-Excavation | F90: Dredging | G90: 120 | H90: 120 | I90: Not Possible | J90: 60 | K90: New Build | L90: 0 | M90: 0 | N90: 0 | O90: 2 | P90: 968.2248 | Q90: 968.2248 | R90: 33.77397315 | S90: 337.07328 | T90: 0.9941643774 | U90: 190.759147 | V90: 0 | W90: 694.8552145 | X90: 2225.680579 | Y90: 0 | Z90: 0 | AA90: 0 | AB90: 0 | AC90: 0.4970821887 | AD90: 168.53664 | AE90: 88 | AF90: 0 | AG90: =VLOOKUP(AE90,ValidationLists!$M$1:$N$102,2,FALSE) -> 0.1138412997 | AH90: 0 | AI90: 0 | AJ90: 0 | AK90: 0 | AL90: 0 | AM90: 0 | AN90: 0 | AO90: 0 | AP90: 0 | AQ90: =IF(OR(AF90=3,AF90=2,AF90=0),SUMIFS(FlatMaint!$Z$2:$Z$10000,FlatMaint!$A$2:$A$10000,D90,FlatMaint!$Y$2:$Y$10000,AE90)*AG90,0) -> 11.02344115 | AR90: =IF(OR(AF90=3,AF90=2,AF90=0),SUMIFS(FlatRepair!$Z$2:$Z$10000,FlatRepair!$A$2:$A$10000,D90,FlatRepair!$Y$2:$Y$10000,AE90)*AG90,0) -> 0 | AS90: 0 | AT90: 11.02344115 | AU90: 0 | AV90: 0 | AW90: 0 | AX90: 0 | AY90: 0 | AZ90: 11.02344115 | BA90: 0 | BB90: =IF($AF90=3,IF($AF$2=2,(R90/SUMIF(Refurb_Poss_Tbl[Refurbishment Possible],I90,Refurb_Poss_Tbl[%]))*AG90,IF($AF$2=3,(R90*AG90)-AV90,R90*AG90)),0) -> 0 | BC90: =IF(AF90=3,IF($AF$2=2,(S90/SUMIF(Refurb_Poss_Tbl[Refurbishment Possible],I90,Refurb_Poss_Tbl[%]))*AG90,IF($AF$2=3,(S90*AG90)-AX90,S90*AG90)),0) -> 0 | BD90: =IF($AF90=3,IF($AF$2=2,(T90/SUMIF(Refurb_Poss_Tbl[Refurbishment Possible],I90,Refurb_Poss_Tbl[%]))*AG90,T90*$AG90),0) -> 0 | BE90: =IF($AF90=3,IF($AF$2=2,(Q90/SUMIF(Refurb_Poss_Tbl[Refurbishment Possible],I90,Refurb_Poss_Tbl[%]))*AG90,Q90*$AG90),0) -> 0 | BF90: =IF($AF90=3,IF($AF$2=2,(U90/SUMIF(Refurb_Poss_Tbl[Refurbishment Possible],I90,Refurb_Poss_Tbl[%]))*AG90,U90*$AG90),0) -> 0 | BG90: =IF($AF90=3,IF($AF$2=2,(V90/SUMIF(Refurb_Poss_Tbl[Refurbishment Possible],I90,Refurb_Poss_Tbl[%]))*AG90,IF($AF$2=3,(V90*AG90)-AW90,V90*AG90)),0) -> 0 | BH90: =IF($AF90=3,IF($AF$2=2,(W90/SUMIF(Refurb_Poss_Tbl[Refurbishment Possible],I90,Refurb_Poss_Tbl[%]))*AG90,W90*$AG90),0) -> 0
A91: DredEA11 | B91: New channel | C91: Dredging Works | D91: DredEA1133 | E91: New channel-Excavation | F91: Dredging | G91: 120 | H91: 120 | I91: Not Possible | J91: 60 | K91: New Build | L91: 0 | M91: 0 | N91: 0 | O91: 2 | P91: 968.2248 | Q91: 968.2248 | R91: 33.77397315 | S91: 337.07328 | T91: 0.9941643774 | U91: 190.759147 | V91: 0 | W91: 694.8552145 | X91: 2225.680579 | Y91: 0 | Z91: 0 | AA91: 0 | AB91: 0 | AC91: 0.4970821887 | AD91: 168.53664 | AE91: 89 | AF91: 0 | AG91: =VLOOKUP(AE91,ValidationLists!$M$1:$N$102,2,FALSE) -> 0.1110646827 | AH91: 0 | AI91: 0 | AJ91: 0 | AK91: 0 | AL91: 0 | AM91: 0 | AN91: 0 | AO91: 0 | AP91: 0 | AQ91: =IF(OR(AF91=3,AF91=2,AF91=0),SUMIFS(FlatMaint!$Z$2:$Z$10000,FlatMaint!$A$2:$A$10000,D91,FlatMaint!$Y$2:$Y$10000,AE91)*AG91,0) -> 0 | AR91: =IF(OR(AF91=3,AF91=2,AF91=0),SUMIFS(FlatRepair!$Z$2:$Z$10000,FlatRepair!$A$2:$A$10000,D91,FlatRepair!$Y$2:$Y$10000,AE91)*AG91,0) -> 0 | AS91: 0 | AT91: 0 | AU91: 0 | AV91: 0 | AW91: 0 | AX91: 0 | AY91: 0 | AZ91: 0 | BA91: 0 | BB91: =IF($AF91=3,IF($AF$2=2,(R91/SUMIF(Refurb_Poss_Tbl[Refurbishment Possible],I91,Refurb_Poss_Tbl[%]))*AG91,IF($AF$2=3,(R91*AG91)-AV91,R91*AG91)),0) -> 0 | BC91: =IF(AF91=3,IF($AF$2=2,(S91/SUMIF(Refurb_Poss_Tbl[Refurbishment Possible],I91,Refurb_Poss_Tbl[%]))*AG91,IF($AF$2=3,(S91*AG91)-AX91,S91*AG91)),0) -> 0 | BD91: =IF($AF91=3,IF($AF$2=2,(T91/SUMIF(Refurb_Poss_Tbl[Refurbishment Possible],I91,Refurb_Poss_Tbl[%]))*AG91,T91*$AG91),0) -> 0 | BE91: =IF($AF91=3,IF($AF$2=2,(Q91/SUMIF(Refurb_Poss_Tbl[Refurbishment Possible],I91,Refurb_Poss_Tbl[%]))*AG91,Q91*$AG91),0) -> 0 | BF91: =IF($AF91=3,IF($AF$2=2,(U91/SUMIF(Refurb_Poss_Tbl[Refurbishment Possible],I91,Refurb_Poss_Tbl[%]))*AG91,U91*$AG91),0) -> 0 | BG91: =IF($AF91=3,IF($AF$2=2,(V91/SUMIF(Refurb_Poss_Tbl[Refurbishment Possible],I91,Refurb_Poss_Tbl[%]))*AG91,IF($AF$2=3,(V91*AG91)-AW91,V91*AG91)),0) -> 0 | BH91: =IF($AF91=3,IF($AF$2=2,(W91/SUMIF(Refurb_Poss_Tbl[Refurbishment Possible],I91,Refurb_Poss_Tbl[%]))*AG91,W91*$AG91),0) -> 0
A92: DredEA11 | B92: New channel | C92: Dredging Works | D92: DredEA1133 | E92: New channel-Excavation | F92: Dredging | G92: 120 | H92: 120 | I92: Not Possible | J92: 60 | K92: New Build | L92: 0 | M92: 0 | N92: 0 | O92: 2 | P92: 968.2248 | Q92: 968.2248 | R92: 33.77397315 | S92: 337.07328 | T92: 0.9941643774 | U92: 190.759147 | V92: 0 | W92: 694.8552145 | X92: 2225.680579 | Y92: 0 | Z92: 0 | AA92: 0 | AB92: 0 | AC92: 0.4970821887 | AD92: 168.53664 | AE92: 90 | AF92: 0 | AG92: =VLOOKUP(AE92,ValidationLists!$M$1:$N$102,2,FALSE) -> 0.108355788 | AH92: 0 | AI92: 0 | AJ92: 0 | AK92: 0 | AL92: 0 | AM92: 0 | AN92: 0 | AO92: 0 | AP92: 0 | AQ92: =IF(OR(AF92=3,AF92=2,AF92=0),SUMIFS(FlatMaint!$Z$2:$Z$10000,FlatMaint!$A$2:$A$10000,D92,FlatMaint!$Y$2:$Y$10000,AE92)*AG92,0) -> 10.49226999 | AR92: =IF(OR(AF92=3,AF92=2,AF92=0),SUMIFS(FlatRepair!$Z$2:$Z$10000,FlatRepair!$A$2:$A$10000,D92,FlatRepair!$Y$2:$Y$10000,AE92)*AG92,0) -> 0 | AS92: 0 | AT92: 10.49226999 | AU92: 0 | AV92: 0 | AW92: 0 | AX92: 0 | AY92: 0 | AZ92: 10.49226999 | BA92: 0 | BB92: =IF($AF92=3,IF($AF$2=2,(R92/SUMIF(Refurb_Poss_Tbl[Refurbishment Possible],I92,Refurb_Poss_Tbl[%]))*AG92,IF($AF$2=3,(R92*AG92)-AV92,R92*AG92)),0) -> 0 | BC92: =IF(AF92=3,IF($AF$2=2,(S92/SUMIF(Refurb_Poss_Tbl[Refurbishment Possible],I92,Refurb_Poss_Tbl[%]))*AG92,IF($AF$2=3,(S92*AG92)-AX92,S92*AG92)),0) -> 0 | BD92: =IF($AF92=3,IF($AF$2=2,(T92/SUMIF(Refurb_Poss_Tbl[Refurbishment Possible],I92,Refurb_Poss_Tbl[%]))*AG92,T92*$AG92),0) -> 0 | BE92: =IF($AF92=3,IF($AF$2=2,(Q92/SUMIF(Refurb_Poss_Tbl[Refurbishment Possible],I92,Refurb_Poss_Tbl[%]))*AG92,Q92*$AG92),0) -> 0 | BF92: =IF($AF92=3,IF($AF$2=2,(U92/SUMIF(Refurb_Poss_Tbl[Refurbishment Possible],I92,Refurb_Poss_Tbl[%]))*AG92,U92*$AG92),0) -> 0 | BG92: =IF($AF92=3,IF($AF$2=2,(V92/SUMIF(Refurb_Poss_Tbl[Refurbishment Possible],I92,Refurb_Poss_Tbl[%]))*AG92,IF($AF$2=3,(V92*AG92)-AW92,V92*AG92)),0) -> 0 | BH92: =IF($AF92=3,IF($AF$2=2,(W92/SUMIF(Refurb_Poss_Tbl[Refurbishment Possible],I92,Refurb_Poss_Tbl[%]))*AG92,W92*$AG92),0) -> 0
A93: DredEA11 | B93: New channel | C93: Dredging Works | D93: DredEA1133 | E93: New channel-Excavation | F93: Dredging | G93: 120 | H93: 120 | I93: Not Possible | J93: 60 | K93: New Build | L93: 0 | M93: 0 | N93: 0 | O93: 2 | P93: 968.2248 | Q93: 968.2248 | R93: 33.77397315 | S93: 337.07328 | T93: 0.9941643774 | U93: 190.759147 | V93: 0 | W93: 694.8552145 | X93: 2225.680579 | Y93: 0 | Z93: 0 | AA93: 0 | AB93: 0 | AC93: 0.4970821887 | AD93: 168.53664 | AE93: 91 | AF93: 0 | AG93: =VLOOKUP(AE93,ValidationLists!$M$1:$N$102,2,FALSE) -> 0.1057129639 | AH93: 0 | AI93: 0 | AJ93: 0 | AK93: 0 | AL93: 0 | AM93: 0 | AN93: 0 | AO93: 0 | AP93: 0 | AQ93: =IF(OR(AF93=3,AF93=2,AF93=0),SUMIFS(FlatMaint!$Z$2:$Z$10000,FlatMaint!$A$2:$A$10000,D93,FlatMaint!$Y$2:$Y$10000,AE93)*AG93,0) -> 0 | AR93: =IF(OR(AF93=3,AF93=2,AF93=0),SUMIFS(FlatRepair!$Z$2:$Z$10000,FlatRepair!$A$2:$A$10000,D93,FlatRepair!$Y$2:$Y$10000,AE93)*AG93,0) -> 0 | AS93: 0 | AT93: 0 | AU93: 0 | AV93: 0 | AW93: 0 | AX93: 0 | AY93: 0 | AZ93: 0 | BA93: 0 | BB93: =IF($AF93=3,IF($AF$2=2,(R93/SUMIF(Refurb_Poss_Tbl[Refurbishment Possible],I93,Refurb_Poss_Tbl[%]))*AG93,IF($AF$2=3,(R93*AG93)-AV93,R93*AG93)),0) -> 0 | BC93: =IF(AF93=3,IF($AF$2=2,(S93/SUMIF(Refurb_Poss_Tbl[Refurbishment Possible],I93,Refurb_Poss_Tbl[%]))*AG93,IF($AF$2=3,(S93*AG93)-AX93,S93*AG93)),0) -> 0 | BD93: =IF($AF93=3,IF($AF$2=2,(T93/SUMIF(Refurb_Poss_Tbl[Refurbishment Possible],I93,Refurb_Poss_Tbl[%]))*AG93,T93*$AG93),0) -> 0 | BE93: =IF($AF93=3,IF($AF$2=2,(Q93/SUMIF(Refurb_Poss_Tbl[Refurbishment Possible],I93,Refurb_Poss_Tbl[%]))*AG93,Q93*$AG93),0) -> 0 | BF93: =IF($AF93=3,IF($AF$2=2,(U93/SUMIF(Refurb_Poss_Tbl[Refurbishment Possible],I93,Refurb_Poss_Tbl[%]))*AG93,U93*$AG93),0) -> 0 | BG93: =IF($AF93=3,IF($AF$2=2,(V93/SUMIF(Refurb_Poss_Tbl[Refurbishment Possible],I93,Refurb_Poss_Tbl[%]))*AG93,IF($AF$2=3,(V93*AG93)-AW93,V93*AG93)),0) -> 0 | BH93: =IF($AF93=3,IF($AF$2=2,(W93/SUMIF(Refurb_Poss_Tbl[Refurbishment Possible],I93,Refurb_Poss_Tbl[%]))*AG93,W93*$AG93),0) -> 0
A94: DredEA11 | B94: New channel | C94: Dredging Works | D94: DredEA1133 | E94: New channel-Excavation | F94: Dredging | G94: 120 | H94: 120 | I94: Not Possible | J94: 60 | K94: New Build | L94: 0 | M94: 0 | N94: 0 | O94: 2 | P94: 968.2248 | Q94: 968.2248 | R94: 33.77397315 | S94: 337.07328 | T94: 0.9941643774 | U94: 190.759147 | V94: 0 | W94: 694.8552145 | X94: 2225.680579 | Y94: 0 | Z94: 0 | AA94: 0 | AB94: 0 | AC94: 0.4970821887 | AD94: 168.53664 | AE94: 92 | AF94: 0 | AG94: =VLOOKUP(AE94,ValidationLists!$M$1:$N$102,2,FALSE) -> 0.1031345989 | AH94: 0 | AI94: 0 | AJ94: 0 | AK94: 0 | AL94: 0 | AM94: 0 | AN94: 0 | AO94: 0 | AP94: 0 | AQ94: =IF(OR(AF94=3,AF94=2,AF94=0),SUMIFS(FlatMaint!$Z$2:$Z$10000,FlatMaint!$A$2:$A$10000,D94,FlatMaint!$Y$2:$Y$10000,AE94)*AG94,0) -> 9.986693621 | AR94: =IF(OR(AF94=3,AF94=2,AF94=0),SUMIFS(FlatRepair!$Z$2:$Z$10000,FlatRepair!$A$2:$A$10000,D94,FlatRepair!$Y$2:$Y$10000,AE94)*AG94,0) -> 0 | AS94: 0 | AT94: 9.986693621 | AU94: 0 | AV94: 0 | AW94: 0 | AX94: 0 | AY94: 0 | AZ94: 9.986693621 | BA94: 0 | BB94: =IF($AF94=3,IF($AF$2=2,(R94/SUMIF(Refurb_Poss_Tbl[Refurbishment Possible],I94,Refurb_Poss_Tbl[%]))*AG94,IF($AF$2=3,(R94*AG94)-AV94,R94*AG94)),0) -> 0 | BC94: =IF(AF94=3,IF($AF$2=2,(S94/SUMIF(Refurb_Poss_Tbl[Refurbishment Possible],I94,Refurb_Poss_Tbl[%]))*AG94,IF($AF$2=3,(S94*AG94)-AX94,S94*AG94)),0) -> 0 | BD94: =IF($AF94=3,IF($AF$2=2,(T94/SUMIF(Refurb_Poss_Tbl[Refurbishment Possible],I94,Refurb_Poss_Tbl[%]))*AG94,T94*$AG94),0) -> 0 | BE94: =IF($AF94=3,IF($AF$2=2,(Q94/SUMIF(Refurb_Poss_Tbl[Refurbishment Possible],I94,Refurb_Poss_Tbl[%]))*AG94,Q94*$AG94),0) -> 0 | BF94: =IF($AF94=3,IF($AF$2=2,(U94/SUMIF(Refurb_Poss_Tbl[Refurbishment Possible],I94,Refurb_Poss_Tbl[%]))*AG94,U94*$AG94),0) -> 0 | BG94: =IF($AF94=3,IF($AF$2=2,(V94/SUMIF(Refurb_Poss_Tbl[Refurbishment Possible],I94,Refurb_Poss_Tbl[%]))*AG94,IF($AF$2=3,(V94*AG94)-AW94,V94*AG94)),0) -> 0 | BH94: =IF($AF94=3,IF($AF$2=2,(W94/SUMIF(Refurb_Poss_Tbl[Refurbishment Possible],I94,Refurb_Poss_Tbl[%]))*AG94,W94*$AG94),0) -> 0
A95: DredEA11 | B95: New channel | C95: Dredging Works | D95: DredEA1133 | E95: New channel-Excavation | F95: Dredging | G95: 120 | H95: 120 | I95: Not Possible | J95: 60 | K95: New Build | L95: 0 | M95: 0 | N95: 0 | O95: 2 | P95: 968.2248 | Q95: 968.2248 | R95: 33.77397315 | S95: 337.07328 | T95: 0.9941643774 | U95: 190.759147 | V95: 0 | W95: 694.8552145 | X95: 2225.680579 | Y95: 0 | Z95: 0 | AA95: 0 | AB95: 0 | AC95: 0.4970821887 | AD95: 168.53664 | AE95: 93 | AF95: 0 | AG95: =VLOOKUP(AE95,ValidationLists!$M$1:$N$102,2,FALSE) -> 0.1006191209 | AH95: 0 | AI95: 0 | AJ95: 0 | AK95: 0 | AL95: 0 | AM95: 0 | AN95: 0 | AO95: 0 | AP95: 0 | AQ95: =IF(OR(AF95=3,AF95=2,AF95=0),SUMIFS(FlatMaint!$Z$2:$Z$10000,FlatMaint!$A$2:$A$10000,D95,FlatMaint!$Y$2:$Y$10000,AE95)*AG95,0) -> 0 | AR95: =IF(OR(AF95=3,AF95=2,AF95=0),SUMIFS(FlatRepair!$Z$2:$Z$10000,FlatRepair!$A$2:$A$10000,D95,FlatRepair!$Y$2:$Y$10000,AE95)*AG95,0) -> 0 | AS95: 0 | AT95: 0 | AU95: 0 | AV95: 0 | AW95: 0 | AX95: 0 | AY95: 0 | AZ95: 0 | BA95: 0 | BB95: =IF($AF95=3,IF($AF$2=2,(R95/SUMIF(Refurb_Poss_Tbl[Refurbishment Possible],I95,Refurb_Poss_Tbl[%]))*AG95,IF($AF$2=3,(R95*AG95)-AV95,R95*AG95)),0) -> 0 | BC95: =IF(AF95=3,IF($AF$2=2,(S95/SUMIF(Refurb_Poss_Tbl[Refurbishment Possible],I95,Refurb_Poss_Tbl[%]))*AG95,IF($AF$2=3,(S95*AG95)-AX95,S95*AG95)),0) -> 0 | BD95: =IF($AF95=3,IF($AF$2=2,(T95/SUMIF(Refurb_Poss_Tbl[Refurbishment Possible],I95,Refurb_Poss_Tbl[%]))*AG95,T95*$AG95),0) -> 0 | BE95: =IF($AF95=3,IF($AF$2=2,(Q95/SUMIF(Refurb_Poss_Tbl[Refurbishment Possible],I95,Refurb_Poss_Tbl[%]))*AG95,Q95*$AG95),0) -> 0 | BF95: =IF($AF95=3,IF($AF$2=2,(U95/SUMIF(Refurb_Poss_Tbl[Refurbishment Possible],I95,Refurb_Poss_Tbl[%]))*AG95,U95*$AG95),0) -> 0 | BG95: =IF($AF95=3,IF($AF$2=2,(V95/SUMIF(Refurb_Poss_Tbl[Refurbishment Possible],I95,Refurb_Poss_Tbl[%]))*AG95,IF($AF$2=3,(V95*AG95)-AW95,V95*AG95)),0) -> 0 | BH95: =IF($AF95=3,IF($AF$2=2,(W95/SUMIF(Refurb_Poss_Tbl[Refurbishment Possible],I95,Refurb_Poss_Tbl[%]))*AG95,W95*$AG95),0) -> 0
A96: DredEA11 | B96: New channel | C96: Dredging Works | D96: DredEA1133 | E96: New channel-Excavation | F96: Dredging | G96: 120 | H96: 120 | I96: Not Possible | J96: 60 | K96: New Build | L96: 0 | M96: 0 | N96: 0 | O96: 2 | P96: 968.2248 | Q96: 968.2248 | R96: 33.77397315 | S96: 337.07328 | T96: 0.9941643774 | U96: 190.759147 | V96: 0 | W96: 694.8552145 | X96: 2225.680579 | Y96: 0 | Z96: 0 | AA96: 0 | AB96: 0 | AC96: 0.4970821887 | AD96: 168.53664 | AE96: 94 | AF96: 0 | AG96: =VLOOKUP(AE96,ValidationLists!$M$1:$N$102,2,FALSE) -> 0.09816499599 | AH96: 0 | AI96: 0 | AJ96: 0 | AK96: 0 | AL96: 0 | AM96: 0 | AN96: 0 | AO96: 0 | AP96: 0 | AQ96: =IF(OR(AF96=3,AF96=2,AF96=0),SUMIFS(FlatMaint!$Z$2:$Z$10000,FlatMaint!$A$2:$A$10000,D96,FlatMaint!$Y$2:$Y$10000,AE96)*AG96,0) -> 9.505478759 | AR96: =IF(OR(AF96=3,AF96=2,AF96=0),SUMIFS(FlatRepair!$Z$2:$Z$10000,FlatRepair!$A$2:$A$10000,D96,FlatRepair!$Y$2:$Y$10000,AE96)*AG96,0) -> 0 | AS96: 0 | AT96: 9.505478759 | AU96: 0 | AV96: 0 | AW96: 0 | AX96: 0 | AY96: 0 | AZ96: 9.505478759 | BA96: 0 | BB96: =IF($AF96=3,IF($AF$2=2,(R96/SUMIF(Refurb_Poss_Tbl[Refurbishment Possible],I96,Refurb_Poss_Tbl[%]))*AG96,IF($AF$2=3,(R96*AG96)-AV96,R96*AG96)),0) -> 0 | BC96: =IF(AF96=3,IF($AF$2=2,(S96/SUMIF(Refurb_Poss_Tbl[Refurbishment Possible],I96,Refurb_Poss_Tbl[%]))*AG96,IF($AF$2=3,(S96*AG96)-AX96,S96*AG96)),0) -> 0 | BD96: =IF($AF96=3,IF($AF$2=2,(T96/SUMIF(Refurb_Poss_Tbl[Refurbishment Possible],I96,Refurb_Poss_Tbl[%]))*AG96,T96*$AG96),0) -> 0 | BE96: =IF($AF96=3,IF($AF$2=2,(Q96/SUMIF(Refurb_Poss_Tbl[Refurbishment Possible],I96,Refurb_Poss_Tbl[%]))*AG96,Q96*$AG96),0) -> 0 | BF96: =IF($AF96=3,IF($AF$2=2,(U96/SUMIF(Refurb_Poss_Tbl[Refurbishment Possible],I96,Refurb_Poss_Tbl[%]))*AG96,U96*$AG96),0) -> 0 | BG96: =IF($AF96=3,IF($AF$2=2,(V96/SUMIF(Refurb_Poss_Tbl[Refurbishment Possible],I96,Refurb_Poss_Tbl[%]))*AG96,IF($AF$2=3,(V96*AG96)-AW96,V96*AG96)),0) -> 0 | BH96: =IF($AF96=3,IF($AF$2=2,(W96/SUMIF(Refurb_Poss_Tbl[Refurbishment Possible],I96,Refurb_Poss_Tbl[%]))*AG96,W96*$AG96),0) -> 0
A97: DredEA11 | B97: New channel | C97: Dredging Works | D97: DredEA1133 | E97: New channel-Excavation | F97: Dredging | G97: 120 | H97: 120 | I97: Not Possible | J97: 60 | K97: New Build | L97: 0 | M97: 0 | N97: 0 | O97: 2 | P97: 968.2248 | Q97: 968.2248 | R97: 33.77397315 | S97: 337.07328 | T97: 0.9941643774 | U97: 190.759147 | V97: 0 | W97: 694.8552145 | X97: 2225.680579 | Y97: 0 | Z97: 0 | AA97: 0 | AB97: 0 | AC97: 0.4970821887 | AD97: 168.53664 | AE97: 95 | AF97: 0 | AG97: =VLOOKUP(AE97,ValidationLists!$M$1:$N$102,2,FALSE) -> 0.09577072779 | AH97: 0 | AI97: 0 | AJ97: 0 | AK97: 0 | AL97: 0 | AM97: 0 | AN97: 0 | AO97: 0 | AP97: 0 | AQ97: =IF(OR(AF97=3,AF97=2,AF97=0),SUMIFS(FlatMaint!$Z$2:$Z$10000,FlatMaint!$A$2:$A$10000,D97,FlatMaint!$Y$2:$Y$10000,AE97)*AG97,0) -> 0 | AR97: =IF(OR(AF97=3,AF97=2,AF97=0),SUMIFS(FlatRepair!$Z$2:$Z$10000,FlatRepair!$A$2:$A$10000,D97,FlatRepair!$Y$2:$Y$10000,AE97)*AG97,0) -> 0 | AS97: 0 | AT97: 0 | AU97: 0 | AV97: 0 | AW97: 0 | AX97: 0 | AY97: 0 | AZ97: 0 | BA97: 0 | BB97: =IF($AF97=3,IF($AF$2=2,(R97/SUMIF(Refurb_Poss_Tbl[Refurbishment Possible],I97,Refurb_Poss_Tbl[%]))*AG97,IF($AF$2=3,(R97*AG97)-AV97,R97*AG97)),0) -> 0 | BC97: =IF(AF97=3,IF($AF$2=2,(S97/SUMIF(Refurb_Poss_Tbl[Refurbishment Possible],I97,Refurb_Poss_Tbl[%]))*AG97,IF($AF$2=3,(S97*AG97)-AX97,S97*AG97)),0) -> 0 | BD97: =IF($AF97=3,IF($AF$2=2,(T97/SUMIF(Refurb_Poss_Tbl[Refurbishment Possible],I97,Refurb_Poss_Tbl[%]))*AG97,T97*$AG97),0) -> 0 | BE97: =IF($AF97=3,IF($AF$2=2,(Q97/SUMIF(Refurb_Poss_Tbl[Refurbishment Possible],I97,Refurb_Poss_Tbl[%]))*AG97,Q97*$AG97),0) -> 0 | BF97: =IF($AF97=3,IF($AF$2=2,(U97/SUMIF(Refurb_Poss_Tbl[Refurbishment Possible],I97,Refurb_Poss_Tbl[%]))*AG97,U97*$AG97),0) -> 0 | BG97: =IF($AF97=3,IF($AF$2=2,(V97/SUMIF(Refurb_Poss_Tbl[Refurbishment Possible],I97,Refurb_Poss_Tbl[%]))*AG97,IF($AF$2=3,(V97*AG97)-AW97,V97*AG97)),0) -> 0 | BH97: =IF($AF97=3,IF($AF$2=2,(W97/SUMIF(Refurb_Poss_Tbl[Refurbishment Possible],I97,Refurb_Poss_Tbl[%]))*AG97,W97*$AG97),0) -> 0
A98: DredEA11 | B98: New channel | C98: Dredging Works | D98: DredEA1133 | E98: New channel-Excavation | F98: Dredging | G98: 120 | H98: 120 | I98: Not Possible | J98: 60 | K98: New Build | L98: 0 | M98: 0 | N98: 0 | O98: 2 | P98: 968.2248 | Q98: 968.2248 | R98: 33.77397315 | S98: 337.07328 | T98: 0.9941643774 | U98: 190.759147 | V98: 0 | W98: 694.8552145 | X98: 2225.680579 | Y98: 0 | Z98: 0 | AA98: 0 | AB98: 0 | AC98: 0.4970821887 | AD98: 168.53664 | AE98: 96 | AF98: 0 | AG98: =VLOOKUP(AE98,ValidationLists!$M$1:$N$102,2,FALSE) -> 0.09343485638 | AH98: 0 | AI98: 0 | AJ98: 0 | AK98: 0 | AL98: 0 | AM98: 0 | AN98: 0 | AO98: 0 | AP98: 0 | AQ98: =IF(OR(AF98=3,AF98=2,AF98=0),SUMIFS(FlatMaint!$Z$2:$Z$10000,FlatMaint!$A$2:$A$10000,D98,FlatMaint!$Y$2:$Y$10000,AE98)*AG98,0) -> 9.047451526 | AR98: =IF(OR(AF98=3,AF98=2,AF98=0),SUMIFS(FlatRepair!$Z$2:$Z$10000,FlatRepair!$A$2:$A$10000,D98,FlatRepair!$Y$2:$Y$10000,AE98)*AG98,0) -> 0 | AS98: 0 | AT98: 9.047451526 | AU98: 0 | AV98: 0 | AW98: 0 | AX98: 0 | AY98: 0 | AZ98: 9.047451526 | BA98: 0 | BB98: =IF($AF98=3,IF($AF$2=2,(R98/SUMIF(Refurb_Poss_Tbl[Refurbishment Possible],I98,Refurb_Poss_Tbl[%]))*AG98,IF($AF$2=3,(R98*AG98)-AV98,R98*AG98)),0) -> 0 | BC98: =IF(AF98=3,IF($AF$2=2,(S98/SUMIF(Refurb_Poss_Tbl[Refurbishment Possible],I98,Refurb_Poss_Tbl[%]))*AG98,IF($AF$2=3,(S98*AG98)-AX98,S98*AG98)),0) -> 0 | BD98: =IF($AF98=3,IF($AF$2=2,(T98/SUMIF(Refurb_Poss_Tbl[Refurbishment Possible],I98,Refurb_Poss_Tbl[%]))*AG98,T98*$AG98),0) -> 0 | BE98: =IF($AF98=3,IF($AF$2=2,(Q98/SUMIF(Refurb_Poss_Tbl[Refurbishment Possible],I98,Refurb_Poss_Tbl[%]))*AG98,Q98*$AG98),0) -> 0 | BF98: =IF($AF98=3,IF($AF$2=2,(U98/SUMIF(Refurb_Poss_Tbl[Refurbishment Possible],I98,Refurb_Poss_Tbl[%]))*AG98,U98*$AG98),0) -> 0 | BG98: =IF($AF98=3,IF($AF$2=2,(V98/SUMIF(Refurb_Poss_Tbl[Refurbishment Possible],I98,Refurb_Poss_Tbl[%]))*AG98,IF($AF$2=3,(V98*AG98)-AW98,V98*AG98)),0) -> 0 | BH98: =IF($AF98=3,IF($AF$2=2,(W98/SUMIF(Refurb_Poss_Tbl[Refurbishment Possible],I98,Refurb_Poss_Tbl[%]))*AG98,W98*$AG98),0) -> 0
A99: DredEA11 | B99: New channel | C99: Dredging Works | D99: DredEA1133 | E99: New channel-Excavation | F99: Dredging | G99: 120 | H99: 120 | I99: Not Possible | J99: 60 | K99: New Build | L99: 0 | M99: 0 | N99: 0 | O99: 2 | P99: 968.2248 | Q99: 968.2248 | R99: 33.77397315 | S99: 337.07328 | T99: 0.9941643774 | U99: 190.759147 | V99: 0 | W99: 694.8552145 | X99: 2225.680579 | Y99: 0 | Z99: 0 | AA99: 0 | AB99: 0 | AC99: 0.4970821887 | AD99: 168.53664 | AE99: 97 | AF99: 0 | AG99: =VLOOKUP(AE99,ValidationLists!$M$1:$N$102,2,FALSE) -> 0.09115595745 | AH99: 0 | AI99: 0 | AJ99: 0 | AK99: 0 | AL99: 0 | AM99: 0 | AN99: 0 | AO99: 0 | AP99: 0 | AQ99: =IF(OR(AF99=3,AF99=2,AF99=0),SUMIFS(FlatMaint!$Z$2:$Z$10000,FlatMaint!$A$2:$A$10000,D99,FlatMaint!$Y$2:$Y$10000,AE99)*AG99,0) -> 0 | AR99: =IF(OR(AF99=3,AF99=2,AF99=0),SUMIFS(FlatRepair!$Z$2:$Z$10000,FlatRepair!$A$2:$A$10000,D99,FlatRepair!$Y$2:$Y$10000,AE99)*AG99,0) -> 0 | AS99: 0 | AT99: 0 | AU99: 0 | AV99: 0 | AW99: 0 | AX99: 0 | AY99: 0 | AZ99: 0 | BA99: 0 | BB99: =IF($AF99=3,IF($AF$2=2,(R99/SUMIF(Refurb_Poss_Tbl[Refurbishment Possible],I99,Refurb_Poss_Tbl[%]))*AG99,IF($AF$2=3,(R99*AG99)-AV99,R99*AG99)),0) -> 0 | BC99: =IF(AF99=3,IF($AF$2=2,(S99/SUMIF(Refurb_Poss_Tbl[Refurbishment Possible],I99,Refurb_Poss_Tbl[%]))*AG99,IF($AF$2=3,(S99*AG99)-AX99,S99*AG99)),0) -> 0 | BD99: =IF($AF99=3,IF($AF$2=2,(T99/SUMIF(Refurb_Poss_Tbl[Refurbishment Possible],I99,Refurb_Poss_Tbl[%]))*AG99,T99*$AG99),0) -> 0 | BE99: =IF($AF99=3,IF($AF$2=2,(Q99/SUMIF(Refurb_Poss_Tbl[Refurbishment Possible],I99,Refurb_Poss_Tbl[%]))*AG99,Q99*$AG99),0) -> 0 | BF99: =IF($AF99=3,IF($AF$2=2,(U99/SUMIF(Refurb_Poss_Tbl[Refurbishment Possible],I99,Refurb_Poss_Tbl[%]))*AG99,U99*$AG99),0) -> 0 | BG99: =IF($AF99=3,IF($AF$2=2,(V99/SUMIF(Refurb_Poss_Tbl[Refurbishment Possible],I99,Refurb_Poss_Tbl[%]))*AG99,IF($AF$2=3,(V99*AG99)-AW99,V99*AG99)),0) -> 0 | BH99: =IF($AF99=3,IF($AF$2=2,(W99/SUMIF(Refurb_Poss_Tbl[Refurbishment Possible],I99,Refurb_Poss_Tbl[%]))*AG99,W99*$AG99),0) -> 0
A100: DredEA11 | B100: New channel | C100: Dredging Works | D100: DredEA1133 | E100: New channel-Excavation | F100: Dredging | G100: 120 | H100: 120 | I100: Not Possible | J100: 60 | K100: New Build | L100: 0 | M100: 0 | N100: 0 | O100: 2 | P100: 968.2248 | Q100: 968.2248 | R100: 33.77397315 | S100: 337.07328 | T100: 0.9941643774 | U100: 190.759147 | V100: 0 | W100: 694.8552145 | X100: 2225.680579 | Y100: 0 | Z100: 0 | AA100: 0 | AB100: 0 | AC100: 0.4970821887 | AD100: 168.53664 | AE100: 98 | AF100: 0 | AG100: =VLOOKUP(AE100,ValidationLists!$M$1:$N$102,2,FALSE) -> 0.08893264141 | AH100: 0 | AI100: 0 | AJ100: 0 | AK100: 0 | AL100: 0 | AM100: 0 | AN100: 0 | AO100: 0 | AP100: 0 | AQ100: =IF(OR(AF100=3,AF100=2,AF100=0),SUMIFS(FlatMaint!$Z$2:$Z$10000,FlatMaint!$A$2:$A$10000,D100,FlatMaint!$Y$2:$Y$10000,AE100)*AG100,0) -> 8.611494611 | AR100: =IF(OR(AF100=3,AF100=2,AF100=0),SUMIFS(FlatRepair!$Z$2:$Z$10000,FlatRepair!$A$2:$A$10000,D100,FlatRepair!$Y$2:$Y$10000,AE100)*AG100,0) -> 0 | AS100: 0 | AT100: 8.611494611 | AU100: 0 | AV100: 0 | AW100: 0 | AX100: 0 | AY100: 0 | AZ100: 8.611494611 | BA100: 0 | BB100: =IF($AF100=3,IF($AF$2=2,(R100/SUMIF(Refurb_Poss_Tbl[Refurbishment Possible],I100,Refurb_Poss_Tbl[%]))*AG100,IF($AF$2=3,(R100*AG100)-AV100,R100*AG100)),0) -> 0 | BC100: =IF(AF100=3,IF($AF$2=2,(S100/SUMIF(Refurb_Poss_Tbl[Refurbishment Possible],I100,Refurb_Poss_Tbl[%]))*AG100,IF($AF$2=3,(S100*AG100)-AX100,S100*AG100)),0) -> 0 | BD100: =IF($AF100=3,IF($AF$2=2,(T100/SUMIF(Refurb_Poss_Tbl[Refurbishment Possible],I100,Refurb_Poss_Tbl[%]))*AG100,T100*$AG100),0) -> 0 | BE100: =IF($AF100=3,IF($AF$2=2,(Q100/SUMIF(Refurb_Poss_Tbl[Refurbishment Possible],I100,Refurb_Poss_Tbl[%]))*AG100,Q100*$AG100),0) -> 0 | BF100: =IF($AF100=3,IF($AF$2=2,(U100/SUMIF(Refurb_Poss_Tbl[Refurbishment Possible],I100,Refurb_Poss_Tbl[%]))*AG100,U100*$AG100),0) -> 0 | BG100: =IF($AF100=3,IF($AF$2=2,(V100/SUMIF(Refurb_Poss_Tbl[Refurbishment Possible],I100,Refurb_Poss_Tbl[%]))*AG100,IF($AF$2=3,(V100*AG100)-AW100,V100*AG100)),0) -> 0 | BH100: =IF($AF100=3,IF($AF$2=2,(W100/SUMIF(Refurb_Poss_Tbl[Refurbishment Possible],I100,Refurb_Poss_Tbl[%]))*AG100,W100*$AG100),0) -> 0
A101: DredEA11 | B101: New channel | C101: Dredging Works | D101: DredEA1133 | E101: New channel-Excavation | F101: Dredging | G101: 120 | H101: 120 | I101: Not Possible | J101: 60 | K101: New Build | L101: 0 | M101: 0 | N101: 0 | O101: 2 | P101: 968.2248 | Q101: 968.2248 | R101: 33.77397315 | S101: 337.07328 | T101: 0.9941643774 | U101: 190.759147 | V101: 0 | W101: 694.8552145 | X101: 2225.680579 | Y101: 0 | Z101: 0 | AA101: 0 | AB101: 0 | AC101: 0.4970821887 | AD101: 168.53664 | AE101: 99 | AF101: 0 | AG101: =VLOOKUP(AE101,ValidationLists!$M$1:$N$102,2,FALSE) -> 0.0867635526 | AH101: 0 | AI101: 0 | AJ101: 0 | AK101: 0 | AL101: 0 | AM101: 0 | AN101: 0 | AO101: 0 | AP101: 0 | AQ101: =IF(OR(AF101=3,AF101=2,AF101=0),SUMIFS(FlatMaint!$Z$2:$Z$10000,FlatMaint!$A$2:$A$10000,D101,FlatMaint!$Y$2:$Y$10000,AE101)*AG101,0) -> 0 | AR101: =IF(OR(AF101=3,AF101=2,AF101=0),SUMIFS(FlatRepair!$Z$2:$Z$10000,FlatRepair!$A$2:$A$10000,D101,FlatRepair!$Y$2:$Y$10000,AE101)*AG101,0) -> 0 | AS101: 0 | AT101: 0 | AU101: 0 | AV101: 0 | AW101: 0 | AX101: 0 | AY101: 0 | AZ101: 0 | BA101: 0 | BB101: =IF($AF101=3,IF($AF$2=2,(R101/SUMIF(Refurb_Poss_Tbl[Refurbishment Possible],I101,Refurb_Poss_Tbl[%]))*AG101,IF($AF$2=3,(R101*AG101)-AV101,R101*AG101)),0) -> 0 | BC101: =IF(AF101=3,IF($AF$2=2,(S101/SUMIF(Refurb_Poss_Tbl[Refurbishment Possible],I101,Refurb_Poss_Tbl[%]))*AG101,IF($AF$2=3,(S101*AG101)-AX101,S101*AG101)),0) -> 0 | BD101: =IF($AF101=3,IF($AF$2=2,(T101/SUMIF(Refurb_Poss_Tbl[Refurbishment Possible],I101,Refurb_Poss_Tbl[%]))*AG101,T101*$AG101),0) -> 0 | BE101: =IF($AF101=3,IF($AF$2=2,(Q101/SUMIF(Refurb_Poss_Tbl[Refurbishment Possible],I101,Refurb_Poss_Tbl[%]))*AG101,Q101*$AG101),0) -> 0 | BF101: =IF($AF101=3,IF($AF$2=2,(U101/SUMIF(Refurb_Poss_Tbl[Refurbishment Possible],I101,Refurb_Poss_Tbl[%]))*AG101,U101*$AG101),0) -> 0 | BG101: =IF($AF101=3,IF($AF$2=2,(V101/SUMIF(Refurb_Poss_Tbl[Refurbishment Possible],I101,Refurb_Poss_Tbl[%]))*AG101,IF($AF$2=3,(V101*AG101)-AW101,V101*AG101)),0) -> 0 | BH101: =IF($AF101=3,IF($AF$2=2,(W101/SUMIF(Refurb_Poss_Tbl[Refurbishment Possible],I101,Refurb_Poss_Tbl[%]))*AG101,W101*$AG101),0) -> 0
A102: DredEA11 | B102: New channel | C102: Dredging Works | D102: DredEA1133 | E102: New channel-Excavation | F102: Dredging | G102: 120 | H102: 120 | I102: Not Possible | J102: 60 | K102: New Build | L102: 0 | M102: 0 | N102: 0 | O102: 2 | P102: 968.2248 | Q102: 968.2248 | R102: 33.77397315 | S102: 337.07328 | T102: 0.9941643774 | U102: 190.759147 | V102: 0 | W102: 694.8552145 | X102: 2225.680579 | Y102: 0 | Z102: 0 | AA102: 0 | AB102: 0 | AC102: 0.4970821887 | AD102: 168.53664 | AE102: 100 | AF102: 0 | AG102: =VLOOKUP(AE102,ValidationLists!$M$1:$N$102,2,FALSE) -> 0.08464736839 | AH102: 0 | AI102: 0 | AJ102: 0 | AK102: 0 | AL102: 0 | AM102: 0 | AN102: 0 | AO102: 0 | AP102: 0 | AQ102: =IF(OR(AF102=3,AF102=2,AF102=0),SUMIFS(FlatMaint!$Z$2:$Z$10000,FlatMaint!$A$2:$A$10000,D102,FlatMaint!$Y$2:$Y$10000,AE102)*AG102,0) -> 8.196544543 | AR102: =IF(OR(AF102=3,AF102=2,AF102=0),SUMIFS(FlatRepair!$Z$2:$Z$10000,FlatRepair!$A$2:$A$10000,D102,FlatRepair!$Y$2:$Y$10000,AE102)*AG102,0) -> 0 | AS102: 0 | AT102: 8.196544543 | AU102: 0 | AV102: 0 | AW102: 0 | AX102: 0 | AY102: 0 | AZ102: 8.196544543 | BA102: 0 | BB102: =IF($AF102=3,IF($AF$2=2,(R102/SUMIF(Refurb_Poss_Tbl[Refurbishment Possible],I102,Refurb_Poss_Tbl[%]))*AG102,IF($AF$2=3,(R102*AG102)-AV102,R102*AG102)),0) -> 0 | BC102: =IF(AF102=3,IF($AF$2=2,(S102/SUMIF(Refurb_Poss_Tbl[Refurbishment Possible],I102,Refurb_Poss_Tbl[%]))*AG102,IF($AF$2=3,(S102*AG102)-AX102,S102*AG102)),0) -> 0 | BD102: =IF($AF102=3,IF($AF$2=2,(T102/SUMIF(Refurb_Poss_Tbl[Refurbishment Possible],I102,Refurb_Poss_Tbl[%]))*AG102,T102*$AG102),0) -> 0 | BE102: =IF($AF102=3,IF($AF$2=2,(Q102/SUMIF(Refurb_Poss_Tbl[Refurbishment Possible],I102,Refurb_Poss_Tbl[%]))*AG102,Q102*$AG102),0) -> 0 | BF102: =IF($AF102=3,IF($AF$2=2,(U102/SUMIF(Refurb_Poss_Tbl[Refurbishment Possible],I102,Refurb_Poss_Tbl[%]))*AG102,U102*$AG102),0) -> 0 | BG102: =IF($AF102=3,IF($AF$2=2,(V102/SUMIF(Refurb_Poss_Tbl[Refurbishment Possible],I102,Refurb_Poss_Tbl[%]))*AG102,IF($AF$2=3,(V102*AG102)-AW102,V102*AG102)),0) -> 0 | BH102: =IF($AF102=3,IF($AF$2=2,(W102/SUMIF(Refurb_Poss_Tbl[Refurbishment Possible],I102,Refurb_Poss_Tbl[%]))*AG102,W102*$AG102),0) -> 0

Sheet AssetDataExtract (hidden)
A1: Asset ID | B1: Asset description | C1: Asset class | D1: Sub-Asset ref. | E1: Sub-Asset description | F1: Sub-Asset category | G1: Standard life | H1: Expected new build life | I1: Refurbishment type | J1: Expected refurbished Life | K1: First intervention | L1: Last Refurb | M1: Last Replace | N1: Remaining Life | O1: Last intervention | P1: Weighted Split | Q1: Materials | R1: Materials Transport | S1: People Transport | T1: Plant Transport | U1: Site Establishment | V1: Plant use | W1: Waste | X1: New Build Co2e | Y1: Use | Z1: Energy | AA1: Refurbishment | AB1: Den - Material Waste | AC1: Dem - Plant use | AD1: Dem - People | AE1: 0 | AF1: 1 | AG1: 2 | AH1: 3 | AI1: 4 | AJ1: 5 | AK1: 6 | AL1: 7 | AM1: 8 | AN1: 9 | AO1: 10 | AP1: 11 | AQ1: 12 | AR1: 13 | AS1: 14 | AT1: 15 | AU1: 16 | AV1: 17 | AW1: 18 | AX1: 19 | AY1: 20 | AZ1: 21 | BA1: 22 | BB1: 23 | BC1: 24 | BD1: 25 | BE1: 26 | BF1: 27 | BG1: 28 | BH1: 29 | BI1: 30 | BJ1: 31 | BK1: 32 | BL1: 33 | BM1: 34 | BN1: 35 | BO1: 36 | BP1: 37 | BQ1: 38 | BR1: 39 | BS1: 40 | BT1: 41 | BU1: 42 | BV1: 43 | BW1: 44 | BX1: 45 | BY1: 46 | BZ1: 47 | CA1: 48 | CB1: 49 | CC1: 50 | CD1: 51 | CE1: 52 | CF1: 53 | CG1: 54 | CH1: 55 | CI1: 56 | CJ1: 57 | CK1: 58 | CL1: 59 | CM1: 60 | CN1: 61 | CO1: 62 | CP1: 63 | CQ1: 64 | CR1: 65 | CS1: 66 | CT1: 67 | CU1: 68 | CV1: 69 | CW1: 70 | CX1: 71 | CY1: 72 | CZ1: 73 | DA1: 74 | DB1: 75 | DC1: 76 | DD1: 77 | DE1: 78 | DF1: 79 | DG1: 80 | DH1: 81 | DI1: 82 | DJ1: 83 | DK1: 84 | DL1: 85 | DM1: 86 | DN1: 87 | DO1: 88 | DP1: 89 | DQ1: 90 | DR1: 91 | DS1: 92 | DT1: 93 | DU1: 94 | DV1: 95 | DW1: 96 | DX1: 97 | DY1: 98 | DZ1: 99 | EA1: 100
A2: DredEA11 | B2: New channel | C2: Dredging Works | D2: DredEA1133 | E2: New channel-Excavation | F2: Dredging | G2: 120 | H2: 120 | I2: Not Possible | J2: 60 | K2: New Build | L2: 0 | M2: 0 | N2: 0 | O2: 2 | P2: 968.2248 | Q2: 968.2248 | R2: 33.77397315 | S2: 337.07328 | T2: 0.9941643774 | U2: 190.759147 | V2: 0 | W2: 694.8552145 | X2: 2225.680579 | Y2: 0 | Z2: 0 | AA2: 0 | AB2: 0 | AC2: 0.4970821887 | AD2: 168.53664 | AE2: 1 | AF2: 0 | AG2: 0 | AH2: 0 | AI2: 0 | AJ2: 0 | AK2: 0 | AL2: 0 | AM2: 0 | AN2: 0 | AO2: 0 | AP2: 0 | AQ2: 0 | AR2: 0 | AS2: 0 | AT2: 0 | AU2: 0 | AV2: 0 | AW2: 0 | AX2: 0 | AY2: 0 | AZ2: 0 | BA2: 0 | BB2: 0 | BC2: 0 | BD2: 0 | BE2: 0 | BF2: 0 | BG2: 0 | BH2: 0 | BI2: 0 | BJ2: 0 | BK2: 0 | BL2: 0 | BM2: 0 | BN2: 0 | BO2: 0 | BP2: 0 | BQ2: 0 | BR2: 0 | BS2: 0 | BT2: 0 | BU2: 0 | BV2: 0 | BW2: 0 | BX2: 0 | BY2: 0 | BZ2: 0 | CA2: 0 | CB2: 0 | CC2: 0 | CD2: 0 | CE2: 0 | CF2: 0 | CG2: 0 | CH2: 0 | CI2: 0 | CJ2: 0 | CK2: 0 | CL2: 0 | CM2: 0 | CN2: 0 | CO2: 0 | CP2: 0 | CQ2: 0 | CR2: 0 | CS2: 0 | CT2: 0 | CU2: 0 | CV2: 0 | CW2: 0 | CX2: 0 | CY2: 0 | CZ2: 0 | DA2: 0 | DB2: 0 | DC2: 0 | DD2: 0 | DE2: 0 | DF2: 0 | DG2: 0 | DH2: 0 | DI2: 0 | DJ2: 0 | DK2: 0 | DL2: 0 | DM2: 0 | DN2: 0 | DO2: 0 | DP2: 0 | DQ2: 0 | DR2: 0 | DS2: 0 | DT2: 0 | DU2: 0 | DV2: 0 | DW2: 0 | DX2: 0 | DY2: 0 | DZ2: 0 | EA2: 0

Sheet FlatMaint (hidden)
A1: Sub-Asset Ref. | B1: Sub-Asset description | C1: Maintenance category | D1: Maintenance description | E1: Mode of transport | F1: Return transport distance (km) | G1: Materials | H1: Plant | I1: Waste | J1: Overhead | K1: Annual intervention fequency | L1: Interventions per year | M1: Exceptional intervention year | N1: CO2e (t) per intervention | O1: Material | P1: Plant | Q1: Transport | R1: blank5 | S1: blank6 | T1: blank7 | U1: blank8 | V1: blank9 | W1: blank10 | X1: blank11 | Y1: Year | Z1: Maint
A2: DredEA1133 | B2: New channel-Excavation | C2: Minimum Need | D2: Public Safety Inspection | E2: Van | F2: 30 | G2: Low | H2: Low | I2: Not used | J2: Not used | K2: Every 2 years | L2: Interventions per year | M2: Exceptional intervention year | N2: 96.8316522948 | O2: 96.82248 | P2: 0 | Q2: 0.0091722948 | R2: blank5 | S2: blank6 | T2: blank7 | U2: blank8 | V2: blank9 | W2: blank10 | X2: blank11 | Y2: 0
A3: DredEA1133 | B3: New channel-Excavation | C3: Minimum Need | D3: Public Safety Inspection | E3: Van | F3: 30 | G3: Low | H3: Low | I3: Not used | J3: Not used | K3: Every 2 years | L3: Interventions per year | M3: Exceptional intervention year | N3: 96.8316522948 | O3: 96.82248 | P3: 0 | Q3: 0.0091722948 | R3: blank5 | S3: blank6 | T3: blank7 | U3: blank8 | V3: blank9 | W3: blank10 | X3: blank11 | Y3: 1 | Z3: 0
A4: DredEA1133 | B4: New channel-Excavation | C4: Minimum Need | D4: Public Safety Inspection | E4: Van | F4: 30 | G4: Low | H4: Low | I4: Not used | J4: Not used | K4: Every 2 years | L4: Interventions per year | M4: Exceptional intervention year | N4: 96.8316522948 | O4: 96.82248 | P4: 0 | Q4: 0.0091722948 | R4: blank5 | S4: blank6 | T4: blank7 | U4: blank8 | V4: blank9 | W4: blank10 | X4: blank11 | Y4: 2 | Z4: 96.83165229
A5: DredEA1133 | B5: New channel-Excavation | C5: Minimum Need | D5: Public Safety Inspection | E5: Van | F5: 30 | G5: Low | H5: Low | I5: Not used | J5: Not used | K5: Every 2 years | L5: Interventions per year | M5: Exceptional intervention year | N5: 96.8316522948 | O5: 96.82248 | P5: 0 | Q5: 0.0091722948 | R5: blank5 | S5: blank6 | T5: blank7 | U5: blank8 | V5: blank9 | W5: blank10 | X5: blank11 | Y5: 3 | Z5: 0
A6: DredEA1133 | B6: New channel-Excavation | C6: Minimum Need | D6: Public Safety Inspection | E6: Van | F6: 30 | G6: Low | H6: Low | I6: Not used | J6: Not used | K6: Every 2 years | L6: Interventions per year | M6: Exceptional intervention year | N6: 96.8316522948 | O6: 96.82248 | P6: 0 | Q6: 0.0091722948 | R6: blank5 | S6: blank6 | T6: blank7 | U6: blank8 | V6: blank9 | W6: blank10 | X6: blank11 | Y6: 4 | Z6: 96.83165229
A7: DredEA1133 | B7: New channel-Excavation | C7: Minimum Need | D7: Public Safety Inspection | E7: Van | F7: 30 | G7: Low | H7: Low | I7: Not used | J7: Not used | K7: Every 2 years | L7: Interventions per year | M7: Exceptional intervention year | N7: 96.8316522948 | O7: 96.82248 | P7: 0 | Q7: 0.0091722948 | R7: blank5 | S7: blank6 | T7: blank7 | U7: blank8 | V7: blank9 | W7: blank10 | X7: blank11 | Y7: 5 | Z7: 0
A8: DredEA1133 | B8: New channel-Excavation | C8: Minimum Need | D8: Public Safety Inspection | E8: Van | F8: 30 | G8: Low | H8: Low | I8: Not used | J8: Not used | K8: Every 2 years | L8: Interventions per year | M8: Exceptional intervention year | N8: 96.8316522948 | O8: 96.82248 | P8: 0 | Q8: 0.0091722948 | R8: blank5 | S8: blank6 | T8: blank7 | U8: blank8 | V8: blank9 | W8: blank10 | X8: blank11 | Y8: 6 | Z8: 96.83165229
A9: DredEA1133 | B9: New channel-Excavation | C9: Minimum Need | D9: Public Safety Inspection | E9: Van | F9: 30 | G9: Low | H9: Low | I9: Not used | J9: Not used | K9: Every 2 years | L9: Interventions per year | M9: Exceptional intervention year | N9: 96.8316522948 | O9: 96.82248 | P9: 0 | Q9: 0.0091722948 | R9: blank5 | S9: blank6 | T9: blank7 | U9: blank8 | V9: blank9 | W9: blank10 | X9: blank11 | Y9: 7 | Z9: 0
A10: DredEA1133 | B10: New channel-Excavation | C10: Minimum Need | D10: Public Safety Inspection | E10: Van | F10: 30 | G10: Low | H10: Low | I10: Not used | J10: Not used | K10: Every 2 years | L10: Interventions per year | M10: Exceptional intervention year | N10: 96.8316522948 | O10: 96.82248 | P10: 0 | Q10: 0.0091722948 | R10: blank5 | S10: blank6 | T10: blank7 | U10: blank8 | V10: blank9 | W10: blank10 | X10: blank11 | Y10: 8 | Z10: 96.83165229
A11: DredEA1133 | B11: New channel-Excavation | C11: Minimum Need | D11: Public Safety Inspection | E11: Van | F11: 30 | G11: Low | H11: Low | I11: Not used | J11: Not used | K11: Every 2 years | L11: Interventions per year | M11: Exceptional intervention year | N11: 96.8316522948 | O11: 96.82248 | P11: 0 | Q11: 0.0091722948 | R11: blank5 | S11: blank6 | T11: blank7 | U11: blank8 | V11: blank9 | W11: blank10 | X11: blank11 | Y11: 9 | Z11: 0
A12: DredEA1133 | B12: New channel-Excavation | C12: Minimum Need | D12: Public Safety Inspection | E12: Van | F12: 30 | G12: Low | H12: Low | I12: Not used | J12: Not used | K12: Every 2 years | L12: Interventions per year | M12: Exceptional intervention year | N12: 96.8316522948 | O12: 96.82248 | P12: 0 | Q12: 0.0091722948 | R12: blank5 | S12: blank6 | T12: blank7 | U12: blank8 | V12: blank9 | W12: blank10 | X12: blank11 | Y12: 10 | Z12: 96.83165229
A13: DredEA1133 | B13: New channel-Excavation | C13: Minimum Need | D13: Public Safety Inspection | E13: Van | F13: 30 | G13: Low | H13: Low | I13: Not used | J13: Not used | K13: Every 2 years | L13: Interventions per year | M13: Exceptional intervention year | N13: 96.8316522948 | O13: 96.82248 | P13: 0 | Q13: 0.0091722948 | R13: blank5 | S13: blank6 | T13: blank7 | U13: blank8 | V13: blank9 | W13: blank10 | X13: blank11 | Y13: 11 | Z13: 0
A14: DredEA1133 | B14: New channel-Excavation | C14: Minimum Need | D14: Public Safety Inspection | E14: Van | F14: 30 | G14: Low | H14: Low | I14: Not used | J14: Not used | K14: Every 2 years | L14: Interventions per year | M14: Exceptional intervention year | N14: 96.8316522948 | O14: 96.82248 | P14: 0 | Q14: 0.0091722948 | R14: blank5 | S14: blank6 | T14: blank7 | U14: blank8 | V14: blank9 | W14: blank10 | X14: blank11 | Y14: 12 | Z14: 96.83165229
A15: DredEA1133 | B15: New channel-Excavation | C15: Minimum Need | D15: Public Safety Inspection | E15: Van | F15: 30 | G15: Low | H15: Low | I15: Not used | J15: Not used | K15: Every 2 years | L15: Interventions per year | M15: Exceptional intervention year | N15: 96.8316522948 | O15: 96.82248 | P15: 0 | Q15: 0.0091722948 | R15: blank5 | S15: blank6 | T15: blank7 | U15: blank8 | V15: blank9 | W15: blank10 | X15: blank11 | Y15: 13 | Z15: 0
A16: DredEA1133 | B16: New channel-Excavation | C16: Minimum Need | D16: Public Safety Inspection | E16: Van | F16: 30 | G16: Low | H16: Low | I16: Not used | J16: Not used | K16: Every 2 years | L16: Interventions per year | M16: Exceptional intervention year | N16: 96.8316522948 | O16: 96.82248 | P16: 0 | Q16: 0.0091722948 | R16: blank5 | S16: blank6 | T16: blank7 | U16: blank8 | V16: blank9 | W16: blank10 | X16: blank11 | Y16: 14 | Z16: 96.83165229
A17: DredEA1133 | B17: New channel-Excavation | C17: Minimum Need | D17: Public Safety Inspection | E17: Van | F17: 30 | G17: Low | H17: Low | I17: Not used | J17: Not used | K17: Every 2 years | L17: Interventions per year | M17: Exceptional intervention year | N17: 96.8316522948 | O17: 96.82248 | P17: 0 | Q17: 0.0091722948 | R17: blank5 | S17: blank6 | T17: blank7 | U17: blank8 | V17: blank9 | W17: blank10 | X17: blank11 | Y17: 15 | Z17: 0
A18: DredEA1133 | B18: New channel-Excavation | C18: Minimum Need | D18: Public Safety Inspection | E18: Van | F18: 30 | G18: Low | H18: Low | I18: Not used | J18: Not used | K18: Every 2 years | L18: Interventions per year | M18: Exceptional intervention year | N18: 96.8316522948 | O18: 96.82248 | P18: 0 | Q18: 0.0091722948 | R18: blank5 | S18: blank6 | T18: blank7 | U18: blank8 | V18: blank9 | W18: blank10 | X18: blank11 | Y18: 16 | Z18: 96.83165229
A19: DredEA1133 | B19: New channel-Excavation | C19: Minimum Need | D19: Public Safety Inspection | E19: Van | F19: 30 | G19: Low | H19: Low | I19: Not used | J19: Not used | K19: Every 2 years | L19: Interventions per year | M19: Exceptional intervention year | N19: 96.8316522948 | O19: 96.82248 | P19: 0 | Q19: 0.0091722948 | R19: blank5 | S19: blank6 | T19: blank7 | U19: blank8 | V19: blank9 | W19: blank10 | X19: blank11 | Y19: 17 | Z19: 0
A20: DredEA1133 | B20: New channel-Excavation | C20: Minimum Need | D20: Public Safety Inspection | E20: Van | F20: 30 | G20: Low | H20: Low | I20: Not used | J20: Not used | K20: Every 2 years | L20: Interventions per year | M20: Exceptional intervention year | N20: 96.8316522948 | O20: 96.82248 | P20: 0 | Q20: 0.0091722948 | R20: blank5 | S20: blank6 | T20: blank7 | U20: blank8 | V20: blank9 | W20: blank10 | X20: blank11 | Y20: 18 | Z20: 96.83165229
A21: DredEA1133 | B21: New channel-Excavation | C21: Minimum Need | D21: Public Safety Inspection | E21: Van | F21: 30 | G21: Low | H21: Low | I21: Not used | J21: Not used | K21: Every 2 years | L21: Interventions per year | M21: Exceptional intervention year | N21: 96.8316522948 | O21: 96.82248 | P21: 0 | Q21: 0.0091722948 | R21: blank5 | S21: blank6 | T21: blank7 | U21: blank8 | V21: blank9 | W21: blank10 | X21: blank11 | Y21: 19 | Z21: 0
A22: DredEA1133 | B22: New channel-Excavation | C22: Minimum Need | D22: Public Safety Inspection | E22: Van | F22: 30 | G22: Low | H22: Low | I22: Not used | J22: Not used | K22: Every 2 years | L22: Interventions per year | M22: Exceptional intervention year | N22: 96.8316522948 | O22: 96.82248 | P22: 0 | Q22: 0.0091722948 | R22: blank5 | S22: blank6 | T22: blank7 | U22: blank8 | V22: blank9 | W22: blank10 | X22: blank11 | Y22: 20 | Z22: 96.83165229
A23: DredEA1133 | B23: New channel-Excavation | C23: Minimum Need | D23: Public Safety Inspection | E23: Van | F23: 30 | G23: Low | H23: Low | I23: Not used | J23: Not used | K23: Every 2 years | L23: Interventions per year | M23: Exceptional intervention year | N23: 96.8316522948 | O23: 96.82248 | P23: 0 | Q23: 0.0091722948 | R23: blank5 | S23: blank6 | T23: blank7 | U23: blank8 | V23: blank9 | W23: blank10 | X23: blank11 | Y23: 21 | Z23: 0
A24: DredEA1133 | B24: New channel-Excavation | C24: Minimum Need | D24: Public Safety Inspection | E24: Van | F24: 30 | G24: Low | H24: Low | I24: Not used | J24: Not used | K24: Every 2 years | L24: Interventions per year | M24: Exceptional intervention year | N24: 96.8316522948 | O24: 96.82248 | P24: 0 | Q24: 0.0091722948 | R24: blank5 | S24: blank6 | T24: blank7 | U24: blank8 | V24: blank9 | W24: blank10 | X24: blank11 | Y24: 22 | Z24: 96.83165229
A25: DredEA1133 | B25: New channel-Excavation | C25: Minimum Need | D25: Public Safety Inspection | E25: Van | F25: 30 | G25: Low | H25: Low | I25: Not used | J25: Not used | K25: Every 2 years | L25: Interventions per year | M25: Exceptional intervention year | N25: 96.8316522948 | O25: 96.82248 | P25: 0 | Q25: 0.0091722948 | R25: blank5 | S25: blank6 | T25: blank7 | U25: blank8 | V25: blank9 | W25: blank10 | X25: blank11 | Y25: 23 | Z25: 0
A26: DredEA1133 | B26: New channel-Excavation | C26: Minimum Need | D26: Public Safety Inspection | E26: Van | F26: 30 | G26: Low | H26: Low | I26: Not used | J26: Not used | K26: Every 2 years | L26: Interventions per year | M26: Exceptional intervention year | N26: 96.8316522948 | O26: 96.82248 | P26: 0 | Q26: 0.0091722948 | R26: blank5 | S26: blank6 | T26: blank7 | U26: blank8 | V26: blank9 | W26: blank10 | X26: blank11 | Y26: 24 | Z26: 96.83165229
A27: DredEA1133 | B27: New channel-Excavation | C27: Minimum Need | D27: Public Safety Inspection | E27: Van | F27: 30 | G27: Low | H27: Low | I27: Not used | J27: Not used | K27: Every 2 years | L27: Interventions per year | M27: Exceptional intervention year | N27: 96.8316522948 | O27: 96.82248 | P27: 0 | Q27: 0.0091722948 | R27: blank5 | S27: blank6 | T27: blank7 | U27: blank8 | V27: blank9 | W27: blank10 | X27: blank11 | Y27: 25 | Z27: 0
A28: DredEA1133 | B28: New channel-Excavation | C28: Minimum Need | D28: Public Safety Inspection | E28: Van | F28: 30 | G28: Low | H28: Low | I28: Not used | J28: Not used | K28: Every 2 years | L28: Interventions per year | M28: Exceptional intervention year | N28: 96.8316522948 | O28: 96.82248 | P28: 0 | Q28: 0.0091722948 | R28: blank5 | S28: blank6 | T28: blank7 | U28: blank8 | V28: blank9 | W28: blank10 | X28: blank11 | Y28: 26 | Z28: 96.83165229
A29: DredEA1133 | B29: New channel-Excavation | C29: Minimum Need | D29: Public Safety Inspection | E29: Van | F29: 30 | G29: Low | H29: Low | I29: Not used | J29: Not used | K29: Every 2 years | L29: Interventions per year | M29: Exceptional intervention year | N29: 96.8316522948 | O29: 96.82248 | P29: 0 | Q29: 0.0091722948 | R29: blank5 | S29: blank6 | T29: blank7 | U29: blank8 | V29: blank9 | W29: blank10 | X29: blank11 | Y29: 27 | Z29: 0
A30: DredEA1133 | B30: New channel-Excavation | C30: Minimum Need | D30: Public Safety Inspection | E30: Van | F30: 30 | G30: Low | H30: Low | I30: Not used | J30: Not used | K30: Every 2 years | L30: Interventions per year | M30: Exceptional intervention year | N30: 96.8316522948 | O30: 96.82248 | P30: 0 | Q30: 0.0091722948 | R30: blank5 | S30: blank6 | T30: blank7 | U30: blank8 | V30: blank9 | W30: blank10 | X30: blank11 | Y30: 28 | Z30: 96.83165229
A31: DredEA1133 | B31: New channel-Excavation | C31: Minimum Need | D31: Public Safety Inspection | E31: Van | F31: 30 | G31: Low | H31: Low | I31: Not used | J31: Not used | K31: Every 2 years | L31: Interventions per year | M31: Exceptional intervention year | N31: 96.8316522948 | O31: 96.82248 | P31: 0 | Q31: 0.0091722948 | R31: blank5 | S31: blank6 | T31: blank7 | U31: blank8 | V31: blank9 | W31: blank10 | X31: blank11 | Y31: 29 | Z31: 0
A32: DredEA1133 | B32: New channel-Excavation | C32: Minimum Need | D32: Public Safety Inspection | E32: Van | F32: 30 | G32: Low | H32: Low | I32: Not used | J32: Not used | K32: Every 2 years | L32: Interventions per year | M32: Exceptional intervention year | N32: 96.8316522948 | O32: 96.82248 | P32: 0 | Q32: 0.0091722948 | R32: blank5 | S32: blank6 | T32: blank7 | U32: blank8 | V32: blank9 | W32: blank10 | X32: blank11 | Y32: 30 | Z32: 96.83165229
A33: DredEA1133 | B33: New channel-Excavation | C33: Minimum Need | D33: Public Safety Inspection | E33: Van | F33: 30 | G33: Low | H33: Low | I33: Not used | J33: Not used | K33: Every 2 years | L33: Interventions per year | M33: Exceptional intervention year | N33: 96.8316522948 | O33: 96.82248 | P33: 0 | Q33: 0.0091722948 | R33: blank5 | S33: blank6 | T33: blank7 | U33: blank8 | V33: blank9 | W33: blank10 | X33: blank11 | Y33: 31 | Z33: 0
A34: DredEA1133 | B34: New channel-Excavation | C34: Minimum Need | D34: Public Safety Inspection | E34: Van | F34: 30 | G34: Low | H34: Low | I34: Not used | J34: Not used | K34: Every 2 years | L34: Interventions per year | M34: Exceptional intervention year | N34: 96.8316522948 | O34: 96.82248 | P34: 0 | Q34: 0.0091722948 | R34: blank5 | S34: blank6 | T34: blank7 | U34: blank8 | V34: blank9 | W34: blank10 | X34: blank11 | Y34: 32 | Z34: 96.83165229
A35: DredEA1133 | B35: New channel-Excavation | C35: Minimum Need | D35: Public Safety Inspection | E35: Van | F35: 30 | G35: Low | H35: Low | I35: Not used | J35: Not used | K35: Every 2 years | L35: Interventions per year | M35: Exceptional intervention year | N35: 96.8316522948 | O35: 96.82248 | P35: 0 | Q35: 0.0091722948 | R35: blank5 | S35: blank6 | T35: blank7 | U35: blank8 | V35: blank9 | W35: blank10 | X35: blank11 | Y35: 33 | Z35: 0
A36: DredEA1133 | B36: New channel-Excavation | C36: Minimum Need | D36: Public Safety Inspection | E36: Van | F36: 30 | G36: Low | H36: Low | I36: Not used | J36: Not used | K36: Every 2 years | L36: Interventions per year | M36: Exceptional intervention year | N36: 96.8316522948 | O36: 96.82248 | P36: 0 | Q36: 0.0091722948 | R36: blank5 | S36: blank6 | T36: blank7 | U36: blank8 | V36: blank9 | W36: blank10 | X36: blank11 | Y36: 34 | Z36: 96.83165229
A37: DredEA1133 | B37: New channel-Excavation | C37: Minimum Need | D37: Public Safety Inspection | E37: Van | F37: 30 | G37: Low | H37: Low | I37: Not used | J37: Not used | K37: Every 2 years | L37: Interventions per year | M37: Exceptional intervention year | N37: 96.8316522948 | O37: 96.82248 | P37: 0 | Q37: 0.0091722948 | R37: blank5 | S37: blank6 | T37: blank7 | U37: blank8 | V37: blank9 | W37: blank10 | X37: blank11 | Y37: 35 | Z37: 0
A38: DredEA1133 | B38: New channel-Excavation | C38: Minimum Need | D38: Public Safety Inspection | E38: Van | F38: 30 | G38: Low | H38: Low | I38: Not used | J38: Not used | K38: Every 2 years | L38: Interventions per year | M38: Exceptional intervention year | N38: 96.8316522948 | O38: 96.82248 | P38: 0 | Q38: 0.0091722948 | R38: blank5 | S38: blank6 | T38: blank7 | U38: blank8 | V38: blank9 | W38: blank10 | X38: blank11 | Y38: 36 | Z38: 96.83165229
A39: DredEA1133 | B39: New channel-Excavation | C39: Minimum Need | D39: Public Safety Inspection | E39: Van | F39: 30 | G39: Low | H39: Low | I39: Not used | J39: Not used | K39: Every 2 years | L39: Interventions per year | M39: Exceptional intervention year | N39: 96.8316522948 | O39: 96.82248 | P39: 0 | Q39: 0.0091722948 | R39: blank5 | S39: blank6 | T39: blank7 | U39: blank8 | V39: blank9 | W39: blank10 | X39: blank11 | Y39: 37 | Z39: 0
A40: DredEA1133 | B40: New channel-Excavation | C40: Minimum Need | D40: Public Safety Inspection | E40: Van | F40: 30 | G40: Low | H40: Low | I40: Not used | J40: Not used | K40: Every 2 years | L40: Interventions per year | M40: Exceptional intervention year | N40: 96.8316522948 | O40: 96.82248 | P40: 0 | Q40: 0.0091722948 | R40: blank5 | S40: blank6 | T40: blank7 | U40: blank8 | V40: blank9 | W40: blank10 | X40: blank11 | Y40: 38 | Z40: 96.83165229
A41: DredEA1133 | B41: New channel-Excavation | C41: Minimum Need | D41: Public Safety Inspection | E41: Van | F41: 30 | G41: Low | H41: Low | I41: Not used | J41: Not used | K41: Every 2 years | L41: Interventions per year | M41: Exceptional intervention year | N41: 96.8316522948 | O41: 96.82248 | P41: 0 | Q41: 0.0091722948 | R41: blank5 | S41: blank6 | T41: blank7 | U41: blank8 | V41: blank9 | W41: blank10 | X41: blank11 | Y41: 39 | Z41: 0
A42: DredEA1133 | B42: New channel-Excavation | C42: Minimum Need | D42: Public Safety Inspection | E42: Van | F42: 30 | G42: Low | H42: Low | I42: Not used | J42: Not used | K42: Every 2 years | L42: Interventions per year | M42: Exceptional intervention year | N42: 96.8316522948 | O42: 96.82248 | P42: 0 | Q42: 0.0091722948 | R42: blank5 | S42: blank6 | T42: blank7 | U42: blank8 | V42: blank9 | W42: blank10 | X42: blank11 | Y42: 40 | Z42: 96.83165229
A43: DredEA1133 | B43: New channel-Excavation | C43: Minimum Need | D43: Public Safety Inspection | E43: Van | F43: 30 | G43: Low | H43: Low | I43: Not used | J43: Not used | K43: Every 2 years | L43: Interventions per year | M43: Exceptional intervention year | N43: 96.8316522948 | O43: 96.82248 | P43: 0 | Q43: 0.0091722948 | R43: blank5 | S43: blank6 | T43: blank7 | U43: blank8 | V43: blank9 | W43: blank10 | X43: blank11 | Y43: 41 | Z43: 0
A44: DredEA1133 | B44: New channel-Excavation | C44: Minimum Need | D44: Public Safety Inspection | E44: Van | F44: 30 | G44: Low | H44: Low | I44: Not used | J44: Not used | K44: Every 2 years | L44: Interventions per year | M44: Exceptional intervention year | N44: 96.8316522948 | O44: 96.82248 | P44: 0 | Q44: 0.0091722948 | R44: blank5 | S44: blank6 | T44: blank7 | U44: blank8 | V44: blank9 | W44: blank10 | X44: blank11 | Y44: 42 | Z44: 96.83165229
A45: DredEA1133 | B45: New channel-Excavation | C45: Minimum Need | D45: Public Safety Inspection | E45: Van | F45: 30 | G45: Low | H45: Low | I45: Not used | J45: Not used | K45: Every 2 years | L45: Interventions per year | M45: Exceptional intervention year | N45: 96.8316522948 | O45: 96.82248 | P45: 0 | Q45: 0.0091722948 | R45: blank5 | S45: blank6 | T45: blank7 | U45: blank8 | V45: blank9 | W45: blank10 | X45: blank11 | Y45: 43 | Z45: 0
A46: DredEA1133 | B46: New channel-Excavation | C46: Minimum Need | D46: Public Safety Inspection | E46: Van | F46: 30 | G46: Low | H46: Low | I46: Not used | J46: Not used | K46: Every 2 years | L46: Interventions per year | M46: Exceptional intervention year | N46: 96.8316522948 | O46: 96.82248 | P46: 0 | Q46: 0.0091722948 | R46: blank5 | S46: blank6 | T46: blank7 | U46: blank8 | V46: blank9 | W46: blank10 | X46: blank11 | Y46: 44 | Z46: 96.83165229
A47: DredEA1133 | B47: New channel-Excavation | C47: Minimum Need | D47: Public Safety Inspection | E47: Van | F47: 30 | G47: Low | H47: Low | I47: Not used | J47: Not used | K47: Every 2 years | L47: Interventions per year | M47: Exceptional intervention year | N47: 96.8316522948 | O47: 96.82248 | P47: 0 | Q47: 0.0091722948 | R47: blank5 | S47: blank6 | T47: blank7 | U47: blank8 | V47: blank9 | W47: blank10 | X47: blank11 | Y47: 45 | Z47: 0
A48: DredEA1133 | B48: New channel-Excavation | C48: Minimum Need | D48: Public Safety Inspection | E48: Van | F48: 30 | G48: Low | H48: Low | I48: Not used | J48: Not used | K48: Every 2 years | L48: Interventions per year | M48: Exceptional intervention year | N48: 96.8316522948 | O48: 96.82248 | P48: 0 | Q48: 0.0091722948 | R48: blank5 | S48: blank6 | T48: blank7 | U48: blank8 | V48: blank9 | W48: blank10 | X48: blank11 | Y48: 46 | Z48: 96.83165229
A49: DredEA1133 | B49: New channel-Excavation | C49: Minimum Need | D49: Public Safety Inspection | E49: Van | F49: 30 | G49: Low | H49: Low | I49: Not used | J49: Not used | K49: Every 2 years | L49: Interventions per year | M49: Exceptional intervention year | N49: 96.8316522948 | O49: 96.82248 | P49: 0 | Q49: 0.0091722948 | R49: blank5 | S49: blank6 | T49: blank7 | U49: blank8 | V49: blank9 | W49: blank10 | X49: blank11 | Y49: 47 | Z49: 0
A50: DredEA1133 | B50: New channel-Excavation | C50: Minimum Need | D50: Public Safety Inspection | E50: Van | F50: 30 | G50: Low | H50: Low | I50: Not used | J50: Not used | K50: Every 2 years | L50: Interventions per year | M50: Exceptional intervention year | N50: 96.8316522948 | O50: 96.82248 | P50: 0 | Q50: 0.0091722948 | R50: blank5 | S50: blank6 | T50: blank7 | U50: blank8 | V50: blank9 | W50: blank10 | X50: blank11 | Y50: 48 | Z50: 96.83165229
A51: DredEA1133 | B51: New channel-Excavation | C51: Minimum Need | D51: Public Safety Inspection | E51: Van | F51: 30 | G51: Low | H51: Low | I51: Not used | J51: Not used | K51: Every 2 years | L51: Interventions per year | M51: Exceptional intervention year | N51: 96.8316522948 | O51: 96.82248 | P51: 0 | Q51: 0.0091722948 | R51: blank5 | S51: blank6 | T51: blank7 | U51: blank8 | V51: blank9 | W51: blank10 | X51: blank11 | Y51: 49 | Z51: 0
A52: DredEA1133 | B52: New channel-Excavation | C52: Minimum Need | D52: Public Safety Inspection | E52: Van | F52: 30 | G52: Low | H52: Low | I52: Not used | J52: Not used | K52: Every 2 years | L52: Interventions per year | M52: Exceptional intervention year | N52: 96.8316522948 | O52: 96.82248 | P52: 0 | Q52: 0.0091722948 | R52: blank5 | S52: blank6 | T52: blank7 | U52: blank8 | V52: blank9 | W52: blank10 | X52: blank11 | Y52: 50 | Z52: 96.83165229
A53: DredEA1133 | B53: New channel-Excavation | C53: Minimum Need | D53: Public Safety Inspection | E53: Van | F53: 30 | G53: Low | H53: Low | I53: Not used | J53: Not used | K53: Every 2 years | L53: Interventions per year | M53: Exceptional intervention year | N53: 96.8316522948 | O53: 96.82248 | P53: 0 | Q53: 0.0091722948 | R53: blank5 | S53: blank6 | T53: blank7 | U53: blank8 | V53: blank9 | W53: blank10 | X53: blank11 | Y53: 51 | Z53: 0
A54: DredEA1133 | B54: New channel-Excavation | C54: Minimum Need | D54: Public Safety Inspection | E54: Van | F54: 30 | G54: Low | H54: Low | I54: Not used | J54: Not used | K54: Every 2 years | L54: Interventions per year | M54: Exceptional intervention year | N54: 96.8316522948 | O54: 96.82248 | P54: 0 | Q54: 0.0091722948 | R54: blank5 | S54: blank6 | T54: blank7 | U54: blank8 | V54: blank9 | W54: blank10 | X54: blank11 | Y54: 52 | Z54: 96.83165229
A55: DredEA1133 | B55: New channel-Excavation | C55: Minimum Need | D55: Public Safety Inspection | E55: Van | F55: 30 | G55: Low | H55: Low | I55: Not used | J55: Not used | K55: Every 2 years | L55: Interventions per year | M55: Exceptional intervention year | N55: 96.8316522948 | O55: 96.82248 | P55: 0 | Q55: 0.0091722948 | R55: blank5 | S55: blank6 | T55: blank7 | U55: blank8 | V55: blank9 | W55: blank10 | X55: blank11 | Y55: 53 | Z55: 0
A56: DredEA1133 | B56: New channel-Excavation | C56: Minimum Need | D56: Public Safety Inspection | E56: Van | F56: 30 | G56: Low | H56: Low | I56: Not used | J56: Not used | K56: Every 2 years | L56: Interventions per year | M56: Exceptional intervention year | N56: 96.8316522948 | O56: 96.82248 | P56: 0 | Q56: 0.0091722948 | R56: blank5 | S56: blank6 | T56: blank7 | U56: blank8 | V56: blank9 | W56: blank10 | X56: blank11 | Y56: 54 | Z56: 96.83165229
A57: DredEA1133 | B57: New channel-Excavation | C57: Minimum Need | D57: Public Safety Inspection | E57: Van | F57: 30 | G57: Low | H57: Low | I57: Not used | J57: Not used | K57: Every 2 years | L57: Interventions per year | M57: Exceptional intervention year | N57: 96.8316522948 | O57: 96.82248 | P57: 0 | Q57: 0.0091722948 | R57: blank5 | S57: blank6 | T57: blank7 | U57: blank8 | V57: blank9 | W57: blank10 | X57: blank11 | Y57: 55 | Z57: 0
A58: DredEA1133 | B58: New channel-Excavation | C58: Minimum Need | D58: Public Safety Inspection | E58: Van | F58: 30 | G58: Low | H58: Low | I58: Not used | J58: Not used | K58: Every 2 years | L58: Interventions per year | M58: Exceptional intervention year | N58: 96.8316522948 | O58: 96.82248 | P58: 0 | Q58: 0.0091722948 | R58: blank5 | S58: blank6 | T58: blank7 | U58: blank8 | V58: blank9 | W58: blank10 | X58: blank11 | Y58: 56 | Z58: 96.83165229
A59: DredEA1133 | B59: New channel-Excavation | C59: Minimum Need | D59: Public Safety Inspection | E59: Van | F59: 30 | G59: Low | H59: Low | I59: Not used | J59: Not used | K59: Every 2 years | L59: Interventions per year | M59: Exceptional intervention year | N59: 96.8316522948 | O59: 96.82248 | P59: 0 | Q59: 0.0091722948 | R59: blank5 | S59: blank6 | T59: blank7 | U59: blank8 | V59: blank9 | W59: blank10 | X59: blank11 | Y59: 57 | Z59: 0
A60: DredEA1133 | B60: New channel-Excavation | C60: Minimum Need | D60: Public Safety Inspection | E60: Van | F60: 30 | G60: Low | H60: Low | I60: Not used | J60: Not used | K60: Every 2 years | L60: Interventions per year | M60: Exceptional intervention year | N60: 96.8316522948 | O60: 96.82248 | P60: 0 | Q60: 0.0091722948 | R60: blank5 | S60: blank6 | T60: blank7 | U60: blank8 | V60: blank9 | W60: blank10 | X60: blank11 | Y60: 58 | Z60: 96.83165229
A61: DredEA1133 | B61: New channel-Excavation | C61: Minimum Need | D61: Public Safety Inspection | E61: Van | F61: 30 | G61: Low | H61: Low | I61: Not used | J61: Not used | K61: Every 2 years | L61: Interventions per year | M61: Exceptional intervention year | N61: 96.8316522948 | O61: 96.82248 | P61: 0 | Q61: 0.0091722948 | R61: blank5 | S61: blank6 | T61: blank7 | U61: blank8 | V61: blank9 | W61: blank10 | X61: blank11 | Y61: 59 | Z61: 0
A62: DredEA1133 | B62: New channel-Excavation | C62: Minimum Need | D62: Public Safety Inspection | E62: Van | F62: 30 | G62: Low | H62: Low | I62: Not used | J62: Not used | K62: Every 2 years | L62: Interventions per year | M62: Exceptional intervention year | N62: 96.8316522948 | O62: 96.82248 | P62: 0 | Q62: 0.0091722948 | R62: blank5 | S62: blank6 | T62: blank7 | U62: blank8 | V62: blank9 | W62: blank10 | X62: blank11 | Y62: 60 | Z62: 96.83165229
A63: DredEA1133 | B63: New channel-Excavation | C63: Minimum Need | D63: Public Safety Inspection | E63: Van | F63: 30 | G63: Low | H63: Low | I63: Not used | J63: Not used | K63: Every 2 years | L63: Interventions per year | M63: Exceptional intervention year | N63: 96.8316522948 | O63: 96.82248 | P63: 0 | Q63: 0.0091722948 | R63: blank5 | S63: blank6 | T63: blank7 | U63: blank8 | V63: blank9 | W63: blank10 | X63: blank11 | Y63: 61 | Z63: 0
A64: DredEA1133 | B64: New channel-Excavation | C64: Minimum Need | D64: Public Safety Inspection | E64: Van | F64: 30 | G64: Low | H64: Low | I64: Not used | J64: Not used | K64: Every 2 years | L64: Interventions per year | M64: Exceptional intervention year | N64: 96.8316522948 | O64: 96.82248 | P64: 0 | Q64: 0.0091722948 | R64: blank5 | S64: blank6 | T64: blank7 | U64: blank8 | V64: blank9 | W64: blank10 | X64: blank11 | Y64: 62 | Z64: 96.83165229
A65: DredEA1133 | B65: New channel-Excavation | C65: Minimum Need | D65: Public Safety Inspection | E65: Van | F65: 30 | G65: Low | H65: Low | I65: Not used | J65: Not used | K65: Every 2 years | L65: Interventions per year | M65: Exceptional intervention year | N65: 96.8316522948 | O65: 96.82248 | P65: 0 | Q65: 0.0091722948 | R65: blank5 | S65: blank6 | T65: blank7 | U65: blank8 | V65: blank9 | W65: blank10 | X65: blank11 | Y65: 63 | Z65: 0
A66: DredEA1133 | B66: New channel-Excavation | C66: Minimum Need | D66: Public Safety Inspection | E66: Van | F66: 30 | G66: Low | H66: Low | I66: Not used | J66: Not used | K66: Every 2 years | L66: Interventions per year | M66: Exceptional intervention year | N66: 96.8316522948 | O66: 96.82248 | P66: 0 | Q66: 0.0091722948 | R66: blank5 | S66: blank6 | T66: blank7 | U66: blank8 | V66: blank9 | W66: blank10 | X66: blank11 | Y66: 64 | Z66: 96.83165229
A67: DredEA1133 | B67: New channel-Excavation | C67: Minimum Need | D67: Public Safety Inspection | E67: Van | F67: 30 | G67: Low | H67: Low | I67: Not used | J67: Not used | K67: Every 2 years | L67: Interventions per year | M67: Exceptional intervention year | N67: 96.8316522948 | O67: 96.82248 | P67: 0 | Q67: 0.0091722948 | R67: blank5 | S67: blank6 | T67: blank7 | U67: blank8 | V67: blank9 | W67: blank10 | X67: blank11 | Y67: 65 | Z67: 0
A68: DredEA1133 | B68: New channel-Excavation | C68: Minimum Need | D68: Public Safety Inspection | E68: Van | F68: 30 | G68: Low | H68: Low | I68: Not used | J68: Not used | K68: Every 2 years | L68: Interventions per year | M68: Exceptional intervention year | N68: 96.8316522948 | O68: 96.82248 | P68: 0 | Q68: 0.0091722948 | R68: blank5 | S68: blank6 | T68: blank7 | U68: blank8 | V68: blank9 | W68: blank10 | X68: blank11 | Y68: 66 | Z68: 96.83165229
A69: DredEA1133 | B69: New channel-Excavation | C69: Minimum Need | D69: Public Safety Inspection | E69: Van | F69: 30 | G69: Low | H69: Low | I69: Not used | J69: Not used | K69: Every 2 years | L69: Interventions per year | M69: Exceptional intervention year | N69: 96.8316522948 | O69: 96.82248 | P69: 0 | Q69: 0.0091722948 | R69: blank5 | S69: blank6 | T69: blank7 | U69: blank8 | V69: blank9 | W69: blank10 | X69: blank11 | Y69: 67 | Z69: 0
A70: DredEA1133 | B70: New channel-Excavation | C70: Minimum Need | D70: Public Safety Inspection | E70: Van | F70: 30 | G70: Low | H70: Low | I70: Not used | J70: Not used | K70: Every 2 years | L70: Interventions per year | M70: Exceptional intervention year | N70: 96.8316522948 | O70: 96.82248 | P70: 0 | Q70: 0.0091722948 | R70: blank5 | S70: blank6 | T70: blank7 | U70: blank8 | V70: blank9 | W70: blank10 | X70: blank11 | Y70: 68 | Z70: 96.83165229
A71: DredEA1133 | B71: New channel-Excavation | C71: Minimum Need | D71: Public Safety Inspection | E71: Van | F71: 30 | G71: Low | H71: Low | I71: Not used | J71: Not used | K71: Every 2 years | L71: Interventions per year | M71: Exceptional intervention year | N71: 96.8316522948 | O71: 96.82248 | P71: 0 | Q71: 0.0091722948 | R71: blank5 | S71: blank6 | T71: blank7 | U71: blank8 | V71: blank9 | W71: blank10 | X71: blank11 | Y71: 69 | Z71: 0
A72: DredEA1133 | B72: New channel-Excavation | C72: Minimum Need | D72: Public Safety Inspection | E72: Van | F72: 30 | G72: Low | H72: Low | I72: Not used | J72: Not used | K72: Every 2 years | L72: Interventions per year | M72: Exceptional intervention year | N72: 96.8316522948 | O72: 96.82248 | P72: 0 | Q72: 0.0091722948 | R72: blank5 | S72: blank6 | T72: blank7 | U72: blank8 | V72: blank9 | W72: blank10 | X72: blank11 | Y72: 70 | Z72: 96.83165229
A73: DredEA1133 | B73: New channel-Excavation | C73: Minimum Need | D73: Public Safety Inspection | E73: Van | F73: 30 | G73: Low | H73: Low | I73: Not used | J73: Not used | K73: Every 2 years | L73: Interventions per year | M73: Exceptional intervention year | N73: 96.8316522948 | O73: 96.82248 | P73: 0 | Q73: 0.0091722948 | R73: blank5 | S73: blank6 | T73: blank7 | U73: blank8 | V73: blank9 | W73: blank10 | X73: blank11 | Y73: 71 | Z73: 0
A74: DredEA1133 | B74: New channel-Excavation | C74: Minimum Need | D74: Public Safety Inspection | E74: Van | F74: 30 | G74: Low | H74: Low | I74: Not used | J74: Not used | K74: Every 2 years | L74: Interventions per year | M74: Exceptional intervention year | N74: 96.8316522948 | O74: 96.82248 | P74: 0 | Q74: 0.0091722948 | R74: blank5 | S74: blank6 | T74: blank7 | U74: blank8 | V74: blank9 | W74: blank10 | X74: blank11 | Y74: 72 | Z74: 96.83165229
A75: DredEA1133 | B75: New channel-Excavation | C75: Minimum Need | D75: Public Safety Inspection | E75: Van | F75: 30 | G75: Low | H75: Low | I75: Not used | J75: Not used | K75: Every 2 years | L75: Interventions per year | M75: Exceptional intervention year | N75: 96.8316522948 | O75: 96.82248 | P75: 0 | Q75: 0.0091722948 | R75: blank5 | S75: blank6 | T75: blank7 | U75: blank8 | V75: blank9 | W75: blank10 | X75: blank11 | Y75: 73 | Z75: 0
A76: DredEA1133 | B76: New channel-Excavation | C76: Minimum Need | D76: Public Safety Inspection | E76: Van | F76: 30 | G76: Low | H76: Low | I76: Not used | J76: Not used | K76: Every 2 years | L76: Interventions per year | M76: Exceptional intervention year | N76: 96.8316522948 | O76: 96.82248 | P76: 0 | Q76: 0.0091722948 | R76: blank5 | S76: blank6 | T76: blank7 | U76: blank8 | V76: blank9 | W76: blank10 | X76: blank11 | Y76: 74 | Z76: 96.83165229
A77: DredEA1133 | B77: New channel-Excavation | C77: Minimum Need | D77: Public Safety Inspection | E77: Van | F77: 30 | G77: Low | H77: Low | I77: Not used | J77: Not used | K77: Every 2 years | L77: Interventions per year | M77: Exceptional intervention year | N77: 96.8316522948 | O77: 96.82248 | P77: 0 | Q77: 0.0091722948 | R77: blank5 | S77: blank6 | T77: blank7 | U77: blank8 | V77: blank9 | W77: blank10 | X77: blank11 | Y77: 75 | Z77: 0
A78: DredEA1133 | B78: New channel-Excavation | C78: Minimum Need | D78: Public Safety Inspection | E78: Van | F78: 30 | G78: Low | H78: Low | I78: Not used | J78: Not used | K78: Every 2 years | L78: Interventions per year | M78: Exceptional intervention year | N78: 96.8316522948 | O78: 96.82248 | P78: 0 | Q78: 0.0091722948 | R78: blank5 | S78: blank6 | T78: blank7 | U78: blank8 | V78: blank9 | W78: blank10 | X78: blank11 | Y78: 76 | Z78: 96.83165229
A79: DredEA1133 | B79: New channel-Excavation | C79: Minimum Need | D79: Public Safety Inspection | E79: Van | F79: 30 | G79: Low | H79: Low | I79: Not used | J79: Not used | K79: Every 2 years | L79: Interventions per year | M79: Exceptional intervention year | N79: 96.8316522948 | O79: 96.82248 | P79: 0 | Q79: 0.0091722948 | R79: blank5 | S79: blank6 | T79: blank7 | U79: blank8 | V79: blank9 | W79: blank10 | X79: blank11 | Y79: 77 | Z79: 0
A80: DredEA1133 | B80: New channel-Excavation | C80: Minimum Need | D80: Public Safety Inspection | E80: Van | F80: 30 | G80: Low | H80: Low | I80: Not used | J80: Not used | K80: Every 2 years | L80: Interventions per year | M80: Exceptional intervention year | N80: 96.8316522948 | O80: 96.82248 | P80: 0 | Q80: 0.0091722948 | R80: blank5 | S80: blank6 | T80: blank7 | U80: blank8 | V80: blank9 | W80: blank10 | X80: blank11 | Y80: 78 | Z80: 96.83165229
A81: DredEA1133 | B81: New channel-Excavation | C81: Minimum Need | D81: Public Safety Inspection | E81: Van | F81: 30 | G81: Low | H81: Low | I81: Not used | J81: Not used | K81: Every 2 years | L81: Interventions per year | M81: Exceptional intervention year | N81: 96.8316522948 | O81: 96.82248 | P81: 0 | Q81: 0.0091722948 | R81: blank5 | S81: blank6 | T81: blank7 | U81: blank8 | V81: blank9 | W81: blank10 | X81: blank11 | Y81: 79 | Z81: 0
A82: DredEA1133 | B82: New channel-Excavation | C82: Minimum Need | D82: Public Safety Inspection | E82: Van | F82: 30 | G82: Low | H82: Low | I82: Not used | J82: Not used | K82: Every 2 years | L82: Interventions per year | M82: Exceptional intervention year | N82: 96.8316522948 | O82: 96.82248 | P82: 0 | Q82: 0.0091722948 | R82: blank5 | S82: blank6 | T82: blank7 | U82: blank8 | V82: blank9 | W82: blank10 | X82: blank11 | Y82: 80 | Z82: 96.83165229
A83: DredEA1133 | B83: New channel-Excavation | C83: Minimum Need | D83: Public Safety Inspection | E83: Van | F83: 30 | G83: Low | H83: Low | I83: Not used | J83: Not used | K83: Every 2 years | L83: Interventions per year | M83: Exceptional intervention year | N83: 96.8316522948 | O83: 96.82248 | P83: 0 | Q83: 0.0091722948 | R83: blank5 | S83: blank6 | T83: blank7 | U83: blank8 | V83: blank9 | W83: blank10 | X83: blank11 | Y83: 81 | Z83: 0
A84: DredEA1133 | B84: New channel-Excavation | C84: Minimum Need | D84: Public Safety Inspection | E84: Van | F84: 30 | G84: Low | H84: Low | I84: Not used | J84: Not used | K84: Every 2 years | L84: Interventions per year | M84: Exceptional intervention year | N84: 96.8316522948 | O84: 96.82248 | P84: 0 | Q84: 0.0091722948 | R84: blank5 | S84: blank6 | T84: blank7 | U84: blank8 | V84: blank9 | W84: blank10 | X84: blank11 | Y84: 82 | Z84: 96.83165229
A85: DredEA1133 | B85: New channel-Excavation | C85: Minimum Need | D85: Public Safety Inspection | E85: Van | F85: 30 | G85: Low | H85: Low | I85: Not used | J85: Not used | K85: Every 2 years | L85: Interventions per year | M85: Exceptional intervention year | N85: 96.8316522948 | O85: 96.82248 | P85: 0 | Q85: 0.0091722948 | R85: blank5 | S85: blank6 | T85: blank7 | U85: blank8 | V85: blank9 | W85: blank10 | X85: blank11 | Y85: 83 | Z85: 0
A86: DredEA1133 | B86: New channel-Excavation | C86: Minimum Need | D86: Public Safety Inspection | E86: Van | F86: 30 | G86: Low | H86: Low | I86: Not used | J86: Not used | K86: Every 2 years | L86: Interventions per year | M86: Exceptional intervention year | N86: 96.8316522948 | O86: 96.82248 | P86: 0 | Q86: 0.0091722948 | R86: blank5 | S86: blank6 | T86: blank7 | U86: blank8 | V86: blank9 | W86: blank10 | X86: blank11 | Y86: 84 | Z86: 96.83165229
A87: DredEA1133 | B87: New channel-Excavation | C87: Minimum Need | D87: Public Safety Inspection | E87: Van | F87: 30 | G87: Low | H87: Low | I87: Not used | J87: Not used | K87: Every 2 years | L87: Interventions per year | M87: Exceptional intervention year | N87: 96.8316522948 | O87: 96.82248 | P87: 0 | Q87: 0.0091722948 | R87: blank5 | S87: blank6 | T87: blank7 | U87: blank8 | V87: blank9 | W87: blank10 | X87: blank11 | Y87: 85 | Z87: 0
A88: DredEA1133 | B88: New channel-Excavation | C88: Minimum Need | D88: Public Safety Inspection | E88: Van | F88: 30 | G88: Low | H88: Low | I88: Not used | J88: Not used | K88: Every 2 years | L88: Interventions per year | M88: Exceptional intervention year | N88: 96.8316522948 | O88: 96.82248 | P88: 0 | Q88: 0.0091722948 | R88: blank5 | S88: blank6 | T88: blank7 | U88: blank8 | V88: blank9 | W88: blank10 | X88: blank11 | Y88: 86 | Z88: 96.83165229
A89: DredEA1133 | B89: New channel-Excavation | C89: Minimum Need | D89: Public Safety Inspection | E89: Van | F89: 30 | G89: Low | H89: Low | I89: Not used | J89: Not used | K89: Every 2 years | L89: Interventions per year | M89: Exceptional intervention year | N89: 96.8316522948 | O89: 96.82248 | P89: 0 | Q89: 0.0091722948 | R89: blank5 | S89: blank6 | T89: blank7 | U89: blank8 | V89: blank9 | W89: blank10 | X89: blank11 | Y89: 87 | Z89: 0
A90: DredEA1133 | B90: New channel-Excavation | C90: Minimum Need | D90: Public Safety Inspection | E90: Van | F90: 30 | G90: Low | H90: Low | I90: Not used | J90: Not used | K90: Every 2 years | L90: Interventions per year | M90: Exceptional intervention year | N90: 96.8316522948 | O90: 96.82248 | P90: 0 | Q90: 0.0091722948 | R90: blank5 | S90: blank6 | T90: blank7 | U90: blank8 | V90: blank9 | W90: blank10 | X90: blank11 | Y90: 88 | Z90: 96.83165229
A91: DredEA1133 | B91: New channel-Excavation | C91: Minimum Need | D91: Public Safety Inspection | E91: Van | F91: 30 | G91: Low | H91: Low | I91: Not used | J91: Not used | K91: Every 2 years | L91: Interventions per year | M91: Exceptional intervention year | N91: 96.8316522948 | O91: 96.82248 | P91: 0 | Q91: 0.0091722948 | R91: blank5 | S91: blank6 | T91: blank7 | U91: blank8 | V91: blank9 | W91: blank10 | X91: blank11 | Y91: 89 | Z91: 0
A92: DredEA1133 | B92: New channel-Excavation | C92: Minimum Need | D92: Public Safety Inspection | E92: Van | F92: 30 | G92: Low | H92: Low | I92: Not used | J92: Not used | K92: Every 2 years | L92: Interventions per year | M92: Exceptional intervention year | N92: 96.8316522948 | O92: 96.82248 | P92: 0 | Q92: 0.0091722948 | R92: blank5 | S92: blank6 | T92: blank7 | U92: blank8 | V92: blank9 | W92: blank10 | X92: blank11 | Y92: 90 | Z92: 96.83165229
A93: DredEA1133 | B93: New channel-Excavation | C93: Minimum Need | D93: Public Safety Inspection | E93: Van | F93: 30 | G93: Low | H93: Low | I93: Not used | J93: Not used | K93: Every 2 years | L93: Interventions per year | M93: Exceptional intervention year | N93: 96.8316522948 | O93: 96.82248 | P93: 0 | Q93: 0.0091722948 | R93: blank5 | S93: blank6 | T93: blank7 | U93: blank8 | V93: blank9 | W93: blank10 | X93: blank11 | Y93: 91 | Z93: 0
A94: DredEA1133 | B94: New channel-Excavation | C94: Minimum Need | D94: Public Safety Inspection | E94: Van | F94: 30 | G94: Low | H94: Low | I94: Not used | J94: Not used | K94: Every 2 years | L94: Interventions per year | M94: Exceptional intervention year | N94: 96.8316522948 | O94: 96.82248 | P94: 0 | Q94: 0.0091722948 | R94: blank5 | S94: blank6 | T94: blank7 | U94: blank8 | V94: blank9 | W94: blank10 | X94: blank11 | Y94: 92 | Z94: 96.83165229
A95: DredEA1133 | B95: New channel-Excavation | C95: Minimum Need | D95: Public Safety Inspection | E95: Van | F95: 30 | G95: Low | H95: Low | I95: Not used | J95: Not used | K95: Every 2 years | L95: Interventions per year | M95: Exceptional intervention year | N95: 96.8316522948 | O95: 96.82248 | P95: 0 | Q95: 0.0091722948 | R95: blank5 | S95: blank6 | T95: blank7 | U95: blank8 | V95: blank9 | W95: blank10 | X95: blank11 | Y95: 93 | Z95: 0
A96: DredEA1133 | B96: New channel-Excavation | C96: Minimum Need | D96: Public Safety Inspection | E96: Van | F96: 30 | G96: Low | H96: Low | I96: Not used | J96: Not used | K96: Every 2 years | L96: Interventions per year | M96: Exceptional intervention year | N96: 96.8316522948 | O96: 96.82248 | P96: 0 | Q96: 0.0091722948 | R96: blank5 | S96: blank6 | T96: blank7 | U96: blank8 | V96: blank9 | W96: blank10 | X96: blank11 | Y96: 94 | Z96: 96.83165229
A97: DredEA1133 | B97: New channel-Excavation | C97: Minimum Need | D97: Public Safety Inspection | E97: Van | F97: 30 | G97: Low | H97: Low | I97: Not used | J97: Not used | K97: Every 2 years | L97: Interventions per year | M97: Exceptional intervention year | N97: 96.8316522948 | O97: 96.82248 | P97: 0 | Q97: 0.0091722948 | R97: blank5 | S97: blank6 | T97: blank7 | U97: blank8 | V97: blank9 | W97: blank10 | X97: blank11 | Y97: 95 | Z97: 0
A98: DredEA1133 | B98: New channel-Excavation | C98: Minimum Need | D98: Public Safety Inspection | E98: Van | F98: 30 | G98: Low | H98: Low | I98: Not used | J98: Not used | K98: Every 2 years | L98: Interventions per year | M98: Exceptional intervention year | N98: 96.8316522948 | O98: 96.82248 | P98: 0 | Q98: 0.0091722948 | R98: blank5 | S98: blank6 | T98: blank7 | U98: blank8 | V98: blank9 | W98: blank10 | X98: blank11 | Y98: 96 | Z98: 96.83165229
A99: DredEA1133 | B99: New channel-Excavation | C99: Minimum Need | D99: Public Safety Inspection | E99: Van | F99: 30 | G99: Low | H99: Low | I99: Not used | J99: Not used | K99: Every 2 years | L99: Interventions per year | M99: Exceptional intervention year | N99: 96.8316522948 | O99: 96.82248 | P99: 0 | Q99: 0.0091722948 | R99: blank5 | S99: blank6 | T99: blank7 | U99: blank8 | V99: blank9 | W99: blank10 | X99: blank11 | Y99: 97 | Z99: 0
A100: DredEA1133 | B100: New channel-Excavation | C100: Minimum Need | D100: Public Safety Inspection | E100: Van | F100: 30 | G100: Low | H100: Low | I100: Not used | J100: Not used | K100: Every 2 years | L100: Interventions per year | M100: Exceptional intervention year | N100: 96.8316522948 | O100: 96.82248 | P100: 0 | Q100: 0.0091722948 | R100: blank5 | S100: blank6 | T100: blank7 | U100: blank8 | V100: blank9 | W100: blank10 | X100: blank11 | Y100: 98 | Z100: 96.83165229
A101: DredEA1133 | B101: New channel-Excavation | C101: Minimum Need | D101: Public Safety Inspection | E101: Van | F101: 30 | G101: Low | H101: Low | I101: Not used | J101: Not used | K101: Every 2 years | L101: Interventions per year | M101: Exceptional intervention year | N101: 96.8316522948 | O101: 96.82248 | P101: 0 | Q101: 0.0091722948 | R101: blank5 | S101: blank6 | T101: blank7 | U101: blank8 | V101: blank9 | W101: blank10 | X101: blank11 | Y101: 99 | Z101: 0
A102: DredEA1133 | B102: New channel-Excavation | C102: Minimum Need | D102: Public Safety Inspection | E102: Van | F102: 30 | G102: Low | H102: Low | I102: Not used | J102: Not used | K102: Every 2 years | L102: Interventions per year | M102: Exceptional intervention year | N102: 96.8316522948 | O102: 96.82248 | P102: 0 | Q102: 0.0091722948 | R102: blank5 | S102: blank6 | T102: blank7 | U102: blank8 | V102: blank9 | W102: blank10 | X102: blank11 | Y102: 100 | Z102: 96.83165229
A103: DredEA1133 | B103: New channel-Excavation | C103: Minimum Need | D103: Public Safety Inspection | E103: Van | F103: 30 | G103: Low | H103: Low | I103: Not used | J103: Not used | K103: Every 2 years | L103: Interventions per year | M103: Exceptional intervention year | N103: 0 | O103: 96.82248 | P103: 0 | Q103: 0.0091722948 | R103: blank5 | S103: blank6 | T103: blank7 | U103: blank8 | V103: blank9 | W103: blank10 | X103: blank11 | Y103: 0
A104: DredEA1133 | B104: New channel-Excavation | C104: Minimum Need | D104: Public Safety Inspection | E104: Van | F104: 30 | G104: Low | H104: Low | I104: Not used | J104: Not used | K104: Every 2 years | L104: Interventions per year | M104: Exceptional intervention year | N104: 0 | O104: 96.82248 | P104: 0 | Q104: 0.0091722948 | R104: blank5 | S104: blank6 | T104: blank7 | U104: blank8 | V104: blank9 | W104: blank10 | X104: blank11 | Y104: 1 | Z104: 0
A105: DredEA1133 | B105: New channel-Excavation | C105: Minimum Need | D105: Public Safety Inspection | E105: Van | F105: 30 | G105: Low | H105: Low | I105: Not used | J105: Not used | K105: Every 2 years | L105: Interventions per year | M105: Exceptional intervention year | N105: 0 | O105: 96.82248 | P105: 0 | Q105: 0.0091722948 | R105: blank5 | S105: blank6 | T105: blank7 | U105: blank8 | V105: blank9 | W105: blank10 | X105: blank11 | Y105: 2 | Z105: 0
A106: DredEA1133 | B106: New channel-Excavation | C106: Minimum Need | D106: Public Safety Inspection | E106: Van | F106: 30 | G106: Low | H106: Low | I106: Not used | J106: Not used | K106: Every 2 years | L106: Interventions per year | M106: Exceptional intervention year | N106: 0 | O106: 96.82248 | P106: 0 | Q106: 0.0091722948 | R106: blank5 | S106: blank6 | T106: blank7 | U106: blank8 | V106: blank9 | W106: blank10 | X106: blank11 | Y106: 3 | Z106: 0
A107: DredEA1133 | B107: New channel-Excavation | C107: Minimum Need | D107: Public Safety Inspection | E107: Van | F107: 30 | G107: Low | H107: Low | I107: Not used | J107: Not used | K107: Every 2 years | L107: Interventions per year | M107: Exceptional intervention year | N107: 0 | O107: 96.82248 | P107: 0 | Q107: 0.0091722948 | R107: blank5 | S107: blank6 | T107: blank7 | U107: blank8 | V107: blank9 | W107: blank10 | X107: blank11 | Y107: 4 | Z107: 0
A108: DredEA1133 | B108: New channel-Excavation | C108: Minimum Need | D108: Public Safety Inspection | E108: Van | F108: 30 | G108: Low | H108: Low | I108: Not used | J108: Not used | K108: Every 2 years | L108: Interventions per year | M108: Exceptional intervention year | N108: 0 | O108: 96.82248 | P108: 0 | Q108: 0.0091722948 | R108: blank5 | S108: blank6 | T108: blank7 | U108: blank8 | V108: blank9 | W108: blank10 | X108: blank11 | Y108: 5 | Z108: 0
A109: DredEA1133 | B109: New channel-Excavation | C109: Minimum Need | D109: Public Safety Inspection | E109: Van | F109: 30 | G109: Low | H109: Low | I109: Not used | J109: Not used | K109: Every 2 years | L109: Interventions per year | M109: Exceptional intervention year | N109: 0 | O109: 96.82248 | P109: 0 | Q109: 0.0091722948 | R109: blank5 | S109: blank6 | T109: blank7 | U109: blank8 | V109: blank9 | W109: blank10 | X109: blank11 | Y109: 6 | Z109: 0
A110: DredEA1133 | B110: New channel-Excavation | C110: Minimum Need | D110: Public Safety Inspection | E110: Van | F110: 30 | G110: Low | H110: Low | I110: Not used | J110: Not used | K110: Every 2 years | L110: Interventions per year | M110: Exceptional intervention year | N110: 0 | O110: 96.82248 | P110: 0 | Q110: 0.0091722948 | R110: blank5 | S110: blank6 | T110: blank7 | U110: blank8 | V110: blank9 | W110: blank10 | X110: blank11 | Y110: 7 | Z110: 0
A111: DredEA1133 | B111: New channel-Excavation | C111: Minimum Need | D111: Public Safety Inspection | E111: Van | F111: 30 | G111: Low | H111: Low | I111: Not used | J111: Not used | K111: Every 2 years | L111: Interventions per year | M111: Exceptional intervention year | N111: 0 | O111: 96.82248 | P111: 0 | Q111: 0.0091722948 | R111: blank5 | S111: blank6 | T111: blank7 | U111: blank8 | V111: blank9 | W111: blank10 | X111: blank11 | Y111: 8 | Z111: 0
A112: DredEA1133 | B112: New channel-Excavation | C112: Minimum Need | D112: Public Safety Inspection | E112: Van | F112: 30 | G112: Low | H112: Low | I112: Not used | J112: Not used | K112: Every 2 years | L112: Interventions per year | M112: Exceptional intervention year | N112: 0 | O112: 96.82248 | P112: 0 | Q112: 0.0091722948 | R112: blank5 | S112: blank6 | T112: blank7 | U112: blank8 | V112: blank9 | W112: blank10 | X112: blank11 | Y112: 9 | Z112: 0
A113: DredEA1133 | B113: New channel-Excavation | C113: Minimum Need | D113: Public Safety Inspection | E113: Van | F113: 30 | G113: Low | H113: Low | I113: Not used | J113: Not used | K113: Every 2 years | L113: Interventions per year | M113: Exceptional intervention year | N113: 0 | O113: 96.82248 | P113: 0 | Q113: 0.0091722948 | R113: blank5 | S113: blank6 | T113: blank7 | U113: blank8 | V113: blank9 | W113: blank10 | X113: blank11 | Y113: 10 | Z113: 0
A114: DredEA1133 | B114: New channel-Excavation | C114: Minimum Need | D114: Public Safety Inspection | E114: Van | F114: 30 | G114: Low | H114: Low | I114: Not used | J114: Not used | K114: Every 2 years | L114: Interventions per year | M114: Exceptional intervention year | N114: 0 | O114: 96.82248 | P114: 0 | Q114: 0.0091722948 | R114: blank5 | S114: blank6 | T114: blank7 | U114: blank8 | V114: blank9 | W114: blank10 | X114: blank11 | Y114: 11 | Z114: 0
A115: DredEA1133 | B115: New channel-Excavation | C115: Minimum Need | D115: Public Safety Inspection | E115: Van | F115: 30 | G115: Low | H115: Low | I115: Not used | J115: Not used | K115: Every 2 years | L115: Interventions per year | M115: Exceptional intervention year | N115: 0 | O115: 96.82248 | P115: 0 | Q115: 0.0091722948 | R115: blank5 | S115: blank6 | T115: blank7 | U115: blank8 | V115: blank9 | W115: blank10 | X115: blank11 | Y115: 12 | Z115: 0
A116: DredEA1133 | B116: New channel-Excavation | C116: Minimum Need | D116: Public Safety Inspection | E116: Van | F116: 30 | G116: Low | H116: Low | I116: Not used | J116: Not used | K116: Every 2 years | L116: Interventions per year | M116: Exceptional intervention year | N116: 0 | O116: 96.82248 | P116: 0 | Q116: 0.0091722948 | R116: blank5 | S116: blank6 | T116: blank7 | U116: blank8 | V116: blank9 | W116: blank10 | X116: blank11 | Y116: 13 | Z116: 0
A117: DredEA1133 | B117: New channel-Excavation | C117: Minimum Need | D117: Public Safety Inspection | E117: Van | F117: 30 | G117: Low | H117: Low | I117: Not used | J117: Not used | K117: Every 2 years | L117: Interventions per year | M117: Exceptional intervention year | N117: 0 | O117: 96.82248 | P117: 0 | Q117: 0.0091722948 | R117: blank5 | S117: blank6 | T117: blank7 | U117: blank8 | V117: blank9 | W117: blank10 | X117: blank11 | Y117: 14 | Z117: 0
A118: DredEA1133 | B118: New channel-Excavation | C118: Minimum Need | D118: Public Safety Inspection | E118: Van | F118: 30 | G118: Low | H118: Low | I118: Not used | J118: Not used | K118: Every 2 years | L118: Interventions per year | M118: Exceptional intervention year | N118: 0 | O118: 96.82248 | P118: 0 | Q118: 0.0091722948 | R118: blank5 | S118: blank6 | T118: blank7 | U118: blank8 | V118: blank9 | W118: blank10 | X118: blank11 | Y118: 15 | Z118: 0
A119: DredEA1133 | B119: New channel-Excavation | C119: Minimum Need | D119: Public Safety Inspection | E119: Van | F119: 30 | G119: Low | H119: Low | I119: Not used | J119: Not used | K119: Every 2 years | L119: Interventions per year | M119: Exceptional intervention year | N119: 0 | O119: 96.82248 | P119: 0 | Q119: 0.0091722948 | R119: blank5 | S119: blank6 | T119: blank7 | U119: blank8 | V119: blank9 | W119: blank10 | X119: blank11 | Y119: 16 | Z119: 0
A120: DredEA1133 | B120: New channel-Excavation | C120: Minimum Need | D120: Public Safety Inspection | E120: Van | F120: 30 | G120: Low | H120: Low | I120: Not used | J120: Not used | K120: Every 2 years | L120: Interventions per year | M120: Exceptional intervention year | N120: 0 | O120: 96.82248 | P120: 0 | Q120: 0.0091722948 | R120: blank5 | S120: blank6 | T120: blank7 | U120: blank8 | V120: blank9 | W120: blank10 | X120: blank11 | Y120: 17 | Z120: 0
A121: DredEA1133 | B121: New channel-Excavation | C121: Minimum Need | D121: Public Safety Inspection | E121: Van | F121: 30 | G121: Low | H121: Low | I121: Not used | J121: Not used | K121: Every 2 years | L121: Interventions per year | M121: Exceptional intervention year | N121: 0 | O121: 96.82248 | P121: 0 | Q121: 0.0091722948 | R121: blank5 | S121: blank6 | T121: blank7 | U121: blank8 | V121: blank9 | W121: blank10 | X121: blank11 | Y121: 18 | Z121: 0
A122: DredEA1133 | B122: New channel-Excavation | C122: Minimum Need | D122: Public Safety Inspection | E122: Van | F122: 30 | G122: Low | H122: Low | I122: Not used | J122: Not used | K122: Every 2 years | L122: Interventions per year | M122: Exceptional intervention year | N122: 0 | O122: 96.82248 | P122: 0 | Q122: 0.0091722948 | R122: blank5 | S122: blank6 | T122: blank7 | U122: blank8 | V122: blank9 | W122: blank10 | X122: blank11 | Y122: 19 | Z122: 0
A123: DredEA1133 | B123: New channel-Excavation | C123: Minimum Need | D123: Public Safety Inspection | E123: Van | F123: 30 | G123: Low | H123: Low | I123: Not used | J123: Not used | K123: Every 2 years | L123: Interventions per year | M123: Exceptional intervention year | N123: 0 | O123: 96.82248 | P123: 0 | Q123: 0.0091722948 | R123: blank5 | S123: blank6 | T123: blank7 | U123: blank8 | V123: blank9 | W123: blank10 | X123: blank11 | Y123: 20 | Z123: 0
A124: DredEA1133 | B124: New channel-Excavation | C124: Minimum Need | D124: Public Safety Inspection | E124: Van | F124: 30 | G124: Low | H124: Low | I124: Not used | J124: Not used | K124: Every 2 years | L124: Interventions per year | M124: Exceptional intervention year | N124: 0 | O124: 96.82248 | P124: 0 | Q124: 0.0091722948 | R124: blank5 | S124: blank6 | T124: blank7 | U124: blank8 | V124: blank9 | W124: blank10 | X124: blank11 | Y124: 21 | Z124: 0
A125: DredEA1133 | B125: New channel-Excavation | C125: Minimum Need | D125: Public Safety Inspection | E125: Van | F125: 30 | G125: Low | H125: Low | I125: Not used | J125: Not used | K125: Every 2 years | L125: Interventions per year | M125: Exceptional intervention year | N125: 0 | O125: 96.82248 | P125: 0 | Q125: 0.0091722948 | R125: blank5 | S125: blank6 | T125: blank7 | U125: blank8 | V125: blank9 | W125: blank10 | X125: blank11 | Y125: 22 | Z125: 0
A126: DredEA1133 | B126: New channel-Excavation | C126: Minimum Need | D126: Public Safety Inspection | E126: Van | F126: 30 | G126: Low | H126: Low | I126: Not used | J126: Not used | K126: Every 2 years | L126: Interventions per year | M126: Exceptional intervention year | N126: 0 | O126: 96.82248 | P126: 0 | Q126: 0.0091722948 | R126: blank5 | S126: blank6 | T126: blank7 | U126: blank8 | V126: blank9 | W126: blank10 | X126: blank11 | Y126: 23 | Z126: 0
A127: DredEA1133 | B127: New channel-Excavation | C127: Minimum Need | D127: Public Safety Inspection | E127: Van | F127: 30 | G127: Low | H127: Low | I127: Not used | J127: Not used | K127: Every 2 years | L127: Interventions per year | M127: Exceptional intervention year | N127: 0 | O127: 96.82248 | P127: 0 | Q127: 0.0091722948 | R127: blank5 | S127: blank6 | T127: blank7 | U127: blank8 | V127: blank9 | W127: blank10 | X127: blank11 | Y127: 24 | Z127: 0
A128: DredEA1133 | B128: New channel-Excavation | C128: Minimum Need | D128: Public Safety Inspection | E128: Van | F128: 30 | G128: Low | H128: Low | I128: Not used | J128: Not used | K128: Every 2 years | L128: Interventions per year | M128: Exceptional intervention year | N128: 0 | O128: 96.82248 | P128: 0 | Q128: 0.0091722948 | R128: blank5 | S128: blank6 | T128: blank7 | U128: blank8 | V128: blank9 | W128: blank10 | X128: blank11 | Y128: 25 | Z128: 0
A129: DredEA1133 | B129: New channel-Excavation | C129: Minimum Need | D129: Public Safety Inspection | E129: Van | F129: 30 | G129: Low | H129: Low | I129: Not used | J129: Not used | K129: Every 2 years | L129: Interventions per year | M129: Exceptional intervention year | N129: 0 | O129: 96.82248 | P129: 0 | Q129: 0.0091722948 | R129: blank5 | S129: blank6 | T129: blank7 | U129: blank8 | V129: blank9 | W129: blank10 | X129: blank11 | Y129: 26 | Z129: 0
A130: DredEA1133 | B130: New channel-Excavation | C130: Minimum Need | D130: Public Safety Inspection | E130: Van | F130: 30 | G130: Low | H130: Low | I130: Not used | J130: Not used | K130: Every 2 years | L130: Interventions per year | M130: Exceptional intervention year | N130: 0 | O130: 96.82248 | P130: 0 | Q130: 0.0091722948 | R130: blank5 | S130: blank6 | T130: blank7 | U130: blank8 | V130: blank9 | W130: blank10 | X130: blank11 | Y130: 27 | Z130: 0
A131: DredEA1133 | B131: New channel-Excavation | C131: Minimum Need | D131: Public Safety Inspection | E131: Van | F131: 30 | G131: Low | H131: Low | I131: Not used | J131: Not used | K131: Every 2 years | L131: Interventions per year | M131: Exceptional intervention year | N131: 0 | O131: 96.82248 | P131: 0 | Q131: 0.0091722948 | R131: blank5 | S131: blank6 | T131: blank7 | U131: blank8 | V131: blank9 | W131: blank10 | X131: blank11 | Y131: 28 | Z131: 0
A132: DredEA1133 | B132: New channel-Excavation | C132: Minimum Need | D132: Public Safety Inspection | E132: Van | F132: 30 | G132: Low | H132: Low | I132: Not used | J132: Not used | K132: Every 2 years | L132: Interventions per year | M132: Exceptional intervention year | N132: 0 | O132: 96.82248 | P132: 0 | Q132: 0.0091722948 | R132: blank5 | S132: blank6 | T132: blank7 | U132: blank8 | V132: blank9 | W132: blank10 | X132: blank11 | Y132: 29 | Z132: 0
A133: DredEA1133 | B133: New channel-Excavation | C133: Minimum Need | D133: Public Safety Inspection | E133: Van | F133: 30 | G133: Low | H133: Low | I133: Not used | J133: Not used | K133: Every 2 years | L133: Interventions per year | M133: Exceptional intervention year | N133: 0 | O133: 96.82248 | P133: 0 | Q133: 0.0091722948 | R133: blank5 | S133: blank6 | T133: blank7 | U133: blank8 | V133: blank9 | W133: blank10 | X133: blank11 | Y133: 30 | Z133: 0
A134: DredEA1133 | B134: New channel-Excavation | C134: Minimum Need | D134: Public Safety Inspection | E134: Van | F134: 30 | G134: Low | H134: Low | I134: Not used | J134: Not used | K134: Every 2 years | L134: Interventions per year | M134: Exceptional intervention year | N134: 0 | O134: 96.82248 | P134: 0 | Q134: 0.0091722948 | R134: blank5 | S134: blank6 | T134: blank7 | U134: blank8 | V134: blank9 | W134: blank10 | X134: blank11 | Y134: 31 | Z134: 0
A135: DredEA1133 | B135: New channel-Excavation | C135: Minimum Need | D135: Public Safety Inspection | E135: Van | F135: 30 | G135: Low | H135: Low | I135: Not used | J135: Not used | K135: Every 2 years | L135: Interventions per year | M135: Exceptional intervention year | N135: 0 | O135: 96.82248 | P135: 0 | Q135: 0.0091722948 | R135: blank5 | S135: blank6 | T135: blank7 | U135: blank8 | V135: blank9 | W135: blank10 | X135: blank11 | Y135: 32 | Z135: 0
A136: DredEA1133 | B136: New channel-Excavation | C136: Minimum Need | D136: Public Safety Inspection | E136: Van | F136: 30 | G136: Low | H136: Low | I136: Not used | J136: Not used | K136: Every 2 years | L136: Interventions per year | M136: Exceptional intervention year | N136: 0 | O136: 96.82248 | P136: 0 | Q136: 0.0091722948 | R136: blank5 | S136: blank6 | T136: blank7 | U136: blank8 | V136: blank9 | W136: blank10 | X136: blank11 | Y136: 33 | Z136: 0
A137: DredEA1133 | B137: New channel-Excavation | C137: Minimum Need | D137: Public Safety Inspection | E137: Van | F137: 30 | G137: Low | H137: Low | I137: Not used | J137: Not used | K137: Every 2 years | L137: Interventions per year | M137: Exceptional intervention year | N137: 0 | O137: 96.82248 | P137: 0 | Q137: 0.0091722948 | R137: blank5 | S137: blank6 | T137: blank7 | U137: blank8 | V137: blank9 | W137: blank10 | X137: blank11 | Y137: 34 | Z137: 0
A138: DredEA1133 | B138: New channel-Excavation | C138: Minimum Need | D138: Public Safety Inspection | E138: Van | F138: 30 | G138: Low | H138: Low | I138: Not used | J138: Not used | K138: Every 2 years | L138: Interventions per year | M138: Exceptional intervention year | N138: 0 | O138: 96.82248 | P138: 0 | Q138: 0.0091722948 | R138: blank5 | S138: blank6 | T138: blank7 | U138: blank8 | V138: blank9 | W138: blank10 | X138: blank11 | Y138: 35 | Z138: 0
A139: DredEA1133 | B139: New channel-Excavation | C139: Minimum Need | D139: Public Safety Inspection | E139: Van | F139: 30 | G139: Low | H139: Low | I139: Not used | J139: Not used | K139: Every 2 years | L139: Interventions per year | M139: Exceptional intervention year | N139: 0 | O139: 96.82248 | P139: 0 | Q139: 0.0091722948 | R139: blank5 | S139: blank6 | T139: blank7 | U139: blank8 | V139: blank9 | W139: blank10 | X139: blank11 | Y139: 36 | Z139: 0
A140: DredEA1133 | B140: New channel-Excavation | C140: Minimum Need | D140: Public Safety Inspection | E140: Van | F140: 30 | G140: Low | H140: Low | I140: Not used | J140: Not used | K140: Every 2 years | L140: Interventions per year | M140: Exceptional intervention year | N140: 0 | O140: 96.82248 | P140: 0 | Q140: 0.0091722948 | R140: blank5 | S140: blank6 | T140: blank7 | U140: blank8 | V140: blank9 | W140: blank10 | X140: blank11 | Y140: 37 | Z140: 0
A141: DredEA1133 | B141: New channel-Excavation | C141: Minimum Need | D141: Public Safety Inspection | E141: Van | F141: 30 | G141: Low | H141: Low | I141: Not used | J141: Not used | K141: Every 2 years | L141: Interventions per year | M141: Exceptional intervention year | N141: 0 | O141: 96.82248 | P141: 0 | Q141: 0.0091722948 | R141: blank5 | S141: blank6 | T141: blank7 | U141: blank8 | V141: blank9 | W141: blank10 | X141: blank11 | Y141: 38 | Z141: 0
A142: DredEA1133 | B142: New channel-Excavation | C142: Minimum Need | D142: Public Safety Inspection | E142: Van | F142: 30 | G142: Low | H142: Low | I142: Not used | J142: Not used | K142: Every 2 years | L142: Interventions per year | M142: Exceptional intervention year | N142: 0 | O142: 96.82248 | P142: 0 | Q142: 0.0091722948 | R142: blank5 | S142: blank6 | T142: blank7 | U142: blank8 | V142: blank9 | W142: blank10 | X142: blank11 | Y142: 39 | Z142: 0
A143: DredEA1133 | B143: New channel-Excavation | C143: Minimum Need | D143: Public Safety Inspection | E143: Van | F143: 30 | G143: Low | H143: Low | I143: Not used | J143: Not used | K143: Every 2 years | L143: Interventions per year | M143: Exceptional intervention year | N143: 0 | O143: 96.82248 | P143: 0 | Q143: 0.0091722948 | R143: blank5 | S143: blank6 | T143: blank7 | U143: blank8 | V143: blank9 | W143: blank10 | X143: blank11 | Y143: 40 | Z143: 0
A144: DredEA1133 | B144: New channel-Excavation | C144: Minimum Need | D144: Public Safety Inspection | E144: Van | F144: 30 | G144: Low | H144: Low | I144: Not used | J144: Not used | K144: Every 2 years | L144: Interventions per year | M144: Exceptional intervention year | N144: 0 | O144: 96.82248 | P144: 0 | Q144: 0.0091722948 | R144: blank5 | S144: blank6 | T144: blank7 | U144: blank8 | V144: blank9 | W144: blank10 | X144: blank11 | Y144: 41 | Z144: 0
A145: DredEA1133 | B145: New channel-Excavation | C145: Minimum Need | D145: Public Safety Inspection | E145: Van | F145: 30 | G145: Low | H145: Low | I145: Not used | J145: Not used | K145: Every 2 years | L145: Interventions per year | M145: Exceptional intervention year | N145: 0 | O145: 96.82248 | P145: 0 | Q145: 0.0091722948 | R145: blank5 | S145: blank6 | T145: blank7 | U145: blank8 | V145: blank9 | W145: blank10 | X145: blank11 | Y145: 42 | Z145: 0
A146: DredEA1133 | B146: New channel-Excavation | C146: Minimum Need | D146: Public Safety Inspection | E146: Van | F146: 30 | G146: Low | H146: Low | I146: Not used | J146: Not used | K146: Every 2 years | L146: Interventions per year | M146: Exceptional intervention year | N146: 0 | O146: 96.82248 | P146: 0 | Q146: 0.0091722948 | R146: blank5 | S146: blank6 | T146: blank7 | U146: blank8 | V146: blank9 | W146: blank10 | X146: blank11 | Y146: 43 | Z146: 0
A147: DredEA1133 | B147: New channel-Excavation | C147: Minimum Need | D147: Public Safety Inspection | E147: Van | F147: 30 | G147: Low | H147: Low | I147: Not used | J147: Not used | K147: Every 2 years | L147: Interventions per year | M147: Exceptional intervention year | N147: 0 | O147: 96.82248 | P147: 0 | Q147: 0.0091722948 | R147: blank5 | S147: blank6 | T147: blank7 | U147: blank8 | V147: blank9 | W147: blank10 | X147: blank11 | Y147: 44 | Z147: 0
A148: DredEA1133 | B148: New channel-Excavation | C148: Minimum Need | D148: Public Safety Inspection | E148: Van | F148: 30 | G148: Low | H148: Low | I148: Not used | J148: Not used | K148: Every 2 years | L148: Interventions per year | M148: Exceptional intervention year | N148: 0 | O148: 96.82248 | P148: 0 | Q148: 0.0091722948 | R148: blank5 | S148: blank6 | T148: blank7 | U148: blank8 | V148: blank9 | W148: blank10 | X148: blank11 | Y148: 45 | Z148: 0
A149: DredEA1133 | B149: New channel-Excavation | C149: Minimum Need | D149: Public Safety Inspection | E149: Van | F149: 30 | G149: Low | H149: Low | I149: Not used | J149: Not used | K149: Every 2 years | L149: Interventions per year | M149: Exceptional intervention year | N149: 0 | O149: 96.82248 | P149: 0 | Q149: 0.0091722948 | R149: blank5 | S149: blank6 | T149: blank7 | U149: blank8 | V149: blank9 | W149: blank10 | X149: blank11 | Y149: 46 | Z149: 0
A150: DredEA1133 | B150: New channel-Excavation | C150: Minimum Need | D150: Public Safety Inspection | E150: Van | F150: 30 | G150: Low | H150: Low | I150: Not used | J150: Not used | K150: Every 2 years | L150: Interventions per year | M150: Exceptional intervention year | N150: 0 | O150: 96.82248 | P150: 0 | Q150: 0.0091722948 | R150: blank5 | S150: blank6 | T150: blank7 | U150: blank8 | V150: blank9 | W150: blank10 | X150: blank11 | Y150: 47 | Z150: 0
A151: DredEA1133 | B151: New channel-Excavation | C151: Minimum Need | D151: Public Safety Inspection | E151: Van | F151: 30 | G151: Low | H151: Low | I151: Not used | J151: Not used | K151: Every 2 years | L151: Interventions per year | M151: Exceptional intervention year | N151: 0 | O151: 96.82248 | P151: 0 | Q151: 0.0091722948 | R151: blank5 | S151: blank6 | T151: blank7 | U151: blank8 | V151: blank9 | W151: blank10 | X151: blank11 | Y151: 48 | Z151: 0
A152: DredEA1133 | B152: New channel-Excavation | C152: Minimum Need | D152: Public Safety Inspection | E152: Van | F152: 30 | G152: Low | H152: Low | I152: Not used | J152: Not used | K152: Every 2 years | L152: Interventions per year | M152: Exceptional intervention year | N152: 0 | O152: 96.82248 | P152: 0 | Q152: 0.0091722948 | R152: blank5 | S152: blank6 | T152: blank7 | U152: blank8 | V152: blank9 | W152: blank10 | X152: blank11 | Y152: 49 | Z152: 0
A153: DredEA1133 | B153: New channel-Excavation | C153: Minimum Need | D153: Public Safety Inspection | E153: Van | F153: 30 | G153: Low | H153: Low | I153: Not used | J153: Not used | K153: Every 2 years | L153: Interventions per year | M153: Exceptional intervention year | N153: 0 | O153: 96.82248 | P153: 0 | Q153: 0.0091722948 | R153: blank5 | S153: blank6 | T153: blank7 | U153: blank8 | V153: blank9 | W153: blank10 | X153: blank11 | Y153: 50 | Z153: 0
A154: DredEA1133 | B154: New channel-Excavation | C154: Minimum Need | D154: Public Safety Inspection | E154: Van | F154: 30 | G154: Low | H154: Low | I154: Not used | J154: Not used | K154: Every 2 years | L154: Interventions per year | M154: Exceptional intervention year | N154: 0 | O154: 96.82248 | P154: 0 | Q154: 0.0091722948 | R154: blank5 | S154: blank6 | T154: blank7 | U154: blank8 | V154: blank9 | W154: blank10 | X154: blank11 | Y154: 51 | Z154: 0
A155: DredEA1133 | B155: New channel-Excavation | C155: Minimum Need | D155: Public Safety Inspection | E155: Van | F155: 30 | G155: Low | H155: Low | I155: Not used | J155: Not used | K155: Every 2 years | L155: Interventions per year | M155: Exceptional intervention year | N155: 0 | O155: 96.82248 | P155: 0 | Q155: 0.0091722948 | R155: blank5 | S155: blank6 | T155: blank7 | U155: blank8 | V155: blank9 | W155: blank10 | X155: blank11 | Y155: 52 | Z155: 0
A156: DredEA1133 | B156: New channel-Excavation | C156: Minimum Need | D156: Public Safety Inspection | E156: Van | F156: 30 | G156: Low | H156: Low | I156: Not used | J156: Not used | K156: Every 2 years | L156: Interventions per year | M156: Exceptional intervention year | N156: 0 | O156: 96.82248 | P156: 0 | Q156: 0.0091722948 | R156: blank5 | S156: blank6 | T156: blank7 | U156: blank8 | V156: blank9 | W156: blank10 | X156: blank11 | Y156: 53 | Z156: 0
A157: DredEA1133 | B157: New channel-Excavation | C157: Minimum Need | D157: Public Safety Inspection | E157: Van | F157: 30 | G157: Low | H157: Low | I157: Not used | J157: Not used | K157: Every 2 years | L157: Interventions per year | M157: Exceptional intervention year | N157: 0 | O157: 96.82248 | P157: 0 | Q157: 0.0091722948 | R157: blank5 | S157: blank6 | T157: blank7 | U157: blank8 | V157: blank9 | W157: blank10 | X157: blank11 | Y157: 54 | Z157: 0
A158: DredEA1133 | B158: New channel-Excavation | C158: Minimum Need | D158: Public Safety Inspection | E158: Van | F158: 30 | G158: Low | H158: Low | I158: Not used | J158: Not used | K158: Every 2 years | L158: Interventions per year | M158: Exceptional intervention year | N158: 0 | O158: 96.82248 | P158: 0 | Q158: 0.0091722948 | R158: blank5 | S158: blank6 | T158: blank7 | U158: blank8 | V158: blank9 | W158: blank10 | X158: blank11 | Y158: 55 | Z158: 0
A159: DredEA1133 | B159: New channel-Excavation | C159: Minimum Need | D159: Public Safety Inspection | E159: Van | F159: 30 | G159: Low | H159: Low | I159: Not used | J159: Not used | K159: Every 2 years | L159: Interventions per year | M159: Exceptional intervention year | N159: 0 | O159: 96.82248 | P159: 0 | Q159: 0.0091722948 | R159: blank5 | S159: blank6 | T159: blank7 | U159: blank8 | V159: blank9 | W159: blank10 | X159: blank11 | Y159: 56 | Z159: 0
A160: DredEA1133 | B160: New channel-Excavation | C160: Minimum Need | D160: Public Safety Inspection | E160: Van | F160: 30 | G160: Low | H160: Low | I160: Not used | J160: Not used | K160: Every 2 years | L160: Interventions per year | M160: Exceptional intervention year | N160: 0 | O160: 96.82248 | P160: 0 | Q160: 0.0091722948 | R160: blank5 | S160: blank6 | T160: blank7 | U160: blank8 | V160: blank9 | W160: blank10 | X160: blank11 | Y160: 57 | Z160: 0
A161: DredEA1133 | B161: New channel-Excavation | C161: Minimum Need | D161: Public Safety Inspection | E161: Van | F161: 30 | G161: Low | H161: Low | I161: Not used | J161: Not used | K161: Every 2 years | L161: Interventions per year | M161: Exceptional intervention year | N161: 0 | O161: 96.82248 | P161: 0 | Q161: 0.0091722948 | R161: blank5 | S161: blank6 | T161: blank7 | U161: blank8 | V161: blank9 | W161: blank10 | X161: blank11 | Y161: 58 | Z161: 0
A162: DredEA1133 | B162: New channel-Excavation | C162: Minimum Need | D162: Public Safety Inspection | E162: Van | F162: 30 | G162: Low | H162: Low | I162: Not used | J162: Not used | K162: Every 2 years | L162: Interventions per year | M162: Exceptional intervention year | N162: 0 | O162: 96.82248 | P162: 0 | Q162: 0.0091722948 | R162: blank5 | S162: blank6 | T162: blank7 | U162: blank8 | V162: blank9 | W162: blank10 | X162: blank11 | Y162: 59 | Z162: 0
A163: DredEA1133 | B163: New channel-Excavation | C163: Minimum Need | D163: Public Safety Inspection | E163: Van | F163: 30 | G163: Low | H163: Low | I163: Not used | J163: Not used | K163: Every 2 years | L163: Interventions per year | M163: Exceptional intervention year | N163: 0 | O163: 96.82248 | P163: 0 | Q163: 0.0091722948 | R163: blank5 | S163: blank6 | T163: blank7 | U163: blank8 | V163: blank9 | W163: blank10 | X163: blank11 | Y163: 60 | Z163: 0
A164: DredEA1133 | B164: New channel-Excavation | C164: Minimum Need | D164: Public Safety Inspection | E164: Van | F164: 30 | G164: Low | H164: Low | I164: Not used | J164: Not used | K164: Every 2 years | L164: Interventions per year | M164: Exceptional intervention year | N164: 0 | O164: 96.82248 | P164: 0 | Q164: 0.0091722948 | R164: blank5 | S164: blank6 | T164: blank7 | U164: blank8 | V164: blank9 | W164: blank10 | X164: blank11 | Y164: 61 | Z164: 0
A165: DredEA1133 | B165: New channel-Excavation | C165: Minimum Need | D165: Public Safety Inspection | E165: Van | F165: 30 | G165: Low | H165: Low | I165: Not used | J165: Not used | K165: Every 2 years | L165: Interventions per year | M165: Exceptional intervention year | N165: 0 | O165: 96.82248 | P165: 0 | Q165: 0.0091722948 | R165: blank5 | S165: blank6 | T165: blank7 | U165: blank8 | V165: blank9 | W165: blank10 | X165: blank11 | Y165: 62 | Z165: 0
A166: DredEA1133 | B166: New channel-Excavation | C166: Minimum Need | D166: Public Safety Inspection | E166: Van | F166: 30 | G166: Low | H166: Low | I166: Not used | J166: Not used | K166: Every 2 years | L166: Interventions per year | M166: Exceptional intervention year | N166: 0 | O166: 96.82248 | P166: 0 | Q166: 0.0091722948 | R166: blank5 | S166: blank6 | T166: blank7 | U166: blank8 | V166: blank9 | W166: blank10 | X166: blank11 | Y166: 63 | Z166: 0
A167: DredEA1133 | B167: New channel-Excavation | C167: Minimum Need | D167: Public Safety Inspection | E167: Van | F167: 30 | G167: Low | H167: Low | I167: Not used | J167: Not used | K167: Every 2 years | L167: Interventions per year | M167: Exceptional intervention year | N167: 0 | O167: 96.82248 | P167: 0 | Q167: 0.0091722948 | R167: blank5 | S167: blank6 | T167: blank7 | U167: blank8 | V167: blank9 | W167: blank10 | X167: blank11 | Y167: 64 | Z167: 0
A168: DredEA1133 | B168: New channel-Excavation | C168: Minimum Need | D168: Public Safety Inspection | E168: Van | F168: 30 | G168: Low | H168: Low | I168: Not used | J168: Not used | K168: Every 2 years | L168: Interventions per year | M168: Exceptional intervention year | N168: 0 | O168: 96.82248 | P168: 0 | Q168: 0.0091722948 | R168: blank5 | S168: blank6 | T168: blank7 | U168: blank8 | V168: blank9 | W168: blank10 | X168: blank11 | Y168: 65 | Z168: 0
A169: DredEA1133 | B169: New channel-Excavation | C169: Minimum Need | D169: Public Safety Inspection | E169: Van | F169: 30 | G169: Low | H169: Low | I169: Not used | J169: Not used | K169: Every 2 years | L169: Interventions per year | M169: Exceptional intervention year | N169: 0 | O169: 96.82248 | P169: 0 | Q169: 0.0091722948 | R169: blank5 | S169: blank6 | T169: blank7 | U169: blank8 | V169: blank9 | W169: blank10 | X169: blank11 | Y169: 66 | Z169: 0
A170: DredEA1133 | B170: New channel-Excavation | C170: Minimum Need | D170: Public Safety Inspection | E170: Van | F170: 30 | G170: Low | H170: Low | I170: Not used | J170: Not used | K170: Every 2 years | L170: Interventions per year | M170: Exceptional intervention year | N170: 0 | O170: 96.82248 | P170: 0 | Q170: 0.0091722948 | R170: blank5 | S170: blank6 | T170: blank7 | U170: blank8 | V170: blank9 | W170: blank10 | X170: blank11 | Y170: 67 | Z170: 0
A171: DredEA1133 | B171: New channel-Excavation | C171: Minimum Need | D171: Public Safety Inspection | E171: Van | F171: 30 | G171: Low | H171: Low | I171: Not used | J171: Not used | K171: Every 2 years | L171: Interventions per year | M171: Exceptional intervention year | N171: 0 | O171: 96.82248 | P171: 0 | Q171: 0.0091722948 | R171: blank5 | S171: blank6 | T171: blank7 | U171: blank8 | V171: blank9 | W171: blank10 | X171: blank11 | Y171: 68 | Z171: 0
A172: DredEA1133 | B172: New channel-Excavation | C172: Minimum Need | D172: Public Safety Inspection | E172: Van | F172: 30 | G172: Low | H172: Low | I172: Not used | J172: Not used | K172: Every 2 years | L172: Interventions per year | M172: Exceptional intervention year | N172: 0 | O172: 96.82248 | P172: 0 | Q172: 0.0091722948 | R172: blank5 | S172: blank6 | T172: blank7 | U172: blank8 | V172: blank9 | W172: blank10 | X172: blank11 | Y172: 69 | Z172: 0
A173: DredEA1133 | B173: New channel-Excavation | C173: Minimum Need | D173: Public Safety Inspection | E173: Van | F173: 30 | G173: Low | H173: Low | I173: Not used | J173: Not used | K173: Every 2 years | L173: Interventions per year | M173: Exceptional intervention year | N173: 0 | O173: 96.82248 | P173: 0 | Q173: 0.0091722948 | R173: blank5 | S173: blank6 | T173: blank7 | U173: blank8 | V173: blank9 | W173: blank10 | X173: blank11 | Y173: 70 | Z173: 0
A174: DredEA1133 | B174: New channel-Excavation | C174: Minimum Need | D174: Public Safety Inspection | E174: Van | F174: 30 | G174: Low | H174: Low | I174: Not used | J174: Not used | K174: Every 2 years | L174: Interventions per year | M174: Exceptional intervention year | N174: 0 | O174: 96.82248 | P174: 0 | Q174: 0.0091722948 | R174: blank5 | S174: blank6 | T174: blank7 | U174: blank8 | V174: blank9 | W174: blank10 | X174: blank11 | Y174: 71 | Z174: 0
A175: DredEA1133 | B175: New channel-Excavation | C175: Minimum Need | D175: Public Safety Inspection | E175: Van | F175: 30 | G175: Low | H175: Low | I175: Not used | J175: Not used | K175: Every 2 years | L175: Interventions per year | M175: Exceptional intervention year | N175: 0 | O175: 96.82248 | P175: 0 | Q175: 0.0091722948 | R175: blank5 | S175: blank6 | T175: blank7 | U175: blank8 | V175: blank9 | W175: blank10 | X175: blank11 | Y175: 72 | Z175: 0
A176: DredEA1133 | B176: New channel-Excavation | C176: Minimum Need | D176: Public Safety Inspection | E176: Van | F176: 30 | G176: Low | H176: Low | I176: Not used | J176: Not used | K176: Every 2 years | L176: Interventions per year | M176: Exceptional intervention year | N176: 0 | O176: 96.82248 | P176: 0 | Q176: 0.0091722948 | R176: blank5 | S176: blank6 | T176: blank7 | U176: blank8 | V176: blank9 | W176: blank10 | X176: blank11 | Y176: 73 | Z176: 0
A177: DredEA1133 | B177: New channel-Excavation | C177: Minimum Need | D177: Public Safety Inspection | E177: Van | F177: 30 | G177: Low | H177: Low | I177: Not used | J177: Not used | K177: Every 2 years | L177: Interventions per year | M177: Exceptional intervention year | N177: 0 | O177: 96.82248 | P177: 0 | Q177: 0.0091722948 | R177: blank5 | S177: blank6 | T177: blank7 | U177: blank8 | V177: blank9 | W177: blank10 | X177: blank11 | Y177: 74 | Z177: 0
A178: DredEA1133 | B178: New channel-Excavation | C178: Minimum Need | D178: Public Safety Inspection | E178: Van | F178: 30 | G178: Low | H178: Low | I178: Not used | J178: Not used | K178: Every 2 years | L178: Interventions per year | M178: Exceptional intervention year | N178: 0 | O178: 96.82248 | P178: 0 | Q178: 0.0091722948 | R178: blank5 | S178: blank6 | T178: blank7 | U178: blank8 | V178: blank9 | W178: blank10 | X178: blank11 | Y178: 75 | Z178: 0
A179: DredEA1133 | B179: New channel-Excavation | C179: Minimum Need | D179: Public Safety Inspection | E179: Van | F179: 30 | G179: Low | H179: Low | I179: Not used | J179: Not used | K179: Every 2 years | L179: Interventions per year | M179: Exceptional intervention year | N179: 0 | O179: 96.82248 | P179: 0 | Q179: 0.0091722948 | R179: blank5 | S179: blank6 | T179: blank7 | U179: blank8 | V179: blank9 | W179: blank10 | X179: blank11 | Y179: 76 | Z179: 0
A180: DredEA1133 | B180: New channel-Excavation | C180: Minimum Need | D180: Public Safety Inspection | E180: Van | F180: 30 | G180: Low | H180: Low | I180: Not used | J180: Not used | K180: Every 2 years | L180: Interventions per year | M180: Exceptional intervention year | N180: 0 | O180: 96.82248 | P180: 0 | Q180: 0.0091722948 | R180: blank5 | S180: blank6 | T180: blank7 | U180: blank8 | V180: blank9 | W180: blank10 | X180: blank11 | Y180: 77 | Z180: 0
A181: DredEA1133 | B181: New channel-Excavation | C181: Minimum Need | D181: Public Safety Inspection | E181: Van | F181: 30 | G181: Low | H181: Low | I181: Not used | J181: Not used | K181: Every 2 years | L181: Interventions per year | M181: Exceptional intervention year | N181: 0 | O181: 96.82248 | P181: 0 | Q181: 0.0091722948 | R181: blank5 | S181: blank6 | T181: blank7 | U181: blank8 | V181: blank9 | W181: blank10 | X181: blank11 | Y181: 78 | Z181: 0
A182: DredEA1133 | B182: New channel-Excavation | C182: Minimum Need | D182: Public Safety Inspection | E182: Van | F182: 30 | G182: Low | H182: Low | I182: Not used | J182: Not used | K182: Every 2 years | L182: Interventions per year | M182: Exceptional intervention year | N182: 0 | O182: 96.82248 | P182: 0 | Q182: 0.0091722948 | R182: blank5 | S182: blank6 | T182: blank7 | U182: blank8 | V182: blank9 | W182: blank10 | X182: blank11 | Y182: 79 | Z182: 0
A183: DredEA1133 | B183: New channel-Excavation | C183: Minimum Need | D183: Public Safety Inspection | E183: Van | F183: 30 | G183: Low | H183: Low | I183: Not used | J183: Not used | K183: Every 2 years | L183: Interventions per year | M183: Exceptional intervention year | N183: 0 | O183: 96.82248 | P183: 0 | Q183: 0.0091722948 | R183: blank5 | S183: blank6 | T183: blank7 | U183: blank8 | V183: blank9 | W183: blank10 | X183: blank11 | Y183: 80 | Z183: 0
A184: DredEA1133 | B184: New channel-Excavation | C184: Minimum Need | D184: Public Safety Inspection | E184: Van | F184: 30 | G184: Low | H184: Low | I184: Not used | J184: Not used | K184: Every 2 years | L184: Interventions per year | M184: Exceptional intervention year | N184: 0 | O184: 96.82248 | P184: 0 | Q184: 0.0091722948 | R184: blank5 | S184: blank6 | T184: blank7 | U184: blank8 | V184: blank9 | W184: blank10 | X184: blank11 | Y184: 81 | Z184: 0
A185: DredEA1133 | B185: New channel-Excavation | C185: Minimum Need | D185: Public Safety Inspection | E185: Van | F185: 30 | G185: Low | H185: Low | I185: Not used | J185: Not used | K185: Every 2 years | L185: Interventions per year | M185: Exceptional intervention year | N185: 0 | O185: 96.82248 | P185: 0 | Q185: 0.0091722948 | R185: blank5 | S185: blank6 | T185: blank7 | U185: blank8 | V185: blank9 | W185: blank10 | X185: blank11 | Y185: 82 | Z185: 0
A186: DredEA1133 | B186: New channel-Excavation | C186: Minimum Need | D186: Public Safety Inspection | E186: Van | F186: 30 | G186: Low | H186: Low | I186: Not used | J186: Not used | K186: Every 2 years | L186: Interventions per year | M186: Exceptional intervention year | N186: 0 | O186: 96.82248 | P186: 0 | Q186: 0.0091722948 | R186: blank5 | S186: blank6 | T186: blank7 | U186: blank8 | V186: blank9 | W186: blank10 | X186: blank11 | Y186: 83 | Z186: 0
A187: DredEA1133 | B187: New channel-Excavation | C187: Minimum Need | D187: Public Safety Inspection | E187: Van | F187: 30 | G187: Low | H187: Low | I187: Not used | J187: Not used | K187: Every 2 years | L187: Interventions per year | M187: Exceptional intervention year | N187: 0 | O187: 96.82248 | P187: 0 | Q187: 0.0091722948 | R187: blank5 | S187: blank6 | T187: blank7 | U187: blank8 | V187: blank9 | W187: blank10 | X187: blank11 | Y187: 84 | Z187: 0
